Workbook

Sheet Cover
B2: TRMbd_BP2026.xlsm
B3: Home / Contents
B5: Purpose of this Workbook:
B6: This workbook computes TRM billing determinants used for rate making and as a data feed to Contracts and Billing. Input data is provided from the RAM Data Inputs workbook, with outputs to RAM presented in the "RAM Export" sheet. All user modification should be done in the RAM inputs sheet; inputs to the TRM billing determinants are entered as values in this workbook, with no modification to assumptions; that is, settings in this workbook should not be altered. Annual Billing Determinants for Composite, Nonslice and Tier 2 customer charges and included on the TOCA sheet. Subsequent sheets compute Load Shaping and Demand charges by customer for the two-year rate period. This model is fundamentally 2-year monthly/diurnal, but can be accessed iteratively through use of macros for extended forecasts at the user's discretion.
... 7 more rows

Sheet TOC
B1: Table of Contents
A2: TOC
B3: Cover Sheet
B5: Section & Sheet Titles | M5: Page | N5: Input
B7: 1 | C7: Initialize Assumptions | M7: 3
... 8 more rows

Sheet Init
B1: Initiation Sheet
A2: TOC
B3: Input Parameters | E3: Monthly Hours | M3: Annual Hours | Q3: Preference Customer Parameters | CH3: 9 | CI3: =+CH3+1 -> 10 | CJ3: =+CI3+1 -> 11 | CK3: =+CJ3+1 -> 12 | CL3: 13 | CM3: 14 | CN3: 15 | CO3: 16 | CP3: 17 | CQ3: 18 | CR3: 19 | CS3: =+CR3+1 -> 20 | CT3: =+CS3+1 -> 21 | CU3: =+CT3+1 -> 22 | CV3: =+CU3+1 -> 23 | CW3: =+CV3+1 -> 24 | CX3: =+CW3+1 -> 25 | CY3: =+CX3+1 -> 26 | DB3: 22 | DC3: =+DB3+1 -> 23 | DD3: 24 | DE3: 25 | DF3: 26 | DG3: 27 | DH3: 28 | DI3: =+DH3+1 -> 29 | DJ3: =+DI3+1 -> 30 | DK3: =+DJ3+1 -> 31 | DL3: =+DK3+1 -> 32 | DM3: =+DL3+1 -> 33 | DN3: =+DM3+1 -> 34 | DO3: =+DN3+1 -> 35 | DP3: =+DO3+1 -> 36 | DQ3: =+DP3+1 -> 37 | DR3: =+DQ3+1 -> 38 | DS3: =+DR3+1 -> 39 | DV3: 35 | DW3: =+DV3+1 -> 36 | DX3: =+DW3+1 -> 37 | DY3: 38 | DZ3: 39 | EA3: 40 | EB3: 41 | EC3: 42 | ED3: 43 | EE3: 44 | EF3: 45 | EG3: =+EF3+1 -> 46 | EH3: =+EG3+1 -> 47 | EI3: =+EH3+1 -> 48 | EJ3: =+EI3+1 -> 49 | EK3: =+EJ3+1 -> 50 | EL3: =+EK3+1 -> 51 | EM3: =+EL3+1 -> 52
E4: FiscalID | F4: Cal Date | G4: HLH | H4: LLH | I4: Total | J4: HLH% | K4: LLH% | M4: year | N4: days | O4: hours | Q4: BESID | R4: AccountName | S4: Slice Block or Block | T4: PNGC | U4: Initial CHWM | V4: RHWM Aug 2016 | W4: RHWM Aug 2018 | X4: RHWM Aug 2020 | Y4: RHWM Aug 2022 | Z4: RHWM Aug 2024 | AA4: RHWM Aug 2026 | AB4: RHWM Aug 2028 | AC4: RHWM Aug 2030 | AD4: RHWM Aug 2032 | AE4: RHWM Aug 2034 | AF4: Initial Slice% | AG4: 60-40 | AH4: RHWM 2016 | AI4: RHWM 2018 | AJ4: RHWM 2020 | AK4: RHWM 2022 | AL4: RHWM 2024 | AM4: RHWM 2026 | AN4: RHWM 2028 | AO4: RHWM 2030 | AP4: RHWM 2032 | AQ4: RHWM 2034 | AR4: TRL - NLSL - Existing Resource 2016 | AS4: TRL - NLSL - Existing Resource 2017 | AT4: TRL - NLSL - Existing Resource 2018 | AU4: TRL - NLSL - Existing Resource 2019 | AV4: TRL - NLSL - Existing Resource 2020 | AW4: TRL - NLSL - Existing Resource 2021 | AX4: TRL - NLSL - Existing Resource 2022 | AY4: TRL - NLSL - Existing Resource 2023 | AZ4: TRL - NLSL - Existing Resource 2024 | BA4: TRL - NLSL - Existing Resource 2025 | BB4: TRL - NLSL - Existing Resource 2026 | BC4: TRL - NLSL - Existing Resource 2027 | BD4: TRL - NLSL - Existing Resource 2028 | BE4: TRL - NLSL - Existing Resource 2029 | BF4: TRL - NLSL - Existing Resource 2030 | BG4: TRL - NLSL - Existing Resource 2031 | BH4: TRL - NLSL - Existing Resource 2032 | BI4: TRL - NLSL - Existing Resource 2033 | BJ4: TRL - NLSL - Existing Resource 2034 | BK4: TRL - NLSL - Existing Resource 2035 | BL4: Above RHWM 2016 | BM4: Above RHWM 2017 | BN4: Above RHWM 2018 | BO4: Above RHWM 2019 | BP4: Above RHWM 2020 | BQ4: Above RHWM 2021 | BR4: Above RHWM 2022 | BS4: Above RHWM 2023 | BT4: Above RHWM 2024 | BU4: Above RHWM 2025 | BV4: Above RHWM 2026 | BW4: Above RHWM 2027 | BX4: Above RHWM 2028 | BY4: Above RHWM 2029 | BZ4: Above RHWM 2030 | CA4: Above RHWM 2031 | CB4: Above RHWM 2032 | CC4: Above RHWM 2033 | CD4: Above RHWM 2034 | CE4: Above RHWM 2035 | CF4: Election 2016 | CG4: Election 2017 | CH4: Election 2018 | CI4: Election 2019 | CJ4: Election 2020 | CK4: Election 2021 | CL4: Election 2022 | CM4: Election 2023 | CN4: Election 2024 | CO4: Election 2025 | CP4: Election 2026 | CQ4: Election 2027 | CR4: Election 2028 | CS4: Election 2029 | CT4: Election 2030 | CU4: Election 2031 | CV4: Election 2032 | CW4: Election 2033 | CX4: Election 2034 | CY4: Election 2035 | CZ4: Amount 2016 | DA4: Amount 2017 | DB4: Amount 2018 | DC4: Amount 2019 | DD4: Amount 2020 | DE4: Amount 2021 | DF4: Amount 2022 | DG4: Amount 2023 | DH4: Amount 2024 | DI4: Amount 2025 | DJ4: Amount 2026 | DK4: Amount 2027 | DL4: Amount 2028 | DM4: Amount 2029 | DN4: Amount 2030 | DO4: Amount 2031 | DP4: Amount 2032 | DQ4: Amount 2033 | DR4: Amount 2034 | DS4: Amount 2035 | DT4: Type 2016 | DU4: Type 2017 | DV4: Type 2018 | DW4: Type 2019 | DX4: Type 2020 | DY4: Type 2021 | DZ4: Type 2022 | EA4: Type 2023 | EB4: Type 2024 | EC4: Type 2025 | ED4: Type 2026 | EE4: Type 2027 | EF4: Type 2028 | EG4: Type 2029 | EH4: Type 2030 | EI4: Type 2031 | EJ4: Type 2032 | EK4: Type 2033 | EL4: Type 2034 | EM4: Type 2035 | EN4: Vintage 2014 for 2016 | EO4: Vintage 2014 for 2017 | EP4: Vintage 2014 for 2018 | EQ4: Vintage 2014 for 2019 | ER4: Vintage 2016 for 2016 | ES4: Vintage 2016 for 2017 | ET4: Vintage 2016 for 2018 | EU4: Vintage 2016 for 2019 | EV4: Total Vintage 2016 | EW4: Total Vintage 2017 | EX4: Total Vintage 2018 | EY4: Total Vintage 2019 | EZ4: Total Vintage 2020 | FA4: Total Vintage 2021 | FB4: Total Vintage 2022 | FC4: Total Vintage 2023 | FD4: Total Vintage 2024 | FE4: Total Vintage 2025 | FF4: Total Vintage 2026 | FG4: Total Vintage 2027 | FH4: Total Vintage 2028 | FI4: Total Vintage 2029 | FJ4: Total Vintage 2030 | FK4: Total Vintage 2031 | FL4: Total Vintage 2032 | FM4: Total Vintage 2033 | FN4: Total Vintage 2034 | FO4: Total Vintage 2035 | FP4: Rounddown | FQ4: Eligible LDD | FR4: IRD Loads | FS4: T1 Percentage 2016 | FT4: T1 Percentage 2017 | FU4: T1 Percentage 2018 | FV4: T1 Percentage 2019 | FW4: T1 Percentage 2020 | FX4: T1 Percentage 2021 | FY4: T1 Percentage 2022 | FZ4: T1 Percentage 2023 | GA4: T1 Percentage 2024 | GB4: T1 Percentage 2025 | GC4: T1 Percentage 2026 | GD4: T1 Percentage 2027 | GE4: T1 Percentage 2028 | GF4: T1 Percentage 2029 | GG4: T1 Percentage 2030 | GH4: T1 Percentage 2031 | GI4: T1 Percentage 2032 | GJ4: T1 Percentage 2033 | GK4: T1 Percentage 2034 | GL4: T1 Percentage 2035
E5: 2015_1 | F5: 2014-10-01 | G5: 432 | H5: 312 | I5: 744 | J5: 0.5806451613 | K5: 0.4193548387 | M5: 2009 | N5: 365 | O5: 8760 | Q5: 10015 | R5: Asotin County PUD #1 | S5: 0 | T5: 0 | U5: 0.582 | V5: 0 | W5: 0 | X5: 0 | Y5: 0 | Z5: 0 | AA5: 0 | AB5: 0 | AC5: 0 | AD5: 0 | AE5: 0 | AF5: 0 | AG5: 0 | AH5: 0.568 | AI5: 0.564 | AJ5: 0.57 | AK5: 0.547 | AL5: 0.573 | AM5: 0.577 | AN5: 0 | AO5: 0 | AP5: 0 | AQ5: 0 | AR5: 0.591 | AS5: 0.597 | AT5: 0.618 | AU5: 0.621 | AV5: 0.667 | AW5: 0.67 | AX5: 0.63 | AY5: 0.634 | AZ5: 0.582 | BA5: 0.583 | BB5: 0.761 | BC5: 0.761 | BD5: 0.76 | BE5: 0 | BF5: 0 | BG5: 0 | BH5: 0 | BI5: 0 | BJ5: 0 | BK5: 0 | BL5: 0.023 | BM5: 0.029 | BN5: 0.054 | BO5: 0.057 | BP5: 0.097 | BQ5: 0.1 | BR5: 0.083 | BS5: 0.087 | BT5: 0.009 | BU5: 0.01 | BV5: 0.184 | BW5: 0.184 | BX5: 0.183 | BY5: 0 | BZ5: 0 | CA5: 0 | CB5: 0 | CC5: 0 | CD5: 0 | CE5: 0 | CF5: 1 | CG5: 1 | CH5: 1 | CI5: 1 | CJ5: 1 | CK5: 1 | CL5: 1 | CM5: 1 | CN5: 1 | CO5: 1 | CP5: 1 | CQ5: 1 | CR5: 1 | CS5: =+CR5 -> 1 | CT5: =+CS5 -> 1 | CU5: 1 | CV5: 1 | CW5: 1 | CX5: 1 | CY5: 1 | CZ5: 0 | DA5: 0 | DB5: 0 | DC5: 0 | DD5: 0 | DE5: 0 | DF5: 0 | DG5: 0 | DH5: 0 | DI5: 0 | DJ5: 0 | DK5: 0 | DL5: 0 | DM5: =+DL5 -> 0 | DN5: =+DM5 -> 0 | DO5: 0 | DP5: 0 | DQ5: 0 | DR5: 0 | DS5: 0 | DT5: LGR | DU5: LGR | DV5: LGR | DW5: LGR | DX5: LGR | DY5: LGR | DZ5: LGR | EA5: LGR | EB5: LGR | EC5: LGR | ED5: LGR | EE5: LGR | EF5: LGR | EG5: =+EF5 -> LGR | EH5: LGR | EI5: LGR | EJ5: LGR | EK5: LGR | EL5: =+EK5 -> LGR | EM5: =+EL5 -> LGR | EN5: 0 | EO5: 0 | EP5: 0 | EQ5: 0 | ER5: 0 | ES5: 0 | ET5: 0 | EU5: 0 | EV5: =+EN5+ER5 -> 0 | EW5: =+EO5+ES5 -> 0 | EX5: =+EP5+ET5 -> 0 | EY5: =+EQ5+EU5 -> 0 | EZ5: 0 | FA5: 0 | FB5: 0 | FC5: 0 | FD5: 0 | FE5: 0 | FF5: 0 | FG5: 0 | FH5: 0 | FI5: 0 | FJ5: 0 | FK5: 0 | FL5: 0 | FM5: 0 | FN5: 0 | FO5: 0 | FP5: 0 | FQ5: 0 | FR5: 0 | FS5: 0.9609300997 | FT5: 0.9511712639 | FU5: 0.9124943288 | FV5: 0.9080861436 | FW5: 0.8541048324 | FX5: 0.8502804824 | FY5: 0.8682418267 | FZ5: 0.8627639603 | GA5: 0.9842592809 | GB5: 0.9825710146 | GC5: 0.7586013435 | GD5: 0.7586013435 | GE5: 0.7595995032 | GF5: 0 | GG5: 0 | GH5: 0 | GI5: 0 | GJ5: 0 | GK5: 0 | GL5: 0
E6: 2015_2 | F6: 2014-11-01 | G6: 384 | H6: 337 | I6: 721 | J6: 0.53259362 | K6: 0.46740638 | M6: 2010 | N6: 365 | O6: 8760 | Q6: 10024 | R6: Benton County PUD #1 | S6: 0 | T6: 0 | U6: 203.92 | V6: 0 | W6: 0 | X6: 0 | Y6: 0 | Z6: 0 | AA6: 0 | AB6: 0 | AC6: 0 | AD6: 0 | AE6: 0 | AF6: 0 | AG6: 0 | AH6: 199.617 | AI6: 198.049 | AJ6: 200.214 | AK6: 192.001 | AL6: 200.923 | AM6: 202.081 | AN6: 0 | AO6: 0 | AP6: 0 | AQ6: 0 | AR6: 204.386 | AS6: 206.55 | AT6: 209.206 | AU6: 209.939 | AV6: 205.669 | AW6: 206.52 | AX6: 209.048 | AY6: 209.063 | AZ6: 211.167 | BA6: 212.387 | BB6: 212.747 | BC6: 213.645 | BD6: 213.821 | BE6: 0 | BF6: 0 | BG6: 0 | BH6: 0 | BI6: 0 | BJ6: 0 | BK6: 0 | BL6: 4.769 | BM6: 6.933 | BN6: 10.857 | BO6: 11.59 | BP6: 5.455 | BQ6: 6.306 | BR6: 17.047 | BS6: 17.062 | BT6: 10.244 | BU6: 11.464 | BV6: 10.666 | BW6: 11.564 | BX6: 11.74 | BY6: 0 | BZ6: 0 | CA6: 0 | CB6: 0 | CC6: 0 | CD6: 0 | CE6: 0 | CF6: 4 | CG6: 4 | CH6: 4 | CI6: 4 | CJ6: 4 | CK6: 4 | CL6: 4 | CM6: 4 | CN6: 3 | CO6: 3 | CP6: 3 | CQ6: 3 | CR6: 3 | CS6: =+CR6 -> 3 | CT6: 3 | CU6: 3 | CV6: 3 | CW6: 3 | CX6: 3 | CY6: 3 | CZ6: 0 | DA6: 0 | DB6: 0 | DC6: 0 | DD6: 0 | DE6: 0 | DF6: 0 | DG6: 0 | DH6: 0 | DI6: 0 | DJ6: 0 | DK6: 0 | DL6: 0 | DM6: =+DL6 -> 0 | DN6: 0 | DO6: 0 | DP6: 0 | DQ6: 0 | DR6: 0 | DS6: 0 | DT6: 0 | DU6: 0 | DV6: 0 | DW6: 0 | DX6: 0 | DY6: 0 | DZ6: 0 | EA6: 0 | EB6: STR | EC6: STR | ED6: STR | EE6: STR | EF6: STR | EG6: =+EF6 -> STR | EH6: STR | EI6: STR | EJ6: STR | EK6: STR | EL6: STR | EM6: STR | EN6: 0 | EO6: 0 | EP6: 0 | EQ6: 0 | ER6: 0 | ES6: 0 | ET6: 0 | EU6: 0 | EV6: 0 | EW6: 0 | EX6: 0 | EY6: 0 | EZ6: 0 | FA6: 0 | FB6: 0 | FC6: 0 | FD6: 0 | FE6: 0 | FF6: 0 | FG6: 0 | FH6: 0 | FI6: 0 | FJ6: 0 | FK6: 0 | FL6: 0 | FM6: 0 | FN6: 0 | FO6: 0 | FP6: 0 | FQ6: 0 | FR6: 312239.2 | FS6: 0.9767722178 | FT6: 0.9665810551 | FU6: 0.9483306064 | FV6: 0.9450339502 | FW6: 0.9735948822 | FX6: 0.9696009233 | FY6: 0.9171911079 | FZ6: 0.9171255887 | GA6: 0.9516989326 | GB6: 0.9462559333 | GC6: 0.9500818806 | GD6: 0.946105568 | GE6: 0.9453298893 | GF6: 0 | GG6: 0 | GH6: 0 | GI6: 0 | GJ6: 0 | GK6: 0 | GL6: 0
B7: Loss Percent Assumption | C7: 0.0321 | E7: 2015_3 | F7: 2014-12-01 | G7: 416 | H7: 328 | I7: 744 | J7: 0.5591397849 | K7: 0.4408602151 | M7: 2011 | N7: 365 | O7: 8760 | Q7: 10025 | R7: Benton REA | S7: 0 | T7: 0 | U7: 60.549 | V7: 0 | W7: 0 | X7: 0 | Y7: 0 | Z7: 0 | AA7: 0 | AB7: 0 | AC7: 0 | AD7: 0 | AE7: 0 | AF7: 0 | AG7: 0 | AH7: 66.081 | AI7: 58.702 | AJ7: 59.343 | AK7: 56.909 | AL7: 59.659 | AM7: 60.003 | AN7: 0 | AO7: 0 | AP7: 0 | AQ7: 0 | AR7: 69.528 | AS7: 70.504 | AT7: 64.711 | AU7: 65.775 | AV7: 66.508 | AW7: 67.372 | AX7: 66.666 | AY7: 67.355 | AZ7: 64.824 | BA7: 65.037 | BB7: 74.805 | BC7: 75.47 | BD7: 75.931 | BE7: 0 | BF7: 0 | BG7: 0 | BH7: 0 | BI7: 0 | BJ7: 0 | BK7: 0 | BL7: 3.447 | BM7: 4.423 | BN7: 7.579 | BO7: 8.643 | BP7: 7.165 | BQ7: 8.029 | BR7: 9.757 | BS7: 10.446 | BT7: 5.165 | BU7: 5.378 | BV7: 14.802 | BW7: 15.467 | BX7: 15.928 | BY7: 0 | BZ7: 0 | CA7: 0 | CB7: 0 | CC7: 0 | CD7: 0 | CE7: 0 | CF7: 3 | CG7: 3 | CH7: 3 | CI7: 3 | CJ7: 1 | CK7: 1 | CL7: 1 | CM7: 1 | CN7: 1 | CO7: 1 | CP7: 1 | CQ7: 3 | CR7: 3 | CS7: =+CR7 -> 3 | CT7: 3 | CU7: 3 | CV7: 3 | CW7: 3 | CX7: 3 | CY7: 3 | CZ7: 10 | DA7: 11 | DB7: 12 | DC7: 14 | DD7: 0 | DE7: 0 | DF7: 0 | DG7: 0 | DH7: 0 | DI7: 0 | DJ7: 0 | DK7: 13.809 | DL7: 13.809 | DM7: =+DL7 -> 13.809 | DN7: 13.809 | DO7: 13.809 | DP7: 13.809 | DQ7: 13.809 | DR7: 13.809 | DS7: 13.809 | DT7: LGR | DU7: LGR | DV7: LGR | DW7: LGR | DX7: STR | DY7: STR | DZ7: STR | EA7: STR | EB7: STR | EC7: STR | ED7: STR | EE7: STR | EF7: STR | EG7: =+EF7 -> STR | EH7: STR | EI7: STR | EJ7: STR | EK7: STR | EL7: STR | EM7: STR | EN7: 0 | EO7: 0 | EP7: 0 | EQ7: 0 | ER7: 0 | ES7: 0 | ET7: 0 | EU7: 0 | EV7: 0 | EW7: 0 | EX7: 0 | EY7: 0 | EZ7: 0 | FA7: 0 | FB7: 0 | FC7: 0 | FD7: 0 | FE7: 0 | FF7: 0 | FG7: 0 | FH7: 0 | FI7: 0 | FJ7: 0 | FK7: 0 | FL7: 0 | FM7: 0 | FN7: 0 | FO7: 0 | FP7: 0 | FQ7: 0.055 | FR7: 82900.857 | FS7: 0.9504215223 | FT7: 0.9372695023 | FU7: 0.8965214833 | FV7: 0.88368387 | FW7: 0.8922697627 | FX7: 0.8808270109 | FY7: 0.8536399489 | FZ7: 0.8449077401 | GA7: 0.9203273448 | GB7: 0.9173132186 | GC7: 0.8021281595 | GD7: 0.7950602487 | GE7: 0.7902331982 | GF7: 0 | GG7: 0 | GH7: 0 | GI7: 0 | GJ7: 0 | GK7: 0 | GL7: 0
... 8 more rows

Sheet EE
B1: Energy Efficiency Inputs | F1: USBR Loads
B2: Percent of Non-PNGC Reported EE Savings (Last 3 Years Average) | F2: =1-SUM($D$5:$D$200) -> 0.04597817485
B4: BESID | C4: AccountName | D4: Percent
B5: 10005 | C5: Alder Mutual | D5: 8.443792876e-06
B6: 10015 | C6: Asotin County PUD #1 | D6: 0
B7: 10024 | C7: Benton County PUD #1 | D7: 0.03655499999
... 8 more rows

Sheet ShapingFactors
B1: Slice-Block Inputs
A2: TOC | D2: Monthly Block Shaping Factors
B3: BESID | C3: AccountName | D3: 10 | E3: 11 | F3: 12 | G3: 1 | H3: 2 | I3: 3 | J3: 4 | K3: 5 | L3: 6 | M3: 7 | N3: 8 | O3: 9
B4: 10170 | C4: Eugene Water & Electric Board | D4: 0.081 | E4: 0.077 | F4: 0.099 | G4: 0.105 | H4: 0.093 | I4: 0.092 | J4: 0.081 | K4: 0.066 | L4: 0.066 | M4: 0.081 | N4: 0.083 | O4: 0.076
B5: 10204 | C5: Idaho Falls Power | D5: 0.074 | E5: 0.085 | F5: 0.105 | G5: 0.108 | H5: 0.089 | I5: 0.083 | J5: 0.072 | K5: 0.079 | L5: 0.074 | M5: 0.083 | N5: 0.081 | O5: 0.067
B6: 10349 | C6: Seattle City Light | D6: 0.08 | E6: 0.127 | F6: 0.129 | G6: 0.14 | H6: 0.119 | I6: 0.126 | J6: 0.061 | K6: 0.02 | L6: 0 | M6: 0.048 | N6: 0.057 | O6: 0.093
B7: 10370 | C7: Tacoma Public Utilities | D7: 0.068 | E7: 0.088 | F7: 0.109 | G7: 0.103 | H7: 0.088 | I7: 0.101 | J7: 0.085 | K7: 0.076 | L7: 0.068 | M7: 0.073 | N7: 0.069 | O7: 0.072
... 8 more rows

Sheet I_TRL
B1: Total Retail Loads (MWh)
A2: TOC | D2: 2015-10-01 | E2: 2015-10-01 | F2: 2015-11-01 | G2: 2015-11-01 | H2: 2015-12-01 | I2: 2015-12-01 | J2: 2016-01-01 | K2: 2016-01-01 | L2: 2016-02-01 | M2: 2016-02-01 | N2: 2016-03-01 | O2: 2016-03-01 | P2: 2016-04-01 | Q2: 2016-04-01 | R2: 2016-05-01 | S2: 2016-05-01 | T2: 2016-06-01 | U2: 2016-06-01 | V2: 2016-07-01 | W2: 2016-07-01 | X2: 2016-08-01 | Y2: 2016-08-01 | Z2: 2016-09-01 | AA2: 2016-09-01 | AB2: 2016-10-01 | AC2: 2016-10-01 | AD2: 2016-11-01 | AE2: 2016-11-01 | AF2: 2016-12-01 | AG2: 2016-12-01 | AH2: 2017-01-01 | AI2: 2017-01-01 | AJ2: 2017-02-01 | AK2: 2017-02-01 | AL2: 2017-03-01 | AM2: 2017-03-01 | AN2: 2017-04-01 | AO2: 2017-04-01 | AP2: 2017-05-01 | AQ2: 2017-05-01 | AR2: 2017-06-01 | AS2: 2017-06-01 | AT2: 2017-07-01 | AU2: 2017-07-01 | AV2: 2017-08-01 | AW2: 2017-08-01 | AX2: 2017-09-01 | AY2: 2017-09-01 | AZ2: 2017-10-01 | BA2: 2017-10-01 | BB2: 2017-11-01 | BC2: 2017-11-01 | BD2: 2017-12-01 | BE2: 2017-12-01 | BF2: 2018-01-01 | BG2: 2018-01-01 | BH2: 2018-02-01 | BI2: 2018-02-01 | BJ2: 2018-03-01 | BK2: 2018-03-01 | BL2: 2018-04-01 | BM2: 2018-04-01 | BN2: 2018-05-01 | BO2: 2018-05-01 | BP2: 2018-06-01 | BQ2: 2018-06-01 | BR2: 2018-07-01 | BS2: 2018-07-01 | BT2: 2018-08-01 | BU2: 2018-08-01 | BV2: 2018-09-01 | BW2: 2018-09-01 | BX2: 2018-10-01 | BY2: 2018-10-01 | BZ2: 2018-11-01 | CA2: 2018-11-01 | CB2: 2018-12-01 | CC2: 2018-12-01 | CD2: 2019-01-01 | CE2: 2019-01-01 | CF2: 2019-02-01 | CG2: 2019-02-01 | CH2: 2019-03-01 | CI2: 2019-03-01 | CJ2: 2019-04-01 | CK2: 2019-04-01 | CL2: 2019-05-01 | CM2: 2019-05-01 | CN2: 2019-06-01 | CO2: 2019-06-01 | CP2: 2019-07-01 | CQ2: 2019-07-01 | CR2: 2019-08-01 | CS2: 2019-08-01 | CT2: 2019-09-01 | CU2: 2019-09-01 | CV2: 2019-10-01 | CW2: 2019-10-01 | CX2: 2019-11-01 | CY2: 2019-11-01 | CZ2: 2019-12-01 | DA2: 2019-12-01 | DB2: 2020-01-01 | DC2: 2020-01-01 | DD2: 2020-02-01 | DE2: 2020-02-01 | DF2: 2020-03-01 | DG2: 2020-03-01 | DH2: 2020-04-01 | DI2: 2020-04-01 | DJ2: 2020-05-01 | DK2: 2020-05-01 | DL2: 2020-06-01 | DM2: 2020-06-01 | DN2: 2020-07-01 | DO2: 2020-07-01 | DP2: 2020-08-01 | DQ2: 2020-08-01 | DR2: 2020-09-01 | DS2: 2020-09-01 | DT2: 2020-10-01 | DU2: 2020-10-01 | DV2: 2020-11-01 | DW2: 2020-11-01 | DX2: 2020-12-01 | DY2: 2020-12-01 | DZ2: 2021-01-01 | EA2: 2021-01-01 | EB2: 2021-02-01 | EC2: 2021-02-01 | ED2: 2021-03-01 | EE2: 2021-03-01 | EF2: 2021-04-01 | EG2: 2021-04-01 | EH2: 2021-05-01 | EI2: 2021-05-01 | EJ2: 2021-06-01 | EK2: 2021-06-01 | EL2: 2021-07-01 | EM2: 2021-07-01 | EN2: 2021-08-01 | EO2: 2021-08-01 | EP2: 2021-09-01 | EQ2: 2021-09-01 | ER2: 2021-10-01 | ES2: 2021-10-01 | ET2: 2021-11-01 | EU2: 2021-11-01 | EV2: 2021-12-01 | EW2: 2021-12-01 | EX2: 2022-01-01 | EY2: 2022-01-01 | EZ2: 2022-02-01 | FA2: 2022-02-01 | FB2: 2022-03-01 | FC2: 2022-03-01 | FD2: 2022-04-01 | FE2: 2022-04-01 | FF2: 2022-05-01 | FG2: 2022-05-01 | FH2: 2022-06-01 | FI2: 2022-06-01 | FJ2: 2022-07-01 | FK2: 2022-07-01 | FL2: 2022-08-01 | FM2: 2022-08-01 | FN2: 2022-09-01 | FO2: 2022-09-01 | FP2: 2022-10-01 | FQ2: 2022-10-01 | FR2: 2022-11-01 | FS2: 2022-11-01 | FT2: 2022-12-01 | FU2: 2022-12-01 | FV2: 2023-01-01 | FW2: 2023-01-01 | FX2: 2023-02-01 | FY2: 2023-02-01 | FZ2: 2023-03-01 | GA2: 2023-03-01 | GB2: 2023-04-01 | GC2: 2023-04-01 | GD2: 2023-05-01 | GE2: 2023-05-01 | GF2: 2023-06-01 | GG2: 2023-06-01 | GH2: 2023-07-01 | GI2: 2023-07-01 | GJ2: 2023-08-01 | GK2: 2023-08-01 | GL2: 2023-09-01 | GM2: 2023-09-01 | GN2: 2023-10-01 | GO2: 2023-10-01 | GP2: 2023-11-01 | GQ2: 2023-11-01 | GR2: 2023-12-01 | GS2: 2023-12-01 | GT2: 2024-01-01 | GU2: 2024-01-01 | GV2: 2024-02-01 | GW2: 2024-02-01 | GX2: 2024-03-01 | GY2: 2024-03-01 | GZ2: 2024-04-01 | HA2: 2024-04-01 | HB2: 2024-05-01 | HC2: 2024-05-01 | HD2: 2024-06-01 | HE2: 2024-06-01 | HF2: 2024-07-01 | HG2: 2024-07-01 | HH2: 2024-08-01 | HI2: 2024-08-01 | HJ2: 2024-09-01 | HK2: 2024-09-01 | HL2: 2024-10-01 | HM2: 2024-10-01 | HN2: 2024-11-01 | HO2: 2024-11-01 | HP2: 2024-12-01 | HQ2: 2024-12-01 | HR2: 2025-01-01 | HS2: 2025-01-01 | HT2: 2025-02-01 | HU2: 2025-02-01 | HV2: 2025-03-01 | HW2: 2025-03-01 | HX2: 2025-04-01 | HY2: 2025-04-01 | HZ2: 2025-05-01 | IA2: 2025-05-01 | IB2: 2025-06-01 | IC2: 2025-06-01 | ID2: 2025-07-01 | IE2: 2025-07-01 | IF2: 2025-08-01 | IG2: 2025-08-01 | IH2: 2025-09-01 | II2: 2025-09-01 | IJ2: 2025-10-01 | IK2: 2025-10-01 | IL2: 2025-11-01 | IM2: 2025-11-01 | IN2: 2025-12-01 | IO2: 2025-12-01 | IP2: 2026-01-01 | IQ2: 2026-01-01 | IR2: 2026-02-01 | IS2: 2026-02-01 | IT2: 2026-03-01 | IU2: 2026-03-01 | IV2: 2026-04-01 | IW2: 2026-04-01 | IX2: 2026-05-01 | IY2: 2026-05-01 | IZ2: 2026-06-01 | JA2: 2026-06-01 | JB2: 2026-07-01 | JC2: 2026-07-01 | JD2: 2026-08-01 | JE2: 2026-08-01 | JF2: 2026-09-01 | JG2: 2026-09-01 | JH2: 2026-10-01 | JI2: 2026-10-01 | JJ2: 2026-11-01 | JK2: 2026-11-01 | JL2: 2026-12-01 | JM2: 2026-12-01 | JN2: 2027-01-01 | JO2: 2027-01-01 | JP2: 2027-02-01 | JQ2: 2027-02-01 | JR2: 2027-03-01 | JS2: 2027-03-01 | JT2: 2027-04-01 | JU2: 2027-04-01 | JV2: 2027-05-01 | JW2: 2027-05-01 | JX2: 2027-06-01 | JY2: 2027-06-01 | JZ2: 2027-07-01 | KA2: 2027-07-01 | KB2: 2027-08-01 | KC2: 2027-08-01 | KD2: 2027-09-01 | KE2: 2027-09-01 | KF2: 2027-10-01 | KG2: 2027-10-01 | KH2: 2027-11-01 | KI2: 2027-11-01 | KJ2: 2027-12-01 | KK2: 2027-12-01 | KL2: 2028-01-01 | KM2: 2028-01-01 | KN2: 2028-02-01 | KO2: 2028-02-01 | KP2: 2028-03-01 | KQ2: 2028-03-01 | KR2: 2028-04-01 | KS2: 2028-04-01 | KT2: 2028-05-01 | KU2: 2028-05-01 | KV2: 2028-06-01 | KW2: 2028-06-01 | KX2: 2028-07-01 | KY2: 2028-07-01 | KZ2: 2028-08-01 | LA2: 2028-08-01 | LB2: 2028-09-01 | LC2: 2028-09-01 | LD2: 2028-10-01 | LE2: 2028-10-01 | LF2: 2028-11-01 | LG2: 2028-11-01 | LH2: 2028-12-01 | LI2: 2028-12-01 | LJ2: 2029-01-01 | LK2: 2029-01-01 | LL2: 2029-02-01 | LM2: 2029-02-01 | LN2: 2029-03-01 | LO2: 2029-03-01 | LP2: 2029-04-01 | LQ2: 2029-04-01 | LR2: 2029-05-01 | LS2: 2029-05-01 | LT2: 2029-06-01 | LU2: 2029-06-01 | LV2: 2029-07-01 | LW2: 2029-07-01 | LX2: 2029-08-01 | LY2: 2029-08-01 | LZ2: 2029-09-01 | MA2: 2029-09-01 | MB2: 2029-10-01 | MC2: 2029-10-01 | MD2: 2029-11-01 | ME2: 2029-11-01 | MF2: 2029-12-01 | MG2: 2029-12-01 | MH2: 2030-01-01 | MI2: 2030-01-01 | MJ2: 2030-02-01 | MK2: 2030-02-01 | ML2: 2030-03-01 | MM2: 2030-03-01 | MN2: 2030-04-01 | MO2: 2030-04-01 | MP2: 2030-05-01 | MQ2: 2030-05-01 | MR2: 2030-06-01 | MS2: 2030-06-01 | MT2: 2030-07-01 | MU2: 2030-07-01 | MV2: 2030-08-01 | MW2: 2030-08-01 | MX2: 2030-09-01 | MY2: 2030-09-01 | MZ2: 2030-10-01 | NA2: 2030-10-01 | NB2: 2030-11-01 | NC2: 2030-11-01 | ND2: 2030-12-01 | NE2: 2030-12-01 | NF2: 2031-01-01 | NG2: 2031-01-01 | NH2: 2031-02-01 | NI2: 2031-02-01 | NJ2: 2031-03-01 | NK2: 2031-03-01 | NL2: 2031-04-01 | NM2: 2031-04-01 | NN2: 2031-05-01 | NO2: 2031-05-01 | NP2: 2031-06-01 | NQ2: 2031-06-01 | NR2: 2031-07-01 | NS2: 2031-07-01 | NT2: 2031-08-01 | NU2: 2031-08-01 | NV2: 2031-09-01 | NW2: 2031-09-01 | NX2: =DATE(YEAR(NV2),MONTH(NV2)+1,1) -> 2031-10-01 | NY2: 2031-10-01 | NZ2: 2031-11-01 | OA2: 2031-11-01 | OB2: 2031-12-01 | OC2: 2031-12-01 | OD2: 2032-01-01 | OE2: 2032-01-01 | OF2: 2032-02-01 | OG2: 2032-02-01 | OH2: 2032-03-01 | OI2: 2032-03-01 | OJ2: 2032-04-01 | OK2: 2032-04-01 | OL2: 2032-05-01 | OM2: 2032-05-01 | ON2: 2032-06-01 | OO2: 2032-06-01 | OP2: 2032-07-01 | OQ2: 2032-07-01 | OR2: 2032-08-01 | OS2: 2032-08-01 | OT2: 2032-09-01 | OU2: 2032-09-01 | OV2: 2032-10-01 | OW2: 2032-10-01 | OX2: 2032-11-01 | OY2: 2032-11-01 | OZ2: 2032-12-01 | PA2: 2032-12-01 | PB2: 2033-01-01 | PC2: 2033-01-01 | PD2: 2033-02-01 | PE2: 2033-02-01 | PF2: 2033-03-01 | PG2: 2033-03-01 | PH2: 2033-04-01 | PI2: 2033-04-01 | PJ2: 2033-05-01 | PK2: 2033-05-01 | PL2: 2033-06-01 | PM2: 2033-06-01 | PN2: 2033-07-01 | PO2: 2033-07-01 | PP2: 2033-08-01 | PQ2: 2033-08-01 | PR2: 2033-09-01 | PS2: 2033-09-01 | PT2: 2033-10-01 | PU2: 2033-10-01 | PV2: 2033-11-01 | PW2: 2033-11-01 | PX2: 2033-12-01 | PY2: 2033-12-01 | PZ2: 2034-01-01 | QA2: 2034-01-01 | QB2: 2034-02-01 | QC2: 2034-02-01 | QD2: 2034-03-01 | QE2: 2034-03-01 | QF2: 2034-04-01 | QG2: 2034-04-01 | QH2: 2034-05-01 | QI2: 2034-05-01 | QJ2: 2034-06-01 | QK2: 2034-06-01 | QL2: 2034-07-01 | QM2: 2034-07-01 | QN2: 2034-08-01 | QO2: 2034-08-01 | QP2: 2034-09-01 | QQ2: 2034-09-01 | QR2: 2034-10-01 | QS2: 2034-10-01 | QT2: 2034-11-01 | QU2: 2034-11-01 | QV2: 2034-12-01 | QW2: 2034-12-01 | QX2: 2035-01-01 | QY2: 2035-01-01 | QZ2: 2035-02-01 | RA2: 2035-02-01 | RB2: 2035-03-01 | RC2: 2035-03-01 | RD2: 2035-04-01 | RE2: 2035-04-01 | RF2: 2035-05-01 | RG2: 2035-05-01 | RH2: 2035-06-01 | RI2: 2035-06-01 | RJ2: 2035-07-01 | RK2: 2035-07-01 | RL2: 2035-08-01 | RM2: 2035-08-01 | RN2: 2035-09-01 | RO2: 2035-09-01 | RQ2: 2016 | RR2: 2017 | RS2: 2018 | RT2: 2019 | RU2: 2020 | RV2: 2021 | RW2: 2022 | RX2: 2023 | RY2: 2024 | RZ2: 2025 | SA2: 2026 | SB2: 2027 | SC2: 2028 | SD2: 2029 | SE2: 2030 | SF2: 2031 | SG2: =SF2+1 -> 2032 | SH2: =SG2+1 -> 2033 | SI2: 2034 | SJ2: 2035
B3: BESID | C3: AccountName | D3: HLH | E3: LLH | F3: HLH | G3: LLH | H3: HLH | I3: LLH | J3: HLH | K3: LLH | L3: HLH | M3: LLH | N3: HLH | O3: LLH | P3: HLH | Q3: LLH | R3: HLH | S3: LLH | T3: HLH | U3: LLH | V3: HLH | W3: LLH | X3: HLH | Y3: LLH | Z3: HLH | AA3: LLH | AB3: HLH | AC3: LLH | AD3: HLH | AE3: LLH | AF3: HLH | AG3: LLH | AH3: HLH | AI3: LLH | AJ3: HLH | AK3: LLH | AL3: HLH | AM3: LLH | AN3: HLH | AO3: LLH | AP3: HLH | AQ3: LLH | AR3: HLH | AS3: LLH | AT3: HLH | AU3: LLH | AV3: HLH | AW3: LLH | AX3: HLH | AY3: LLH | AZ3: HLH | BA3: LLH | BB3: HLH | BC3: LLH | BD3: HLH | BE3: LLH | BF3: HLH | BG3: LLH | BH3: HLH | BI3: LLH | BJ3: HLH | BK3: LLH | BL3: HLH | BM3: LLH | BN3: HLH | BO3: LLH | BP3: HLH | BQ3: LLH | BR3: HLH | BS3: LLH | BT3: HLH | BU3: LLH | BV3: HLH | BW3: LLH | BX3: HLH | BY3: LLH | BZ3: HLH | CA3: LLH | CB3: HLH | CC3: LLH | CD3: HLH | CE3: LLH | CF3: HLH | CG3: LLH | CH3: HLH | CI3: LLH | CJ3: HLH | CK3: LLH | CL3: HLH | CM3: LLH | CN3: HLH | CO3: LLH | CP3: HLH | CQ3: LLH | CR3: HLH | CS3: LLH | CT3: HLH | CU3: LLH | CV3: HLH | CW3: LLH | CX3: HLH | CY3: LLH | CZ3: HLH | DA3: LLH | DB3: HLH | DC3: LLH | DD3: HLH | DE3: LLH | DF3: HLH | DG3: LLH | DH3: HLH | DI3: LLH | DJ3: HLH | DK3: LLH | DL3: HLH | DM3: LLH | DN3: HLH | DO3: LLH | DP3: HLH | DQ3: LLH | DR3: HLH | DS3: LLH | DT3: HLH | DU3: LLH | DV3: HLH | DW3: LLH | DX3: HLH | DY3: LLH | DZ3: HLH | EA3: LLH | EB3: HLH | EC3: LLH | ED3: HLH | EE3: LLH | EF3: HLH | EG3: LLH | EH3: HLH | EI3: LLH | EJ3: HLH | EK3: LLH | EL3: HLH | EM3: LLH | EN3: HLH | EO3: LLH | EP3: HLH | EQ3: LLH | ER3: HLH | ES3: LLH | ET3: HLH | EU3: LLH | EV3: HLH | EW3: LLH | EX3: HLH | EY3: LLH | EZ3: HLH | FA3: LLH | FB3: HLH | FC3: LLH | FD3: HLH | FE3: LLH | FF3: HLH | FG3: LLH | FH3: HLH | FI3: LLH | FJ3: HLH | FK3: LLH | FL3: HLH | FM3: LLH | FN3: HLH | FO3: LLH | FP3: HLH | FQ3: LLH | FR3: HLH | FS3: LLH | FT3: HLH | FU3: LLH | FV3: HLH | FW3: LLH | FX3: HLH | FY3: LLH | FZ3: HLH | GA3: LLH | GB3: HLH | GC3: LLH | GD3: HLH | GE3: LLH | GF3: HLH | GG3: LLH | GH3: HLH | GI3: LLH | GJ3: HLH | GK3: LLH | GL3: HLH | GM3: LLH | GN3: HLH | GO3: LLH | GP3: HLH | GQ3: LLH | GR3: HLH | GS3: LLH | GT3: HLH | GU3: LLH | GV3: HLH | GW3: LLH | GX3: HLH | GY3: LLH | GZ3: HLH | HA3: LLH | HB3: HLH | HC3: LLH | HD3: HLH | HE3: LLH | HF3: HLH | HG3: LLH | HH3: HLH | HI3: LLH | HJ3: HLH | HK3: LLH | HL3: HLH | HM3: LLH | HN3: HLH | HO3: LLH | HP3: HLH | HQ3: LLH | HR3: HLH | HS3: LLH | HT3: HLH | HU3: LLH | HV3: HLH | HW3: LLH | HX3: HLH | HY3: LLH | HZ3: HLH | IA3: LLH | IB3: HLH | IC3: LLH | ID3: HLH | IE3: LLH | IF3: HLH | IG3: LLH | IH3: HLH | II3: LLH | IJ3: HLH | IK3: LLH | IL3: HLH | IM3: LLH | IN3: HLH | IO3: LLH | IP3: HLH | IQ3: LLH | IR3: HLH | IS3: LLH | IT3: HLH | IU3: LLH | IV3: HLH | IW3: LLH | IX3: HLH | IY3: LLH | IZ3: HLH | JA3: LLH | JB3: HLH | JC3: LLH | JD3: HLH | JE3: LLH | JF3: HLH | JG3: LLH | JH3: HLH | JI3: LLH | JJ3: HLH | JK3: LLH | JL3: HLH | JM3: LLH | JN3: HLH | JO3: LLH | JP3: HLH | JQ3: LLH | JR3: HLH | JS3: LLH | JT3: HLH | JU3: LLH | JV3: HLH | JW3: LLH | JX3: HLH | JY3: LLH | JZ3: HLH | KA3: LLH | KB3: HLH | KC3: LLH | KD3: HLH | KE3: LLH | KF3: HLH | KG3: LLH | KH3: HLH | KI3: LLH | KJ3: HLH | KK3: LLH | KL3: HLH | KM3: LLH | KN3: HLH | KO3: LLH | KP3: HLH | KQ3: LLH | KR3: HLH | KS3: LLH | KT3: HLH | KU3: LLH | KV3: HLH | KW3: LLH | KX3: HLH | KY3: LLH | KZ3: HLH | LA3: LLH | LB3: HLH | LC3: LLH | LD3: HLH | LE3: LLH | LF3: HLH | LG3: LLH | LH3: HLH | LI3: LLH | LJ3: HLH | LK3: LLH | LL3: HLH | LM3: LLH | LN3: HLH | LO3: LLH | LP3: HLH | LQ3: LLH | LR3: HLH | LS3: LLH | LT3: HLH | LU3: LLH | LV3: HLH | LW3: LLH | LX3: HLH | LY3: LLH | LZ3: HLH | MA3: LLH | MB3: HLH | MC3: LLH | MD3: HLH | ME3: LLH | MF3: HLH | MG3: LLH | MH3: HLH | MI3: LLH | MJ3: HLH | MK3: LLH | ML3: HLH | MM3: LLH | MN3: HLH | MO3: LLH | MP3: HLH | MQ3: LLH | MR3: HLH | MS3: LLH | MT3: HLH | MU3: LLH | MV3: HLH | MW3: LLH | MX3: HLH | MY3: LLH | MZ3: HLH | NA3: LLH | NB3: HLH | NC3: LLH | ND3: HLH | NE3: LLH | NF3: HLH | NG3: LLH | NH3: HLH | NI3: LLH | NJ3: HLH | NK3: LLH | NL3: HLH | NM3: LLH | NN3: HLH | NO3: LLH | NP3: HLH | NQ3: LLH | NR3: HLH | NS3: LLH | NT3: HLH | NU3: LLH | NV3: HLH | NW3: LLH | NX3: HLH | NY3: LLH | NZ3: HLH | OA3: LLH | OB3: HLH | OC3: LLH | OD3: HLH | OE3: LLH | OF3: HLH | OG3: LLH | OH3: HLH | OI3: LLH | OJ3: HLH | OK3: LLH | OL3: HLH | OM3: LLH | ON3: HLH | OO3: LLH | OP3: HLH | OQ3: LLH | OR3: HLH | OS3: LLH | OT3: HLH | OU3: LLH | OV3: HLH | OW3: LLH | OX3: HLH | OY3: LLH | OZ3: HLH | PA3: LLH | PB3: HLH | PC3: LLH | PD3: HLH | PE3: LLH | PF3: HLH | PG3: LLH | PH3: HLH | PI3: LLH | PJ3: HLH | PK3: LLH | PL3: HLH | PM3: LLH | PN3: HLH | PO3: LLH | PP3: HLH | PQ3: LLH | PR3: HLH | PS3: LLH | PT3: HLH | PU3: LLH | PV3: HLH | PW3: LLH | PX3: HLH | PY3: LLH | PZ3: HLH | QA3: LLH | QB3: HLH | QC3: LLH | QD3: HLH | QE3: LLH | QF3: HLH | QG3: LLH | QH3: HLH | QI3: LLH | QJ3: HLH | QK3: LLH | QL3: HLH | QM3: LLH | QN3: HLH | QO3: LLH | QP3: HLH | QQ3: LLH | QR3: HLH | QS3: LLH | QT3: HLH | QU3: LLH | QV3: HLH | QW3: LLH | QX3: HLH | QY3: LLH | QZ3: HLH | RA3: LLH | RB3: HLH | RC3: LLH | RD3: HLH | RE3: LLH | RF3: HLH | RG3: LLH | RH3: HLH | RI3: LLH | RJ3: HLH | RK3: LLH | RL3: HLH | RM3: LLH | RN3: HLH | RO3: LLH
B4: 10015 | C4: Asotin County PUD #1 | D4: 158.885 | E4: 123.417 | F4: 100.217 | G4: 62.326 | H4: 89.961 | I4: 79.094 | J4: 103.249 | K4: 66.466 | L4: 99.565 | M4: 52.422 | N4: 113.772 | O4: 69.469 | P4: 154.892 | Q4: 99.356 | R4: 273.82 | S4: 232.806 | T4: 341.515 | U4: 284.089 | V4: 561.288 | W4: 486.719 | X4: 578.046 | Y4: 455.044 | Z4: 307.885 | AA4: 341.17 | AB4: 172.27 | AC4: 133.814 | AD4: 102.518 | AE4: 63.757 | AF4: 92.009 | AG4: 80.895 | AH4: 104.336 | AI4: 67.166 | AJ4: 100.624 | AK4: 52.979 | AL4: 110.394 | AM4: 67.407 | AN4: 148.752 | AO4: 95.417 | AP4: 285.888 | AQ4: 243.066 | AR4: 373.447 | AS4: 310.651 | AT4: 564.223 | AU4: 489.264 | AV4: 572.096 | AW4: 450.361 | AX4: 336.64 | AY4: 373.033 | AZ4: 183.658 | BA4: 149.874 | BB4: 91.794 | BC4: 69.553 | BD4: 93.705 | BE4: 75.12 | BF4: 114.116 | BG4: 65.23 | BH4: 98.208 | BI4: 53.588 | BJ4: 117.713 | BK4: 66.923 | BL4: 193.528 | BM4: 116.367 | BN4: 333.53 | BO4: 301.659 | BP4: 419.482 | BQ4: 375.444 | BR4: 593.344 | BS4: 508.135 | BT4: 546.458 | BU4: 459.45 | BV4: 312.637 | BW4: 338.989 | BX4: 186.781 | BY4: 152.423 | BZ4: 93.366 | CA4: 70.745 | CB4: 95.313 | CC4: 76.409 | CD4: 116.037 | CE4: 66.328 | CF4: 99.886 | CG4: 54.504 | CH4: 119.718 | CI4: 68.062 | CJ4: 196.796 | CK4: 118.332 | CL4: 339.196 | CM4: 306.783 | CN4: 426.622 | CO4: 381.834 | CP4: 603.42 | CQ4: 516.764 | CR4: 555.748 | CS4: 467.261 | CT4: 317.892 | CU4: 344.687 | CV4: 178.256 | CW4: 144.568 | CX4: 86.028 | CY4: 70.26 | CZ4: 90.56 | DA4: 72.869 | DB4: 106.746 | DC4: 66.779 | DD4: 91.007 | DE4: 54.8 | DF4: 111.991 | DG4: 65.138 | DH4: 182.541 | DI4: 114.543 | DJ4: 308.813 | DK4: 297.993 | DL4: 402.135 | DM4: 357.263 | DN4: 559.144 | DO4: 494.955 | DP4: 520.757 | DQ4: 441.094 | DR4: 300.222 | DS4: 326.646 | DT4: 179.433 | DU4: 145.522 | DV4: 86.587 | DW4: 70.717 | DX4: 91.14 | DY4: 73.336 | DZ4: 107.564 | EA4: 67.291 | EB4: 91.622 | EC4: 55.171 | ED4: 112.743 | EE4: 65.575 | EF4: 183.786 | EG4: 115.324 | EH4: 310.788 | EI4: 299.899 | EJ4: 404.693 | EK4: 359.535 | EL4: 562.809 | EM4: 498.199 | EN4: 524.122 | EO4: 443.944 | EP4: 302.386 | EQ4: 329 | ER4: 153.537 | ES4: 126.395 | ET4: 88.894 | EU4: 64.995 | EV4: 91.014 | EW4: 70.412 | EX4: 102.65 | EY4: 63.261 | EZ4: 79.611 | FA4: 60.773 | FB4: 105.019 | FC4: 62.116 | FD4: 159.479 | FE4: 101.58 | FF4: 262.877 | FG4: 247.764 | FH4: 388.938 | FI4: 337.909 | FJ4: 533.1 | FK4: 479.193 | FL4: 510.388 | FM4: 430.571 | FN4: 283.02 | FO4: 306.63 | FP4: 153.537 | FQ4: 126.395 | FR4: 88.894 | FS4: 64.995 | FT4: 91.014 | FU4: 70.412 | FV4: 102.65 | FW4: 63.261 | FX4: 79.611 | FY4: 60.773 | FZ4: 105.019 | GA4: 62.116 | GB4: 159.479 | GC4: 101.58 | GD4: 262.877 | GE4: 247.764 | GF4: 388.938 | GG4: 337.909 | GH4: 533.1 | GI4: 479.193 | GJ4: 510.388 | GK4: 430.571 | GL4: 283.02 | GM4: 306.63 | GN4: 153.537 | GO4: 126.395 | GP4: 88.894 | GQ4: 64.995 | GR4: 91.014 | GS4: 70.412 | GT4: 102.65 | GU4: 63.261 | GV4: 82.455 | GW4: 62.944 | GX4: 105.019 | GY4: 62.116 | GZ4: 159.479 | HA4: 101.58 | HB4: 262.877 | HC4: 247.764 | HD4: 388.938 | HE4: 337.909 | HF4: 533.1 | HG4: 479.193 | HH4: 510.388 | HI4: 430.571 | HJ4: 283.02 | HK4: 306.63 | HL4: 232.205 | HM4: 191.156 | HN4: 169.419 | HO4: 123.872 | HP4: 171.945 | HQ4: 133.024 | HR4: 191.46 | HS4: 117.994 | HT4: 153.704 | HU4: 117.335 | HV4: 195.078 | HW4: 115.383 | HX4: 240.922 | HY4: 153.456 | HZ4: 330.666 | IA4: 311.655 | IB4: 437.57 | IC4: 380.162 | ID4: 596.157 | IE4: 535.873 | IF4: 573.687 | IG4: 483.972 | IH4: 342.67 | II4: 371.256 | IJ4: 232.205 | IK4: 191.156 | IL4: 169.419 | IM4: 123.872 | IN4: 171.945 | IO4: 133.024 | IP4: 191.46 | IQ4: 117.994 | IR4: 153.704 | IS4: 117.335 | IT4: 195.078 | IU4: 115.383 | IV4: 240.922 | IW4: 153.456 | IX4: 330.666 | IY4: 311.655 | IZ4: 437.57 | JA4: 380.162 | JB4: 596.157 | JC4: 535.873 | JD4: 573.687 | JE4: 483.972 | JF4: 342.67 | JG4: 371.256 | JH4: 232.205 | JI4: 191.156 | JJ4: 169.419 | JK4: 123.872 | JL4: 171.945 | JM4: 133.024 | JN4: 191.46 | JO4: 117.994 | JP4: 153.704 | JQ4: 117.335 | JR4: 195.078 | JS4: 115.383 | JT4: 240.922 | JU4: 153.456 | JV4: 330.666 | JW4: 311.655 | JX4: 437.57 | JY4: 380.162 | JZ4: 596.157 | KA4: 535.873 | KB4: 573.687 | KC4: 483.972 | KD4: 342.67 | KE4: 371.256 | KF4: 232.205 | KG4: 191.156 | KH4: 169.419 | KI4: 123.872 | KJ4: 171.945 | KK4: 133.024 | KL4: 191.46 | KM4: 117.994 | KN4: 158.984 | KO4: 121.365 | KP4: 195.078 | KQ4: 115.383 | KR4: 240.922 | KS4: 153.456 | KT4: 330.666 | KU4: 311.655 | KV4: 437.57 | KW4: 380.162 | KX4: 596.157 | KY4: 535.873 | KZ4: 573.687 | LA4: 483.972 | LB4: 342.67 | LC4: 371.256 | LD4: 232.205 | LE4: 191.156 | LF4: 169.419 | LG4: 123.872 | LH4: 171.945 | LI4: 133.024 | LJ4: 191.46 | LK4: 117.994 | LL4: 153.704 | LM4: 117.335 | LN4: 195.078 | LO4: 115.383 | LP4: 240.922 | LQ4: 153.456 | LR4: 330.666 | LS4: 311.655 | LT4: 437.57 | LU4: 380.162 | LV4: 596.157 | LW4: 535.873 | LX4: 573.687 | LY4: 483.972 | LZ4: 342.67 | MA4: 371.256 | MB4: 232.205 | MC4: 191.156 | MD4: 169.419 | ME4: 123.872 | MF4: 171.945 | MG4: 133.024 | MH4: 191.46 | MI4: 117.994 | MJ4: 153.704 | MK4: 117.335 | ML4: 195.078 | MM4: 115.383 | MN4: 240.922 | MO4: 153.456 | MP4: 330.666 | MQ4: 311.655 | MR4: 437.57 | MS4: 380.162 | MT4: 596.157 | MU4: 535.873 | MV4: 573.687 | MW4: 483.972 | MX4: 342.67 | MY4: 371.256 | MZ4: 232.205 | NA4: 191.156 | NB4: 169.419 | NC4: 123.872 | ND4: 171.945 | NE4: 133.024 | NF4: 191.46 | NG4: 117.994 | NH4: 153.704 | NI4: 117.335 | NJ4: 195.078 | NK4: 115.383 | NL4: 240.922 | NM4: 153.456 | NN4: 330.666 | NO4: 311.655 | NP4: 437.57 | NQ4: 380.162 | NR4: 596.157 | NS4: 535.873 | NT4: 573.687 | NU4: 483.972 | NV4: 342.67 | NW4: 371.256 | NX4: 232.205 | NY4: 191.156 | NZ4: 169.419 | OA4: 123.872 | OB4: 171.945 | OC4: 133.024 | OD4: 191.46 | OE4: 117.994 | OF4: 158.984 | OG4: 121.365 | OH4: 195.078 | OI4: 115.383 | OJ4: 240.922 | OK4: 153.456 | OL4: 330.666 | OM4: 311.655 | ON4: 437.57 | OO4: 380.162 | OP4: 596.157 | OQ4: 535.873 | OR4: 573.687 | OS4: 483.972 | OT4: 342.67 | OU4: 371.256 | OV4: 232.205 | OW4: 191.156 | OX4: 169.419 | OY4: 123.872 | OZ4: 171.945 | PA4: 133.024 | PB4: 191.46 | PC4: 117.994 | PD4: 153.704 | PE4: 117.335 | PF4: 195.078 | PG4: 115.383 | PH4: 240.922 | PI4: 153.456 | PJ4: 330.666 | PK4: 311.655 | PL4: 437.57 | PM4: 380.162 | PN4: 596.157 | PO4: 535.873 | PP4: 573.687 | PQ4: 483.972 | PR4: 342.67 | PS4: 371.256 | PT4: 232.205 | PU4: 191.156 | PV4: 169.419 | PW4: 123.872 | PX4: 171.945 | PY4: 133.024 | PZ4: 191.46 | QA4: 117.994 | QB4: 153.704 | QC4: 117.335 | QD4: 195.078 | QE4: 115.383 | QF4: 240.922 | QG4: 153.456 | QH4: 330.666 | QI4: 311.655 | QJ4: 437.57 | QK4: 380.162 | QL4: 596.157 | QM4: 535.873 | QN4: 573.687 | QO4: 483.972 | QP4: 342.67 | QQ4: 371.256 | QR4: 232.205 | QS4: 191.156 | QT4: 169.419 | QU4: 123.872 | QV4: 171.945 | QW4: 133.024 | QX4: 191.46 | QY4: 117.994 | QZ4: 153.704 | RA4: 117.335 | RB4: 195.078 | RC4: 115.383 | RD4: 240.922 | RE4: 153.456 | RF4: 330.666 | RG4: 311.655 | RH4: 437.57 | RI4: 380.162 | RJ4: 596.157 | RK4: 535.873 | RL4: 573.687 | RM4: 483.972 | RN4: 342.67 | RO4: 371.256 | RQ4: =+SUM(D4:AA4) -> 5235.473 | RR4: =+SUM(AB4:AY4) -> 5391.007 | RS4: =+SUM(AZ4:BW4) -> 5678.505 | RT4: =+SUM(BX4:CU4) -> 5774.907 | RU4: =+SUM(CV4:DS4) -> 5445.108 | RV4: =+SUM(DT4:EQ4) -> 5481.186 | RW4: =+SUM(ER4:FO4) -> 5110.126 | RX4: =+SUM(FP4:GM4) -> 5110.126 | RY4: =+SUM(GN4:HK4) -> 5115.141 | RZ4: =+SUM(HL4:II4) -> 6670.621 | SA4: =+SUM(IJ4:JG4) -> 6670.621 | SB4: =+SUM(JH4:KE4) -> 6670.621 | SC4: =+SUM(KF4:LC4) -> 6679.931 | SD4: =+SUM(LD4:MA4) -> 6670.621 | SE4: =+SUM(MB4:MY4) -> 6670.621 | SF4: =+SUM(MZ4:NW4) -> 6670.621 | SG4: =+SUM(NX4:OU4) -> 6679.931 | SH4: =+SUM(OV4:PS4) -> 6670.621 | SI4: =+SUM(PT4:QQ4) -> 6670.621 | SJ4: =+SUM(QR4:RO4) -> 6670.621
B5: 10024 | C5: Benton County PUD #1 | D5: 72609.945 | E5: 43984.938 | F5: 71716.602 | G5: 51043.328 | H5: 91608.961 | I5: 65984.563 | J5: 86698.867 | K5: 62828.375 | L5: 70522.555 | M5: 47630.105 | N5: 73297.82 | O5: 47714.246 | P5: 77232.797 | Q5: 47207.531 | R5: 97686.75 | S5: 66967.156 | T5: 110656.219 | U5: 70497.375 | V5: 136540.297 | W5: 92112.398 | X5: 123164.805 | Y5: 74705.641 | Z5: 81168.203 | AA5: 52364.414 | AB5: 73736.148 | AC5: 44666.449 | AD5: 64744.391 | AE5: 46080.98 | AF5: 79217.398 | AG5: 57059.137 | AH5: 87501.523 | AI5: 63397.582 | AJ5: 78718.32 | AK5: 53165.301 | AL5: 74797.617 | AM5: 48690.629 | AN5: 83715.266 | AO5: 51169.625 | AP5: 95241.703 | AQ5: 65284.594 | AR5: 116283.359 | AS5: 74078.734 | AT5: 131957.203 | AU5: 88992.328 | AV5: 130424.359 | AW5: 79104.766 | AX5: 89995.047 | AY5: 58041.34 | AZ5: 73766.078 | BA5: 44684.578 | BB5: 64822.059 | BC5: 46136.273 | BD5: 79315.688 | BE5: 57125.789 | BF5: 87878.523 | BG5: 63659.508 | BH5: 79054.578 | BI5: 53388.039 | BJ5: 75136.789 | BK5: 48911.43 | BL5: 84013.328 | BM5: 51350.563 | BN5: 95499.422 | BO5: 65452.82 | BP5: 116513.086 | BQ5: 74225.063 | BR5: 132195 | BS5: 89140.539 | BT5: 130687.617 | BU5: 79264.422 | BV5: 90263.203 | BW5: 58214.238 | BX5: 74055.641 | BY5: 44859.988 | BZ5: 65125.246 | CA5: 46352.055 | CB5: 79670.859 | CC5: 57381.605 | CD5: 88283.281 | CE5: 63952.711 | CF5: 79419.828 | CG5: 53634.703 | CH5: 75512.336 | CI5: 49155.887 | CJ5: 84347.227 | CK5: 51554.637 | CL5: 95788.43 | CM5: 65650.898 | CN5: 116779.422 | CO5: 74394.734 | CP5: 132462.609 | CQ5: 89320.992 | CR5: 130988.883 | CS5: 79447.148 | CT5: 90567.758 | CU5: 58410.637 | CV5: 72397.75 | CW5: 43869.008 | CX5: 71024.617 | CY5: 50555.836 | CZ5: 91341.648 | DA5: 65792.102 | DB5: 87491.203 | DC5: 63390.156 | DD5: 72530.148 | DE5: 48985.914 | DF5: 70803.492 | DG5: 46091.695 | DH5: 76819.781 | DI5: 46954.922 | DJ5: 96111.844 | DK5: 65881.078 | DL5: 115202.148 | DM5: 73406.102 | DN5: 135540.453 | DO5: 91408.906 | DP5: 120963.148 | DQ5: 73385.898 | DR5: 76824.445 | DS5: 49567.563 | DT5: 72348.313 | DU5: 43839.047 | DV5: 70984.023 | DW5: 50526.93 | DX5: 91305.141 | DY5: 65765.797 | DZ5: 87527.641 | EA5: 63416.547 | EB5: 73278.977 | EC5: 49491.672 | ED5: 70809.469 | EE5: 46095.586 | EF5: 76831.102 | EG5: 46961.836 | EH5: 96237.117 | EI5: 65966.961 | EJ5: 115452.523 | EK5: 73565.633 | EL5: 136032.219 | EM5: 91740.547 | EN5: 121391.539 | EO5: 73645.805 | EP5: 76896.305 | EQ5: 49613.93 | ER5: 76456.023 | ES5: 46327.875 | ET5: 73041.203 | EU5: 51991.094 | EV5: 92563.891 | EW5: 66672.313 | EX5: 90704.43 | EY5: 65718.07 | EZ5: 73646.703 | FA5: 49739.898 | FB5: 71650.414 | FC5: 46642.883 | FD5: 80391.141 | FE5: 49137.656 | FF5: 97044.297 | FG5: 66520 | FH5: 118688.492 | FI5: 75627.414 | FJ5: 135120.375 | FK5: 91125.422 | FL5: 121308.047 | FM5: 73594.953 | FN5: 76343.367 | FO5: 49256.93 | FP5: 76542.578 | FQ5: 46380.32 | FR5: 72993.422 | FS5: 51957.078 | FT5: 92151.289 | FU5: 66375.117 | FV5: 90368.977 | FW5: 65475.023 | FX5: 73547.195 | FY5: 49672.703 | FZ5: 71760.719 | GA5: 46714.68 | GB5: 80558.344 | GC5: 49239.859 | GD5: 97199.391 | GE5: 66626.313 | GF5: 118827.008 | GG5: 75715.695 | GH5: 135205.422 | GI5: 91182.781 | GJ5: 121400.539 | GK5: 73651.055 | GL5: 76522.258 | GM5: 49372.344 | GN5: 74943.727 | GO5: 45411.516 | GP5: 69721.969 | GQ5: 49628.445 | GR5: 92794.141 | GS5: 66838.156 | GT5: 90293.898 | GU5: 65420.617 | GV5: 71104.703 | GW5: 48023.07 | GX5: 74919.906 | GY5: 48771.242 | GZ5: 74999.695 | HA5: 45842.227 | HB5: 93557.938 | HC5: 64130.25 | HD5: 116436.969 | HE5: 74192.781 | HF5: 133922.875 | HG5: 90317.828 | HH5: 119949.648 | HI5: 72770.836 | HJ5: 76564.281 | HK5: 49399.461 | HL5: 77155.078 | HM5: 48422.297 | HN5: 72306.656 | HO5: 52602.758 | HP5: 87364.602 | HQ5: 64295.883 | HR5: 83734.984 | HS5: 61065.891 | HT5: 77760.578 | HU5: 53871.906 | HV5: 76490.766 | HW5: 51057.445 | HX5: 78635.156 | HY5: 49269.156 | HZ5: 94943.133 | IA5: 66990.148 | IB5: 123452.219 | IC5: 76003.188 | ID5: 138492.469 | IE5: 93559.891 | IF5: 125988.703 | IG5: 75991.875 | IH5: 81378.328 | II5: 54353.719 | IJ5: 77412 | IK5: 48583.539 | IL5: 72480.281 | IM5: 52729.055 | IN5: 87229.523 | IO5: 64196.477 | IP5: 83873.383 | IQ5: 61166.82 | IR5: 78116.125 | IS5: 54118.234 | IT5: 76919.172 | IU5: 51343.398 | IV5: 79113.641 | IW5: 49568.945 | IX5: 95408.758 | IY5: 67318.68 | IZ5: 123931.438 | JA5: 76298.219 | JB5: 138940.5 | JC5: 93862.563 | JD5: 126417.711 | JE5: 76250.648 | JF5: 81797.727 | JG5: 54633.852 | JH5: 77872.188 | JI5: 48872.352 | JJ5: 72842.969 | JK5: 52992.906 | JL5: 87285.031 | JM5: 64237.328 | JN5: 83983.57 | JO5: 61247.18 | JP5: 78451.898 | JQ5: 54350.852 | JR5: 77332.883 | JS5: 51619.563 | JT5: 79582.82 | JU5: 49862.914 | JV5: 95889.148 | JW5: 67657.648 | JX5: 124459.898 | JY5: 76623.555 | JZ5: 139494.266 | KA5: 94236.656 | KB5: 126946.539 | KC5: 76569.617 | KD5: 82241.602 | KE5: 54930.32 | KF5: 78337.594 | KG5: 49164.438 | KH5: 73203.758 | KI5: 53255.383 | KJ5: 87329.242 | KK5: 64269.867 | KL5: 83791.711 | KM5: 61107.258 | KN5: 80575.688 | KO5: 55822.203 | KP5: 77405.961 | KQ5: 51668.336 | KR5: 79709.453 | KS5: 49942.25 | KT5: 96047.406 | KU5: 67769.313 | KV5: 124675.203 | KW5: 76756.094 | KX5: 139772.547 | KY5: 94424.641 | KZ5: 127172.672 | LA5: 76706 | LB5: 82356.383 | LC5: 55006.977 | LD5: 78439.945 | LE5: 49228.68 | LF5: 73235.227 | LG5: 53278.273 | LH5: 87060.031 | LI5: 64071.734 | LJ5: 83723.852 | LK5: 61057.773 | LL5: 78647.109 | LM5: 54486.094 | LN5: 77616.516 | LO5: 51808.883 | LP5: 79973.633 | LQ5: 50107.773 | LR5: 96342.523 | LS5: 67977.523 | LT5: 125028.156 | LU5: 76973.406 | LV5: 140189.672 | LW5: 94706.453 | LX5: 127550.992 | LY5: 76934.195 | LZ5: 82612.969 | MA5: 55178.344 | MB5: 78691.906 | MC5: 49386.813 | MD5: 73402.406 | ME5: 53399.898 | MF5: 86928.727 | MG5: 63975.102 | MH5: 83765.68 | MI5: 61088.273 | MJ5: 78907.367 | MK5: 54666.398 | ML5: 77944.469 | MM5: 52027.789 | MN5: 80355.547 | MO5: 50347.063 | MP5: 96761.523 | MQ5: 68273.164 | MR5: 125516.992 | MS5: 77274.352 | MT5: 140770.547 | MU5: 95098.859 | MV5: 128098.594 | MW5: 77264.484 | MX5: 83002.195 | MY5: 55438.32 | MZ5: 79080.711 | NA5: 49630.82 | NB5: 73703.813 | NC5: 53619.18 | ND5: 86970.508 | NE5: 64005.852 | NF5: 84085.852 | NG5: 61321.758 | NH5: 79386.398 | NI5: 54998.258 | NJ5: 78504.148 | NK5: 52401.375 | NL5: 80956.648 | NM5: 50723.68 | NN5: 97398.367 | NO5: 68722.523 | NP5: 126232.156 | NQ5: 77714.641 | NR5: 141606.75 | NS5: 95663.766 | NT5: 128907.742 | NU5: 77752.539 | NV5: 83608.93 | NW5: 55843.57 | NX5: 79696.469 | NY5: 50017.266 | NZ5: 74230.539 | OA5: 54002.367 | OB5: 87315.188 | OC5: 64259.531 | OD5: 84224.797 | OE5: 61423.109 | OF5: 81831.656 | OG5: 56692.328 | OH5: 78866.016 | OI5: 52642.922 | OJ5: 81357.656 | OK5: 50974.938 | OL5: 97840.773 | OM5: 69034.664 | ON5: 126752.273 | OO5: 78034.852 | OP5: 142279.391 | OQ5: 96118.172 | OR5: 129541.352 | OS5: 78134.711 | OT5: 84022.797 | OU5: 56120 | OV5: 80100.531 | OW5: 50270.859 | OX5: 74561.906 | OY5: 54243.438 | OZ5: 87447.883 | PA5: 64357.18 | PB5: 84723.273 | PC5: 61786.617 | PD5: 80277.219 | PE5: 55615.422 | PF5: 79520.18 | PG5: 53079.57 | PH5: 82033.336 | PI5: 51398.289 | PJ5: 98557.531 | PK5: 69540.406 | PL5: 127560.102 | PM5: 78532.18 | PN5: 143265.953 | PO5: 96784.656 | PP5: 130495.25 | PQ5: 78710.063 | PR5: 84706.32 | PS5: 56576.539 | PT5: 80786.031 | PU5: 50701.078 | PV5: 75168.352 | PW5: 54684.617 | PX5: 87941.18 | PY5: 64720.211 | PZ5: 84993.133 | QA5: 61983.414 | QB5: 80643.961 | QC5: 55869.492 | QD5: 79925.961 | QE5: 53350.43 | QF5: 82459.219 | QG5: 51665.125 | QH5: 99026.398 | QI5: 69871.227 | QJ5: 128111.742 | QK5: 78871.805 | QL5: 144000.297 | QM5: 97280.75 | QN5: 131181.766 | QO5: 79124.141 | QP5: 85138.719 | QQ5: 56865.344 | QR5: 81205.133 | QS5: 50964.102 | QT5: 75532.648 | QU5: 54949.641 | QV5: 88187.922 | QW5: 64901.813 | QX5: 85497.953 | QY5: 62351.578 | QZ5: 81238.258 | RA5: 56281.211 | RB5: 80589.25 | RC5: 53793.172 | RD5: 83143.867 | RE5: 52094.102 | RF5: 99746.25 | RG5: 70379.141 | RH5: 128913.906 | RI5: 79365.656 | RJ5: 144980.922 | RK5: 97943.219 | RL5: 132130.703 | RM5: 79696.516 | RN5: 85822.383 | RO5: 57321.961 | RQ5: 1815943.891 | RR5: 1836063.799 | RS5: 1840698.633 | RT5: 1847117.515 | RU5: 1806339.857 | RV5: 1809724.66 | RW5: 1839312.891 | RX5: 1839440.11 | RY5: 1809956.179 | RZ5: 1865186.829 | SA5: 1871710.689 | SB5: 1879583.703 | SC5: 1886270.378 | SD5: 1886229.756 | SE5: 1892386.468 | SF5: 1902839.985 | SG5: 1915413.767 | SH5: 1924144.703 | SI5: 1934364.393 | SJ5: 1947031.307
B6: 10025 | C6: Benton REA | D6: 29712.207 | E6: 19697.816 | F6: 25326.461 | G6: 19050.641 | H6: 27593.699 | I6: 22459.621 | J6: 28448.922 | K6: 20720.895 | L6: 24088.52 | M6: 16569.59 | N6: 22644.83 | O6: 16486.225 | P6: 25723.578 | Q6: 17148.938 | R6: 30686.449 | S6: 20992.164 | T6: 34903.113 | U6: 24497.34 | V6: 44305.18 | W6: 29579.305 | X6: 44576.93 | Y6: 28399.867 | Z6: 34342.484 | AA6: 26538.629 | AB6: 28380.9 | AC6: 18316.451 | AD6: 24845.463 | AE6: 18684.955 | AF6: 29097.768 | AG6: 23683.826 | AH6: 29932.113 | AI6: 21859.631 | AJ6: 24309.641 | AK6: 16738.188 | AL6: 22344.219 | AM6: 16267.812 | AN6: 27637.609 | AO6: 18236.697 | AP6: 32181.133 | AQ6: 22172.824 | AR6: 34073.883 | AS6: 24066.369 | AT6: 43806.156 | AU6: 29556.441 | AV6: 42547.344 | AW6: 27330.166 | AX6: 29679.924 | AY6: 22774.41 | AZ6: 27290.064 | BA6: 17363.023 | BB6: 23320.867 | BC6: 17558.045 | BD6: 27795.92 | BE6: 22610.156 | BF6: 27819.793 | BG6: 20321.115 | BH6: 22377.855 | BI6: 15409.19 | BJ6: 20855.035 | BK6: 15183.343 | BL6: 26145.738 | BM6: 17253.311 | BN6: 29335.139 | BO6: 20224.916 | BP6: 30359.283 | BQ6: 21441.775 | BR6: 39133.492 | BS6: 26403.957 | BT6: 36996.52 | BU6: 23765.334 | BV6: 24831.375 | BW6: 19020.588 | BX6: 27714.283 | BY6: 17636.805 | BZ6: 23691.293 | CA6: 17836.619 | CB6: 28232.539 | CC6: 22965.537 | CD6: 28261.256 | CE6: 20642.652 | CF6: 22735.688 | CG6: 15655.358 | CH6: 21180.813 | CI6: 15420.565 | CJ6: 26554.391 | CK6: 17522.658 | CL6: 29802.365 | CM6: 20544.689 | CN6: 30869.084 | CO6: 21801.975 | CP6: 39790.918 | CQ6: 26847.531 | CR6: 37634.656 | CS6: 24175.197 | CT6: 25263.678 | CU6: 19355.285 | CV6: 27630.699 | CW6: 17788.223 | CX6: 23726.443 | CY6: 17858.426 | CZ6: 27870.803 | DA6: 22788.582 | DB6: 28405.098 | DC6: 20714.57 | DD6: 23653.412 | DE6: 16304.315 | DF6: 21019.861 | DG6: 15311.217 | DH6: 25581.619 | DI6: 16914.469 | DJ6: 30121.365 | DK6: 20679.881 | DL6: 32117.367 | DM6: 22698.57 | DN6: 41937.902 | DO6: 28364.674 | DP6: 41202.578 | DQ6: 26489.078 | DR6: 29122.943 | DS6: 22536.26 | DT6: 28323.652 | DU6: 18266.527 | DV6: 24365.146 | DW6: 18356.65 | DX6: 28466.068 | DY6: 23393.684 | DZ6: 29080.574 | EA6: 21231.674 | EB6: 23603.494 | EC6: 16296.041 | ED6: 21627.182 | EE6: 15757.426 | EF6: 26181.729 | EG6: 17346.643 | EH6: 30730.326 | EI6: 21121.42 | EJ6: 32713.637 | EK6: 23124.07 | EL6: 42560.949 | EM6: 28816.611 | EN6: 41820.512 | EO6: 26895.938 | EP6: 29621.256 | EQ6: 22934.66 | ER6: 27591.42 | ES6: 17806.939 | ET6: 23445.393 | EU6: 17632.041 | EV6: 27469.689 | EW6: 22358.666 | EX6: 28434.082 | EY6: 20706.141 | EZ6: 22175.17 | FA6: 15258.787 | FB6: 22737.133 | FC6: 16559.074 | FD6: 23259.805 | FE6: 15290.281 | FF6: 30025.232 | FG6: 20529.295 | FH6: 33954.594 | FI6: 23935.639 | FJ6: 39573.855 | FK6: 26682.043 | FL6: 37355.801 | FM6: 23970.895 | FN6: 28390.693 | FO6: 21913.799 | FP6: 28061.531 | FQ6: 18088.965 | FR6: 23832.1 | FS6: 17919.908 | FT6: 27781.33 | FU6: 22608.826 | FV6: 28659.814 | FW6: 20870.557 | FX6: 22447.623 | FY6: 15446.217 | FZ6: 23039.689 | GA6: 16779.393 | GB6: 23602.096 | GC6: 15515.893 | GD6: 30431.785 | GE6: 20807.547 | GF6: 34393.523 | GG6: 24245.764 | GH6: 40052.801 | GI6: 27005.191 | GJ6: 37814.371 | GK6: 24265.43 | GL6: 28783.879 | GM6: 22218.211 | GN6: 26497.182 | GO6: 17704.635 | GP6: 22645.314 | GQ6: 17271.979 | GR6: 27037.705 | GS6: 20911.033 | GT6: 26669.256 | GU6: 20289.479 | GV6: 20754.172 | GW6: 15202.773 | GX6: 22229.912 | GY6: 15552.838 | GZ6: 22101.455 | HA6: 15022.721 | HB6: 28303.74 | HC6: 20343.244 | HD6: 33856.871 | HE6: 21814.664 | HF6: 37238.117 | HG6: 26393.172 | HH6: 36332.266 | HI6: 22518.68 | HJ6: 27914.09 | HK6: 20416.305 | HL6: 30945.502 | HM6: 20142.467 | HN6: 26623.748 | HO6: 20316.131 | HP6: 32697.43 | HQ6: 26162.285 | HR6: 32497.998 | HS6: 23962.26 | HT6: 24772.678 | HU6: 17687.971 | HV6: 25286.484 | HW6: 19071.848 | HX6: 28078.115 | HY6: 18830.521 | HZ6: 32358.189 | IA6: 22480.162 | IB6: 35829.238 | IC6: 24969.254 | ID6: 40908.129 | IE6: 27658.191 | IF6: 38649.625 | IG6: 26108.777 | IH6: 31422.01 | II6: 22088.451 | IJ6: 31190.311 | IK6: 20301.811 | IL6: 25604.018 | IM6: 21630.268 | IN6: 34155.219 | IO6: 24747.113 | IP6: 32682.537 | IQ6: 24098.33 | IR6: 25017.492 | IS6: 17862.773 | IT6: 25572.168 | IU6: 19287.316 | IV6: 28407.383 | IW6: 19051.344 | IX6: 31364.74 | IY6: 24077.65 | IZ6: 37743.141 | JA6: 23680.727 | JB6: 41328.426 | JC6: 27942.355 | JD6: 39055.016 | JE6: 26382.629 | JF6: 31775.127 | JG6: 22336.682 | JH6: 31555.865 | JI6: 20539.752 | JJ6: 25878.082 | JK6: 21861.801 | JL6: 34322.582 | JM6: 24868.375 | JN6: 31432.352 | JO6: 25588.477 | JP6: 25221.262 | JQ6: 18008.266 | JR6: 26925.463 | JS6: 18370.771 | JT6: 28707.582 | JU6: 19252.676 | JV6: 31689.814 | JW6: 24327.201 | JX6: 38122.07 | JY6: 23918.477 | JZ6: 41723.398 | KA6: 28209.398 | KB6: 39405.984 | KC6: 26619.719 | KD6: 32042.453 | KE6: 22524.598 | KF6: 30521.582 | KG6: 21976.703 | KH6: 27229.367 | KI6: 20778.27 | KJ6: 34326.609 | KK6: 24871.293 | KL6: 31602.023 | KM6: 25726.598 | KN6: 26333.881 | KO6: 18516.865 | KP6: 27158.785 | KQ6: 18529.961 | KR6: 27736.855 | KS6: 20634.801 | KT6: 33312.309 | KU6: 23143.016 | KV6: 38394.469 | KW6: 24089.387 | KX6: 40338.809 | KY6: 30149.816 | KZ6: 41352.926 | LA6: 25219.145 | LB6: 32319.422 | LC6: 22719.301 | LD6: 30803.074 | LE6: 22179.391 | LF6: 27464.127 | LG6: 20957.408 | LH6: 33018.82 | LI6: 26419.438 | LJ6: 33016.633 | LK6: 24344.672 | LL6: 25527.922 | LM6: 18227.223 | LN6: 27311.68 | LO6: 18634.281 | LP6: 27935.643 | LQ6: 20782.689 | LR6: 33571.316 | LS6: 23322.953 | LT6: 38706.883 | LU6: 24285.398 | LV6: 40682.016 | LW6: 30406.336 | LX6: 41708.375 | LY6: 25435.914 | LZ6: 31202.918 | MA6: 24313 | MB6: 32376.352 | MC6: 21073.809 | MD6: 27677.172 | ME6: 21119.98 | MF6: 33116.949 | MG6: 26497.957 | MH6: 33189.344 | MI6: 24472.02 | MJ6: 25753.824 | MK6: 18388.52 | ML6: 26461.77 | MM6: 19958.285 | MN6: 29481.494 | MO6: 19771.697 | MP6: 33935.094 | MQ6: 23575.68 | MR6: 37513.949 | MS6: 26143.316 | MT6: 42869.961 | MU6: 28984.594 | MV6: 42158.738 | MW6: 25710.574 | MX6: 31539.813 | MY6: 24575.508 | MZ6: 32727.615 | NA6: 21302.443 | NB6: 27948.072 | NC6: 21326.701 | ND6: 33277.879 | NE6: 26626.715 | NF6: 33385.004 | NG6: 24616.289 | NH6: 25985.848 | NI6: 18554.188 | NJ6: 26729.533 | NK6: 20160.236 | NL6: 29791.012 | NM6: 19979.273 | NN6: 34282.41 | NO6: 23816.973 | NP6: 37884.438 | NQ6: 26401.512 | NR6: 43301.094 | NS6: 29276.086 | NT6: 40902.813 | NU6: 27630.859 | NV6: 33255.164 | NW6: 23377.086 | NX6: 33016.641 | NY6: 21490.574 | NZ6: 26909.428 | OA6: 22733.076 | OB6: 34843.047 | OC6: 25245.48 | OD6: 33598.785 | OE6: 24773.922 | OF6: 25966.818 | OG6: 20310.092 | OH6: 28154.148 | OI6: 19209.078 | OJ6: 30094.051 | OK6: 20182.504 | OL6: 33187.25 | OM6: 25476.73 | ON6: 39866.324 | OO6: 25012.855 | OP6: 43723.262 | OQ6: 29561.512 | OR6: 41297.734 | OS6: 27897.641 | OT6: 33560.469 | OU6: 23591.703 | OV6: 31975.529 | OW6: 23023.604 | OX6: 28379.373 | OY6: 21655.818 | OZ6: 34966.473 | PA6: 25334.906 | PB6: 32334.105 | PC6: 26322.574 | PD6: 26421.189 | PE6: 18865.029 | PF6: 28386.375 | PG6: 19367.527 | PH6: 30355.24 | PI6: 20357.67 | PJ6: 33474.078 | PK6: 25696.918 | PL6: 40205.453 | PM6: 25225.629 | PN6: 42322.035 | PO6: 31632.105 | PP6: 43372.887 | PQ6: 26451.02 | PR6: 33850.07 | PS6: 23795.285 | PT6: 32248.975 | PU6: 23220.494 | PV6: 28596.43 | PW6: 21821.449 | PX6: 35101.801 | PY6: 25432.957 | PZ6: 32416.994 | QA6: 26390.053 | QB6: 26548.672 | QC6: 18956.051 | QD6: 28547.734 | QE6: 19477.617 | QF6: 29266.945 | QG6: 21773.109 | QH6: 35149.547 | QI6: 24419.398 | QJ6: 40481.559 | QK6: 25398.863 | QL6: 42643.82 | QM6: 31872.617 | QN6: 43700.656 | QO6: 26650.906 | QP6: 34088.988 | QQ6: 23963.234 | QR6: 32474.195 | QS6: 23382.66 | QT6: 28770.037 | QU6: 21953.928 | QV6: 33713.996 | QW6: 26975.672 | QX6: 34054.477 | QY6: 25109.922 | QZ6: 26788.27 | RA6: 19127.125 | RB6: 28838.586 | RC6: 19676.059 | RD6: 29578.932 | RE6: 22005.213 | RF6: 35519.789 | RG6: 24676.613 | RH6: 40897.426 | RI6: 25659.785 | RJ6: 43110.703 | RK6: 32221.578 | RL6: 44197.863 | RM6: 26954.137 | RN6: 33017.34 | RO6: 25726.781 | RQ6: 634493.404 | RR6: 628523.923 | RS6: 572815.834 | RT6: 582135.835 | RU6: 600838.355 | RV6: 612635.869 | RW6: 587056.467 | RX6: 594672.444 | RY6: 565021.603 | RZ6: 649547.464 | SA6: 655294.576 | SB6: 661116.418 | SC6: 666982.193 | SD6: 670258.11 | SE6: 676346.4 | SF6: 682539.243 | SG6: 689703.124 | SH6: 693770.892 | SI6: 698168.869 | SJ6: 704431.087
B7: 10027 | C7: Big Bend Elec Coop | D7: 21513.086 | E7: 14715.813 | F7: 13251.338 | G7: 9881.162 | H7: 15817.067 | I7: 11782.233 | J7: 15545.653 | K7: 11437.546 | L7: 12959.495 | M7: 9008.204 | N7: 12804.505 | O7: 8590.396 | P7: 22933.857 | Q7: 15721.443 | R7: 34279.961 | S7: 25465.738 | T7: 41382.516 | U7: 28182.281 | V7: 45614.664 | W7: 34317.938 | X7: 43359.336 | Y7: 29669.367 | Z7: 31536.848 | AA7: 23457.254 | AB7: 22829.391 | AC7: 15471.355 | AD7: 14325.249 | AE7: 10680.446 | AF7: 16843.117 | AG7: 12558.838 | AH7: 15295.813 | AI7: 11262.022 | AJ7: 13843.08 | AK7: 9639.91 | AL7: 14317.738 | AM7: 9469.305 | AN7: 24449.273 | AO7: 16639.887 | AP7: 37373.891 | AQ7: 27875.586 | AR7: 43250.137 | AS7: 29637.895 | AT7: 46985.773 | AU7: 35652.375 | AV7: 44403.324 | AW7: 30634.066 | AX7: 32947.977 | AY7: 24530.926 | AZ7: 22822.725 | BA7: 15467.501 | BB7: 14622.054 | BC7: 10901.735 | BD7: 17142.391 | BE7: 12777.66 | BF7: 15594.213 | BG7: 11481.727 | BH7: 14148.497 | BI7: 9852.593 | BJ7: 14629.589 | BK7: 9675.552 | BL7: 24353.107 | BM7: 16586.008 | BN7: 36964.844 | BO7: 27539.742 | BP7: 42581.688 | BQ7: 29201.025 | BR7: 46205.684 | BS7: 35037.563 | BT7: 43711.047 | BU7: 30185.223 | BV7: 32598.051 | BW7: 24294.336 | BX7: 23131.541 | BY7: 15676.786 | BZ7: 14918.863 | CA7: 11123.027 | CB7: 17439.23 | CC7: 12998.92 | CD7: 15892.603 | CE7: 11701.427 | CF7: 14453.914 | CG7: 10065.275 | CH7: 14941.44 | CI7: 9881.8 | CJ7: 24661.391 | CK7: 16795.822 | CL7: 37261.602 | CM7: 27761.086 | CN7: 42889.109 | CO7: 29411.697 | CP7: 46500.258 | CQ7: 35261.09 | CR7: 44017.641 | CS7: 30396.746 | CT7: 32895.035 | CU7: 24515.453 | CV7: 23787.539 | CW7: 16121.354 | CX7: 15625.582 | CY7: 11649.934 | CZ7: 18256.492 | DA7: 13608.094 | DB7: 17752.979 | DC7: 13071.188 | DD7: 15233.338 | DE7: 10608.043 | DF7: 15686.213 | DG7: 10374.371 | DH7: 25796 | DI7: 17568.025 | DJ7: 35417.461 | DK7: 26385.617 | DL7: 44227.086 | DM7: 30328.564 | DN7: 45728.102 | DO7: 34675.184 | DP7: 43835.719 | DQ7: 30271.238 | DR7: 32485.93 | DS7: 24210.859 | DT7: 23981.061 | DU7: 16252.505 | DV7: 15811.938 | DW7: 11788.874 | DX7: 18442.943 | DY7: 13747.072 | DZ7: 17940.973 | EA7: 13209.604 | EB7: 15158.565 | EC7: 10555.974 | ED7: 15882.019 | EE7: 10503.87 | EF7: 25989.258 | EG7: 17699.553 | EH7: 35603.215 | EI7: 26524.164 | EJ7: 44419.59 | EK7: 30460.482 | EL7: 45912.543 | EM7: 34815.133 | EN7: 44027.652 | EO7: 30403.648 | EP7: 32671.855 | EQ7: 24349.285 | ER7: 23616.064 | ES7: 16018.583 | ET7: 15556.135 | EU7: 11521.268 | EV7: 18588.633 | EW7: 13756.594 | EX7: 18472.557 | EY7: 13597.803 | EZ7: 15475.735 | FA7: 10807.876 | FB7: 14530.353 | FC7: 9735.968 | FD7: 19890.738 | FE7: 13263.612 | FF7: 37430.484 | FG7: 28198.912 | FH7: 49519.953 | FI7: 34259.688 | FJ7: 48666.66 | FK7: 36655.766 | FL7: 44233.012 | FM7: 29921.9 | FN7: 32366.777 | FO7: 24443.57 | FP7: 23753.238 | FQ7: 16111.62 | FR7: 15688.392 | FS7: 11619.22 | FT7: 18720.936 | FU7: 13854.504 | FV7: 18605.158 | FW7: 13695.412 | FX7: 15611.282 | FY7: 10902.538 | FZ7: 14668.199 | GA7: 9828.33 | GB7: 20028.867 | GC7: 13355.694 | GD7: 37561.746 | GE7: 28297.854 | GF7: 49656.047 | GG7: 34353.805 | GH7: 48797.945 | GI7: 36754.691 | GJ7: 44370.348 | GK7: 30014.768 | GL7: 32497.98 | GM7: 24542.578 | GN7: 24282.41 | GO7: 16542.656 | GP7: 16261.106 | GQ7: 12006.714 | GR7: 19270.881 | GS7: 14264.768 | GT7: 19144.5 | GU7: 14116.281 | GV7: 16574.203 | GW7: 11566.521 | GX7: 15247.51 | GY7: 10209.229 | GZ7: 20616.037 | HA7: 13728.731 | HB7: 38086.125 | HC7: 28733.686 | HD7: 50258.262 | HE7: 34711.801 | HF7: 49376.004 | HG7: 37136.844 | HH7: 44928.625 | HI7: 30416.701 | HJ7: 33068.781 | HK7: 24931.984 | HL7: 24236.949 | HM7: 16476.934 | HN7: 16035.613 | HO7: 11808.049 | HP7: 19033.77 | HQ7: 14088.918 | HR7: 18847.229 | HS7: 14009.01 | HT7: 15990.276 | HU7: 11146.649 | HV7: 15011.503 | HW7: 10013.165 | HX7: 20596.52 | HY7: 13753.195 | HZ7: 38305.164 | IA7: 28864.875 | IB7: 50865.816 | IC7: 34985.184 | ID7: 49758.219 | IE7: 37502.141 | IF7: 45337.586 | IG7: 30588.117 | IH7: 33270.055 | II7: 25002.457 | IJ7: 26980.105 | IK7: 18841.563 | IL7: 18639.848 | IM7: 14201.43 | IN7: 20641.404 | IO7: 15769.187 | IP7: 20433.041 | IQ7: 15645.315 | IR7: 16439.758 | IS7: 11923.08 | IT7: 17846.639 | IU7: 12421.387 | IV7: 26945.975 | IW7: 18452.26 | IX7: 40455.031 | IY7: 30910 | IZ7: 51130.242 | JA7: 35693.945 | JB7: 52239.949 | JC7: 39803.605 | JD7: 44310.625 | JE7: 30351.383 | JF7: 31244.938 | JG7: 24287.375 | JH7: 27478.604 | JI7: 19180.455 | JJ7: 18985.5 | JK7: 14455.957 | JL7: 21023.777 | JM7: 16052.22 | JN7: 20811.598 | JO7: 15926.091 | JP7: 16745.025 | JQ7: 12136.144 | JR7: 18178.275 | JS7: 12642.898 | JT7: 27443.734 | JU7: 18784.148 | JV7: 41199.449 | JW7: 31469.785 | JX7: 52069.867 | JY7: 36341.039 | JZ7: 53199.73 | KA7: 40525.926 | KB7: 45125.871 | KC7: 30900.59 | KD7: 31820.824 | KE7: 24726.34 | KF7: 27938.098 | KG7: 19492.832 | KH7: 19286.43 | KI7: 14677.551 | KJ7: 21361.801 | KK7: 16302.427 | KL7: 21145.607 | KM7: 16173.827 | KN7: 17383.869 | KO7: 12598.058 | KP7: 18459.084 | KQ7: 12830.461 | KR7: 27904.24 | KS7: 19091.193 | KT7: 41924.508 | KU7: 32015.023 | KV7: 53003.094 | KW7: 36983.711 | KX7: 54154.77 | KY7: 41244.684 | KZ7: 45923.301 | LA7: 31437.793 | LB7: 32368.588 | LC7: 25143.869 | LD7: 27979.303 | LE7: 19520.846 | LF7: 19217.365 | LG7: 14626.693 | LH7: 21370.643 | LI7: 16308.972 | LJ7: 21136.48 | LK7: 16167.056 | LL7: 16308.23 | LM7: 11831.28 | LN7: 18439.094 | LO7: 12817.109 | LP7: 27982.197 | LQ7: 19143.174 | LR7: 42045.352 | LS7: 32105.898 | LT7: 53163.531 | LU7: 37094.203 | LV7: 54315.484 | LW7: 41365.641 | LX7: 46100.094 | LY7: 31556.898 | LZ7: 32491.367 | MA7: 25237.457 | MB7: 28108.203 | MC7: 19608.477 | MD7: 19304.084 | ME7: 14690.549 | MF7: 21468.59 | MG7: 16381.474 | MH7: 21232.654 | MI7: 16238.39 | MJ7: 16381.54 | MK7: 11882.447 | ML7: 18521.982 | MM7: 12872.475 | MN7: 28111.426 | MO7: 19229.34 | MP7: 42241.066 | MQ7: 32253.066 | MR7: 53412.176 | MS7: 37265.441 | MT7: 54569.582 | MU7: 41556.863 | MV7: 46315.047 | MW7: 31701.695 | MX7: 32642.215 | MY7: 25352.441 | MZ7: 28237.697 | NA7: 19696.51 | NB7: 19391.178 | NC7: 14754.682 | ND7: 21566.473 | NE7: 16453.926 | NF7: 21329.779 | NG7: 16310.429 | NH7: 16455.168 | NI7: 11933.837 | NJ7: 18605.781 | NK7: 12928.443 | NL7: 28241.746 | NM7: 19316.23 | NN7: 42438.207 | NO7: 32401.316 | NP7: 53661.52 | NQ7: 37437.145 | NR7: 54824.289 | NS7: 41748.563 | NT7: 46531.445 | NU7: 31847.484 | NV7: 32794.23 | NW7: 25468.313 | NX7: 28368.314 | NY7: 19785.307 | NZ7: 19478.641 | OA7: 14819.086 | OB7: 21664.785 | OC7: 16526.699 | OD7: 21426.824 | OE7: 16382.407 | OF7: 17577.35 | OG7: 12733.101 | OH7: 18689.365 | OI7: 12984.273 | OJ7: 28372.176 | OK7: 19403.199 | OL7: 42635.766 | OM7: 32549.875 | ON7: 53911.984 | OO7: 37609.633 | OP7: 55080.234 | OQ7: 41941.18 | OR7: 46748.375 | OS7: 31993.617 | OT7: 32946.508 | OU7: 25584.383 | OV7: 28498.979 | OW7: 19874.135 | OX7: 19566.453 | OY7: 14883.75 | OZ7: 21764.047 | PA7: 16600.172 | PB7: 21524.27 | PC7: 16454.684 | PD7: 16603.84 | PE7: 12037.603 | PF7: 18773.857 | PG7: 13040.711 | PH7: 28503.203 | PI7: 19490.563 | PJ7: 42834.227 | PK7: 32699.117 | PL7: 54164.152 | PM7: 37783.301 | PN7: 55337.879 | PO7: 42135.082 | PP7: 46966.316 | PQ7: 32140.441 | PR7: 33099.469 | PS7: 25700.98 | PT7: 28630.248 | PU7: 19963.377 | PV7: 19654.654 | PW7: 14948.697 | PX7: 21863.229 | PY7: 16673.588 | PZ7: 21622.695 | QA7: 16527.684 | QB7: 16678.391 | QC7: 12089.638 | QD7: 18858.156 | QE7: 13097.014 | QF7: 28634.828 | QG7: 19578.324 | QH7: 43034.105 | QI7: 32849.418 | QJ7: 54416.992 | QK7: 37957.422 | QL7: 55596.211 | QM7: 42329.492 | QN7: 47185.309 | QO7: 32287.973 | QP7: 33253.594 | QQ7: 25818.457 | QR7: 28762.67 | QS7: 20053.4 | QT7: 19743.221 | QU7: 15013.912 | QV7: 21962.842 | QW7: 16747.322 | QX7: 21721.006 | QY7: 16600.6 | QZ7: 16753.248 | RA7: 12141.882 | RB7: 18943.363 | RC7: 13153.928 | RD7: 28767.547 | RE7: 19666.82 | RF7: 43234.434 | RG7: 33000.066 | RH7: 54670.996 | RI7: 38132.348 | RJ7: 55855.734 | RK7: 42524.813 | RL7: 47405.762 | RM7: 32436.48 | RN7: 33408 | RO7: 25936.156 | RQ7: 533227.701 | RR7: 560917.374 | RS7: 558374.555 | RT7: 564591.756 | RU7: 572704.912 | RV7: 576151.776 | RW7: 580528.641 | RX7: 583291.152 | RY7: 595480.36 | RZ7: 595527.394 | SA7: 635608.085 | SB7: 647223.847 | SC7: 658844.819 | SD7: 658324.367 | SE7: 661341.223 | SF7: 664374.391 | SG7: 669213.082 | SH7: 670477.231 | SI7: 673549.496 | SJ7: 676636.55
... 8 more rows

Sheet I_CSP
B1: Customer System Peak (MW)
A2: TOC
B3: BESID | C3: AccountName | D3: JOE | E3: 2015-10-01 | F3: 2015-11-01 | G3: 2015-12-01 | H3: 2016-01-01 | I3: 2016-02-01 | J3: 2016-03-01 | K3: 2016-04-01 | L3: 2016-05-01 | M3: 2016-06-01 | N3: 2016-07-01 | O3: 2016-08-01 | P3: 2016-09-01 | Q3: 2016-10-01 | R3: 2016-11-01 | S3: 2016-12-01 | T3: 2017-01-01 | U3: 2017-02-01 | V3: 2017-03-01 | W3: 2017-04-01 | X3: 2017-05-01 | Y3: 2017-06-01 | Z3: 2017-07-01 | AA3: 2017-08-01 | AB3: 2017-09-01 | AC3: 2017-10-01 | AD3: 2017-11-01 | AE3: 2017-12-01 | AF3: 2018-01-01 | AG3: 2018-02-01 | AH3: 2018-03-01 | AI3: 2018-04-01 | AJ3: 2018-05-01 | AK3: 2018-06-01 | AL3: 2018-07-01 | AM3: 2018-08-01 | AN3: 2018-09-01 | AO3: 2018-10-01 | AP3: 2018-11-01 | AQ3: 2018-12-01 | AR3: 2019-01-01 | AS3: 2019-02-01 | AT3: 2019-03-01 | AU3: 2019-04-01 | AV3: 2019-05-01 | AW3: 2019-06-01 | AX3: 2019-07-01 | AY3: 2019-08-01 | AZ3: 2019-09-01 | BA3: 2019-10-01 | BB3: 2019-11-01 | BC3: 2019-12-01 | BD3: 2020-01-01 | BE3: 2020-02-01 | BF3: 2020-03-01 | BG3: 2020-04-01 | BH3: 2020-05-01 | BI3: 2020-06-01 | BJ3: 2020-07-01 | BK3: 2020-08-01 | BL3: 2020-09-01 | BM3: 2020-10-01 | BN3: 2020-11-01 | BO3: 2020-12-01 | BP3: 2021-01-01 | BQ3: 2021-02-01 | BR3: 2021-03-01 | BS3: 2021-04-01 | BT3: 2021-05-01 | BU3: 2021-06-01 | BV3: 2021-07-01 | BW3: 2021-08-01 | BX3: 2021-09-01 | BY3: 2021-10-01 | BZ3: 2021-11-01 | CA3: 2021-12-01 | CB3: 2022-01-01 | CC3: 2022-02-01 | CD3: 2022-03-01 | CE3: 2022-04-01 | CF3: 2022-05-01 | CG3: 2022-06-01 | CH3: 2022-07-01 | CI3: 2022-08-01 | CJ3: 2022-09-01 | CK3: 2022-10-01 | CL3: 2022-11-01 | CM3: 2022-12-01 | CN3: 2023-01-01 | CO3: 2023-02-01 | CP3: 2023-03-01 | CQ3: 2023-04-01 | CR3: 2023-05-01 | CS3: 2023-06-01 | CT3: 2023-07-01 | CU3: 2023-08-01 | CV3: 2023-09-01 | CW3: 2023-10-01 | CX3: 2023-11-01 | CY3: 2023-12-01 | CZ3: 2024-01-01 | DA3: 2024-02-01 | DB3: 2024-03-01 | DC3: 2024-04-01 | DD3: 2024-05-01 | DE3: 2024-06-01 | DF3: 2024-07-01 | DG3: 2024-08-01 | DH3: 2024-09-01 | DI3: 2024-10-01 | DJ3: 2024-11-01 | DK3: 2024-12-01 | DL3: 2025-01-01 | DM3: 2025-02-01 | DN3: 2025-03-01 | DO3: 2025-04-01 | DP3: 2025-05-01 | DQ3: 2025-06-01 | DR3: 2025-07-01 | DS3: 2025-08-01 | DT3: 2025-09-01 | DU3: 2025-10-01 | DV3: 2025-11-01 | DW3: 2025-12-01 | DX3: 2026-01-01 | DY3: 2026-02-01 | DZ3: 2026-03-01 | EA3: 2026-04-01 | EB3: 2026-05-01 | EC3: 2026-06-01 | ED3: 2026-07-01 | EE3: 2026-08-01 | EF3: 2026-09-01 | EG3: 2026-10-01 | EH3: 2026-11-01 | EI3: 2026-12-01 | EJ3: 2027-01-01 | EK3: 2027-02-01 | EL3: 2027-03-01 | EM3: 2027-04-01 | EN3: 2027-05-01 | EO3: 2027-06-01 | EP3: 2027-07-01 | EQ3: 2027-08-01 | ER3: 2027-09-01 | ES3: 2027-10-01 | ET3: 2027-11-01 | EU3: 2027-12-01 | EV3: 2028-01-01 | EW3: 2028-02-01 | EX3: 2028-03-01 | EY3: 2028-04-01 | EZ3: 2028-05-01 | FA3: 2028-06-01 | FB3: 2028-07-01 | FC3: 2028-08-01 | FD3: 2028-09-01 | FE3: 2028-10-01 | FF3: =+EOMONTH(FE3,0)+1 -> 2028-11-01 | FG3: =+EOMONTH(FF3,0)+1 -> 2028-12-01 | FH3: 2029-01-01 | FI3: 2029-02-01 | FJ3: 2029-03-01 | FK3: 2029-04-01 | FL3: 2029-05-01 | FM3: 2029-06-01 | FN3: 2029-07-01 | FO3: 2029-08-01 | FP3: 2029-09-01 | FQ3: 2029-10-01 | FR3: =+EOMONTH(FQ3,0)+1 -> 2029-11-01 | FS3: =+EOMONTH(FR3,0)+1 -> 2029-12-01 | FT3: 2030-01-01 | FU3: 2030-02-01 | FV3: 2030-03-01 | FW3: 2030-04-01 | FX3: 2030-05-01 | FY3: 2030-06-01 | FZ3: 2030-07-01 | GA3: 2030-08-01 | GB3: 2030-09-01 | GC3: 2030-10-01 | GD3: =+EOMONTH(GC3,0)+1 -> 2030-11-01 | GE3: =+EOMONTH(GD3,0)+1 -> 2030-12-01 | GF3: 2031-01-01 | GG3: 2031-02-01 | GH3: 2031-03-01 | GI3: 2031-04-01 | GJ3: 2031-05-01 | GK3: 2031-06-01 | GL3: 2031-07-01 | GM3: 2031-08-01 | GN3: 2031-09-01 | GO3: =DATE(YEAR(GN3),MONTH(GN3)+1,1) -> 2031-10-01 | GP3: =DATE(YEAR(GO3),MONTH(GO3)+1,1) -> 2031-11-01 | GQ3: 2031-12-01 | GR3: 2032-01-01 | GS3: 2032-02-01 | GT3: 2032-03-01 | GU3: 2032-04-01 | GV3: 2032-05-01 | GW3: 2032-06-01 | GX3: 2032-07-01 | GY3: 2032-08-01 | GZ3: 2032-09-01 | HA3: 2032-10-01 | HB3: 2032-11-01 | HC3: =DATE(YEAR(HB3),MONTH(HB3)+1,1) -> 2032-12-01 | HD3: 2033-01-01 | HE3: 2033-02-01 | HF3: 2033-03-01 | HG3: 2033-04-01 | HH3: 2033-05-01 | HI3: 2033-06-01 | HJ3: 2033-07-01 | HK3: 2033-08-01 | HL3: =DATE(YEAR(HK3),MONTH(HK3)+1,1) -> 2033-09-01 | HM3: =DATE(YEAR(HL3),MONTH(HL3)+1,1) -> 2033-10-01 | HN3: 2033-11-01 | HO3: =DATE(YEAR(HN3),MONTH(HN3)+1,1) -> 2033-12-01 | HP3: 2034-01-01 | HQ3: =DATE(YEAR(HP3),MONTH(HP3)+1,1) -> 2034-02-01 | HR3: 2034-03-01 | HS3: =DATE(YEAR(HR3),MONTH(HR3)+1,1) -> 2034-04-01 | HT3: 2034-05-01 | HU3: =DATE(YEAR(HT3),MONTH(HT3)+1,1) -> 2034-06-01 | HV3: 2034-07-01 | HW3: =DATE(YEAR(HV3),MONTH(HV3)+1,1) -> 2034-08-01 | HX3: 2034-09-01 | HY3: =DATE(YEAR(HX3),MONTH(HX3)+1,1) -> 2034-10-01 | HZ3: 2034-11-01 | IA3: =DATE(YEAR(HZ3),MONTH(HZ3)+1,1) -> 2034-12-01 | IB3: =DATE(YEAR(IA3),MONTH(IA3)+1,1) -> 2035-01-01 | IC3: =DATE(YEAR(IB3),MONTH(IB3)+1,1) -> 2035-02-01 | ID3: =DATE(YEAR(IC3),MONTH(IC3)+1,1) -> 2035-03-01 | IE3: =DATE(YEAR(ID3),MONTH(ID3)+1,1) -> 2035-04-01 | IF3: =DATE(YEAR(IE3),MONTH(IE3)+1,1) -> 2035-05-01 | IG3: =DATE(YEAR(IF3),MONTH(IF3)+1,1) -> 2035-06-01 | IH3: =DATE(YEAR(IG3),MONTH(IG3)+1,1) -> 2035-07-01 | II3: =DATE(YEAR(IH3),MONTH(IH3)+1,1) -> 2035-08-01 | IJ3: =DATE(YEAR(II3),MONTH(II3)+1,1) -> 2035-09-01
A4: 0 | B4: 10015 | C4: Asotin County PUD #1 | D4: =VLOOKUP(B4,TOCA!$B$3:$E$137,4,FALSE) -> 0 | E4: 1.433 | F4: 1.005 | G4: 0.871 | H4: 1.014 | I4: 0.907 | J4: 0.964 | K4: 1.012 | L4: 1.742 | M4: 1.92 | N4: 2.719 | O4: 3.036 | P4: 2.243 | Q4: 1.06 | R4: 0.919 | S4: 0.965 | T4: 0.991 | U4: 1.769 | V4: 2.107 | W4: 2.715 | X4: 3.144 | Y4: 2.449 | Z4: 1.548 | AA4: 1.114 | AB4: 0.877 | AC4: 1.899 | AD4: 1.116 | AE4: 1.16 | AF4: 1.397 | AG4: 1.252 | AH4: 1.289 | AI4: 1.808 | AJ4: 2.327 | AK4: 2.829 | AL4: 3.113 | AM4: 3.023 | AN4: 2.395 | AO4: 1.93 | AP4: 1.135 | AQ4: 1.18 | AR4: 1.42 | AS4: 1.318 | AT4: 1.31 | AU4: 1.838 | AV4: 2.366 | AW4: 2.877 | AX4: 3.165 | AY4: 3.074 | AZ4: 2.435 | BA4: 1.874 | BB4: 1.095 | BC4: 1.139 | BD4: 1.379 | BE4: 1.244 | BF4: 1.244 | BG4: 1.756 | BH4: 2.273 | BI4: 2.739 | BJ4: 3.012 | BK4: 2.915 | BL4: 2.327 | BM4: 1.891 | BN4: 1.105 | BO4: 1.149 | BP4: 1.392 | BQ4: 1.303 | BR4: 1.253 | BS4: 1.771 | BT4: 2.293 | BU4: 2.76 | BV4: 3.035 | BW4: 2.937 | BX4: 2.346 | BY4: 1.526 | BZ4: 1.095 | CA4: 1.16 | CB4: 1.224 | CC4: 1.234 | CD4: 1.18 | CE4: 1.51 | CF4: 1.959 | CG4: 2.639 | CH4: 2.888 | CI4: 2.904 | CJ4: 2.215 | CK4: 1.526 | CL4: 1.095 | CM4: 1.16 | CN4: 1.224 | CO4: 1.234 | CP4: 1.18 | CQ4: 1.51 | CR4: 1.959 | CS4: 2.639 | CT4: 2.888 | CU4: 2.904 | CV4: 2.215 | CW4: 1.526 | CX4: 1.095 | CY4: 1.16 | CZ4: 1.224 | DA4: 1.234 | DB4: 1.18 | DC4: 1.51 | DD4: 1.959 | DE4: 2.639 | DF4: 2.888 | DG4: 2.904 | DH4: 2.215 | DI4: 1.752 | DJ4: 1.32 | DK4: 1.385 | DL4: 1.448 | DM4: 1.471 | DN4: 1.405 | DO4: 1.728 | DP4: 2.169 | DQ4: 2.799 | DR4: 3.082 | DS4: 3.094 | DT4: 2.42 | DU4: 1.752 | DV4: 1.32 | DW4: 1.385 | DX4: 1.448 | DY4: 1.471 | DZ4: 1.405 | EA4: 1.728 | EB4: 2.169 | EC4: 2.799 | ED4: 3.082 | EE4: 3.094 | EF4: 2.42 | EG4: 1.752 | EH4: 1.32 | EI4: 1.385 | EJ4: 1.448 | EK4: 1.471 | EL4: 1.405 | EM4: 1.728 | EN4: 2.169 | EO4: 2.799 | EP4: 3.082 | EQ4: 3.094 | ER4: 2.42 | ES4: 1.752 | ET4: 1.32 | EU4: 1.385 | EV4: 1.448 | EW4: 1.471 | EX4: 1.405 | EY4: 1.728 | EZ4: 2.169 | FA4: 2.799 | FB4: 3.082 | FC4: 3.094 | FD4: 2.42 | FE4: 1.752 | FF4: 1.32 | FG4: 1.385 | FH4: 1.448 | FI4: 1.471 | FJ4: 1.405 | FK4: 1.728 | FL4: 2.169 | FM4: 2.799 | FN4: 3.082 | FO4: 3.094 | FP4: 2.42 | FQ4: 1.752 | FR4: 1.32 | FS4: 1.385 | FT4: 1.448 | FU4: 1.471 | FV4: 1.405 | FW4: 1.728 | FX4: 2.169 | FY4: 2.799 | FZ4: 3.082 | GA4: 3.094 | GB4: 2.42 | GC4: 1.752 | GD4: 1.32 | GE4: 1.385 | GF4: 1.448 | GG4: 1.471 | GH4: 1.405 | GI4: 1.728 | GJ4: 2.169 | GK4: 2.799 | GL4: 3.082 | GM4: 3.094 | GN4: 2.42 | GO4: 1.752 | GP4: 1.32 | GQ4: 1.385 | GR4: 1.448 | GS4: 1.471 | GT4: 1.405 | GU4: 1.728 | GV4: 2.169 | GW4: 2.799 | GX4: 3.082 | GY4: 3.094 | GZ4: 2.42 | HA4: 1.752 | HB4: 1.32 | HC4: 1.385 | HD4: 1.448 | HE4: 1.471 | HF4: 1.405 | HG4: 1.728 | HH4: 2.169 | HI4: 2.799 | HJ4: 3.082 | HK4: 3.094 | HL4: 2.42 | HM4: 1.752 | HN4: 1.32 | HO4: 1.385 | HP4: 1.448 | HQ4: 1.471 | HR4: 1.405 | HS4: 1.728 | HT4: 2.169 | HU4: 2.799 | HV4: 3.082 | HW4: 3.094 | HX4: 2.42 | HY4: 1.752 | HZ4: 1.32 | IA4: 1.385 | IB4: 1.448 | IC4: 1.471 | ID4: 1.405 | IE4: 1.728 | IF4: 2.169 | IG4: 2.799 | IH4: 3.082 | II4: 3.094 | IJ4: 2.42
A5: 0 | B5: 10024 | C5: Benton County PUD #1 | D5: =VLOOKUP(B5,TOCA!$B$3:$E$137,4,FALSE) -> 0 | E5: 223.501 | F5: 262.465 | G5: 295.813 | H5: 294.47 | I5: 270.489 | J5: 241.716 | K5: 235.285 | L5: 297.237 | M5: 399.998 | N5: 429.067 | O5: 386.093 | P5: 297.35 | Q5: 301.09 | R5: 281.731 | S5: 232.325 | T5: 275.546 | U5: 323.644 | V5: 407.383 | W5: 441.883 | X5: 410.283 | Y5: 302.983 | Z5: 249.554 | AA5: 249.212 | AB5: 292.58 | AC5: 249.653 | AD5: 249.513 | AE5: 292.93 | AF5: 302.371 | AG5: 282.931 | AH5: 233.375 | AI5: 276.526 | AJ5: 324.505 | AK5: 408.183 | AL5: 442.653 | AM5: 411.113 | AN5: 303.884 | AO5: 250.633 | AP5: 250.682 | AQ5: 294.241 | AR5: 303.76 | AS5: 284.231 | AT5: 234.545 | AU5: 277.626 | AV5: 325.485 | AW5: 409.123 | AX5: 443.553 | AY5: 412.053 | AZ5: 304.913 | BA5: 238.872 | BB5: 256.3 | BC5: 299.931 | BD5: 303.872 | BE5: 286.395 | BF5: 244.323 | BG5: 255.688 | BH5: 360.895 | BI5: 400.004 | BJ5: 428.66 | BK5: 403.99 | BL5: 299.168 | BM5: 239.811 | BN5: 257.31 | BO5: 301.115 | BP5: 305.072 | BQ5: 287.525 | BR5: 245.285 | BS5: 256.695 | BT5: 362.323 | BU5: 401.588 | BV5: 430.358 | BW5: 405.589 | BX5: 300.349 | BY5: 236.467 | BZ5: 253.685 | CA5: 296.827 | CB5: 300.689 | CC5: 283.362 | CD5: 241.712 | CE5: 252.922 | CF5: 356.928 | CG5: 395.553 | CH5: 423.833 | CI5: 399.393 | CJ5: 295.74 | CK5: 237.043 | CL5: 254.304 | CM5: 297.552 | CN5: 301.424 | CO5: 284.054 | CP5: 242.3 | CQ5: 253.538 | CR5: 357.801 | CS5: 396.521 | CT5: 424.872 | CU5: 400.371 | CV5: 296.461 | CW5: 231.287 | CX5: 252.952 | CY5: 303.055 | CZ5: 314.341 | DA5: 263.949 | DB5: 246.941 | DC5: 272.159 | DD5: 311.551 | DE5: 403.529 | DF5: 425.071 | DG5: 409.262 | DH5: 257.483 | DI5: 243.224 | DJ5: 260.994 | DK5: 305.758 | DL5: 309.941 | DM5: 284.034 | DN5: 258.633 | DO5: 269.848 | DP5: 313.331 | DQ5: 428.363 | DR5: 440.705 | DS5: 408.008 | DT5: 272.74 | DU5: 243.882 | DV5: 261.705 | DW5: 306.603 | DX5: 310.799 | DY5: 284.814 | DZ5: 259.337 | EA5: 270.585 | EB5: 314.199 | EC5: 429.576 | ED5: 441.955 | EE5: 409.16 | EF5: 273.486 | EG5: 244.542 | EH5: 262.418 | EI5: 307.451 | EJ5: 311.659 | EK5: 285.596 | EL5: 260.043 | EM5: 271.325 | EN5: 315.069 | EO5: 430.793 | EP5: 443.209 | EQ5: 410.316 | ER5: 274.235 | ES5: 245.203 | ET5: 263.133 | EU5: 308.301 | EV5: 312.522 | EW5: 285.86 | EX5: 260.751 | EY5: 272.067 | EZ5: 315.942 | FA5: 432.013 | FB5: 444.466 | FC5: 411.475 | FD5: 274.985 | FE5: 245.867 | FF5: 263.85 | FG5: 309.154 | FH5: 313.388 | FI5: 287.168 | FJ5: 261.461 | FK5: 272.811 | FL5: 316.818 | FM5: 433.237 | FN5: 445.728 | FO5: 412.637 | FP5: 275.738 | FQ5: 246.532 | FR5: 264.57 | FS5: 310.009 | FT5: 314.256 | FU5: 287.958 | FV5: 262.174 | FW5: 273.558 | FX5: 317.697 | FY5: 434.465 | FZ5: 446.993 | GA5: 413.803 | GB5: 276.494 | GC5: 247.2 | GD5: 265.292 | GE5: 310.867 | GF5: 315.127 | GG5: 288.75 | GH5: 262.888 | GI5: 274.306 | GJ5: 318.578 | GK5: 435.696 | GL5: 448.262 | GM5: 414.972 | GN5: 277.251 | GO5: 247.87 | GP5: 266.016 | GQ5: 311.728 | GR5: 316 | GS5: 289.017 | GT5: 263.605 | GU5: 275.057 | GV5: 319.462 | GW5: 436.931 | GX5: 449.535 | GY5: 416.145 | GZ5: 278.011 | HA5: 248.541 | HB5: 266.742 | HC5: 312.591 | HD5: 316.876 | HE5: 290.34 | HF5: 264.324 | HG5: 275.81 | HH5: 320.348 | HI5: 438.17 | HJ5: 450.811 | HK5: 417.322 | HL5: 278.773 | HM5: 249.215 | HN5: 267.47 | HO5: 313.457 | HP5: 317.755 | HQ5: 291.139 | HR5: 265.045 | HS5: 276.566 | HT5: 321.237 | HU5: 439.413 | HV5: 452.092 | HW5: 418.502 | HX5: 279.537 | HY5: 249.891 | HZ5: 268.2 | IA5: 314.325 | IB5: 318.636 | IC5: 291.941 | ID5: 265.768 | IE5: 277.324 | IF5: 322.129 | IG5: 440.659 | IH5: 453.376 | II5: 419.685 | IJ5: 280.304
A6: 0 | B6: 10025 | C6: Benton REA | D6: =VLOOKUP(B6,TOCA!$B$3:$E$137,4,FALSE) -> 0 | E6: 88.278 | F6: 96.661 | G6: 95.101 | H6: 98.483 | I6: 93.882 | J6: 82.053 | K6: 91.517 | L6: 96.816 | M6: 120.441 | N6: 130.583 | O6: 128.492 | P6: 117.882 | Q6: 104.394 | R6: 97.055 | S6: 80.68 | T6: 90.179 | U6: 102.645 | V6: 113.348 | W6: 130.186 | X6: 124.419 | Y6: 110.05 | Z6: 85.127 | AA6: 85.577 | AB6: 99.02 | AC6: 78.985 | AD6: 77.415 | AE6: 94.23 | AF6: 96.668 | AG6: 89.349 | AH6: 74.115 | AI6: 81.122 | AJ6: 92.519 | AK6: 99.42 | AL6: 114.48 | AM6: 105.454 | AN6: 90.146 | AO6: 80.255 | AP6: 78.685 | AQ6: 95.7 | AR6: 98.208 | AS6: 90.769 | AT6: 75.285 | AU6: 82.442 | AV6: 93.999 | AW6: 101.11 | AX6: 116.43 | AY6: 107.314 | AZ6: 91.756 | BA6: 81.95 | BB6: 81.004 | BC6: 95.02 | BD6: 94.354 | BE6: 88.867 | BF6: 75.428 | BG6: 84.355 | BH6: 96.408 | BI6: 109.85 | BJ6: 123.921 | BK6: 120.948 | BL6: 100.843 | BM6: 84.342 | BN6: 83.415 | BO6: 97.447 | BP6: 96.739 | BQ6: 91.246 | BR6: 77.69 | BS6: 86.588 | BT6: 98.66 | BU6: 112.105 | BV6: 126.16 | BW6: 123.117 | BX6: 102.866 | BY6: 75.679 | BZ6: 77.752 | CA6: 101.164 | CB6: 97.249 | CC6: 82.614 | CD6: 78.659 | CE6: 76.755 | CF6: 94.081 | CG6: 110.904 | CH6: 121.033 | CI6: 118.319 | CJ6: 94.761 | CK6: 77.436 | CL6: 79.529 | CM6: 103.174 | CN6: 98.209 | CO6: 83.435 | CP6: 79.432 | CQ6: 77.516 | CR6: 95.015 | CS6: 111.996 | CT6: 122.235 | CU6: 119.493 | CV6: 95.699 | CW6: 73.454 | CX6: 75.4 | CY6: 98.027 | CZ6: 93.184 | DA6: 78.953 | DB6: 75.062 | DC6: 73.165 | DD6: 89.821 | DE6: 105.962 | DF6: 115.638 | DG6: 112.926 | DH6: 90.181 | DI6: 90.936 | DJ6: 86.631 | DK6: 115.833 | DL6: 117.844 | DM6: 95.327 | DN6: 92.494 | DO6: 88.368 | DP6: 101.124 | DQ6: 119.674 | DR6: 124.865 | DS6: 122.483 | DT6: 105.605 | DU6: 91.599 | DV6: 87.262 | DW6: 116.683 | DX6: 118.709 | DY6: 96.023 | DZ6: 93.168 | EA6: 89.012 | EB6: 101.864 | EC6: 120.553 | ED6: 125.783 | EE6: 123.383 | EF6: 106.379 | EG6: 92.267 | EH6: 87.898 | EI6: 117.54 | EJ6: 119.581 | EK6: 96.724 | EL6: 93.849 | EM6: 89.661 | EN6: 102.609 | EO6: 121.438 | EP6: 126.707 | EQ6: 124.29 | ER6: 107.158 | ES6: 92.941 | ET6: 88.538 | EU6: 118.402 | EV6: 120.459 | EW6: 96.759 | EX6: 94.534 | EY6: 90.315 | EZ6: 103.36 | FA6: 122.33 | FB6: 127.639 | FC6: 125.203 | FD6: 107.943 | FE6: 93.619 | FF6: 89.184 | FG6: 119.272 | FH6: 121.343 | FI6: 98.143 | FJ6: 95.224 | FK6: 90.974 | FL6: 104.116 | FM6: 123.229 | FN6: 128.577 | FO6: 126.123 | FP6: 108.734 | FQ6: 94.302 | FR6: 89.834 | FS6: 120.147 | FT6: 122.235 | FU6: 98.86 | FV6: 95.919 | FW6: 91.637 | FX6: 104.878 | FY6: 124.135 | FZ6: 129.523 | GA6: 127.05 | GB6: 109.53 | GC6: 94.991 | GD6: 90.489 | GE6: 121.03 | GF6: 123.133 | GG6: 99.583 | GH6: 96.62 | GI6: 92.306 | GJ6: 105.646 | GK6: 125.047 | GL6: 130.476 | GM6: 127.985 | GN6: 110.333 | GO6: 95.685 | GP6: 91.149 | GQ6: 121.919 | GR6: 124.037 | GS6: 99.619 | GT6: 97.326 | GU6: 92.979 | GV6: 106.42 | GW6: 125.966 | GX6: 131.435 | GY6: 128.926 | GZ6: 111.142 | HA6: 96.384 | HB6: 91.813 | HC6: 122.814 | HD6: 124.949 | HE6: 101.045 | HF6: 98.037 | HG6: 93.658 | HH6: 107.199 | HI6: 126.892 | HJ6: 132.402 | HK6: 129.874 | HL6: 111.957 | HM6: 97.088 | HN6: 92.483 | HO6: 123.717 | HP6: 125.867 | HQ6: 101.784 | HR6: 98.754 | HS6: 94.342 | HT6: 107.985 | HU6: 127.825 | HV6: 133.377 | HW6: 130.829 | HX6: 112.778 | HY6: 97.797 | HZ6: 93.158 | IA6: 124.626 | IB6: 126.793 | IC6: 102.528 | ID6: 99.475 | IE6: 95.03 | IF6: 108.776 | IG6: 128.765 | IH6: 134.358 | II6: 131.792 | IJ6: 113.605
A7: 0 | B7: 10027 | C7: Big Bend Elec Coop | D7: =VLOOKUP(B7,TOCA!$B$3:$E$137,4,FALSE) -> 0 | E7: 71.7 | F7: 46 | G7: 51.5 | H7: 51.2 | I7: 46.2 | J7: 42.8 | K7: 78.8 | L7: 111.5 | M7: 128.6 | N7: 131.1 | O7: 121.7 | P7: 105.9 | Q7: 53.178 | R7: 49.483 | S7: 47.529 | T7: 82.703 | U7: 115.435 | V7: 132.241 | W7: 135.062 | X7: 125.324 | Y7: 108.328 | Z7: 74.193 | AA7: 48.731 | AB7: 54.745 | AC7: 73.882 | AD7: 49.47 | AE7: 55.472 | AF7: 53.89 | AG7: 50.236 | AH7: 48.282 | AI7: 82.019 | AJ7: 113.798 | AK7: 130.201 | AL7: 132.631 | AM7: 123.367 | AN7: 107.057 | AO7: 74.691 | AP7: 50.279 | AQ7: 56.282 | AR7: 54.7 | AS7: 51.045 | AT7: 49.091 | AU7: 82.828 | AV7: 114.608 | AW7: 131.01 | AX7: 133.44 | AY7: 124.176 | AZ7: 107.866 | BA7: 80.942 | BB7: 56.193 | BC7: 62.265 | BD7: 61.78 | BE7: 55.899 | BF7: 56.741 | BG7: 90.161 | BH7: 120.134 | BI7: 137.036 | BJ7: 136.268 | BK7: 128.725 | BL7: 111.741 | BM7: 81.885 | BN7: 57.136 | BO7: 63.208 | BP7: 62.724 | BQ7: 56.842 | BR7: 57.684 | BS7: 91.104 | BT7: 121.078 | BU7: 137.979 | BV7: 137.211 | BW7: 129.668 | BX7: 112.684 | BY7: 79.995 | BZ7: 52.888 | CA7: 61.719 | CB7: 58.185 | CC7: 54.871 | CD7: 53.083 | CE7: 90.97 | CF7: 127.443 | CG7: 141.189 | CH7: 138.382 | CI7: 130.772 | CJ7: 109.596 | CK7: 80.79 | CL7: 53.684 | CM7: 62.515 | CN7: 58.981 | CO7: 55.666 | CP7: 53.878 | CQ7: 91.765 | CR7: 128.238 | CS7: 141.984 | CT7: 139.177 | CU7: 131.567 | CV7: 110.391 | CW7: 81.585 | CX7: 54.479 | CY7: 63.31 | CZ7: 59.776 | DA7: 56.461 | DB7: 54.673 | DC7: 92.561 | DD7: 129.034 | DE7: 142.779 | DF7: 139.972 | DG7: 132.362 | DH7: 111.187 | DI7: 81.028 | DJ7: 53.266 | DK7: 62.102 | DL7: 58.576 | DM7: 55.095 | DN7: 53.466 | DO7: 92.244 | DP7: 129.304 | DQ7: 143.158 | DR7: 140.756 | DS7: 132.834 | DT7: 111.17 | DU7: 83.539 | DV7: 59.111 | DW7: 68.052 | DX7: 73.45 | DY7: 61.946 | DZ7: 57.441 | EA7: 87.387 | EB7: 126.24 | EC7: 146.156 | ED7: 151.953 | EE7: 140.161 | EF7: 101.174 | EG7: 85.065 | EH7: 60.191 | EI7: 69.295 | EJ7: 74.792 | EK7: 63.078 | EL7: 58.49 | EM7: 88.984 | EN7: 128.547 | EO7: 148.827 | EP7: 154.73 | EQ7: 142.723 | ER7: 103.023 | ES7: 86.356 | ET7: 61.104 | EU7: 70.347 | EV7: 75.927 | EW7: 64.036 | EX7: 59.378 | EY7: 90.334 | EZ7: 130.497 | FA7: 151.085 | FB7: 157.077 | FC7: 144.888 | FD7: 104.586 | FE7: 86.762 | FF7: 61.391 | FG7: 70.677 | FH7: 76.284 | FI7: 64.336 | FJ7: 59.657 | FK7: 90.759 | FL7: 131.111 | FM7: 151.796 | FN7: 157.816 | FO7: 145.569 | FP7: 105.078 | FQ7: 87.169 | FR7: 61.68 | FS7: 71.01 | FT7: 76.642 | FU7: 64.639 | FV7: 59.937 | FW7: 91.185 | FX7: 131.727 | FY7: 152.509 | FZ7: 158.557 | GA7: 146.253 | GB7: 105.572 | GC7: 87.579 | GD7: 61.97 | GE7: 71.343 | GF7: 77.002 | GG7: 64.943 | GH7: 60.219 | GI7: 91.614 | GJ7: 132.346 | GK7: 153.226 | GL7: 159.303 | GM7: 146.94 | GN7: 106.068 | GO7: 87.991 | GP7: 62.261 | GQ7: 71.679 | GR7: 77.364 | GS7: 65.248 | GT7: 60.502 | GU7: 92.044 | GV7: 132.968 | GW7: 153.946 | GX7: 160.051 | GY7: 147.631 | GZ7: 106.566 | HA7: 88.404 | HB7: 62.554 | HC7: 72.015 | HD7: 77.728 | HE7: 65.554 | HF7: 60.786 | HG7: 92.477 | HH7: 133.593 | HI7: 154.669 | HJ7: 160.804 | HK7: 148.325 | HL7: 107.067 | HM7: 88.82 | HN7: 62.848 | HO7: 72.354 | HP7: 78.093 | HQ7: 65.862 | HR7: 61.073 | HS7: 92.912 | HT7: 134.221 | HU7: 155.396 | HV7: 161.559 | HW7: 149.022 | HX7: 107.57 | HY7: 89.237 | HZ7: 63.143 | IA7: 72.694 | IB7: 78.46 | IC7: 66.172 | ID7: 61.36 | IE7: 93.348 | IF7: 134.852 | IG7: 156.127 | IH7: 162.319 | II7: 149.722 | IJ7: 108.076
... 8 more rows

Sheet I_CDQ
B1: Customer Demand Quantity (MW)
A2: TOC
B3: BESID | C3: AccountName | D3: 10 | E3: 11 | F3: 12 | G3: 1 | H3: =+G3+1 -> 2 | I3: =+H3+1 -> 3 | J3: 4 | K3: 5 | L3: 6 | M3: 7 | N3: 8 | O3: 9
B4: 10015 | C4: Asotin County PUD #1 | D4: 0.914 | E4: 1.084 | F4: 0.942 | G4: 0.875 | H4: 0.846 | I4: 0.763 | J4: 0.617 | K4: 0.897 | L4: 1.271 | M4: 1.015 | N4: 1.404 | O4: 1.037
B5: 10024 | C5: Benton County PUD #1 | D5: 39.696 | E5: 57.259 | F5: 45.258 | G5: 64.307 | H5: 77.589 | I5: 45.642 | J5: 38.215 | K5: 92.689 | L5: 76.249 | M5: 43.356 | N5: 66.886 | O5: 56.635
B6: 10025 | C6: Benton REA | D6: 10.082 | E6: 18.416 | F6: 14.592 | G6: 19.351 | H6: 24.799 | I6: 20.215 | J6: 21.046 | K6: 18.058 | L6: 15.269 | M6: 8.356 | N6: 10.485 | O6: 12.275
B7: 10027 | C7: Big Bend Elec Coop | D7: 11.759 | E7: 8.462 | F7: 6.63 | G7: 7.721 | H7: 11.915 | I7: 10.442 | J7: 15.145 | K7: 25.016 | L7: 15.09 | M7: 6.424 | N7: 4.755 | O7: 14.824
... 8 more rows

Sheet I_NLSL
B1: New Large Single Loads (self-supplied) (MWh)
A2: TOC | D2: 2015-10-01 | E2: 2015-10-01 | F2: 2015-11-01 | G2: 2015-11-01 | H2: 2015-12-01 | I2: 2015-12-01 | J2: 2016-01-01 | K2: 2016-01-01 | L2: 2016-02-01 | M2: 2016-02-01 | N2: 2016-03-01 | O2: 2016-03-01 | P2: 2016-04-01 | Q2: 2016-04-01 | R2: 2016-05-01 | S2: 2016-05-01 | T2: 2016-06-01 | U2: 2016-06-01 | V2: 2016-07-01 | W2: 2016-07-01 | X2: 2016-08-01 | Y2: 2016-08-01 | Z2: 2016-09-01 | AA2: 2016-09-01 | AB2: 2016-10-01 | AC2: 2016-10-01 | AD2: 2016-11-01 | AE2: 2016-11-01 | AF2: 2016-12-01 | AG2: 2016-12-01 | AH2: 2017-01-01 | AI2: 2017-01-01 | AJ2: 2017-02-01 | AK2: 2017-02-01 | AL2: 2017-03-01 | AM2: 2017-03-01 | AN2: 2017-04-01 | AO2: 2017-04-01 | AP2: 2017-05-01 | AQ2: 2017-05-01 | AR2: 2017-06-01 | AS2: 2017-06-01 | AT2: 2017-07-01 | AU2: 2017-07-01 | AV2: 2017-08-01 | AW2: 2017-08-01 | AX2: 2017-09-01 | AY2: 2017-09-01 | AZ2: 2017-10-01 | BA2: 2017-10-01 | BB2: 2017-11-01 | BC2: 2017-11-01 | BD2: 2017-12-01 | BE2: 2017-12-01 | BF2: 2018-01-01 | BG2: 2018-01-01 | BH2: 2018-02-01 | BI2: 2018-02-01 | BJ2: 2018-03-01 | BK2: 2018-03-01 | BL2: 2018-04-01 | BM2: 2018-04-01 | BN2: 2018-05-01 | BO2: 2018-05-01 | BP2: 2018-06-01 | BQ2: 2018-06-01 | BR2: 2018-07-01 | BS2: 2018-07-01 | BT2: 2018-08-01 | BU2: 2018-08-01 | BV2: 2018-09-01 | BW2: 2018-09-01 | BX2: 2018-10-01 | BY2: 2018-10-01 | BZ2: 2018-11-01 | CA2: 2018-11-01 | CB2: 2018-12-01 | CC2: 2018-12-01 | CD2: 2019-01-01 | CE2: 2019-01-01 | CF2: 2019-02-01 | CG2: 2019-02-01 | CH2: 2019-03-01 | CI2: 2019-03-01 | CJ2: 2019-04-01 | CK2: 2019-04-01 | CL2: 2019-05-01 | CM2: 2019-05-01 | CN2: 2019-06-01 | CO2: 2019-06-01 | CP2: 2019-07-01 | CQ2: 2019-07-01 | CR2: 2019-08-01 | CS2: 2019-08-01 | CT2: 2019-09-01 | CU2: 2019-09-01 | CV2: 2019-10-01 | CW2: 2019-10-01 | CX2: 2019-11-01 | CY2: 2019-11-01 | CZ2: 2019-12-01 | DA2: 2019-12-01 | DB2: 2020-01-01 | DC2: 2020-01-01 | DD2: 2020-02-01 | DE2: 2020-02-01 | DF2: 2020-03-01 | DG2: 2020-03-01 | DH2: 2020-04-01 | DI2: 2020-04-01 | DJ2: 2020-05-01 | DK2: 2020-05-01 | DL2: 2020-06-01 | DM2: 2020-06-01 | DN2: 2020-07-01 | DO2: 2020-07-01 | DP2: 2020-08-01 | DQ2: 2020-08-01 | DR2: 2020-09-01 | DS2: 2020-09-01 | DT2: 2020-10-01 | DU2: 2020-10-01 | DV2: 2020-11-01 | DW2: 2020-11-01 | DX2: 2020-12-01 | DY2: 2020-12-01 | DZ2: 2021-01-01 | EA2: 2021-01-01 | EB2: 2021-02-01 | EC2: 2021-02-01 | ED2: 2021-03-01 | EE2: 2021-03-01 | EF2: 2021-04-01 | EG2: 2021-04-01 | EH2: 2021-05-01 | EI2: 2021-05-01 | EJ2: 2021-06-01 | EK2: 2021-06-01 | EL2: 2021-07-01 | EM2: 2021-07-01 | EN2: 2021-08-01 | EO2: 2021-08-01 | EP2: 2021-09-01 | EQ2: 2021-09-01 | ER2: 2021-10-01 | ES2: 2021-10-01 | ET2: 2021-11-01 | EU2: 2021-11-01 | EV2: 2021-12-01 | EW2: 2021-12-01 | EX2: 2022-01-01 | EY2: 2022-01-01 | EZ2: 2022-02-01 | FA2: 2022-02-01 | FB2: 2022-03-01 | FC2: 2022-03-01 | FD2: 2022-04-01 | FE2: 2022-04-01 | FF2: 2022-05-01 | FG2: 2022-05-01 | FH2: 2022-06-01 | FI2: 2022-06-01 | FJ2: 2022-07-01 | FK2: 2022-07-01 | FL2: 2022-08-01 | FM2: 2022-08-01 | FN2: 2022-09-01 | FO2: 2022-09-01 | FP2: 2022-10-01 | FQ2: 2022-10-01 | FR2: 2022-11-01 | FS2: 2022-11-01 | FT2: 2022-12-01 | FU2: 2022-12-01 | FV2: 2023-01-01 | FW2: 2023-01-01 | FX2: 2023-02-01 | FY2: 2023-02-01 | FZ2: 2023-03-01 | GA2: 2023-03-01 | GB2: 2023-04-01 | GC2: 2023-04-01 | GD2: 2023-05-01 | GE2: 2023-05-01 | GF2: 2023-06-01 | GG2: 2023-06-01 | GH2: 2023-07-01 | GI2: 2023-07-01 | GJ2: 2023-08-01 | GK2: 2023-08-01 | GL2: 2023-09-01 | GM2: 2023-09-01 | GN2: 2023-10-01 | GO2: 2023-10-01 | GP2: 2023-11-01 | GQ2: 2023-11-01 | GR2: 2023-12-01 | GS2: 2023-12-01 | GT2: 2024-01-01 | GU2: 2024-01-01 | GV2: 2024-02-01 | GW2: 2024-02-01 | GX2: 2024-03-01 | GY2: 2024-03-01 | GZ2: 2024-04-01 | HA2: 2024-04-01 | HB2: 2024-05-01 | HC2: 2024-05-01 | HD2: 2024-06-01 | HE2: 2024-06-01 | HF2: 2024-07-01 | HG2: 2024-07-01 | HH2: 2024-08-01 | HI2: 2024-08-01 | HJ2: 2024-09-01 | HK2: 2024-09-01 | HL2: 2024-10-01 | HM2: 2024-10-01 | HN2: 2024-11-01 | HO2: 2024-11-01 | HP2: 2024-12-01 | HQ2: 2024-12-01 | HR2: 2025-01-01 | HS2: 2025-01-01 | HT2: 2025-02-01 | HU2: 2025-02-01 | HV2: 2025-03-01 | HW2: 2025-03-01 | HX2: 2025-04-01 | HY2: 2025-04-01 | HZ2: 2025-05-01 | IA2: 2025-05-01 | IB2: 2025-06-01 | IC2: 2025-06-01 | ID2: 2025-07-01 | IE2: 2025-07-01 | IF2: 2025-08-01 | IG2: 2025-08-01 | IH2: 2025-09-01 | II2: 2025-09-01 | IJ2: 2025-10-01 | IK2: 2025-10-01 | IL2: 2025-11-01 | IM2: 2025-11-01 | IN2: 2025-12-01 | IO2: 2025-12-01 | IP2: 2026-01-01 | IQ2: 2026-01-01 | IR2: 2026-02-01 | IS2: 2026-02-01 | IT2: 2026-03-01 | IU2: 2026-03-01 | IV2: 2026-04-01 | IW2: 2026-04-01 | IX2: 2026-05-01 | IY2: 2026-05-01 | IZ2: 2026-06-01 | JA2: 2026-06-01 | JB2: 2026-07-01 | JC2: 2026-07-01 | JD2: 2026-08-01 | JE2: 2026-08-01 | JF2: 2026-09-01 | JG2: 2026-09-01 | JH2: 2026-10-01 | JI2: 2026-10-01 | JJ2: 2026-11-01 | JK2: 2026-11-01 | JL2: 2026-12-01 | JM2: 2026-12-01 | JN2: 2027-01-01 | JO2: 2027-01-01 | JP2: 2027-02-01 | JQ2: 2027-02-01 | JR2: 2027-03-01 | JS2: 2027-03-01 | JT2: 2027-04-01 | JU2: 2027-04-01 | JV2: 2027-05-01 | JW2: 2027-05-01 | JX2: 2027-06-01 | JY2: 2027-06-01 | JZ2: 2027-07-01 | KA2: 2027-07-01 | KB2: 2027-08-01 | KC2: 2027-08-01 | KD2: 2027-09-01 | KE2: 2027-09-01 | KF2: 2027-10-01 | KG2: 2027-10-01 | KH2: 2027-11-01 | KI2: 2027-11-01 | KJ2: 2027-12-01 | KK2: 2027-12-01 | KL2: 2028-01-01 | KM2: 2028-01-01 | KN2: 2028-02-01 | KO2: 2028-02-01 | KP2: 2028-03-01 | KQ2: 2028-03-01 | KR2: 2028-04-01 | KS2: 2028-04-01 | KT2: 2028-05-01 | KU2: 2028-05-01 | KV2: 2028-06-01 | KW2: 2028-06-01 | KX2: 2028-07-01 | KY2: 2028-07-01 | KZ2: 2028-08-01 | LA2: 2028-08-01 | LB2: 2028-09-01 | LC2: 2028-09-01 | LD2: 2028-10-01 | LE2: 2028-10-01 | LF2: 2028-11-01 | LG2: 2028-11-01 | LH2: 2028-12-01 | LI2: 2028-12-01 | LJ2: 2029-01-01 | LK2: 2029-01-01 | LL2: 2029-02-01 | LM2: 2029-02-01 | LN2: 2029-03-01 | LO2: 2029-03-01 | LP2: 2029-04-01 | LQ2: 2029-04-01 | LR2: 2029-05-01 | LS2: 2029-05-01 | LT2: 2029-06-01 | LU2: 2029-06-01 | LV2: 2029-07-01 | LW2: 2029-07-01 | LX2: 2029-08-01 | LY2: 2029-08-01 | LZ2: 2029-09-01 | MA2: 2029-09-01 | MB2: 2029-10-01 | MC2: 2029-10-01 | MD2: 2029-11-01 | ME2: 2029-11-01 | MF2: 2029-12-01 | MG2: 2029-12-01 | MH2: 2030-01-01 | MI2: 2030-01-01 | MJ2: 2030-02-01 | MK2: 2030-02-01 | ML2: 2030-03-01 | MM2: 2030-03-01 | MN2: 2030-04-01 | MO2: 2030-04-01 | MP2: 2030-05-01 | MQ2: 2030-05-01 | MR2: 2030-06-01 | MS2: 2030-06-01 | MT2: 2030-07-01 | MU2: 2030-07-01 | MV2: 2030-08-01 | MW2: 2030-08-01 | MX2: 2030-09-01 | MY2: 2030-09-01 | MZ2: 2030-10-01 | NA2: 2030-10-01 | NB2: 2030-11-01 | NC2: 2030-11-01 | ND2: 2030-12-01 | NE2: 2030-12-01 | NF2: 2031-01-01 | NG2: 2031-01-01 | NH2: 2031-02-01 | NI2: 2031-02-01 | NJ2: 2031-03-01 | NK2: 2031-03-01 | NL2: 2031-04-01 | NM2: 2031-04-01 | NN2: 2031-05-01 | NO2: 2031-05-01 | NP2: 2031-06-01 | NQ2: 2031-06-01 | NR2: 2031-07-01 | NS2: 2031-07-01 | NT2: 2031-08-01 | NU2: 2031-08-01 | NV2: 2031-09-01 | NW2: 2031-09-01 | NX2: =DATE(YEAR(NV2),MONTH(NV2)+1,1) -> 2031-10-01 | NY2: 2031-10-01 | NZ2: 2031-11-01 | OA2: 2031-11-01 | OB2: 2031-12-01 | OC2: 2031-12-01 | OD2: 2032-01-01 | OE2: 2032-01-01 | OF2: 2032-02-01 | OG2: 2032-02-01 | OH2: 2032-03-01 | OI2: 2032-03-01 | OJ2: 2032-04-01 | OK2: 2032-04-01 | OL2: 2032-05-01 | OM2: 2032-05-01 | ON2: 2032-06-01 | OO2: 2032-06-01 | OP2: 2032-07-01 | OQ2: 2032-07-01 | OR2: 2032-08-01 | OS2: 2032-08-01 | OT2: 2032-09-01 | OU2: 2032-09-01 | OV2: 2032-10-01 | OW2: 2032-10-01 | OX2: 2032-11-01 | OY2: 2032-11-01 | OZ2: 2032-12-01 | PA2: 2032-12-01 | PB2: 2033-01-01 | PC2: 2033-01-01 | PD2: 2033-02-01 | PE2: 2033-02-01 | PF2: 2033-03-01 | PG2: 2033-03-01 | PH2: 2033-04-01 | PI2: 2033-04-01 | PJ2: 2033-05-01 | PK2: 2033-05-01 | PL2: 2033-06-01 | PM2: 2033-06-01 | PN2: 2033-07-01 | PO2: 2033-07-01 | PP2: 2033-08-01 | PQ2: 2033-08-01 | PR2: 2033-09-01 | PS2: 2033-09-01 | PT2: 2033-10-01 | PU2: 2033-10-01 | PV2: 2033-11-01 | PW2: 2033-11-01 | PX2: 2033-12-01 | PY2: 2033-12-01 | PZ2: 2034-01-01 | QA2: 2034-01-01 | QB2: 2034-02-01 | QC2: 2034-02-01 | QD2: 2034-03-01 | QE2: 2034-03-01 | QF2: 2034-04-01 | QG2: 2034-04-01 | QH2: 2034-05-01 | QI2: 2034-05-01 | QJ2: 2034-06-01 | QK2: 2034-06-01 | QL2: 2034-07-01 | QM2: 2034-07-01 | QN2: 2034-08-01 | QO2: 2034-08-01 | QP2: 2034-09-01 | QQ2: 2034-09-01 | QR2: 2034-10-01 | QS2: 2034-10-01 | QT2: 2034-11-01 | QU2: 2034-11-01 | QV2: 2034-12-01 | QW2: 2034-12-01 | QX2: 2035-01-01 | QY2: 2035-01-01 | QZ2: 2035-02-01 | RA2: 2035-02-01 | RB2: 2035-03-01 | RC2: 2035-03-01 | RD2: 2035-04-01 | RE2: 2035-04-01 | RF2: 2035-05-01 | RG2: 2035-05-01 | RH2: 2035-06-01 | RI2: 2035-06-01 | RJ2: 2035-07-01 | RK2: 2035-07-01 | RL2: 2035-08-01 | RM2: 2035-08-01 | RN2: 2035-09-01 | RO2: 2035-09-01 | RQ2: 2016 | RR2: 2017 | RS2: 2018 | RT2: 2019 | RU2: 2020 | RV2: 2021 | RW2: 2022 | RX2: 2023 | RY2: 2024 | RZ2: 2025 | SA2: 2026 | SB2: 2027 | SC2: 2028 | SD2: 2029 | SE2: 2030 | SF2: 2031 | SG2: 2032 | SH2: 2033 | SI2: 2034 | SJ2: 2035
B3: BESID | C3: AccountName | D3: HLH | E3: LLH | F3: HLH | G3: LLH | H3: HLH | I3: LLH | J3: HLH | K3: LLH | L3: HLH | M3: LLH | N3: HLH | O3: LLH | P3: HLH | Q3: LLH | R3: HLH | S3: LLH | T3: HLH | U3: LLH | V3: HLH | W3: LLH | X3: HLH | Y3: LLH | Z3: HLH | AA3: LLH | AB3: HLH | AC3: LLH | AD3: HLH | AE3: LLH | AF3: HLH | AG3: LLH | AH3: HLH | AI3: LLH | AJ3: HLH | AK3: LLH | AL3: HLH | AM3: LLH | AN3: HLH | AO3: LLH | AP3: HLH | AQ3: LLH | AR3: HLH | AS3: LLH | AT3: HLH | AU3: LLH | AV3: HLH | AW3: LLH | AX3: HLH | AY3: LLH | AZ3: HLH | BA3: LLH | BB3: HLH | BC3: LLH | BD3: HLH | BE3: LLH | BF3: HLH | BG3: LLH | BH3: HLH | BI3: LLH | BJ3: HLH | BK3: LLH | BL3: HLH | BM3: LLH | BN3: HLH | BO3: LLH | BP3: HLH | BQ3: LLH | BR3: HLH | BS3: LLH | BT3: HLH | BU3: LLH | BV3: HLH | BW3: LLH | BX3: HLH | BY3: LLH | BZ3: HLH | CA3: LLH | CB3: HLH | CC3: LLH | CD3: HLH | CE3: LLH | CF3: HLH | CG3: LLH | CH3: HLH | CI3: LLH | CJ3: HLH | CK3: LLH | CL3: HLH | CM3: LLH | CN3: HLH | CO3: LLH | CP3: HLH | CQ3: LLH | CR3: HLH | CS3: LLH | CT3: HLH | CU3: LLH | CV3: HLH | CW3: LLH | CX3: HLH | CY3: LLH | CZ3: HLH | DA3: LLH | DB3: HLH | DC3: LLH | DD3: HLH | DE3: LLH | DF3: HLH | DG3: LLH | DH3: HLH | DI3: LLH | DJ3: HLH | DK3: LLH | DL3: HLH | DM3: LLH | DN3: HLH | DO3: LLH | DP3: HLH | DQ3: LLH | DR3: HLH | DS3: LLH | DT3: HLH | DU3: LLH | DV3: HLH | DW3: LLH | DX3: HLH | DY3: LLH | DZ3: HLH | EA3: LLH | EB3: HLH | EC3: LLH | ED3: HLH | EE3: LLH | EF3: HLH | EG3: LLH | EH3: HLH | EI3: LLH | EJ3: HLH | EK3: LLH | EL3: HLH | EM3: LLH | EN3: HLH | EO3: LLH | EP3: HLH | EQ3: LLH | ER3: HLH | ES3: LLH | ET3: HLH | EU3: LLH | EV3: HLH | EW3: LLH | EX3: HLH | EY3: LLH | EZ3: HLH | FA3: LLH | FB3: HLH | FC3: LLH | FD3: HLH | FE3: LLH | FF3: HLH | FG3: LLH | FH3: HLH | FI3: LLH | FJ3: HLH | FK3: LLH | FL3: HLH | FM3: LLH | FN3: HLH | FO3: LLH | FP3: HLH | FQ3: LLH | FR3: HLH | FS3: LLH | FT3: HLH | FU3: LLH | FV3: HLH | FW3: LLH | FX3: HLH | FY3: LLH | FZ3: HLH | GA3: LLH | GB3: HLH | GC3: LLH | GD3: HLH | GE3: LLH | GF3: HLH | GG3: LLH | GH3: HLH | GI3: LLH | GJ3: HLH | GK3: LLH | GL3: HLH | GM3: LLH | GN3: HLH | GO3: LLH | GP3: HLH | GQ3: LLH | GR3: HLH | GS3: LLH | GT3: HLH | GU3: LLH | GV3: HLH | GW3: LLH | GX3: HLH | GY3: LLH | GZ3: HLH | HA3: LLH | HB3: HLH | HC3: LLH | HD3: HLH | HE3: LLH | HF3: HLH | HG3: LLH | HH3: HLH | HI3: LLH | HJ3: HLH | HK3: LLH | HL3: HLH | HM3: LLH | HN3: HLH | HO3: LLH | HP3: HLH | HQ3: LLH | HR3: HLH | HS3: LLH | HT3: HLH | HU3: LLH | HV3: HLH | HW3: LLH | HX3: HLH | HY3: LLH | HZ3: HLH | IA3: LLH | IB3: HLH | IC3: LLH | ID3: HLH | IE3: LLH | IF3: HLH | IG3: LLH | IH3: HLH | II3: LLH | IJ3: HLH | IK3: LLH | IL3: HLH | IM3: LLH | IN3: HLH | IO3: LLH | IP3: HLH | IQ3: LLH | IR3: HLH | IS3: LLH | IT3: HLH | IU3: LLH | IV3: HLH | IW3: LLH | IX3: HLH | IY3: LLH | IZ3: HLH | JA3: LLH | JB3: HLH | JC3: LLH | JD3: HLH | JE3: LLH | JF3: HLH | JG3: LLH | JH3: HLH | JI3: LLH | JJ3: HLH | JK3: LLH | JL3: HLH | JM3: LLH | JN3: HLH | JO3: LLH | JP3: HLH | JQ3: LLH | JR3: HLH | JS3: LLH | JT3: HLH | JU3: LLH | JV3: HLH | JW3: LLH | JX3: HLH | JY3: LLH | JZ3: HLH | KA3: LLH | KB3: HLH | KC3: LLH | KD3: HLH | KE3: LLH | KF3: HLH | KG3: LLH | KH3: HLH | KI3: LLH | KJ3: HLH | KK3: LLH | KL3: HLH | KM3: LLH | KN3: HLH | KO3: LLH | KP3: HLH | KQ3: LLH | KR3: HLH | KS3: LLH | KT3: HLH | KU3: LLH | KV3: HLH | KW3: LLH | KX3: HLH | KY3: LLH | KZ3: HLH | LA3: LLH | LB3: HLH | LC3: LLH | LD3: HLH | LE3: LLH | LF3: HLH | LG3: LLH | LH3: HLH | LI3: LLH | LJ3: HLH | LK3: LLH | LL3: HLH | LM3: LLH | LN3: HLH | LO3: LLH | LP3: HLH | LQ3: LLH | LR3: HLH | LS3: LLH | LT3: HLH | LU3: LLH | LV3: HLH | LW3: LLH | LX3: HLH | LY3: LLH | LZ3: HLH | MA3: LLH | MB3: HLH | MC3: LLH | MD3: HLH | ME3: LLH | MF3: HLH | MG3: LLH | MH3: HLH | MI3: LLH | MJ3: HLH | MK3: LLH | ML3: HLH | MM3: LLH | MN3: HLH | MO3: LLH | MP3: HLH | MQ3: LLH | MR3: HLH | MS3: LLH | MT3: HLH | MU3: LLH | MV3: HLH | MW3: LLH | MX3: HLH | MY3: LLH | MZ3: HLH | NA3: LLH | NB3: HLH | NC3: LLH | ND3: HLH | NE3: LLH | NF3: HLH | NG3: LLH | NH3: HLH | NI3: LLH | NJ3: HLH | NK3: LLH | NL3: HLH | NM3: LLH | NN3: HLH | NO3: LLH | NP3: HLH | NQ3: LLH | NR3: HLH | NS3: LLH | NT3: HLH | NU3: LLH | NV3: HLH | NW3: LLH | NX3: HLH | NY3: LLH | NZ3: HLH | OA3: LLH | OB3: HLH | OC3: LLH | OD3: HLH | OE3: LLH | OF3: HLH | OG3: LLH | OH3: HLH | OI3: LLH | OJ3: HLH | OK3: LLH | OL3: HLH | OM3: LLH | ON3: HLH | OO3: LLH | OP3: HLH | OQ3: LLH | OR3: HLH | OS3: LLH | OT3: HLH | OU3: LLH | OV3: HLH | OW3: LLH | OX3: HLH | OY3: LLH | OZ3: HLH | PA3: LLH | PB3: HLH | PC3: LLH | PD3: HLH | PE3: LLH | PF3: HLH | PG3: LLH | PH3: HLH | PI3: LLH | PJ3: HLH | PK3: LLH | PL3: HLH | PM3: LLH | PN3: HLH | PO3: LLH | PP3: HLH | PQ3: LLH | PR3: HLH | PS3: LLH | PT3: HLH | PU3: LLH | PV3: HLH | PW3: LLH | PX3: HLH | PY3: LLH | PZ3: HLH | QA3: LLH | QB3: HLH | QC3: LLH | QD3: HLH | QE3: LLH | QF3: HLH | QG3: LLH | QH3: HLH | QI3: LLH | QJ3: HLH | QK3: LLH | QL3: HLH | QM3: LLH | QN3: HLH | QO3: LLH | QP3: HLH | QQ3: LLH | QR3: HLH | QS3: LLH | QT3: HLH | QU3: LLH | QV3: HLH | QW3: LLH | QX3: HLH | QY3: LLH | QZ3: HLH | RA3: LLH | RB3: HLH | RC3: LLH | RD3: HLH | RE3: LLH | RF3: HLH | RG3: LLH | RH3: HLH | RI3: LLH | RJ3: HLH | RK3: LLH | RL3: HLH | RM3: LLH | RN3: HLH | RO3: LLH
B4: 10015 | C4: Asotin County PUD #1 | D4: 0 | E4: 0 | F4: 0 | G4: 0 | H4: 0 | I4: 0 | J4: 0 | K4: 0 | L4: 0 | M4: 0 | N4: 0 | O4: 0 | P4: 0 | Q4: 0 | R4: 0 | S4: 0 | T4: 0 | U4: 0 | V4: 0 | W4: 0 | X4: 0 | Y4: 0 | Z4: 0 | AA4: 0 | AB4: 0 | AC4: 0 | AD4: 0 | AE4: 0 | AF4: 0 | AG4: 0 | AH4: 0 | AI4: 0 | AJ4: 0 | AK4: 0 | AL4: 0 | AM4: 0 | AN4: 0 | AO4: 0 | AP4: 0 | AQ4: 0 | AR4: 0 | AS4: 0 | AT4: 0 | AU4: 0 | AV4: 0 | AW4: 0 | AX4: 0 | AY4: 0 | AZ4: 0 | BA4: 0 | BB4: 0 | BC4: 0 | BD4: 0 | BE4: 0 | BF4: 0 | BG4: 0 | BH4: 0 | BI4: 0 | BJ4: 0 | BK4: 0 | BL4: 0 | BM4: 0 | BN4: 0 | BO4: 0 | BP4: 0 | BQ4: 0 | BR4: 0 | BS4: 0 | BT4: 0 | BU4: 0 | BV4: 0 | BW4: 0 | BX4: 0 | BY4: 0 | BZ4: 0 | CA4: 0 | CB4: 0 | CC4: 0 | CD4: 0 | CE4: 0 | CF4: 0 | CG4: 0 | CH4: 0 | CI4: 0 | CJ4: 0 | CK4: 0 | CL4: 0 | CM4: 0 | CN4: 0 | CO4: 0 | CP4: 0 | CQ4: 0 | CR4: 0 | CS4: 0 | CT4: 0 | CU4: 0 | CV4: 0 | CW4: 0 | CX4: 0 | CY4: 0 | CZ4: 0 | DA4: 0 | DB4: 0 | DC4: 0 | DD4: 0 | DE4: 0 | DF4: 0 | DG4: 0 | DH4: 0 | DI4: 0 | DJ4: 0 | DK4: 0 | DL4: 0 | DM4: 0 | DN4: 0 | DO4: 0 | DP4: 0 | DQ4: 0 | DR4: 0 | DS4: 0 | DT4: 0 | DU4: 0 | DV4: 0 | DW4: 0 | DX4: 0 | DY4: 0 | DZ4: 0 | EA4: 0 | EB4: 0 | EC4: 0 | ED4: 0 | EE4: 0 | EF4: 0 | EG4: 0 | EH4: 0 | EI4: 0 | EJ4: 0 | EK4: 0 | EL4: 0 | EM4: 0 | EN4: 0 | EO4: 0 | EP4: 0 | EQ4: 0 | ER4: 0 | ES4: 0 | ET4: 0 | EU4: 0 | EV4: 0 | EW4: 0 | EX4: 0 | EY4: 0 | EZ4: 0 | FA4: 0 | FB4: 0 | FC4: 0 | FD4: 0 | FE4: 0 | FF4: 0 | FG4: 0 | FH4: 0 | FI4: 0 | FJ4: 0 | FK4: 0 | FL4: 0 | FM4: 0 | FN4: 0 | FO4: 0 | FP4: 0 | FQ4: 0 | FR4: 0 | FS4: 0 | FT4: 0 | FU4: 0 | FV4: 0 | FW4: 0 | FX4: 0 | FY4: 0 | FZ4: 0 | GA4: 0 | GB4: 0 | GC4: 0 | GD4: 0 | GE4: 0 | GF4: 0 | GG4: 0 | GH4: 0 | GI4: 0 | GJ4: 0 | GK4: 0 | GL4: 0 | GM4: 0 | GN4: 0 | GO4: 0 | GP4: 0 | GQ4: 0 | GR4: 0 | GS4: 0 | GT4: 0 | GU4: 0 | GV4: 0 | GW4: 0 | GX4: 0 | GY4: 0 | GZ4: 0 | HA4: 0 | HB4: 0 | HC4: 0 | HD4: 0 | HE4: 0 | HF4: 0 | HG4: 0 | HH4: 0 | HI4: 0 | HJ4: 0 | HK4: 0 | HL4: 0 | HM4: 0 | HN4: 0 | HO4: 0 | HP4: 0 | HQ4: 0 | HR4: 0 | HS4: 0 | HT4: 0 | HU4: 0 | HV4: 0 | HW4: 0 | HX4: 0 | HY4: 0 | HZ4: 0 | IA4: 0 | IB4: 0 | IC4: 0 | ID4: 0 | IE4: 0 | IF4: 0 | IG4: 0 | IH4: 0 | II4: 0 | IJ4: 0 | IK4: 0 | IL4: 0 | IM4: 0 | IN4: 0 | IO4: 0 | IP4: 0 | IQ4: 0 | IR4: 0 | IS4: 0 | IT4: 0 | IU4: 0 | IV4: 0 | IW4: 0 | IX4: 0 | IY4: 0 | IZ4: 0 | JA4: 0 | JB4: 0 | JC4: 0 | JD4: 0 | JE4: 0 | JF4: 0 | JG4: 0 | JH4: 0 | JI4: 0 | JJ4: 0 | JK4: 0 | JL4: 0 | JM4: 0 | JN4: 0 | JO4: 0 | JP4: 0 | JQ4: 0 | JR4: 0 | JS4: 0 | JT4: 0 | JU4: 0 | JV4: 0 | JW4: 0 | JX4: 0 | JY4: 0 | JZ4: 0 | KA4: 0 | KB4: 0 | KC4: 0 | KD4: 0 | KE4: 0 | KF4: 0 | KG4: 0 | KH4: 0 | KI4: 0 | KJ4: 0 | KK4: 0 | KL4: 0 | KM4: 0 | KN4: 0 | KO4: 0 | KP4: 0 | KQ4: 0 | KR4: 0 | KS4: 0 | KT4: 0 | KU4: 0 | KV4: 0 | KW4: 0 | KX4: 0 | KY4: 0 | KZ4: 0 | LA4: 0 | LB4: 0 | LC4: 0 | LD4: 0 | LE4: 0 | LF4: 0 | LG4: 0 | LH4: 0 | LI4: 0 | LJ4: 0 | LK4: 0 | LL4: 0 | LM4: 0 | LN4: 0 | LO4: 0 | LP4: 0 | LQ4: 0 | LR4: 0 | LS4: 0 | LT4: 0 | LU4: 0 | LV4: 0 | LW4: 0 | LX4: 0 | LY4: 0 | LZ4: 0 | MA4: 0 | MB4: 0 | MC4: 0 | MD4: 0 | ME4: 0 | MF4: 0 | MG4: 0 | MH4: 0 | MI4: 0 | MJ4: 0 | MK4: 0 | ML4: 0 | MM4: 0 | MN4: 0 | MO4: 0 | MP4: 0 | MQ4: 0 | MR4: 0 | MS4: 0 | MT4: 0 | MU4: 0 | MV4: 0 | MW4: 0 | MX4: 0 | MY4: 0 | MZ4: 0 | NA4: 0 | NB4: 0 | NC4: 0 | ND4: 0 | NE4: 0 | NF4: 0 | NG4: 0 | NH4: 0 | NI4: 0 | NJ4: 0 | NK4: 0 | NL4: 0 | NM4: 0 | NN4: 0 | NO4: 0 | NP4: 0 | NQ4: 0 | NR4: 0 | NS4: 0 | NT4: 0 | NU4: 0 | NV4: 0 | NW4: 0 | NX4: 0 | NY4: 0 | NZ4: 0 | OA4: 0 | OB4: 0 | OC4: 0 | OD4: 0 | OE4: 0 | OF4: 0 | OG4: 0 | OH4: 0 | OI4: 0 | OJ4: 0 | OK4: 0 | OL4: 0 | OM4: 0 | ON4: 0 | OO4: 0 | OP4: 0 | OQ4: 0 | OR4: 0 | OS4: 0 | OT4: 0 | OU4: 0 | OV4: 0 | OW4: 0 | OX4: 0 | OY4: 0 | OZ4: 0 | PA4: 0 | PB4: 0 | PC4: 0 | PD4: 0 | PE4: 0 | PF4: 0 | PG4: 0 | PH4: 0 | PI4: 0 | PJ4: 0 | PK4: 0 | PL4: 0 | PM4: 0 | PN4: 0 | PO4: 0 | PP4: 0 | PQ4: 0 | PR4: 0 | PS4: 0 | PT4: 0 | PU4: 0 | PV4: 0 | PW4: 0 | PX4: 0 | PY4: 0 | PZ4: 0 | QA4: 0 | QB4: 0 | QC4: 0 | QD4: 0 | QE4: 0 | QF4: 0 | QG4: 0 | QH4: 0 | QI4: 0 | QJ4: 0 | QK4: 0 | QL4: 0 | QM4: 0 | QN4: 0 | QO4: 0 | QP4: 0 | QQ4: 0 | QR4: 0 | QS4: 0 | QT4: 0 | QU4: 0 | QV4: 0 | QW4: 0 | QX4: 0 | QY4: 0 | QZ4: 0 | RA4: 0 | RB4: 0 | RC4: 0 | RD4: 0 | RE4: 0 | RF4: 0 | RG4: 0 | RH4: 0 | RI4: 0 | RJ4: 0 | RK4: 0 | RL4: 0 | RM4: 0 | RN4: 0 | RO4: 0 | RQ4: =+SUM(D4:AA4) -> 0 | RR4: =+SUM(AB4:AY4) -> 0 | RS4: =+SUM(AZ4:BW4) -> 0 | RT4: =+SUM(BX4:CU4) -> 0 | RU4: =+SUM(CV4:DS4) -> 0 | RV4: =+SUM(DT4:EQ4) -> 0 | RW4: =+SUM(ER4:FO4) -> 0 | RX4: =+SUM(FP4:GM4) -> 0 | RY4: =+SUM(GN4:HK4) -> 0 | RZ4: =+SUM(HL4:II4) -> 0 | SA4: =+SUM(IJ4:JG4) -> 0 | SB4: =+SUM(JH4:KE4) -> 0 | SC4: =+SUM(KF4:LC4) -> 0 | SD4: =+SUM(LD4:MA4) -> 0 | SE4: =+SUM(MB4:MY4) -> 0 | SF4: =+SUM(MZ4:NW4) -> 0 | SG4: =+SUM(NX4:OU4) -> 0 | SH4: =+SUM(OV4:PS4) -> 0 | SI4: =+SUM(PT4:QQ4) -> 0 | SJ4: =+SUM(QR4:RO4) -> 0
B5: 10024 | C5: Benton County PUD #1 | D5: 0 | E5: 0 | F5: 0 | G5: 0 | H5: 0 | I5: 0 | J5: 0 | K5: 0 | L5: 0 | M5: 0 | N5: 0 | O5: 0 | P5: 0 | Q5: 0 | R5: 0 | S5: 0 | T5: 0 | U5: 0 | V5: 0 | W5: 0 | X5: 0 | Y5: 0 | Z5: 0 | AA5: 0 | AB5: 0 | AC5: 0 | AD5: 0 | AE5: 0 | AF5: 0 | AG5: 0 | AH5: 0 | AI5: 0 | AJ5: 0 | AK5: 0 | AL5: 0 | AM5: 0 | AN5: 0 | AO5: 0 | AP5: 0 | AQ5: 0 | AR5: 0 | AS5: 0 | AT5: 0 | AU5: 0 | AV5: 0 | AW5: 0 | AX5: 0 | AY5: 0 | AZ5: 0 | BA5: 0 | BB5: 0 | BC5: 0 | BD5: 0 | BE5: 0 | BF5: 0 | BG5: 0 | BH5: 0 | BI5: 0 | BJ5: 0 | BK5: 0 | BL5: 0 | BM5: 0 | BN5: 0 | BO5: 0 | BP5: 0 | BQ5: 0 | BR5: 0 | BS5: 0 | BT5: 0 | BU5: 0 | BV5: 0 | BW5: 0 | BX5: 0 | BY5: 0 | BZ5: 0 | CA5: 0 | CB5: 0 | CC5: 0 | CD5: 0 | CE5: 0 | CF5: 0 | CG5: 0 | CH5: 0 | CI5: 0 | CJ5: 0 | CK5: 0 | CL5: 0 | CM5: 0 | CN5: 0 | CO5: 0 | CP5: 0 | CQ5: 0 | CR5: 0 | CS5: 0 | CT5: 0 | CU5: 0 | CV5: 0 | CW5: 0 | CX5: 0 | CY5: 0 | CZ5: 0 | DA5: 0 | DB5: 0 | DC5: 0 | DD5: 0 | DE5: 0 | DF5: 0 | DG5: 0 | DH5: 0 | DI5: 0 | DJ5: 0 | DK5: 0 | DL5: 0 | DM5: 0 | DN5: 0 | DO5: 0 | DP5: 0 | DQ5: 0 | DR5: 0 | DS5: 0 | DT5: 0 | DU5: 0 | DV5: 0 | DW5: 0 | DX5: 0 | DY5: 0 | DZ5: 0 | EA5: 0 | EB5: 0 | EC5: 0 | ED5: 0 | EE5: 0 | EF5: 0 | EG5: 0 | EH5: 0 | EI5: 0 | EJ5: 0 | EK5: 0 | EL5: 0 | EM5: 0 | EN5: 0 | EO5: 0 | EP5: 0 | EQ5: 0 | ER5: 0 | ES5: 0 | ET5: 0 | EU5: 0 | EV5: 0 | EW5: 0 | EX5: 0 | EY5: 0 | EZ5: 0 | FA5: 0 | FB5: 0 | FC5: 0 | FD5: 0 | FE5: 0 | FF5: 0 | FG5: 0 | FH5: 0 | FI5: 0 | FJ5: 0 | FK5: 0 | FL5: 0 | FM5: 0 | FN5: 0 | FO5: 0 | FP5: 0 | FQ5: 0 | FR5: 0 | FS5: 0 | FT5: 0 | FU5: 0 | FV5: 0 | FW5: 0 | FX5: 0 | FY5: 0 | FZ5: 0 | GA5: 0 | GB5: 0 | GC5: 0 | GD5: 0 | GE5: 0 | GF5: 0 | GG5: 0 | GH5: 0 | GI5: 0 | GJ5: 0 | GK5: 0 | GL5: 0 | GM5: 0 | GN5: 0 | GO5: 0 | GP5: 0 | GQ5: 0 | GR5: 0 | GS5: 0 | GT5: 0 | GU5: 0 | GV5: 0 | GW5: 0 | GX5: 0 | GY5: 0 | GZ5: 0 | HA5: 0 | HB5: 0 | HC5: 0 | HD5: 0 | HE5: 0 | HF5: 0 | HG5: 0 | HH5: 0 | HI5: 0 | HJ5: 0 | HK5: 0 | HL5: 0 | HM5: 0 | HN5: 0 | HO5: 0 | HP5: 0 | HQ5: 0 | HR5: 0 | HS5: 0 | HT5: 0 | HU5: 0 | HV5: 0 | HW5: 0 | HX5: 0 | HY5: 0 | HZ5: 0 | IA5: 0 | IB5: 0 | IC5: 0 | ID5: 0 | IE5: 0 | IF5: 0 | IG5: 0 | IH5: 0 | II5: 0 | IJ5: 0 | IK5: 0 | IL5: 0 | IM5: 0 | IN5: 0 | IO5: 0 | IP5: 0 | IQ5: 0 | IR5: 0 | IS5: 0 | IT5: 0 | IU5: 0 | IV5: 0 | IW5: 0 | IX5: 0 | IY5: 0 | IZ5: 0 | JA5: 0 | JB5: 0 | JC5: 0 | JD5: 0 | JE5: 0 | JF5: 0 | JG5: 0 | JH5: 0 | JI5: 0 | JJ5: 0 | JK5: 0 | JL5: 0 | JM5: 0 | JN5: 0 | JO5: 0 | JP5: 0 | JQ5: 0 | JR5: 0 | JS5: 0 | JT5: 0 | JU5: 0 | JV5: 0 | JW5: 0 | JX5: 0 | JY5: 0 | JZ5: 0 | KA5: 0 | KB5: 0 | KC5: 0 | KD5: 0 | KE5: 0 | KF5: 0 | KG5: 0 | KH5: 0 | KI5: 0 | KJ5: 0 | KK5: 0 | KL5: 0 | KM5: 0 | KN5: 0 | KO5: 0 | KP5: 0 | KQ5: 0 | KR5: 0 | KS5: 0 | KT5: 0 | KU5: 0 | KV5: 0 | KW5: 0 | KX5: 0 | KY5: 0 | KZ5: 0 | LA5: 0 | LB5: 0 | LC5: 0 | LD5: 0 | LE5: 0 | LF5: 0 | LG5: 0 | LH5: 0 | LI5: 0 | LJ5: 0 | LK5: 0 | LL5: 0 | LM5: 0 | LN5: 0 | LO5: 0 | LP5: 0 | LQ5: 0 | LR5: 0 | LS5: 0 | LT5: 0 | LU5: 0 | LV5: 0 | LW5: 0 | LX5: 0 | LY5: 0 | LZ5: 0 | MA5: 0 | MB5: 0 | MC5: 0 | MD5: 0 | ME5: 0 | MF5: 0 | MG5: 0 | MH5: 0 | MI5: 0 | MJ5: 0 | MK5: 0 | ML5: 0 | MM5: 0 | MN5: 0 | MO5: 0 | MP5: 0 | MQ5: 0 | MR5: 0 | MS5: 0 | MT5: 0 | MU5: 0 | MV5: 0 | MW5: 0 | MX5: 0 | MY5: 0 | MZ5: 0 | NA5: 0 | NB5: 0 | NC5: 0 | ND5: 0 | NE5: 0 | NF5: 0 | NG5: 0 | NH5: 0 | NI5: 0 | NJ5: 0 | NK5: 0 | NL5: 0 | NM5: 0 | NN5: 0 | NO5: 0 | NP5: 0 | NQ5: 0 | NR5: 0 | NS5: 0 | NT5: 0 | NU5: 0 | NV5: 0 | NW5: 0 | NX5: 0 | NY5: 0 | NZ5: 0 | OA5: 0 | OB5: 0 | OC5: 0 | OD5: 0 | OE5: 0 | OF5: 0 | OG5: 0 | OH5: 0 | OI5: 0 | OJ5: 0 | OK5: 0 | OL5: 0 | OM5: 0 | ON5: 0 | OO5: 0 | OP5: 0 | OQ5: 0 | OR5: 0 | OS5: 0 | OT5: 0 | OU5: 0 | OV5: 0 | OW5: 0 | OX5: 0 | OY5: 0 | OZ5: 0 | PA5: 0 | PB5: 0 | PC5: 0 | PD5: 0 | PE5: 0 | PF5: 0 | PG5: 0 | PH5: 0 | PI5: 0 | PJ5: 0 | PK5: 0 | PL5: 0 | PM5: 0 | PN5: 0 | PO5: 0 | PP5: 0 | PQ5: 0 | PR5: 0 | PS5: 0 | PT5: 0 | PU5: 0 | PV5: 0 | PW5: 0 | PX5: 0 | PY5: 0 | PZ5: 0 | QA5: 0 | QB5: 0 | QC5: 0 | QD5: 0 | QE5: 0 | QF5: 0 | QG5: 0 | QH5: 0 | QI5: 0 | QJ5: 0 | QK5: 0 | QL5: 0 | QM5: 0 | QN5: 0 | QO5: 0 | QP5: 0 | QQ5: 0 | QR5: 0 | QS5: 0 | QT5: 0 | QU5: 0 | QV5: 0 | QW5: 0 | QX5: 0 | QY5: 0 | QZ5: 0 | RA5: 0 | RB5: 0 | RC5: 0 | RD5: 0 | RE5: 0 | RF5: 0 | RG5: 0 | RH5: 0 | RI5: 0 | RJ5: 0 | RK5: 0 | RL5: 0 | RM5: 0 | RN5: 0 | RO5: 0 | RQ5: 0 | RR5: 0 | RS5: 0 | RT5: 0 | RU5: 0 | RV5: 0 | RW5: 0 | RX5: 0 | RY5: 0 | RZ5: 0 | SA5: 0 | SB5: 0 | SC5: 0 | SD5: 0 | SE5: 0 | SF5: 0 | SG5: 0 | SH5: 0 | SI5: 0 | SJ5: 0
B6: 10025 | C6: Benton REA | D6: 0 | E6: 0 | F6: 0 | G6: 0 | H6: 0 | I6: 0 | J6: 0 | K6: 0 | L6: 0 | M6: 0 | N6: 0 | O6: 0 | P6: 0 | Q6: 0 | R6: 0 | S6: 0 | T6: 0 | U6: 0 | V6: 0 | W6: 0 | X6: 0 | Y6: 0 | Z6: 0 | AA6: 0 | AB6: 0 | AC6: 0 | AD6: 0 | AE6: 0 | AF6: 0 | AG6: 0 | AH6: 0 | AI6: 0 | AJ6: 0 | AK6: 0 | AL6: 0 | AM6: 0 | AN6: 0 | AO6: 0 | AP6: 0 | AQ6: 0 | AR6: 0 | AS6: 0 | AT6: 0 | AU6: 0 | AV6: 0 | AW6: 0 | AX6: 0 | AY6: 0 | AZ6: 0 | BA6: 0 | BB6: 0 | BC6: 0 | BD6: 0 | BE6: 0 | BF6: 0 | BG6: 0 | BH6: 0 | BI6: 0 | BJ6: 0 | BK6: 0 | BL6: 0 | BM6: 0 | BN6: 0 | BO6: 0 | BP6: 0 | BQ6: 0 | BR6: 0 | BS6: 0 | BT6: 0 | BU6: 0 | BV6: 0 | BW6: 0 | BX6: 0 | BY6: 0 | BZ6: 0 | CA6: 0 | CB6: 0 | CC6: 0 | CD6: 0 | CE6: 0 | CF6: 0 | CG6: 0 | CH6: 0 | CI6: 0 | CJ6: 0 | CK6: 0 | CL6: 0 | CM6: 0 | CN6: 0 | CO6: 0 | CP6: 0 | CQ6: 0 | CR6: 0 | CS6: 0 | CT6: 0 | CU6: 0 | CV6: 0 | CW6: 0 | CX6: 0 | CY6: 0 | CZ6: 0 | DA6: 0 | DB6: 0 | DC6: 0 | DD6: 0 | DE6: 0 | DF6: 0 | DG6: 0 | DH6: 0 | DI6: 0 | DJ6: 0 | DK6: 0 | DL6: 0 | DM6: 0 | DN6: 0 | DO6: 0 | DP6: 0 | DQ6: 0 | DR6: 0 | DS6: 0 | DT6: 0 | DU6: 0 | DV6: 0 | DW6: 0 | DX6: 0 | DY6: 0 | DZ6: 0 | EA6: 0 | EB6: 0 | EC6: 0 | ED6: 0 | EE6: 0 | EF6: 0 | EG6: 0 | EH6: 0 | EI6: 0 | EJ6: 0 | EK6: 0 | EL6: 0 | EM6: 0 | EN6: 0 | EO6: 0 | EP6: 0 | EQ6: 0 | ER6: 0 | ES6: 0 | ET6: 0 | EU6: 0 | EV6: 0 | EW6: 0 | EX6: 0 | EY6: 0 | EZ6: 0 | FA6: 0 | FB6: 0 | FC6: 0 | FD6: 0 | FE6: 0 | FF6: 0 | FG6: 0 | FH6: 0 | FI6: 0 | FJ6: 0 | FK6: 0 | FL6: 0 | FM6: 0 | FN6: 0 | FO6: 0 | FP6: 0 | FQ6: 0 | FR6: 0 | FS6: 0 | FT6: 0 | FU6: 0 | FV6: 0 | FW6: 0 | FX6: 0 | FY6: 0 | FZ6: 0 | GA6: 0 | GB6: 0 | GC6: 0 | GD6: 0 | GE6: 0 | GF6: 0 | GG6: 0 | GH6: 0 | GI6: 0 | GJ6: 0 | GK6: 0 | GL6: 0 | GM6: 0 | GN6: 0 | GO6: 0 | GP6: 0 | GQ6: 0 | GR6: 0 | GS6: 0 | GT6: 0 | GU6: 0 | GV6: 0 | GW6: 0 | GX6: 0 | GY6: 0 | GZ6: 0 | HA6: 0 | HB6: 0 | HC6: 0 | HD6: 0 | HE6: 0 | HF6: 0 | HG6: 0 | HH6: 0 | HI6: 0 | HJ6: 0 | HK6: 0 | HL6: 0 | HM6: 0 | HN6: 0 | HO6: 0 | HP6: 0 | HQ6: 0 | HR6: 0 | HS6: 0 | HT6: 0 | HU6: 0 | HV6: 0 | HW6: 0 | HX6: 0 | HY6: 0 | HZ6: 0 | IA6: 0 | IB6: 0 | IC6: 0 | ID6: 0 | IE6: 0 | IF6: 0 | IG6: 0 | IH6: 0 | II6: 0 | IJ6: 0 | IK6: 0 | IL6: 0 | IM6: 0 | IN6: 0 | IO6: 0 | IP6: 0 | IQ6: 0 | IR6: 0 | IS6: 0 | IT6: 0 | IU6: 0 | IV6: 0 | IW6: 0 | IX6: 0 | IY6: 0 | IZ6: 0 | JA6: 0 | JB6: 0 | JC6: 0 | JD6: 0 | JE6: 0 | JF6: 0 | JG6: 0 | JH6: 0 | JI6: 0 | JJ6: 0 | JK6: 0 | JL6: 0 | JM6: 0 | JN6: 0 | JO6: 0 | JP6: 0 | JQ6: 0 | JR6: 0 | JS6: 0 | JT6: 0 | JU6: 0 | JV6: 0 | JW6: 0 | JX6: 0 | JY6: 0 | JZ6: 0 | KA6: 0 | KB6: 0 | KC6: 0 | KD6: 0 | KE6: 0 | KF6: 0 | KG6: 0 | KH6: 0 | KI6: 0 | KJ6: 0 | KK6: 0 | KL6: 0 | KM6: 0 | KN6: 0 | KO6: 0 | KP6: 0 | KQ6: 0 | KR6: 0 | KS6: 0 | KT6: 0 | KU6: 0 | KV6: 0 | KW6: 0 | KX6: 0 | KY6: 0 | KZ6: 0 | LA6: 0 | LB6: 0 | LC6: 0 | LD6: 0 | LE6: 0 | LF6: 0 | LG6: 0 | LH6: 0 | LI6: 0 | LJ6: 0 | LK6: 0 | LL6: 0 | LM6: 0 | LN6: 0 | LO6: 0 | LP6: 0 | LQ6: 0 | LR6: 0 | LS6: 0 | LT6: 0 | LU6: 0 | LV6: 0 | LW6: 0 | LX6: 0 | LY6: 0 | LZ6: 0 | MA6: 0 | MB6: 0 | MC6: 0 | MD6: 0 | ME6: 0 | MF6: 0 | MG6: 0 | MH6: 0 | MI6: 0 | MJ6: 0 | MK6: 0 | ML6: 0 | MM6: 0 | MN6: 0 | MO6: 0 | MP6: 0 | MQ6: 0 | MR6: 0 | MS6: 0 | MT6: 0 | MU6: 0 | MV6: 0 | MW6: 0 | MX6: 0 | MY6: 0 | MZ6: 0 | NA6: 0 | NB6: 0 | NC6: 0 | ND6: 0 | NE6: 0 | NF6: 0 | NG6: 0 | NH6: 0 | NI6: 0 | NJ6: 0 | NK6: 0 | NL6: 0 | NM6: 0 | NN6: 0 | NO6: 0 | NP6: 0 | NQ6: 0 | NR6: 0 | NS6: 0 | NT6: 0 | NU6: 0 | NV6: 0 | NW6: 0 | NX6: 0 | NY6: 0 | NZ6: 0 | OA6: 0 | OB6: 0 | OC6: 0 | OD6: 0 | OE6: 0 | OF6: 0 | OG6: 0 | OH6: 0 | OI6: 0 | OJ6: 0 | OK6: 0 | OL6: 0 | OM6: 0 | ON6: 0 | OO6: 0 | OP6: 0 | OQ6: 0 | OR6: 0 | OS6: 0 | OT6: 0 | OU6: 0 | OV6: 0 | OW6: 0 | OX6: 0 | OY6: 0 | OZ6: 0 | PA6: 0 | PB6: 0 | PC6: 0 | PD6: 0 | PE6: 0 | PF6: 0 | PG6: 0 | PH6: 0 | PI6: 0 | PJ6: 0 | PK6: 0 | PL6: 0 | PM6: 0 | PN6: 0 | PO6: 0 | PP6: 0 | PQ6: 0 | PR6: 0 | PS6: 0 | PT6: 0 | PU6: 0 | PV6: 0 | PW6: 0 | PX6: 0 | PY6: 0 | PZ6: 0 | QA6: 0 | QB6: 0 | QC6: 0 | QD6: 0 | QE6: 0 | QF6: 0 | QG6: 0 | QH6: 0 | QI6: 0 | QJ6: 0 | QK6: 0 | QL6: 0 | QM6: 0 | QN6: 0 | QO6: 0 | QP6: 0 | QQ6: 0 | QR6: 0 | QS6: 0 | QT6: 0 | QU6: 0 | QV6: 0 | QW6: 0 | QX6: 0 | QY6: 0 | QZ6: 0 | RA6: 0 | RB6: 0 | RC6: 0 | RD6: 0 | RE6: 0 | RF6: 0 | RG6: 0 | RH6: 0 | RI6: 0 | RJ6: 0 | RK6: 0 | RL6: 0 | RM6: 0 | RN6: 0 | RO6: 0 | RQ6: 0 | RR6: 0 | RS6: 0 | RT6: 0 | RU6: 0 | RV6: 0 | RW6: 0 | RX6: 0 | RY6: 0 | RZ6: 0 | SA6: 0 | SB6: 0 | SC6: 0 | SD6: 0 | SE6: 0 | SF6: 0 | SG6: 0 | SH6: 0 | SI6: 0 | SJ6: 0
B7: 10027 | C7: Big Bend Elec Coop | D7: 0 | E7: 0 | F7: 0 | G7: 0 | H7: 0 | I7: 0 | J7: 0 | K7: 0 | L7: 0 | M7: 0 | N7: 0 | O7: 0 | P7: 0 | Q7: 0 | R7: 0 | S7: 0 | T7: 0 | U7: 0 | V7: 0 | W7: 0 | X7: 0 | Y7: 0 | Z7: 0 | AA7: 0 | AB7: 0 | AC7: 0 | AD7: 0 | AE7: 0 | AF7: 0 | AG7: 0 | AH7: 0 | AI7: 0 | AJ7: 0 | AK7: 0 | AL7: 0 | AM7: 0 | AN7: 0 | AO7: 0 | AP7: 0 | AQ7: 0 | AR7: 0 | AS7: 0 | AT7: 0 | AU7: 0 | AV7: 0 | AW7: 0 | AX7: 0 | AY7: 0 | AZ7: 0 | BA7: 0 | BB7: 0 | BC7: 0 | BD7: 0 | BE7: 0 | BF7: 0 | BG7: 0 | BH7: 0 | BI7: 0 | BJ7: 0 | BK7: 0 | BL7: 0 | BM7: 0 | BN7: 0 | BO7: 0 | BP7: 0 | BQ7: 0 | BR7: 0 | BS7: 0 | BT7: 0 | BU7: 0 | BV7: 0 | BW7: 0 | BX7: 0 | BY7: 0 | BZ7: 0 | CA7: 0 | CB7: 0 | CC7: 0 | CD7: 0 | CE7: 0 | CF7: 0 | CG7: 0 | CH7: 0 | CI7: 0 | CJ7: 0 | CK7: 0 | CL7: 0 | CM7: 0 | CN7: 0 | CO7: 0 | CP7: 0 | CQ7: 0 | CR7: 0 | CS7: 0 | CT7: 0 | CU7: 0 | CV7: 0 | CW7: 0 | CX7: 0 | CY7: 0 | CZ7: 0 | DA7: 0 | DB7: 0 | DC7: 0 | DD7: 0 | DE7: 0 | DF7: 0 | DG7: 0 | DH7: 0 | DI7: 0 | DJ7: 0 | DK7: 0 | DL7: 0 | DM7: 0 | DN7: 0 | DO7: 0 | DP7: 0 | DQ7: 0 | DR7: 0 | DS7: 0 | DT7: 0 | DU7: 0 | DV7: 0 | DW7: 0 | DX7: 0 | DY7: 0 | DZ7: 0 | EA7: 0 | EB7: 0 | EC7: 0 | ED7: 0 | EE7: 0 | EF7: 0 | EG7: 0 | EH7: 0 | EI7: 0 | EJ7: 0 | EK7: 0 | EL7: 0 | EM7: 0 | EN7: 0 | EO7: 0 | EP7: 0 | EQ7: 0 | ER7: 0 | ES7: 0 | ET7: 0 | EU7: 0 | EV7: 0 | EW7: 0 | EX7: 0 | EY7: 0 | EZ7: 0 | FA7: 0 | FB7: 0 | FC7: 0 | FD7: 0 | FE7: 0 | FF7: 0 | FG7: 0 | FH7: 0 | FI7: 0 | FJ7: 0 | FK7: 0 | FL7: 0 | FM7: 0 | FN7: 0 | FO7: 0 | FP7: 0 | FQ7: 0 | FR7: 0 | FS7: 0 | FT7: 0 | FU7: 0 | FV7: 0 | FW7: 0 | FX7: 0 | FY7: 0 | FZ7: 0 | GA7: 0 | GB7: 0 | GC7: 0 | GD7: 0 | GE7: 0 | GF7: 0 | GG7: 0 | GH7: 0 | GI7: 0 | GJ7: 0 | GK7: 0 | GL7: 0 | GM7: 0 | GN7: 0 | GO7: 0 | GP7: 0 | GQ7: 0 | GR7: 0 | GS7: 0 | GT7: 0 | GU7: 0 | GV7: 0 | GW7: 0 | GX7: 0 | GY7: 0 | GZ7: 0 | HA7: 0 | HB7: 0 | HC7: 0 | HD7: 0 | HE7: 0 | HF7: 0 | HG7: 0 | HH7: 0 | HI7: 0 | HJ7: 0 | HK7: 0 | HL7: 0 | HM7: 0 | HN7: 0 | HO7: 0 | HP7: 0 | HQ7: 0 | HR7: 0 | HS7: 0 | HT7: 0 | HU7: 0 | HV7: 0 | HW7: 0 | HX7: 0 | HY7: 0 | HZ7: 0 | IA7: 0 | IB7: 0 | IC7: 0 | ID7: 0 | IE7: 0 | IF7: 0 | IG7: 0 | IH7: 0 | II7: 0 | IJ7: 0 | IK7: 0 | IL7: 0 | IM7: 0 | IN7: 0 | IO7: 0 | IP7: 0 | IQ7: 0 | IR7: 0 | IS7: 0 | IT7: 0 | IU7: 0 | IV7: 0 | IW7: 0 | IX7: 0 | IY7: 0 | IZ7: 0 | JA7: 0 | JB7: 0 | JC7: 0 | JD7: 0 | JE7: 0 | JF7: 0 | JG7: 0 | JH7: 0 | JI7: 0 | JJ7: 0 | JK7: 0 | JL7: 0 | JM7: 0 | JN7: 0 | JO7: 0 | JP7: 0 | JQ7: 0 | JR7: 0 | JS7: 0 | JT7: 0 | JU7: 0 | JV7: 0 | JW7: 0 | JX7: 0 | JY7: 0 | JZ7: 0 | KA7: 0 | KB7: 0 | KC7: 0 | KD7: 0 | KE7: 0 | KF7: 0 | KG7: 0 | KH7: 0 | KI7: 0 | KJ7: 0 | KK7: 0 | KL7: 0 | KM7: 0 | KN7: 0 | KO7: 0 | KP7: 0 | KQ7: 0 | KR7: 0 | KS7: 0 | KT7: 0 | KU7: 0 | KV7: 0 | KW7: 0 | KX7: 0 | KY7: 0 | KZ7: 0 | LA7: 0 | LB7: 0 | LC7: 0 | LD7: 0 | LE7: 0 | LF7: 0 | LG7: 0 | LH7: 0 | LI7: 0 | LJ7: 0 | LK7: 0 | LL7: 0 | LM7: 0 | LN7: 0 | LO7: 0 | LP7: 0 | LQ7: 0 | LR7: 0 | LS7: 0 | LT7: 0 | LU7: 0 | LV7: 0 | LW7: 0 | LX7: 0 | LY7: 0 | LZ7: 0 | MA7: 0 | MB7: 0 | MC7: 0 | MD7: 0 | ME7: 0 | MF7: 0 | MG7: 0 | MH7: 0 | MI7: 0 | MJ7: 0 | MK7: 0 | ML7: 0 | MM7: 0 | MN7: 0 | MO7: 0 | MP7: 0 | MQ7: 0 | MR7: 0 | MS7: 0 | MT7: 0 | MU7: 0 | MV7: 0 | MW7: 0 | MX7: 0 | MY7: 0 | MZ7: 0 | NA7: 0 | NB7: 0 | NC7: 0 | ND7: 0 | NE7: 0 | NF7: 0 | NG7: 0 | NH7: 0 | NI7: 0 | NJ7: 0 | NK7: 0 | NL7: 0 | NM7: 0 | NN7: 0 | NO7: 0 | NP7: 0 | NQ7: 0 | NR7: 0 | NS7: 0 | NT7: 0 | NU7: 0 | NV7: 0 | NW7: 0 | NX7: 0 | NY7: 0 | NZ7: 0 | OA7: 0 | OB7: 0 | OC7: 0 | OD7: 0 | OE7: 0 | OF7: 0 | OG7: 0 | OH7: 0 | OI7: 0 | OJ7: 0 | OK7: 0 | OL7: 0 | OM7: 0 | ON7: 0 | OO7: 0 | OP7: 0 | OQ7: 0 | OR7: 0 | OS7: 0 | OT7: 0 | OU7: 0 | OV7: 0 | OW7: 0 | OX7: 0 | OY7: 0 | OZ7: 0 | PA7: 0 | PB7: 0 | PC7: 0 | PD7: 0 | PE7: 0 | PF7: 0 | PG7: 0 | PH7: 0 | PI7: 0 | PJ7: 0 | PK7: 0 | PL7: 0 | PM7: 0 | PN7: 0 | PO7: 0 | PP7: 0 | PQ7: 0 | PR7: 0 | PS7: 0 | PT7: 0 | PU7: 0 | PV7: 0 | PW7: 0 | PX7: 0 | PY7: 0 | PZ7: 0 | QA7: 0 | QB7: 0 | QC7: 0 | QD7: 0 | QE7: 0 | QF7: 0 | QG7: 0 | QH7: 0 | QI7: 0 | QJ7: 0 | QK7: 0 | QL7: 0 | QM7: 0 | QN7: 0 | QO7: 0 | QP7: 0 | QQ7: 0 | QR7: 0 | QS7: 0 | QT7: 0 | QU7: 0 | QV7: 0 | QW7: 0 | QX7: 0 | QY7: 0 | QZ7: 0 | RA7: 0 | RB7: 0 | RC7: 0 | RD7: 0 | RE7: 0 | RF7: 0 | RG7: 0 | RH7: 0 | RI7: 0 | RJ7: 0 | RK7: 0 | RL7: 0 | RM7: 0 | RN7: 0 | RO7: 0 | RQ7: 0 | RR7: 0 | RS7: 0 | RT7: 0 | RU7: 0 | RV7: 0 | RW7: 0 | RX7: 0 | RY7: 0 | RZ7: 0 | SA7: 0 | SB7: 0 | SC7: 0 | SD7: 0 | SE7: 0 | SF7: 0 | SG7: 0 | SH7: 0 | SI7: 0 | SJ7: 0
... 8 more rows

Sheet I_ER
B1: Exhibit A Exisiting Resources (MWh)
A2: TOC | D2: 2015-10-01 | E2: 2015-10-01 | F2: 2015-11-01 | G2: 2015-11-01 | H2: 2015-12-01 | I2: 2015-12-01 | J2: 2016-01-01 | K2: 2016-01-01 | L2: 2016-02-01 | M2: 2016-02-01 | N2: 2016-03-01 | O2: 2016-03-01 | P2: 2016-04-01 | Q2: 2016-04-01 | R2: 2016-05-01 | S2: 2016-05-01 | T2: 2016-06-01 | U2: 2016-06-01 | V2: 2016-07-01 | W2: 2016-07-01 | X2: 2016-08-01 | Y2: 2016-08-01 | Z2: 2016-09-01 | AA2: 2016-09-01 | AB2: 2016-10-01 | AC2: 2016-10-01 | AD2: 2016-11-01 | AE2: 2016-11-01 | AF2: 2016-12-01 | AG2: 2016-12-01 | AH2: 2017-01-01 | AI2: 2017-01-01 | AJ2: 2017-02-01 | AK2: 2017-02-01 | AL2: 2017-03-01 | AM2: 2017-03-01 | AN2: 2017-04-01 | AO2: 2017-04-01 | AP2: 2017-05-01 | AQ2: 2017-05-01 | AR2: 2017-06-01 | AS2: 2017-06-01 | AT2: 2017-07-01 | AU2: 2017-07-01 | AV2: 2017-08-01 | AW2: 2017-08-01 | AX2: 2017-09-01 | AY2: 2017-09-01 | AZ2: 2017-10-01 | BA2: 2017-10-01 | BB2: 2017-11-01 | BC2: 2017-11-01 | BD2: 2017-12-01 | BE2: 2017-12-01 | BF2: 2018-01-01 | BG2: 2018-01-01 | BH2: 2018-02-01 | BI2: 2018-02-01 | BJ2: 2018-03-01 | BK2: 2018-03-01 | BL2: 2018-04-01 | BM2: 2018-04-01 | BN2: 2018-05-01 | BO2: 2018-05-01 | BP2: 2018-06-01 | BQ2: 2018-06-01 | BR2: 2018-07-01 | BS2: 2018-07-01 | BT2: 2018-08-01 | BU2: 2018-08-01 | BV2: 2018-09-01 | BW2: 2018-09-01 | BX2: 2018-10-01 | BY2: 2018-10-01 | BZ2: 2018-11-01 | CA2: 2018-11-01 | CB2: 2018-12-01 | CC2: 2018-12-01 | CD2: 2019-01-01 | CE2: 2019-01-01 | CF2: 2019-02-01 | CG2: 2019-02-01 | CH2: 2019-03-01 | CI2: 2019-03-01 | CJ2: 2019-04-01 | CK2: 2019-04-01 | CL2: 2019-05-01 | CM2: 2019-05-01 | CN2: 2019-06-01 | CO2: 2019-06-01 | CP2: 2019-07-01 | CQ2: 2019-07-01 | CR2: 2019-08-01 | CS2: 2019-08-01 | CT2: 2019-09-01 | CU2: 2019-09-01 | CV2: 2019-10-01 | CW2: 2019-10-01 | CX2: 2019-11-01 | CY2: 2019-11-01 | CZ2: 2019-12-01 | DA2: 2019-12-01 | DB2: 2020-01-01 | DC2: 2020-01-01 | DD2: 2020-02-01 | DE2: 2020-02-01 | DF2: 2020-03-01 | DG2: 2020-03-01 | DH2: 2020-04-01 | DI2: 2020-04-01 | DJ2: 2020-05-01 | DK2: 2020-05-01 | DL2: 2020-06-01 | DM2: 2020-06-01 | DN2: 2020-07-01 | DO2: 2020-07-01 | DP2: 2020-08-01 | DQ2: 2020-08-01 | DR2: 2020-09-01 | DS2: 2020-09-01 | DT2: 2020-10-01 | DU2: 2020-10-01 | DV2: 2020-11-01 | DW2: 2020-11-01 | DX2: 2020-12-01 | DY2: 2020-12-01 | DZ2: 2021-01-01 | EA2: 2021-01-01 | EB2: 2021-02-01 | EC2: 2021-02-01 | ED2: 2021-03-01 | EE2: 2021-03-01 | EF2: 2021-04-01 | EG2: 2021-04-01 | EH2: 2021-05-01 | EI2: 2021-05-01 | EJ2: 2021-06-01 | EK2: 2021-06-01 | EL2: 2021-07-01 | EM2: 2021-07-01 | EN2: 2021-08-01 | EO2: 2021-08-01 | EP2: 2021-09-01 | EQ2: 2021-09-01 | ER2: 2021-10-01 | ES2: 2021-10-01 | ET2: 2021-11-01 | EU2: 2021-11-01 | EV2: 2021-12-01 | EW2: 2021-12-01 | EX2: 2022-01-01 | EY2: 2022-01-01 | EZ2: 2022-02-01 | FA2: 2022-02-01 | FB2: 2022-03-01 | FC2: 2022-03-01 | FD2: 2022-04-01 | FE2: 2022-04-01 | FF2: 2022-05-01 | FG2: 2022-05-01 | FH2: 2022-06-01 | FI2: 2022-06-01 | FJ2: 2022-07-01 | FK2: 2022-07-01 | FL2: 2022-08-01 | FM2: 2022-08-01 | FN2: 2022-09-01 | FO2: 2022-09-01 | FP2: 2022-10-01 | FQ2: 2022-10-01 | FR2: 2022-11-01 | FS2: 2022-11-01 | FT2: 2022-12-01 | FU2: 2022-12-01 | FV2: 2023-01-01 | FW2: 2023-01-01 | FX2: 2023-02-01 | FY2: 2023-02-01 | FZ2: 2023-03-01 | GA2: 2023-03-01 | GB2: 2023-04-01 | GC2: 2023-04-01 | GD2: 2023-05-01 | GE2: 2023-05-01 | GF2: 2023-06-01 | GG2: 2023-06-01 | GH2: 2023-07-01 | GI2: 2023-07-01 | GJ2: 2023-08-01 | GK2: 2023-08-01 | GL2: 2023-09-01 | GM2: 2023-09-01 | GN2: 2023-10-01 | GO2: 2023-10-01 | GP2: 2023-11-01 | GQ2: 2023-11-01 | GR2: 2023-12-01 | GS2: 2023-12-01 | GT2: 2024-01-01 | GU2: 2024-01-01 | GV2: 2024-02-01 | GW2: 2024-02-01 | GX2: 2024-03-01 | GY2: 2024-03-01 | GZ2: 2024-04-01 | HA2: 2024-04-01 | HB2: 2024-05-01 | HC2: 2024-05-01 | HD2: 2024-06-01 | HE2: 2024-06-01 | HF2: 2024-07-01 | HG2: 2024-07-01 | HH2: 2024-08-01 | HI2: 2024-08-01 | HJ2: 2024-09-01 | HK2: 2024-09-01 | HL2: 2024-10-01 | HM2: 2024-10-01 | HN2: 2024-11-01 | HO2: 2024-11-01 | HP2: 2024-12-01 | HQ2: 2024-12-01 | HR2: 2025-01-01 | HS2: 2025-01-01 | HT2: 2025-02-01 | HU2: 2025-02-01 | HV2: 2025-03-01 | HW2: 2025-03-01 | HX2: 2025-04-01 | HY2: 2025-04-01 | HZ2: 2025-05-01 | IA2: 2025-05-01 | IB2: 2025-06-01 | IC2: 2025-06-01 | ID2: 2025-07-01 | IE2: 2025-07-01 | IF2: 2025-08-01 | IG2: 2025-08-01 | IH2: 2025-09-01 | II2: 2025-09-01 | IJ2: 2025-10-01 | IK2: 2025-10-01 | IL2: 2025-11-01 | IM2: 2025-11-01 | IN2: 2025-12-01 | IO2: 2025-12-01 | IP2: 2026-01-01 | IQ2: 2026-01-01 | IR2: 2026-02-01 | IS2: 2026-02-01 | IT2: 2026-03-01 | IU2: 2026-03-01 | IV2: 2026-04-01 | IW2: 2026-04-01 | IX2: 2026-05-01 | IY2: 2026-05-01 | IZ2: 2026-06-01 | JA2: 2026-06-01 | JB2: 2026-07-01 | JC2: 2026-07-01 | JD2: 2026-08-01 | JE2: 2026-08-01 | JF2: 2026-09-01 | JG2: 2026-09-01 | JH2: 2026-10-01 | JI2: 2026-10-01 | JJ2: 2026-11-01 | JK2: 2026-11-01 | JL2: 2026-12-01 | JM2: 2026-12-01 | JN2: 2027-01-01 | JO2: 2027-01-01 | JP2: 2027-02-01 | JQ2: 2027-02-01 | JR2: 2027-03-01 | JS2: 2027-03-01 | JT2: 2027-04-01 | JU2: 2027-04-01 | JV2: 2027-05-01 | JW2: 2027-05-01 | JX2: 2027-06-01 | JY2: 2027-06-01 | JZ2: 2027-07-01 | KA2: 2027-07-01 | KB2: 2027-08-01 | KC2: 2027-08-01 | KD2: 2027-09-01 | KE2: 2027-09-01 | KF2: 2027-10-01 | KG2: 2027-10-01 | KH2: 2027-11-01 | KI2: 2027-11-01 | KJ2: 2027-12-01 | KK2: 2027-12-01 | KL2: 2028-01-01 | KM2: 2028-01-01 | KN2: 2028-02-01 | KO2: 2028-02-01 | KP2: 2028-03-01 | KQ2: 2028-03-01 | KR2: 2028-04-01 | KS2: 2028-04-01 | KT2: 2028-05-01 | KU2: 2028-05-01 | KV2: 2028-06-01 | KW2: 2028-06-01 | KX2: 2028-07-01 | KY2: 2028-07-01 | KZ2: 2028-08-01 | LA2: 2028-08-01 | LB2: 2028-09-01 | LC2: 2028-09-01 | LD2: 2028-10-01 | LE2: 2028-10-01 | LF2: 2028-11-01 | LG2: 2028-11-01 | LH2: 2028-12-01 | LI2: 2028-12-01 | LJ2: 2029-01-01 | LK2: 2029-01-01 | LL2: 2029-02-01 | LM2: 2029-02-01 | LN2: 2029-03-01 | LO2: 2029-03-01 | LP2: 2029-04-01 | LQ2: 2029-04-01 | LR2: 2029-05-01 | LS2: 2029-05-01 | LT2: 2029-06-01 | LU2: 2029-06-01 | LV2: 2029-07-01 | LW2: 2029-07-01 | LX2: 2029-08-01 | LY2: 2029-08-01 | LZ2: 2029-09-01 | MA2: 2029-09-01 | MB2: 2029-10-01 | MC2: 2029-10-01 | MD2: 2029-11-01 | ME2: 2029-11-01 | MF2: 2029-12-01 | MG2: 2029-12-01 | MH2: 2030-01-01 | MI2: 2030-01-01 | MJ2: 2030-02-01 | MK2: 2030-02-01 | ML2: 2030-03-01 | MM2: 2030-03-01 | MN2: 2030-04-01 | MO2: 2030-04-01 | MP2: 2030-05-01 | MQ2: 2030-05-01 | MR2: 2030-06-01 | MS2: 2030-06-01 | MT2: 2030-07-01 | MU2: 2030-07-01 | MV2: 2030-08-01 | MW2: 2030-08-01 | MX2: 2030-09-01 | MY2: 2030-09-01 | MZ2: 2030-10-01 | NA2: 2030-10-01 | NB2: 2030-11-01 | NC2: 2030-11-01 | ND2: 2030-12-01 | NE2: 2030-12-01 | NF2: 2031-01-01 | NG2: 2031-01-01 | NH2: 2031-02-01 | NI2: 2031-02-01 | NJ2: 2031-03-01 | NK2: 2031-03-01 | NL2: 2031-04-01 | NM2: 2031-04-01 | NN2: 2031-05-01 | NO2: 2031-05-01 | NP2: 2031-06-01 | NQ2: 2031-06-01 | NR2: 2031-07-01 | NS2: 2031-07-01 | NT2: 2031-08-01 | NU2: 2031-08-01 | NV2: 2031-09-01 | NW2: 2031-09-01 | NX2: =DATE(YEAR(NV2),MONTH(NV2)+1,1) -> 2031-10-01 | NY2: 2031-10-01 | NZ2: 2031-11-01 | OA2: 2031-11-01 | OB2: 2031-12-01 | OC2: 2031-12-01 | OD2: 2032-01-01 | OE2: 2032-01-01 | OF2: 2032-02-01 | OG2: 2032-02-01 | OH2: 2032-03-01 | OI2: 2032-03-01 | OJ2: 2032-04-01 | OK2: 2032-04-01 | OL2: 2032-05-01 | OM2: 2032-05-01 | ON2: 2032-06-01 | OO2: 2032-06-01 | OP2: 2032-07-01 | OQ2: 2032-07-01 | OR2: 2032-08-01 | OS2: 2032-08-01 | OT2: 2032-09-01 | OU2: 2032-09-01 | OV2: 2032-10-01 | OW2: 2032-10-01 | OX2: 2032-11-01 | OY2: 2032-11-01 | OZ2: 2032-12-01 | PA2: 2032-12-01 | PB2: 2033-01-01 | PC2: 2033-01-01 | PD2: 2033-02-01 | PE2: 2033-02-01 | PF2: 2033-03-01 | PG2: 2033-03-01 | PH2: 2033-04-01 | PI2: 2033-04-01 | PJ2: 2033-05-01 | PK2: 2033-05-01 | PL2: 2033-06-01 | PM2: 2033-06-01 | PN2: 2033-07-01 | PO2: 2033-07-01 | PP2: 2033-08-01 | PQ2: 2033-08-01 | PR2: 2033-09-01 | PS2: 2033-09-01 | PT2: 2033-10-01 | PU2: 2033-10-01 | PV2: 2033-11-01 | PW2: 2033-11-01 | PX2: 2033-12-01 | PY2: 2033-12-01 | PZ2: 2034-01-01 | QA2: 2034-01-01 | QB2: 2034-02-01 | QC2: 2034-02-01 | QD2: 2034-03-01 | QE2: 2034-03-01 | QF2: 2034-04-01 | QG2: 2034-04-01 | QH2: 2034-05-01 | QI2: 2034-05-01 | QJ2: 2034-06-01 | QK2: 2034-06-01 | QL2: 2034-07-01 | QM2: 2034-07-01 | QN2: 2034-08-01 | QO2: 2034-08-01 | QP2: 2034-09-01 | QQ2: 2034-09-01 | QR2: 2034-10-01 | QS2: 2034-10-01 | QT2: 2034-11-01 | QU2: 2034-11-01 | QV2: 2034-12-01 | QW2: 2034-12-01 | QX2: 2035-01-01 | QY2: 2035-01-01 | QZ2: 2035-02-01 | RA2: 2035-02-01 | RB2: 2035-03-01 | RC2: 2035-03-01 | RD2: 2035-04-01 | RE2: 2035-04-01 | RF2: 2035-05-01 | RG2: 2035-05-01 | RH2: 2035-06-01 | RI2: 2035-06-01 | RJ2: 2035-07-01 | RK2: 2035-07-01 | RL2: 2035-08-01 | RM2: 2035-08-01 | RN2: 2035-09-01 | RO2: 2035-09-01 | RQ2: 2016 | RR2: 2017 | RS2: 2018 | RT2: 2019 | RU2: 2020 | RV2: 2021 | RW2: 2022 | RX2: 2023 | RY2: 2024 | RZ2: 2025 | SA2: 2026 | SB2: 2027 | SC2: 2028 | SD2: 2029 | SE2: 2030 | SF2: 2031 | SG2: 2032 | SH2: 2033 | SI2: 2034 | SJ2: 2035
B3: BESID | C3: AccountName | D3: HLH | E3: LLH | F3: HLH | G3: LLH | H3: HLH | I3: LLH | J3: HLH | K3: LLH | L3: HLH | M3: LLH | N3: HLH | O3: LLH | P3: HLH | Q3: LLH | R3: HLH | S3: LLH | T3: HLH | U3: LLH | V3: HLH | W3: LLH | X3: HLH | Y3: LLH | Z3: HLH | AA3: LLH | AB3: HLH | AC3: LLH | AD3: HLH | AE3: LLH | AF3: HLH | AG3: LLH | AH3: HLH | AI3: LLH | AJ3: HLH | AK3: LLH | AL3: HLH | AM3: LLH | AN3: HLH | AO3: LLH | AP3: HLH | AQ3: LLH | AR3: HLH | AS3: LLH | AT3: HLH | AU3: LLH | AV3: HLH | AW3: LLH | AX3: HLH | AY3: LLH | AZ3: HLH | BA3: LLH | BB3: HLH | BC3: LLH | BD3: HLH | BE3: LLH | BF3: HLH | BG3: LLH | BH3: HLH | BI3: LLH | BJ3: HLH | BK3: LLH | BL3: HLH | BM3: LLH | BN3: HLH | BO3: LLH | BP3: HLH | BQ3: LLH | BR3: HLH | BS3: LLH | BT3: HLH | BU3: LLH | BV3: HLH | BW3: LLH | BX3: HLH | BY3: LLH | BZ3: HLH | CA3: LLH | CB3: HLH | CC3: LLH | CD3: HLH | CE3: LLH | CF3: HLH | CG3: LLH | CH3: HLH | CI3: LLH | CJ3: HLH | CK3: LLH | CL3: HLH | CM3: LLH | CN3: HLH | CO3: LLH | CP3: HLH | CQ3: LLH | CR3: HLH | CS3: LLH | CT3: HLH | CU3: LLH | CV3: HLH | CW3: LLH | CX3: HLH | CY3: LLH | CZ3: HLH | DA3: LLH | DB3: HLH | DC3: LLH | DD3: HLH | DE3: LLH | DF3: HLH | DG3: LLH | DH3: HLH | DI3: LLH | DJ3: HLH | DK3: LLH | DL3: HLH | DM3: LLH | DN3: HLH | DO3: LLH | DP3: HLH | DQ3: LLH | DR3: HLH | DS3: LLH | DT3: HLH | DU3: LLH | DV3: HLH | DW3: LLH | DX3: HLH | DY3: LLH | DZ3: HLH | EA3: LLH | EB3: HLH | EC3: LLH | ED3: HLH | EE3: LLH | EF3: HLH | EG3: LLH | EH3: HLH | EI3: LLH | EJ3: HLH | EK3: LLH | EL3: HLH | EM3: LLH | EN3: HLH | EO3: LLH | EP3: HLH | EQ3: LLH | ER3: HLH | ES3: LLH | ET3: HLH | EU3: LLH | EV3: HLH | EW3: LLH | EX3: HLH | EY3: LLH | EZ3: HLH | FA3: LLH | FB3: HLH | FC3: LLH | FD3: HLH | FE3: LLH | FF3: HLH | FG3: LLH | FH3: HLH | FI3: LLH | FJ3: HLH | FK3: LLH | FL3: HLH | FM3: LLH | FN3: HLH | FO3: LLH | FP3: HLH | FQ3: LLH | FR3: HLH | FS3: LLH | FT3: HLH | FU3: LLH | FV3: HLH | FW3: LLH | FX3: HLH | FY3: LLH | FZ3: HLH | GA3: LLH | GB3: HLH | GC3: LLH | GD3: HLH | GE3: LLH | GF3: HLH | GG3: LLH | GH3: HLH | GI3: LLH | GJ3: HLH | GK3: LLH | GL3: HLH | GM3: LLH | GN3: HLH | GO3: LLH | GP3: HLH | GQ3: LLH | GR3: HLH | GS3: LLH | GT3: HLH | GU3: LLH | GV3: HLH | GW3: LLH | GX3: HLH | GY3: LLH | GZ3: HLH | HA3: LLH | HB3: HLH | HC3: LLH | HD3: HLH | HE3: LLH | HF3: HLH | HG3: LLH | HH3: HLH | HI3: LLH | HJ3: HLH | HK3: LLH | HL3: HLH | HM3: LLH | HN3: HLH | HO3: LLH | HP3: HLH | HQ3: LLH | HR3: HLH | HS3: LLH | HT3: HLH | HU3: LLH | HV3: HLH | HW3: LLH | HX3: HLH | HY3: LLH | HZ3: HLH | IA3: LLH | IB3: HLH | IC3: LLH | ID3: HLH | IE3: LLH | IF3: HLH | IG3: LLH | IH3: HLH | II3: LLH | IJ3: HLH | IK3: LLH | IL3: HLH | IM3: LLH | IN3: HLH | IO3: LLH | IP3: HLH | IQ3: LLH | IR3: HLH | IS3: LLH | IT3: HLH | IU3: LLH | IV3: HLH | IW3: LLH | IX3: HLH | IY3: LLH | IZ3: HLH | JA3: LLH | JB3: HLH | JC3: LLH | JD3: HLH | JE3: LLH | JF3: HLH | JG3: LLH | JH3: HLH | JI3: LLH | JJ3: HLH | JK3: LLH | JL3: HLH | JM3: LLH | JN3: HLH | JO3: LLH | JP3: HLH | JQ3: LLH | JR3: HLH | JS3: LLH | JT3: HLH | JU3: LLH | JV3: HLH | JW3: LLH | JX3: HLH | JY3: LLH | JZ3: HLH | KA3: LLH | KB3: HLH | KC3: LLH | KD3: HLH | KE3: LLH | KF3: HLH | KG3: LLH | KH3: HLH | KI3: LLH | KJ3: HLH | KK3: LLH | KL3: HLH | KM3: LLH | KN3: HLH | KO3: LLH | KP3: HLH | KQ3: LLH | KR3: HLH | KS3: LLH | KT3: HLH | KU3: LLH | KV3: HLH | KW3: LLH | KX3: HLH | KY3: LLH | KZ3: HLH | LA3: LLH | LB3: HLH | LC3: LLH | LD3: HLH | LE3: LLH | LF3: HLH | LG3: LLH | LH3: HLH | LI3: LLH | LJ3: HLH | LK3: LLH | LL3: HLH | LM3: LLH | LN3: HLH | LO3: LLH | LP3: HLH | LQ3: LLH | LR3: HLH | LS3: LLH | LT3: HLH | LU3: LLH | LV3: HLH | LW3: LLH | LX3: HLH | LY3: LLH | LZ3: HLH | MA3: LLH | MB3: HLH | MC3: LLH | MD3: HLH | ME3: LLH | MF3: HLH | MG3: LLH | MH3: HLH | MI3: LLH | MJ3: HLH | MK3: LLH | ML3: HLH | MM3: LLH | MN3: HLH | MO3: LLH | MP3: HLH | MQ3: LLH | MR3: HLH | MS3: LLH | MT3: HLH | MU3: LLH | MV3: HLH | MW3: LLH | MX3: HLH | MY3: LLH | MZ3: HLH | NA3: LLH | NB3: HLH | NC3: LLH | ND3: HLH | NE3: LLH | NF3: HLH | NG3: LLH | NH3: HLH | NI3: LLH | NJ3: HLH | NK3: LLH | NL3: HLH | NM3: LLH | NN3: HLH | NO3: LLH | NP3: HLH | NQ3: LLH | NR3: HLH | NS3: LLH | NT3: HLH | NU3: LLH | NV3: HLH | NW3: LLH | NX3: HLH | NY3: LLH | NZ3: HLH | OA3: LLH | OB3: HLH | OC3: LLH | OD3: HLH | OE3: LLH | OF3: HLH | OG3: LLH | OH3: HLH | OI3: LLH | OJ3: HLH | OK3: LLH | OL3: HLH | OM3: LLH | ON3: HLH | OO3: LLH | OP3: HLH | OQ3: LLH | OR3: HLH | OS3: LLH | OT3: HLH | OU3: LLH | OV3: HLH | OW3: LLH | OX3: HLH | OY3: LLH | OZ3: HLH | PA3: LLH | PB3: HLH | PC3: LLH | PD3: HLH | PE3: LLH | PF3: HLH | PG3: LLH | PH3: HLH | PI3: LLH | PJ3: HLH | PK3: LLH | PL3: HLH | PM3: LLH | PN3: HLH | PO3: LLH | PP3: HLH | PQ3: LLH | PR3: HLH | PS3: LLH | PT3: HLH | PU3: LLH | PV3: HLH | PW3: LLH | PX3: HLH | PY3: LLH | PZ3: HLH | QA3: LLH | QB3: HLH | QC3: LLH | QD3: HLH | QE3: LLH | QF3: HLH | QG3: LLH | QH3: HLH | QI3: LLH | QJ3: HLH | QK3: LLH | QL3: HLH | QM3: LLH | QN3: HLH | QO3: LLH | QP3: HLH | QQ3: LLH | QR3: HLH | QS3: LLH | QT3: HLH | QU3: LLH | QV3: HLH | QW3: LLH | QX3: HLH | QY3: LLH | QZ3: HLH | RA3: LLH | RB3: HLH | RC3: LLH | RD3: HLH | RE3: LLH | RF3: HLH | RG3: LLH | RH3: HLH | RI3: LLH | RJ3: HLH | RK3: LLH | RL3: HLH | RM3: LLH | RN3: HLH | RO3: LLH
B4: 10015 | C4: Asotin County PUD #1 | D4: 0 | E4: 0 | F4: 0 | G4: 0 | H4: 0 | I4: 0 | J4: 0 | K4: 0 | L4: 0 | M4: 0 | N4: 0 | O4: 0 | P4: 0 | Q4: 0 | R4: 0 | S4: 0 | T4: 0 | U4: 0 | V4: 0 | W4: 0 | X4: 0 | Y4: 0 | Z4: 0 | AA4: 0 | AB4: 0 | AC4: 0 | AD4: 0 | AE4: 0 | AF4: 0 | AG4: 0 | AH4: 0 | AI4: 0 | AJ4: 0 | AK4: 0 | AL4: 0 | AM4: 0 | AN4: 0 | AO4: 0 | AP4: 0 | AQ4: 0 | AR4: 0 | AS4: 0 | AT4: 0 | AU4: 0 | AV4: 0 | AW4: 0 | AX4: 0 | AY4: 0 | AZ4: 0 | BA4: 0 | BB4: 0 | BC4: 0 | BD4: 0 | BE4: 0 | BF4: 0 | BG4: 0 | BH4: 0 | BI4: 0 | BJ4: 0 | BK4: 0 | BL4: 0 | BM4: 0 | BN4: 0 | BO4: 0 | BP4: 0 | BQ4: 0 | BR4: 0 | BS4: 0 | BT4: 0 | BU4: 0 | BV4: 0 | BW4: 0 | BX4: 0 | BY4: 0 | BZ4: 0 | CA4: 0 | CB4: 0 | CC4: 0 | CD4: 0 | CE4: 0 | CF4: 0 | CG4: 0 | CH4: 0 | CI4: 0 | CJ4: 0 | CK4: 0 | CL4: 0 | CM4: 0 | CN4: 0 | CO4: 0 | CP4: 0 | CQ4: 0 | CR4: 0 | CS4: 0 | CT4: 0 | CU4: 0 | CV4: 0 | CW4: 0 | CX4: 0 | CY4: 0 | CZ4: 0 | DA4: 0 | DB4: 0 | DC4: 0 | DD4: 0 | DE4: 0 | DF4: 0 | DG4: 0 | DH4: 0 | DI4: 0 | DJ4: 0 | DK4: 0 | DL4: 0 | DM4: 0 | DN4: 0 | DO4: 0 | DP4: 0 | DQ4: 0 | DR4: 0 | DS4: 0 | DT4: 0 | DU4: 0 | DV4: 0 | DW4: 0 | DX4: 0 | DY4: 0 | DZ4: 0 | EA4: 0 | EB4: 0 | EC4: 0 | ED4: 0 | EE4: 0 | EF4: 0 | EG4: 0 | EH4: 0 | EI4: 0 | EJ4: 0 | EK4: 0 | EL4: 0 | EM4: 0 | EN4: 0 | EO4: 0 | EP4: 0 | EQ4: 0 | ER4: 0 | ES4: 0 | ET4: 0 | EU4: 0 | EV4: 0 | EW4: 0 | EX4: 0 | EY4: 0 | EZ4: 0 | FA4: 0 | FB4: 0 | FC4: 0 | FD4: 0 | FE4: 0 | FF4: 0 | FG4: 0 | FH4: 0 | FI4: 0 | FJ4: 0 | FK4: 0 | FL4: 0 | FM4: 0 | FN4: 0 | FO4: 0 | FP4: 0 | FQ4: 0 | FR4: 0 | FS4: 0 | FT4: 0 | FU4: 0 | FV4: 0 | FW4: 0 | FX4: 0 | FY4: 0 | FZ4: 0 | GA4: 0 | GB4: 0 | GC4: 0 | GD4: 0 | GE4: 0 | GF4: 0 | GG4: 0 | GH4: 0 | GI4: 0 | GJ4: 0 | GK4: 0 | GL4: 0 | GM4: 0 | GN4: 0 | GO4: 0 | GP4: 0 | GQ4: 0 | GR4: 0 | GS4: 0 | GT4: 0 | GU4: 0 | GV4: 0 | GW4: 0 | GX4: 0 | GY4: 0 | GZ4: 0 | HA4: 0 | HB4: 0 | HC4: 0 | HD4: 0 | HE4: 0 | HF4: 0 | HG4: 0 | HH4: 0 | HI4: 0 | HJ4: 0 | HK4: 0 | HL4: 0 | HM4: 0 | HN4: 0 | HO4: 0 | HP4: 0 | HQ4: 0 | HR4: 0 | HS4: 0 | HT4: 0 | HU4: 0 | HV4: 0 | HW4: 0 | HX4: 0 | HY4: 0 | HZ4: 0 | IA4: 0 | IB4: 0 | IC4: 0 | ID4: 0 | IE4: 0 | IF4: 0 | IG4: 0 | IH4: 0 | II4: 0 | IJ4: 0 | IK4: 0 | IL4: 0 | IM4: 0 | IN4: 0 | IO4: 0 | IP4: 0 | IQ4: 0 | IR4: 0 | IS4: 0 | IT4: 0 | IU4: 0 | IV4: 0 | IW4: 0 | IX4: 0 | IY4: 0 | IZ4: 0 | JA4: 0 | JB4: 0 | JC4: 0 | JD4: 0 | JE4: 0 | JF4: 0 | JG4: 0 | JH4: 0 | JI4: 0 | JJ4: 0 | JK4: 0 | JL4: 0 | JM4: 0 | JN4: 0 | JO4: 0 | JP4: 0 | JQ4: 0 | JR4: 0 | JS4: 0 | JT4: 0 | JU4: 0 | JV4: 0 | JW4: 0 | JX4: 0 | JY4: 0 | JZ4: 0 | KA4: 0 | KB4: 0 | KC4: 0 | KD4: 0 | KE4: 0 | KF4: 0 | KG4: 0 | KH4: 0 | KI4: 0 | KJ4: 0 | KK4: 0 | KL4: 0 | KM4: 0 | KN4: 0 | KO4: 0 | KP4: 0 | KQ4: 0 | KR4: 0 | KS4: 0 | KT4: 0 | KU4: 0 | KV4: 0 | KW4: 0 | KX4: 0 | KY4: 0 | KZ4: 0 | LA4: 0 | LB4: 0 | LC4: 0 | LD4: =+KF4 -> 0 | LE4: =+KG4 -> 0 | LF4: =+KH4 -> 0 | LG4: =+KI4 -> 0 | LH4: =+KJ4 -> 0 | LI4: =+KK4 -> 0 | LJ4: =+KL4 -> 0 | LK4: =+KM4 -> 0 | LL4: =+KN4 -> 0 | LM4: =+KO4 -> 0 | LN4: =+KP4 -> 0 | LO4: =+KQ4 -> 0 | LP4: =+KR4 -> 0 | LQ4: =+KS4 -> 0 | LR4: =+KT4 -> 0 | LS4: =+KU4 -> 0 | LT4: =+KV4 -> 0 | LU4: =+KW4 -> 0 | LV4: =+KX4 -> 0 | LW4: =+KY4 -> 0 | LX4: =+KZ4 -> 0 | LY4: =+LA4 -> 0 | LZ4: =+LB4 -> 0 | MA4: =+LC4 -> 0 | MB4: =+LD4 -> 0 | MC4: =+LE4 -> 0 | MD4: =+LF4 -> 0 | ME4: =+LG4 -> 0 | MF4: =+LH4 -> 0 | MG4: =+LI4 -> 0 | MH4: =+LJ4 -> 0 | MI4: =+LK4 -> 0 | MJ4: =+LL4 -> 0 | MK4: =+LM4 -> 0 | ML4: =+LN4 -> 0 | MM4: =+LO4 -> 0 | MN4: =+LP4 -> 0 | MO4: =+LQ4 -> 0 | MP4: =+LR4 -> 0 | MQ4: =+LS4 -> 0 | MR4: =+LT4 -> 0 | MS4: =+LU4 -> 0 | MT4: =+LV4 -> 0 | MU4: =+LW4 -> 0 | MV4: =+LX4 -> 0 | MW4: =+LY4 -> 0 | MX4: =+LZ4 -> 0 | MY4: =+MA4 -> 0 | MZ4: =+MB4 -> 0 | NA4: =+MC4 -> 0 | NB4: =+MD4 -> 0 | NC4: =+ME4 -> 0 | ND4: =+MF4 -> 0 | NE4: =+MG4 -> 0 | NF4: =+MH4 -> 0 | NG4: =+MI4 -> 0 | NH4: =+MJ4 -> 0 | NI4: =+MK4 -> 0 | NJ4: =+ML4 -> 0 | NK4: =+MM4 -> 0 | NL4: =+MN4 -> 0 | NM4: =+MO4 -> 0 | NN4: =+MP4 -> 0 | NO4: =+MQ4 -> 0 | NP4: =+MR4 -> 0 | NQ4: =+MS4 -> 0 | NR4: =+MT4 -> 0 | NS4: =+MU4 -> 0 | NT4: =+MV4 -> 0 | NU4: =+MW4 -> 0 | NV4: =+MX4 -> 0 | NW4: =+MY4 -> 0 | NX4: =+MZ4 -> 0 | NY4: =+NA4 -> 0 | NZ4: =+NB4 -> 0 | OA4: =+NC4 -> 0 | OB4: =+ND4 -> 0 | OC4: =+NE4 -> 0 | OD4: =+NF4 -> 0 | OE4: =+NG4 -> 0 | OF4: =+NH4 -> 0 | OG4: =+NI4 -> 0 | OH4: =+NJ4 -> 0 | OI4: =+NK4 -> 0 | OJ4: =+NL4 -> 0 | OK4: =+NM4 -> 0 | OL4: =+NN4 -> 0 | OM4: =+NO4 -> 0 | ON4: =+NP4 -> 0 | OO4: =+NQ4 -> 0 | OP4: =+NR4 -> 0 | OQ4: =+NS4 -> 0 | OR4: =+NT4 -> 0 | OS4: =+NU4 -> 0 | OT4: =+NV4 -> 0 | OU4: =+NW4 -> 0 | OV4: =+NX4 -> 0 | OW4: =+NY4 -> 0 | OX4: =+NZ4 -> 0 | OY4: =+OA4 -> 0 | OZ4: =+OB4 -> 0 | PA4: =+OC4 -> 0 | PB4: =+OD4 -> 0 | PC4: =+OE4 -> 0 | PD4: =+OF4 -> 0 | PE4: =+OG4 -> 0 | PF4: =+OH4 -> 0 | PG4: =+OI4 -> 0 | PH4: =+OJ4 -> 0 | PI4: =+OK4 -> 0 | PJ4: =+OL4 -> 0 | PK4: =+OM4 -> 0 | PL4: =+ON4 -> 0 | PM4: =+OO4 -> 0 | PN4: =+OP4 -> 0 | PO4: =+OQ4 -> 0 | PP4: =+OR4 -> 0 | PQ4: =+OS4 -> 0 | PR4: =+OT4 -> 0 | PS4: =+OU4 -> 0 | PT4: =+OV4 -> 0 | PU4: =+OW4 -> 0 | PV4: =+OX4 -> 0 | PW4: =+OY4 -> 0 | PX4: =+OZ4 -> 0 | PY4: =+PA4 -> 0 | PZ4: =+PB4 -> 0 | QA4: =+PC4 -> 0 | QB4: =+PD4 -> 0 | QC4: =+PE4 -> 0 | QD4: =+PF4 -> 0 | QE4: =+PG4 -> 0 | QF4: =+PH4 -> 0 | QG4: =+PI4 -> 0 | QH4: =+PJ4 -> 0 | QI4: =+PK4 -> 0 | QJ4: =+PL4 -> 0 | QK4: =+PM4 -> 0 | QL4: =+PN4 -> 0 | QM4: =+PO4 -> 0 | QN4: =+PP4 -> 0 | QO4: =+PQ4 -> 0 | QP4: =+PR4 -> 0 | QQ4: =+PS4 -> 0 | QR4: =+PT4 -> 0 | QS4: =+PU4 -> 0 | QT4: =+PV4 -> 0 | QU4: =+PW4 -> 0 | QV4: =+PX4 -> 0 | QW4: =+PY4 -> 0 | QX4: =+PZ4 -> 0 | QY4: =+QA4 -> 0 | QZ4: =+QB4 -> 0 | RA4: =+QC4 -> 0 | RB4: =+QD4 -> 0 | RC4: =+QE4 -> 0 | RD4: =+QF4 -> 0 | RE4: =+QG4 -> 0 | RF4: =+QH4 -> 0 | RG4: =+QI4 -> 0 | RH4: =+QJ4 -> 0 | RI4: =+QK4 -> 0 | RJ4: =+QL4 -> 0 | RK4: =+QM4 -> 0 | RL4: =+QN4 -> 0 | RM4: =+QO4 -> 0 | RN4: =+QP4 -> 0 | RO4: =+QQ4 -> 0 | RQ4: =+SUM(D4:AA4) -> 0 | RR4: =+SUM(AB4:AY4) -> 0 | RS4: =+SUM(AZ4:BW4) -> 0 | RT4: =+SUM(BX4:CU4) -> 0 | RU4: =+SUM(CV4:DS4) -> 0 | RV4: =+SUM(DT4:EQ4) -> 0 | RW4: =+SUM(ER4:FO4) -> 0 | RX4: =+SUM(FP4:GM4) -> 0 | RY4: =+SUM(GN4:HK4) -> 0 | RZ4: =+SUM(HL4:II4) -> 0 | SA4: =+SUM(IJ4:JG4) -> 0 | SB4: =+SUM(JH4:KE4) -> 0 | SC4: =+SUM(KF4:LC4) -> 0 | SD4: =+SUM(LD4:MA4) -> 0 | SE4: =+SUM(MB4:MY4) -> 0 | SF4: =+SUM(MZ4:NW4) -> 0 | SG4: =+SUM(NX4:OU4) -> 0 | SH4: =+SUM(OV4:PS4) -> 0 | SI4: =+SUM(PT4:QQ4) -> 0 | SJ4: =+SUM(QR4:RO4) -> 0
B5: 10024 | C5: Benton County PUD #1 | D5: 254 | E5: 183 | F5: 253 | G5: 221 | H5: 495 | I5: 390 | J5: 347 | K5: 299 | L5: 274 | M5: 203 | N5: 260 | O5: 187 | P5: 338 | Q5: 247 | R5: 661 | S5: 568 | T5: 664 | U5: 485 | V5: 414 | W5: 357 | X5: 321 | Y5: 231 | Z5: 230 | AA5: 183 | AB5: 245 | AC5: 192 | AD5: 263 | AE5: 211 | AF5: 495 | AG5: 390 | AH5: 347 | AI5: 299 | AJ5: 263 | AK5: 198 | AL5: 260 | AM5: 187 | AN5: 325 | AO5: 260 | AP5: 687 | AQ5: 542 | AR5: 664 | AS5: 485 | AT5: 414 | AU5: 357 | AV5: 321 | AW5: 231 | AX5: 230 | AY5: 183 | AZ5: 245 | BA5: 192 | BB5: 263 | BC5: 211 | BD5: 476 | BE5: 409 | BF5: 361 | BG5: 285 | BH5: 263 | BI5: 198 | BJ5: 260 | BK5: 187 | BL5: 325 | BM5: 260 | BN5: 687 | BO5: 542 | BP5: 664 | BQ5: 485 | BR5: 414 | BS5: 357 | BT5: 321 | BU5: 231 | BV5: 220 | BW5: 193 | BX5: 254 | BY5: 183 | BZ5: 263 | CA5: 211 | CB5: 476 | CC5: 409 | CD5: 361 | CE5: 285 | CF5: 263 | CG5: 198 | CH5: 250 | CI5: 197 | CJ5: 338 | CK5: 247 | CL5: 687 | CM5: 542 | CN5: 638 | CO5: 511 | CP5: 431 | CQ5: 340 | CR5: 321 | CS5: 231 | CT5: 220 | CU5: 193 | CV5: 254 | CW5: 183 | CX5: 263 | CY5: 211 | CZ5: 476 | DA5: 409 | DB5: 361 | DC5: 285 | DD5: 274 | DE5: 203 | DF5: 250 | DG5: 197 | DH5: 338 | DI5: 247 | DJ5: 661 | DK5: 568 | DL5: 664 | DM5: 485 | DN5: 431 | DO5: 340 | DP5: 309 | DQ5: 243 | DR5: 230 | DS5: 183 | DT5: 254 | DU5: 183 | DV5: 253 | DW5: 221 | DX5: 495 | DY5: 390 | DZ5: 347 | EA5: 299 | EB5: 263 | EC5: 198 | ED5: 260 | EE5: 187 | EF5: 338 | EG5: 247 | EH5: 661 | EI5: 568 | EJ5: 664 | EK5: 485 | EL5: 431 | EM5: 340 | EN5: 309 | EO5: 243 | EP5: 230 | EQ5: 183 | ER5: 245 | ES5: 192 | ET5: 263 | EU5: 211 | EV5: 495 | EW5: 390 | EX5: 347 | EY5: 299 | EZ5: 263 | FA5: 198 | FB5: 260 | FC5: 187 | FD5: 338 | FE5: 247 | FF5: 661 | FG5: 568 | FH5: 664 | FI5: 485 | FJ5: 414 | FK5: 357 | FL5: 321 | FM5: 231 | FN5: 230 | FO5: 183 | FP5: 245 | FQ5: 192 | FR5: 263 | FS5: 211 | FT5: 495 | FU5: 390 | FV5: 347 | FW5: 299 | FX5: 263 | FY5: 198 | FZ5: 260 | GA5: 187 | GB5: 325 | GC5: 260 | GD5: 687 | GE5: 542 | GF5: 664 | GG5: 485 | GH5: 414 | GI5: 357 | GJ5: 321 | GK5: 231 | GL5: 230 | GM5: 183 | GN5: 245 | GO5: 192 | GP5: 263 | GQ5: 211 | GR5: 476 | GS5: 409 | GT5: 361 | GU5: 285 | GV5: 274 | GW5: 203 | GX5: 250 | GY5: 197 | GZ5: 338 | HA5: 247 | HB5: 687 | HC5: 542 | HD5: 638 | HE5: 511 | HF5: 431 | HG5: 340 | HH5: 321 | HI5: 231 | HJ5: 220 | HK5: 193 | HL5: 254 | HM5: 183 | HN5: 263 | HO5: 211 | HP5: 476 | HQ5: 409 | HR5: 361 | HS5: 285 | HT5: 263 | HU5: 198 | HV5: 250 | HW5: 197 | HX5: 338 | HY5: 247 | HZ5: 687 | IA5: 542 | IB5: 638 | IC5: 511 | ID5: 431 | IE5: 340 | IF5: 309 | IG5: 243 | IH5: 230 | II5: 183 | IJ5: 254 | IK5: 183 | IL5: 253 | IM5: 221 | IN5: 495 | IO5: 390 | IP5: 361 | IQ5: 285 | IR5: 263 | IS5: 198 | IT5: 250 | IU5: 197 | IV5: 338 | IW5: 247 | IX5: 661 | IY5: 568 | IZ5: 664 | JA5: 485 | JB5: 431 | JC5: 340 | JD5: 309 | JE5: 243 | JF5: 230 | JG5: 183 | JH5: 254 | JI5: 183 | JJ5: 253 | JK5: 221 | JL5: 495 | JM5: 390 | JN5: 347 | JO5: 299 | JP5: 263 | JQ5: 198 | JR5: 260 | JS5: 187 | JT5: 338 | JU5: 247 | JV5: 661 | JW5: 568 | JX5: 664 | JY5: 485 | JZ5: 431 | KA5: 340 | KB5: 309 | KC5: 243 | KD5: 230 | KE5: 183 | KF5: 245 | KG5: 192 | KH5: 263 | KI5: 211 | KJ5: 495 | KK5: 390 | KL5: 347 | KM5: 299 | KN5: 274 | KO5: 203 | KP5: 260 | KQ5: 187 | KR5: 325 | KS5: 260 | KT5: 687 | KU5: 542 | KV5: 664 | KW5: 485 | KX5: 414 | KY5: 357 | KZ5: 321 | LA5: 231 | LB5: 230 | LC5: 183 | LD5: =+KF5 -> 245 | LE5: 192 | LF5: 263 | LG5: 211 | LH5: 495 | LI5: 390 | LJ5: 347 | LK5: 299 | LL5: 274 | LM5: 203 | LN5: 260 | LO5: 187 | LP5: 325 | LQ5: 260 | LR5: 687 | LS5: 542 | LT5: 664 | LU5: 485 | LV5: 414 | LW5: 357 | LX5: 321 | LY5: 231 | LZ5: 230 | MA5: 183 | MB5: 245 | MC5: 192 | MD5: 263 | ME5: 211 | MF5: 495 | MG5: 390 | MH5: 347 | MI5: 299 | MJ5: 274 | MK5: 203 | ML5: 260 | MM5: 187 | MN5: 325 | MO5: 260 | MP5: 687 | MQ5: 542 | MR5: 664 | MS5: 485 | MT5: 414 | MU5: 357 | MV5: 321 | MW5: 231 | MX5: 230 | MY5: 183 | MZ5: 245 | NA5: 192 | NB5: 263 | NC5: 211 | ND5: 495 | NE5: 390 | NF5: 347 | NG5: 299 | NH5: 274 | NI5: 203 | NJ5: 260 | NK5: 187 | NL5: 325 | NM5: 260 | NN5: 687 | NO5: 542 | NP5: 664 | NQ5: 485 | NR5: 414 | NS5: 357 | NT5: 321 | NU5: 231 | NV5: 230 | NW5: 183 | NX5: 245 | NY5: 192 | NZ5: 263 | OA5: 211 | OB5: 495 | OC5: 390 | OD5: 347 | OE5: 299 | OF5: 274 | OG5: 203 | OH5: 260 | OI5: 187 | OJ5: 325 | OK5: 260 | OL5: 687 | OM5: 542 | ON5: 664 | OO5: 485 | OP5: 414 | OQ5: 357 | OR5: 321 | OS5: 231 | OT5: 230 | OU5: 183 | OV5: 245 | OW5: 192 | OX5: 263 | OY5: 211 | OZ5: 495 | PA5: 390 | PB5: 347 | PC5: 299 | PD5: 274 | PE5: 203 | PF5: 260 | PG5: 187 | PH5: 325 | PI5: 260 | PJ5: 687 | PK5: 542 | PL5: 664 | PM5: 485 | PN5: 414 | PO5: 357 | PP5: 321 | PQ5: 231 | PR5: 230 | PS5: 183 | PT5: 245 | PU5: 192 | PV5: 263 | PW5: 211 | PX5: 495 | PY5: 390 | PZ5: 347 | QA5: 299 | QB5: 274 | QC5: 203 | QD5: 260 | QE5: 187 | QF5: 325 | QG5: 260 | QH5: 687 | QI5: 542 | QJ5: 664 | QK5: 485 | QL5: 414 | QM5: 357 | QN5: 321 | QO5: 231 | QP5: 230 | QQ5: 183 | QR5: 245 | QS5: 192 | QT5: 263 | QU5: 211 | QV5: 495 | QW5: 390 | QX5: 347 | QY5: 299 | QZ5: 274 | RA5: 203 | RB5: 260 | RC5: 187 | RD5: 325 | RE5: 260 | RF5: 687 | RG5: 542 | RH5: 664 | RI5: 485 | RJ5: 414 | RK5: 357 | RL5: 321 | RM5: 231 | RN5: 230 | RO5: 183 | RQ5: 8065 | RR5: 8049 | RS5: 8049 | RT5: 8049 | RU5: 8065 | RV5: 8049 | RW5: 8049 | RX5: 8049 | RY5: 8065 | RZ5: 8049 | SA5: 8049 | SB5: 8049 | SC5: 8065 | SD5: 8065 | SE5: 8065 | SF5: 8065 | SG5: 8065 | SH5: 8065 | SI5: 8065 | SJ5: 8065
B6: 10025 | C6: Benton REA | D6: 0 | E6: 0 | F6: 0 | G6: 0 | H6: 0 | I6: 0 | J6: 0 | K6: 0 | L6: 0 | M6: 0 | N6: 0 | O6: 0 | P6: 0 | Q6: 0 | R6: 0 | S6: 0 | T6: 0 | U6: 0 | V6: 0 | W6: 0 | X6: 0 | Y6: 0 | Z6: 0 | AA6: 0 | AB6: 0 | AC6: 0 | AD6: 0 | AE6: 0 | AF6: 0 | AG6: 0 | AH6: 0 | AI6: 0 | AJ6: 0 | AK6: 0 | AL6: 0 | AM6: 0 | AN6: 0 | AO6: 0 | AP6: 0 | AQ6: 0 | AR6: 0 | AS6: 0 | AT6: 0 | AU6: 0 | AV6: 0 | AW6: 0 | AX6: 0 | AY6: 0 | AZ6: 0 | BA6: 0 | BB6: 0 | BC6: 0 | BD6: 0 | BE6: 0 | BF6: 0 | BG6: 0 | BH6: 0 | BI6: 0 | BJ6: 0 | BK6: 0 | BL6: 0 | BM6: 0 | BN6: 0 | BO6: 0 | BP6: 0 | BQ6: 0 | BR6: 0 | BS6: 0 | BT6: 0 | BU6: 0 | BV6: 0 | BW6: 0 | BX6: 0 | BY6: 0 | BZ6: 0 | CA6: 0 | CB6: 0 | CC6: 0 | CD6: 0 | CE6: 0 | CF6: 0 | CG6: 0 | CH6: 0 | CI6: 0 | CJ6: 0 | CK6: 0 | CL6: 0 | CM6: 0 | CN6: 0 | CO6: 0 | CP6: 0 | CQ6: 0 | CR6: 0 | CS6: 0 | CT6: 0 | CU6: 0 | CV6: 0 | CW6: 0 | CX6: 0 | CY6: 0 | CZ6: 0 | DA6: 0 | DB6: 0 | DC6: 0 | DD6: 0 | DE6: 0 | DF6: 0 | DG6: 0 | DH6: 0 | DI6: 0 | DJ6: 0 | DK6: 0 | DL6: 0 | DM6: 0 | DN6: 0 | DO6: 0 | DP6: 0 | DQ6: 0 | DR6: 0 | DS6: 0 | DT6: 0 | DU6: 0 | DV6: 0 | DW6: 0 | DX6: 0 | DY6: 0 | DZ6: 0 | EA6: 0 | EB6: 0 | EC6: 0 | ED6: 0 | EE6: 0 | EF6: 0 | EG6: 0 | EH6: 0 | EI6: 0 | EJ6: 0 | EK6: 0 | EL6: 0 | EM6: 0 | EN6: 0 | EO6: 0 | EP6: 0 | EQ6: 0 | ER6: 0 | ES6: 0 | ET6: 0 | EU6: 0 | EV6: 0 | EW6: 0 | EX6: 0 | EY6: 0 | EZ6: 0 | FA6: 0 | FB6: 0 | FC6: 0 | FD6: 0 | FE6: 0 | FF6: 0 | FG6: 0 | FH6: 0 | FI6: 0 | FJ6: 0 | FK6: 0 | FL6: 0 | FM6: 0 | FN6: 0 | FO6: 0 | FP6: 0 | FQ6: 0 | FR6: 0 | FS6: 0 | FT6: 0 | FU6: 0 | FV6: 0 | FW6: 0 | FX6: 0 | FY6: 0 | FZ6: 0 | GA6: 0 | GB6: 0 | GC6: 0 | GD6: 0 | GE6: 0 | GF6: 0 | GG6: 0 | GH6: 0 | GI6: 0 | GJ6: 0 | GK6: 0 | GL6: 0 | GM6: 0 | GN6: 0 | GO6: 0 | GP6: 0 | GQ6: 0 | GR6: 0 | GS6: 0 | GT6: 0 | GU6: 0 | GV6: 0 | GW6: 0 | GX6: 0 | GY6: 0 | GZ6: 0 | HA6: 0 | HB6: 0 | HC6: 0 | HD6: 0 | HE6: 0 | HF6: 0 | HG6: 0 | HH6: 0 | HI6: 0 | HJ6: 0 | HK6: 0 | HL6: 0 | HM6: 0 | HN6: 0 | HO6: 0 | HP6: 0 | HQ6: 0 | HR6: 0 | HS6: 0 | HT6: 0 | HU6: 0 | HV6: 0 | HW6: 0 | HX6: 0 | HY6: 0 | HZ6: 0 | IA6: 0 | IB6: 0 | IC6: 0 | ID6: 0 | IE6: 0 | IF6: 0 | IG6: 0 | IH6: 0 | II6: 0 | IJ6: 0 | IK6: 0 | IL6: 0 | IM6: 0 | IN6: 0 | IO6: 0 | IP6: 0 | IQ6: 0 | IR6: 0 | IS6: 0 | IT6: 0 | IU6: 0 | IV6: 0 | IW6: 0 | IX6: 0 | IY6: 0 | IZ6: 0 | JA6: 0 | JB6: 0 | JC6: 0 | JD6: 0 | JE6: 0 | JF6: 0 | JG6: 0 | JH6: 0 | JI6: 0 | JJ6: 0 | JK6: 0 | JL6: 0 | JM6: 0 | JN6: 0 | JO6: 0 | JP6: 0 | JQ6: 0 | JR6: 0 | JS6: 0 | JT6: 0 | JU6: 0 | JV6: 0 | JW6: 0 | JX6: 0 | JY6: 0 | JZ6: 0 | KA6: 0 | KB6: 0 | KC6: 0 | KD6: 0 | KE6: 0 | KF6: 0 | KG6: 0 | KH6: 0 | KI6: 0 | KJ6: 0 | KK6: 0 | KL6: 0 | KM6: 0 | KN6: 0 | KO6: 0 | KP6: 0 | KQ6: 0 | KR6: 0 | KS6: 0 | KT6: 0 | KU6: 0 | KV6: 0 | KW6: 0 | KX6: 0 | KY6: 0 | KZ6: 0 | LA6: 0 | LB6: 0 | LC6: 0 | LD6: 0 | LE6: 0 | LF6: 0 | LG6: 0 | LH6: 0 | LI6: 0 | LJ6: 0 | LK6: 0 | LL6: 0 | LM6: 0 | LN6: 0 | LO6: 0 | LP6: 0 | LQ6: 0 | LR6: 0 | LS6: 0 | LT6: 0 | LU6: 0 | LV6: 0 | LW6: 0 | LX6: 0 | LY6: 0 | LZ6: 0 | MA6: 0 | MB6: 0 | MC6: 0 | MD6: 0 | ME6: 0 | MF6: 0 | MG6: 0 | MH6: 0 | MI6: 0 | MJ6: 0 | MK6: 0 | ML6: 0 | MM6: 0 | MN6: 0 | MO6: 0 | MP6: 0 | MQ6: 0 | MR6: 0 | MS6: 0 | MT6: 0 | MU6: 0 | MV6: 0 | MW6: 0 | MX6: 0 | MY6: 0 | MZ6: 0 | NA6: 0 | NB6: 0 | NC6: 0 | ND6: 0 | NE6: 0 | NF6: 0 | NG6: 0 | NH6: 0 | NI6: 0 | NJ6: 0 | NK6: 0 | NL6: 0 | NM6: 0 | NN6: 0 | NO6: 0 | NP6: 0 | NQ6: 0 | NR6: 0 | NS6: 0 | NT6: 0 | NU6: 0 | NV6: 0 | NW6: 0 | NX6: 0 | NY6: 0 | NZ6: 0 | OA6: 0 | OB6: 0 | OC6: 0 | OD6: 0 | OE6: 0 | OF6: 0 | OG6: 0 | OH6: 0 | OI6: 0 | OJ6: 0 | OK6: 0 | OL6: 0 | OM6: 0 | ON6: 0 | OO6: 0 | OP6: 0 | OQ6: 0 | OR6: 0 | OS6: 0 | OT6: 0 | OU6: 0 | OV6: 0 | OW6: 0 | OX6: 0 | OY6: 0 | OZ6: 0 | PA6: 0 | PB6: 0 | PC6: 0 | PD6: 0 | PE6: 0 | PF6: 0 | PG6: 0 | PH6: 0 | PI6: 0 | PJ6: 0 | PK6: 0 | PL6: 0 | PM6: 0 | PN6: 0 | PO6: 0 | PP6: 0 | PQ6: 0 | PR6: 0 | PS6: 0 | PT6: 0 | PU6: 0 | PV6: 0 | PW6: 0 | PX6: 0 | PY6: 0 | PZ6: 0 | QA6: 0 | QB6: 0 | QC6: 0 | QD6: 0 | QE6: 0 | QF6: 0 | QG6: 0 | QH6: 0 | QI6: 0 | QJ6: 0 | QK6: 0 | QL6: 0 | QM6: 0 | QN6: 0 | QO6: 0 | QP6: 0 | QQ6: 0 | QR6: 0 | QS6: 0 | QT6: 0 | QU6: 0 | QV6: 0 | QW6: 0 | QX6: 0 | QY6: 0 | QZ6: 0 | RA6: 0 | RB6: 0 | RC6: 0 | RD6: 0 | RE6: 0 | RF6: 0 | RG6: 0 | RH6: 0 | RI6: 0 | RJ6: 0 | RK6: 0 | RL6: 0 | RM6: 0 | RN6: 0 | RO6: 0 | RQ6: 0 | RR6: 0 | RS6: 0 | RT6: 0 | RU6: 0 | RV6: 0 | RW6: 0 | RX6: 0 | RY6: 0 | RZ6: 0 | SA6: 0 | SB6: 0 | SC6: 0 | SD6: 0 | SE6: 0 | SF6: 0 | SG6: 0 | SH6: 0 | SI6: 0 | SJ6: 0
B7: 10027 | C7: Big Bend Elec Coop | D7: 0 | E7: 0 | F7: 0 | G7: 0 | H7: 0 | I7: 0 | J7: 0 | K7: 0 | L7: 0 | M7: 0 | N7: 0 | O7: 0 | P7: 0 | Q7: 0 | R7: 0 | S7: 0 | T7: 0 | U7: 0 | V7: 0 | W7: 0 | X7: 0 | Y7: 0 | Z7: 0 | AA7: 0 | AB7: 0 | AC7: 0 | AD7: 0 | AE7: 0 | AF7: 0 | AG7: 0 | AH7: 0 | AI7: 0 | AJ7: 0 | AK7: 0 | AL7: 0 | AM7: 0 | AN7: 0 | AO7: 0 | AP7: 0 | AQ7: 0 | AR7: 0 | AS7: 0 | AT7: 0 | AU7: 0 | AV7: 0 | AW7: 0 | AX7: 0 | AY7: 0 | AZ7: 0 | BA7: 0 | BB7: 0 | BC7: 0 | BD7: 0 | BE7: 0 | BF7: 0 | BG7: 0 | BH7: 0 | BI7: 0 | BJ7: 0 | BK7: 0 | BL7: 0 | BM7: 0 | BN7: 0 | BO7: 0 | BP7: 0 | BQ7: 0 | BR7: 0 | BS7: 0 | BT7: 0 | BU7: 0 | BV7: 0 | BW7: 0 | BX7: 0 | BY7: 0 | BZ7: 0 | CA7: 0 | CB7: 0 | CC7: 0 | CD7: 0 | CE7: 0 | CF7: 0 | CG7: 0 | CH7: 0 | CI7: 0 | CJ7: 0 | CK7: 0 | CL7: 0 | CM7: 0 | CN7: 0 | CO7: 0 | CP7: 0 | CQ7: 0 | CR7: 0 | CS7: 0 | CT7: 0 | CU7: 0 | CV7: 0 | CW7: 0 | CX7: 0 | CY7: 0 | CZ7: 0 | DA7: 0 | DB7: 0 | DC7: 0 | DD7: 0 | DE7: 0 | DF7: 0 | DG7: 0 | DH7: 0 | DI7: 0 | DJ7: 0 | DK7: 0 | DL7: 0 | DM7: 0 | DN7: 0 | DO7: 0 | DP7: 0 | DQ7: 0 | DR7: 0 | DS7: 0 | DT7: 0 | DU7: 0 | DV7: 0 | DW7: 0 | DX7: 0 | DY7: 0 | DZ7: 0 | EA7: 0 | EB7: 0 | EC7: 0 | ED7: 0 | EE7: 0 | EF7: 0 | EG7: 0 | EH7: 0 | EI7: 0 | EJ7: 0 | EK7: 0 | EL7: 0 | EM7: 0 | EN7: 0 | EO7: 0 | EP7: 0 | EQ7: 0 | ER7: 0 | ES7: 0 | ET7: 0 | EU7: 0 | EV7: 0 | EW7: 0 | EX7: 0 | EY7: 0 | EZ7: 0 | FA7: 0 | FB7: 0 | FC7: 0 | FD7: 0 | FE7: 0 | FF7: 0 | FG7: 0 | FH7: 0 | FI7: 0 | FJ7: 0 | FK7: 0 | FL7: 0 | FM7: 0 | FN7: 0 | FO7: 0 | FP7: 0 | FQ7: 0 | FR7: 0 | FS7: 0 | FT7: 0 | FU7: 0 | FV7: 0 | FW7: 0 | FX7: 0 | FY7: 0 | FZ7: 0 | GA7: 0 | GB7: 0 | GC7: 0 | GD7: 0 | GE7: 0 | GF7: 0 | GG7: 0 | GH7: 0 | GI7: 0 | GJ7: 0 | GK7: 0 | GL7: 0 | GM7: 0 | GN7: 0 | GO7: 0 | GP7: 0 | GQ7: 0 | GR7: 0 | GS7: 0 | GT7: 0 | GU7: 0 | GV7: 0 | GW7: 0 | GX7: 0 | GY7: 0 | GZ7: 0 | HA7: 0 | HB7: 0 | HC7: 0 | HD7: 0 | HE7: 0 | HF7: 0 | HG7: 0 | HH7: 0 | HI7: 0 | HJ7: 0 | HK7: 0 | HL7: 0 | HM7: 0 | HN7: 0 | HO7: 0 | HP7: 0 | HQ7: 0 | HR7: 0 | HS7: 0 | HT7: 0 | HU7: 0 | HV7: 0 | HW7: 0 | HX7: 0 | HY7: 0 | HZ7: 0 | IA7: 0 | IB7: 0 | IC7: 0 | ID7: 0 | IE7: 0 | IF7: 0 | IG7: 0 | IH7: 0 | II7: 0 | IJ7: 0 | IK7: 0 | IL7: 0 | IM7: 0 | IN7: 0 | IO7: 0 | IP7: 0 | IQ7: 0 | IR7: 0 | IS7: 0 | IT7: 0 | IU7: 0 | IV7: 0 | IW7: 0 | IX7: 0 | IY7: 0 | IZ7: 0 | JA7: 0 | JB7: 0 | JC7: 0 | JD7: 0 | JE7: 0 | JF7: 0 | JG7: 0 | JH7: 0 | JI7: 0 | JJ7: 0 | JK7: 0 | JL7: 0 | JM7: 0 | JN7: 0 | JO7: 0 | JP7: 0 | JQ7: 0 | JR7: 0 | JS7: 0 | JT7: 0 | JU7: 0 | JV7: 0 | JW7: 0 | JX7: 0 | JY7: 0 | JZ7: 0 | KA7: 0 | KB7: 0 | KC7: 0 | KD7: 0 | KE7: 0 | KF7: 0 | KG7: 0 | KH7: 0 | KI7: 0 | KJ7: 0 | KK7: 0 | KL7: 0 | KM7: 0 | KN7: 0 | KO7: 0 | KP7: 0 | KQ7: 0 | KR7: 0 | KS7: 0 | KT7: 0 | KU7: 0 | KV7: 0 | KW7: 0 | KX7: 0 | KY7: 0 | KZ7: 0 | LA7: 0 | LB7: 0 | LC7: 0 | LD7: 0 | LE7: 0 | LF7: 0 | LG7: 0 | LH7: 0 | LI7: 0 | LJ7: 0 | LK7: 0 | LL7: 0 | LM7: 0 | LN7: 0 | LO7: 0 | LP7: 0 | LQ7: 0 | LR7: 0 | LS7: 0 | LT7: 0 | LU7: 0 | LV7: 0 | LW7: 0 | LX7: 0 | LY7: 0 | LZ7: 0 | MA7: 0 | MB7: 0 | MC7: 0 | MD7: 0 | ME7: 0 | MF7: 0 | MG7: 0 | MH7: 0 | MI7: 0 | MJ7: 0 | MK7: 0 | ML7: 0 | MM7: 0 | MN7: 0 | MO7: 0 | MP7: 0 | MQ7: 0 | MR7: 0 | MS7: 0 | MT7: 0 | MU7: 0 | MV7: 0 | MW7: 0 | MX7: 0 | MY7: 0 | MZ7: 0 | NA7: 0 | NB7: 0 | NC7: 0 | ND7: 0 | NE7: 0 | NF7: 0 | NG7: 0 | NH7: 0 | NI7: 0 | NJ7: 0 | NK7: 0 | NL7: 0 | NM7: 0 | NN7: 0 | NO7: 0 | NP7: 0 | NQ7: 0 | NR7: 0 | NS7: 0 | NT7: 0 | NU7: 0 | NV7: 0 | NW7: 0 | NX7: 0 | NY7: 0 | NZ7: 0 | OA7: 0 | OB7: 0 | OC7: 0 | OD7: 0 | OE7: 0 | OF7: 0 | OG7: 0 | OH7: 0 | OI7: 0 | OJ7: 0 | OK7: 0 | OL7: 0 | OM7: 0 | ON7: 0 | OO7: 0 | OP7: 0 | OQ7: 0 | OR7: 0 | OS7: 0 | OT7: 0 | OU7: 0 | OV7: 0 | OW7: 0 | OX7: 0 | OY7: 0 | OZ7: 0 | PA7: 0 | PB7: 0 | PC7: 0 | PD7: 0 | PE7: 0 | PF7: 0 | PG7: 0 | PH7: 0 | PI7: 0 | PJ7: 0 | PK7: 0 | PL7: 0 | PM7: 0 | PN7: 0 | PO7: 0 | PP7: 0 | PQ7: 0 | PR7: 0 | PS7: 0 | PT7: 0 | PU7: 0 | PV7: 0 | PW7: 0 | PX7: 0 | PY7: 0 | PZ7: 0 | QA7: 0 | QB7: 0 | QC7: 0 | QD7: 0 | QE7: 0 | QF7: 0 | QG7: 0 | QH7: 0 | QI7: 0 | QJ7: 0 | QK7: 0 | QL7: 0 | QM7: 0 | QN7: 0 | QO7: 0 | QP7: 0 | QQ7: 0 | QR7: 0 | QS7: 0 | QT7: 0 | QU7: 0 | QV7: 0 | QW7: 0 | QX7: 0 | QY7: 0 | QZ7: 0 | RA7: 0 | RB7: 0 | RC7: 0 | RD7: 0 | RE7: 0 | RF7: 0 | RG7: 0 | RH7: 0 | RI7: 0 | RJ7: 0 | RK7: 0 | RL7: 0 | RM7: 0 | RN7: 0 | RO7: 0 | RQ7: 0 | RR7: 0 | RS7: 0 | RT7: 0 | RU7: 0 | RV7: 0 | RW7: 0 | RX7: 0 | RY7: 0 | RZ7: 0 | SA7: 0 | SB7: 0 | SC7: 0 | SD7: 0 | SE7: 0 | SF7: 0 | SG7: 0 | SH7: 0 | SI7: 0 | SJ7: 0
... 8 more rows

Sheet I_ER_other
B1: Existing Resources - Other (SNEERS, CORs, Green Exception)
A2: TOC | D2: 2015-10-01 | E2: 2015-10-01 | F2: 2015-11-01 | G2: 2015-11-01 | H2: 2015-12-01 | I2: 2015-12-01 | J2: 2016-01-01 | K2: 2016-01-01 | L2: 2016-02-01 | M2: 2016-02-01 | N2: 2016-03-01 | O2: 2016-03-01 | P2: 2016-04-01 | Q2: 2016-04-01 | R2: 2016-05-01 | S2: 2016-05-01 | T2: 2016-06-01 | U2: 2016-06-01 | V2: 2016-07-01 | W2: 2016-07-01 | X2: 2016-08-01 | Y2: 2016-08-01 | Z2: 2016-09-01 | AA2: 2016-09-01 | AB2: 2016-10-01 | AC2: 2016-10-01 | AD2: 2016-11-01 | AE2: 2016-11-01 | AF2: 2016-12-01 | AG2: 2016-12-01 | AH2: 2017-01-01 | AI2: 2017-01-01 | AJ2: 2017-02-01 | AK2: 2017-02-01 | AL2: 2017-03-01 | AM2: 2017-03-01 | AN2: 2017-04-01 | AO2: 2017-04-01 | AP2: 2017-05-01 | AQ2: 2017-05-01 | AR2: 2017-06-01 | AS2: 2017-06-01 | AT2: 2017-07-01 | AU2: 2017-07-01 | AV2: 2017-08-01 | AW2: 2017-08-01 | AX2: 2017-09-01 | AY2: 2017-09-01 | AZ2: 2017-10-01 | BA2: 2017-10-01 | BB2: 2017-11-01 | BC2: 2017-11-01 | BD2: 2017-12-01 | BE2: 2017-12-01 | BF2: 2018-01-01 | BG2: 2018-01-01 | BH2: 2018-02-01 | BI2: 2018-02-01 | BJ2: 2018-03-01 | BK2: 2018-03-01 | BL2: 2018-04-01 | BM2: 2018-04-01 | BN2: 2018-05-01 | BO2: 2018-05-01 | BP2: 2018-06-01 | BQ2: 2018-06-01 | BR2: 2018-07-01 | BS2: 2018-07-01 | BT2: 2018-08-01 | BU2: 2018-08-01 | BV2: 2018-09-01 | BW2: 2018-09-01 | BX2: 2018-10-01 | BY2: 2018-10-01 | BZ2: 2018-11-01 | CA2: 2018-11-01 | CB2: 2018-12-01 | CC2: 2018-12-01 | CD2: 2019-01-01 | CE2: 2019-01-01 | CF2: 2019-02-01 | CG2: 2019-02-01 | CH2: 2019-03-01 | CI2: 2019-03-01 | CJ2: 2019-04-01 | CK2: 2019-04-01 | CL2: 2019-05-01 | CM2: 2019-05-01 | CN2: 2019-06-01 | CO2: 2019-06-01 | CP2: 2019-07-01 | CQ2: 2019-07-01 | CR2: 2019-08-01 | CS2: 2019-08-01 | CT2: 2019-09-01 | CU2: 2019-09-01 | CV2: 2019-10-01 | CW2: 2019-10-01 | CX2: 2019-11-01 | CY2: 2019-11-01 | CZ2: 2019-12-01 | DA2: 2019-12-01 | DB2: 2020-01-01 | DC2: 2020-01-01 | DD2: 2020-02-01 | DE2: 2020-02-01 | DF2: 2020-03-01 | DG2: 2020-03-01 | DH2: 2020-04-01 | DI2: 2020-04-01 | DJ2: 2020-05-01 | DK2: 2020-05-01 | DL2: 2020-06-01 | DM2: 2020-06-01 | DN2: 2020-07-01 | DO2: 2020-07-01 | DP2: 2020-08-01 | DQ2: 2020-08-01 | DR2: 2020-09-01 | DS2: 2020-09-01 | DT2: 2020-10-01 | DU2: 2020-10-01 | DV2: 2020-11-01 | DW2: 2020-11-01 | DX2: 2020-12-01 | DY2: 2020-12-01 | DZ2: 2021-01-01 | EA2: 2021-01-01 | EB2: 2021-02-01 | EC2: 2021-02-01 | ED2: 2021-03-01 | EE2: 2021-03-01 | EF2: 2021-04-01 | EG2: 2021-04-01 | EH2: 2021-05-01 | EI2: 2021-05-01 | EJ2: 2021-06-01 | EK2: 2021-06-01 | EL2: 2021-07-01 | EM2: 2021-07-01 | EN2: 2021-08-01 | EO2: 2021-08-01 | EP2: 2021-09-01 | EQ2: 2021-09-01 | ER2: 2021-10-01 | ES2: 2021-10-01 | ET2: 2021-11-01 | EU2: 2021-11-01 | EV2: 2021-12-01 | EW2: 2021-12-01 | EX2: 2022-01-01 | EY2: 2022-01-01 | EZ2: 2022-02-01 | FA2: 2022-02-01 | FB2: 2022-03-01 | FC2: 2022-03-01 | FD2: 2022-04-01 | FE2: 2022-04-01 | FF2: 2022-05-01 | FG2: 2022-05-01 | FH2: 2022-06-01 | FI2: 2022-06-01 | FJ2: 2022-07-01 | FK2: 2022-07-01 | FL2: 2022-08-01 | FM2: 2022-08-01 | FN2: 2022-09-01 | FO2: 2022-09-01 | FP2: 2022-10-01 | FQ2: 2022-10-01 | FR2: 2022-11-01 | FS2: 2022-11-01 | FT2: 2022-12-01 | FU2: 2022-12-01 | FV2: 2023-01-01 | FW2: 2023-01-01 | FX2: 2023-02-01 | FY2: 2023-02-01 | FZ2: 2023-03-01 | GA2: 2023-03-01 | GB2: 2023-04-01 | GC2: 2023-04-01 | GD2: 2023-05-01 | GE2: 2023-05-01 | GF2: 2023-06-01 | GG2: 2023-06-01 | GH2: 2023-07-01 | GI2: 2023-07-01 | GJ2: 2023-08-01 | GK2: 2023-08-01 | GL2: 2023-09-01 | GM2: 2023-09-01 | GN2: 2023-10-01 | GO2: 2023-10-01 | GP2: 2023-11-01 | GQ2: 2023-11-01 | GR2: 2023-12-01 | GS2: 2023-12-01 | GT2: 2024-01-01 | GU2: 2024-01-01 | GV2: 2024-02-01 | GW2: 2024-02-01 | GX2: 2024-03-01 | GY2: 2024-03-01 | GZ2: 2024-04-01 | HA2: 2024-04-01 | HB2: 2024-05-01 | HC2: 2024-05-01 | HD2: 2024-06-01 | HE2: 2024-06-01 | HF2: 2024-07-01 | HG2: 2024-07-01 | HH2: 2024-08-01 | HI2: 2024-08-01 | HJ2: 2024-09-01 | HK2: 2024-09-01 | HL2: 2024-10-01 | HM2: 2024-10-01 | HN2: 2024-11-01 | HO2: 2024-11-01 | HP2: 2024-12-01 | HQ2: 2024-12-01 | HR2: 2025-01-01 | HS2: 2025-01-01 | HT2: 2025-02-01 | HU2: 2025-02-01 | HV2: 2025-03-01 | HW2: 2025-03-01 | HX2: 2025-04-01 | HY2: 2025-04-01 | HZ2: 2025-05-01 | IA2: 2025-05-01 | IB2: 2025-06-01 | IC2: 2025-06-01 | ID2: 2025-07-01 | IE2: 2025-07-01 | IF2: 2025-08-01 | IG2: 2025-08-01 | IH2: 2025-09-01 | II2: 2025-09-01 | IJ2: 2025-10-01 | IK2: 2025-10-01 | IL2: 2025-11-01 | IM2: 2025-11-01 | IN2: 2025-12-01 | IO2: 2025-12-01 | IP2: 2026-01-01 | IQ2: 2026-01-01 | IR2: 2026-02-01 | IS2: 2026-02-01 | IT2: 2026-03-01 | IU2: 2026-03-01 | IV2: 2026-04-01 | IW2: 2026-04-01 | IX2: 2026-05-01 | IY2: 2026-05-01 | IZ2: 2026-06-01 | JA2: 2026-06-01 | JB2: 2026-07-01 | JC2: 2026-07-01 | JD2: 2026-08-01 | JE2: 2026-08-01 | JF2: 2026-09-01 | JG2: 2026-09-01 | JH2: 2026-10-01 | JI2: 2026-10-01 | JJ2: 2026-11-01 | JK2: 2026-11-01 | JL2: 2026-12-01 | JM2: 2026-12-01 | JN2: 2027-01-01 | JO2: 2027-01-01 | JP2: 2027-02-01 | JQ2: 2027-02-01 | JR2: 2027-03-01 | JS2: 2027-03-01 | JT2: 2027-04-01 | JU2: 2027-04-01 | JV2: 2027-05-01 | JW2: 2027-05-01 | JX2: 2027-06-01 | JY2: 2027-06-01 | JZ2: 2027-07-01 | KA2: 2027-07-01 | KB2: 2027-08-01 | KC2: 2027-08-01 | KD2: 2027-09-01 | KE2: 2027-09-01 | KF2: 2027-10-01 | KG2: 2027-10-01 | KH2: 2027-11-01 | KI2: 2027-11-01 | KJ2: 2027-12-01 | KK2: 2027-12-01 | KL2: 2028-01-01 | KM2: 2028-01-01 | KN2: 2028-02-01 | KO2: 2028-02-01 | KP2: 2028-03-01 | KQ2: 2028-03-01 | KR2: 2028-04-01 | KS2: 2028-04-01 | KT2: 2028-05-01 | KU2: 2028-05-01 | KV2: 2028-06-01 | KW2: 2028-06-01 | KX2: 2028-07-01 | KY2: 2028-07-01 | KZ2: 2028-08-01 | LA2: 2028-08-01 | LB2: 2028-09-01 | LC2: 2028-09-01 | LD2: 2028-10-01 | LE2: 2028-10-01 | LF2: 2028-11-01 | LG2: 2028-11-01 | LH2: 2028-12-01 | LI2: 2028-12-01 | LJ2: 2029-01-01 | LK2: 2029-01-01 | LL2: 2029-02-01 | LM2: 2029-02-01 | LN2: 2029-03-01 | LO2: 2029-03-01 | LP2: 2029-04-01 | LQ2: 2029-04-01 | LR2: 2029-05-01 | LS2: 2029-05-01 | LT2: 2029-06-01 | LU2: 2029-06-01 | LV2: 2029-07-01 | LW2: 2029-07-01 | LX2: 2029-08-01 | LY2: 2029-08-01 | LZ2: 2029-09-01 | MA2: 2029-09-01 | MB2: 2029-10-01 | MC2: 2029-10-01 | MD2: 2029-11-01 | ME2: 2029-11-01 | MF2: 2029-12-01 | MG2: 2029-12-01 | MH2: 2030-01-01 | MI2: 2030-01-01 | MJ2: 2030-02-01 | MK2: 2030-02-01 | ML2: 2030-03-01 | MM2: 2030-03-01 | MN2: 2030-04-01 | MO2: 2030-04-01 | MP2: 2030-05-01 | MQ2: 2030-05-01 | MR2: 2030-06-01 | MS2: 2030-06-01 | MT2: 2030-07-01 | MU2: 2030-07-01 | MV2: 2030-08-01 | MW2: 2030-08-01 | MX2: 2030-09-01 | MY2: 2030-09-01 | MZ2: 2030-10-01 | NA2: 2030-10-01 | NB2: 2030-11-01 | NC2: 2030-11-01 | ND2: 2030-12-01 | NE2: 2030-12-01 | NF2: 2031-01-01 | NG2: 2031-01-01 | NH2: 2031-02-01 | NI2: 2031-02-01 | NJ2: 2031-03-01 | NK2: 2031-03-01 | NL2: 2031-04-01 | NM2: 2031-04-01 | NN2: 2031-05-01 | NO2: 2031-05-01 | NP2: 2031-06-01 | NQ2: 2031-06-01 | NR2: 2031-07-01 | NS2: 2031-07-01 | NT2: 2031-08-01 | NU2: 2031-08-01 | NV2: 2031-09-01 | NW2: 2031-09-01 | NX2: =DATE(YEAR(NV2),MONTH(NV2)+1,1) -> 2031-10-01 | NY2: 2031-10-01 | NZ2: 2031-11-01 | OA2: 2031-11-01 | OB2: 2031-12-01 | OC2: 2031-12-01 | OD2: 2032-01-01 | OE2: 2032-01-01 | OF2: 2032-02-01 | OG2: 2032-02-01 | OH2: 2032-03-01 | OI2: 2032-03-01 | OJ2: 2032-04-01 | OK2: 2032-04-01 | OL2: 2032-05-01 | OM2: 2032-05-01 | ON2: 2032-06-01 | OO2: 2032-06-01 | OP2: 2032-07-01 | OQ2: 2032-07-01 | OR2: 2032-08-01 | OS2: 2032-08-01 | OT2: 2032-09-01 | OU2: 2032-09-01 | OV2: 2032-10-01 | OW2: 2032-10-01 | OX2: 2032-11-01 | OY2: 2032-11-01 | OZ2: 2032-12-01 | PA2: 2032-12-01 | PB2: 2033-01-01 | PC2: 2033-01-01 | PD2: 2033-02-01 | PE2: 2033-02-01 | PF2: 2033-03-01 | PG2: 2033-03-01 | PH2: 2033-04-01 | PI2: 2033-04-01 | PJ2: 2033-05-01 | PK2: 2033-05-01 | PL2: 2033-06-01 | PM2: 2033-06-01 | PN2: 2033-07-01 | PO2: 2033-07-01 | PP2: 2033-08-01 | PQ2: 2033-08-01 | PR2: 2033-09-01 | PS2: 2033-09-01 | PT2: 2033-10-01 | PU2: 2033-10-01 | PV2: 2033-11-01 | PW2: 2033-11-01 | PX2: 2033-12-01 | PY2: 2033-12-01 | PZ2: 2034-01-01 | QA2: 2034-01-01 | QB2: 2034-02-01 | QC2: 2034-02-01 | QD2: 2034-03-01 | QE2: 2034-03-01 | QF2: 2034-04-01 | QG2: 2034-04-01 | QH2: 2034-05-01 | QI2: 2034-05-01 | QJ2: 2034-06-01 | QK2: 2034-06-01 | QL2: 2034-07-01 | QM2: 2034-07-01 | QN2: 2034-08-01 | QO2: 2034-08-01 | QP2: 2034-09-01 | QQ2: 2034-09-01 | QR2: 2034-10-01 | QS2: 2034-10-01 | QT2: 2034-11-01 | QU2: 2034-11-01 | QV2: 2034-12-01 | QW2: 2034-12-01 | QX2: 2035-01-01 | QY2: 2035-01-01 | QZ2: 2035-02-01 | RA2: 2035-02-01 | RB2: 2035-03-01 | RC2: 2035-03-01 | RD2: 2035-04-01 | RE2: 2035-04-01 | RF2: 2035-05-01 | RG2: 2035-05-01 | RH2: 2035-06-01 | RI2: 2035-06-01 | RJ2: 2035-07-01 | RK2: 2035-07-01 | RL2: 2035-08-01 | RM2: 2035-08-01 | RN2: 2035-09-01 | RO2: 2035-09-01 | RQ2: 2016 | RR2: 2017 | RS2: 2018 | RT2: 2019 | RU2: 2020 | RV2: 2021 | RW2: 2022 | RX2: 2023 | RY2: 2024 | RZ2: 2025 | SA2: 2026 | SB2: 2027 | SC2: 2028 | SD2: 2029 | SE2: 2030 | SF2: 2031 | SG2: 2032 | SH2: 2033 | SI2: 2034 | SJ2: 2035
B3: BESID | C3: AccountName | D3: HLH | E3: LLH | F3: HLH | G3: LLH | H3: HLH | I3: LLH | J3: HLH | K3: LLH | L3: HLH | M3: LLH | N3: HLH | O3: LLH | P3: HLH | Q3: LLH | R3: HLH | S3: LLH | T3: HLH | U3: LLH | V3: HLH | W3: LLH | X3: HLH | Y3: LLH | Z3: HLH | AA3: LLH | AB3: HLH | AC3: LLH | AD3: HLH | AE3: LLH | AF3: HLH | AG3: LLH | AH3: HLH | AI3: LLH | AJ3: HLH | AK3: LLH | AL3: HLH | AM3: LLH | AN3: HLH | AO3: LLH | AP3: HLH | AQ3: LLH | AR3: HLH | AS3: LLH | AT3: HLH | AU3: LLH | AV3: HLH | AW3: LLH | AX3: HLH | AY3: LLH | AZ3: HLH | BA3: LLH | BB3: HLH | BC3: LLH | BD3: HLH | BE3: LLH | BF3: HLH | BG3: LLH | BH3: HLH | BI3: LLH | BJ3: HLH | BK3: LLH | BL3: HLH | BM3: LLH | BN3: HLH | BO3: LLH | BP3: HLH | BQ3: LLH | BR3: HLH | BS3: LLH | BT3: HLH | BU3: LLH | BV3: HLH | BW3: LLH | BX3: HLH | BY3: LLH | BZ3: HLH | CA3: LLH | CB3: HLH | CC3: LLH | CD3: HLH | CE3: LLH | CF3: HLH | CG3: LLH | CH3: HLH | CI3: LLH | CJ3: HLH | CK3: LLH | CL3: HLH | CM3: LLH | CN3: HLH | CO3: LLH | CP3: HLH | CQ3: LLH | CR3: HLH | CS3: LLH | CT3: HLH | CU3: LLH | CV3: HLH | CW3: LLH | CX3: HLH | CY3: LLH | CZ3: HLH | DA3: LLH | DB3: HLH | DC3: LLH | DD3: HLH | DE3: LLH | DF3: HLH | DG3: LLH | DH3: HLH | DI3: LLH | DJ3: HLH | DK3: LLH | DL3: HLH | DM3: LLH | DN3: HLH | DO3: LLH | DP3: HLH | DQ3: LLH | DR3: HLH | DS3: LLH | DT3: HLH | DU3: LLH | DV3: HLH | DW3: LLH | DX3: HLH | DY3: LLH | DZ3: HLH | EA3: LLH | EB3: HLH | EC3: LLH | ED3: HLH | EE3: LLH | EF3: HLH | EG3: LLH | EH3: HLH | EI3: LLH | EJ3: HLH | EK3: LLH | EL3: HLH | EM3: LLH | EN3: HLH | EO3: LLH | EP3: HLH | EQ3: LLH | ER3: HLH | ES3: LLH | ET3: HLH | EU3: LLH | EV3: HLH | EW3: LLH | EX3: HLH | EY3: LLH | EZ3: HLH | FA3: LLH | FB3: HLH | FC3: LLH | FD3: HLH | FE3: LLH | FF3: HLH | FG3: LLH | FH3: HLH | FI3: LLH | FJ3: HLH | FK3: LLH | FL3: HLH | FM3: LLH | FN3: HLH | FO3: LLH | FP3: HLH | FQ3: LLH | FR3: HLH | FS3: LLH | FT3: HLH | FU3: LLH | FV3: HLH | FW3: LLH | FX3: HLH | FY3: LLH | FZ3: HLH | GA3: LLH | GB3: HLH | GC3: LLH | GD3: HLH | GE3: LLH | GF3: HLH | GG3: LLH | GH3: HLH | GI3: LLH | GJ3: HLH | GK3: LLH | GL3: HLH | GM3: LLH | GN3: HLH | GO3: LLH | GP3: HLH | GQ3: LLH | GR3: HLH | GS3: LLH | GT3: HLH | GU3: LLH | GV3: HLH | GW3: LLH | GX3: HLH | GY3: LLH | GZ3: HLH | HA3: LLH | HB3: HLH | HC3: LLH | HD3: HLH | HE3: LLH | HF3: HLH | HG3: LLH | HH3: HLH | HI3: LLH | HJ3: HLH | HK3: LLH | HL3: HLH | HM3: LLH | HN3: HLH | HO3: LLH | HP3: HLH | HQ3: LLH | HR3: HLH | HS3: LLH | HT3: HLH | HU3: LLH | HV3: HLH | HW3: LLH | HX3: HLH | HY3: LLH | HZ3: HLH | IA3: LLH | IB3: HLH | IC3: LLH | ID3: HLH | IE3: LLH | IF3: HLH | IG3: LLH | IH3: HLH | II3: LLH | IJ3: HLH | IK3: LLH | IL3: HLH | IM3: LLH | IN3: HLH | IO3: LLH | IP3: HLH | IQ3: LLH | IR3: HLH | IS3: LLH | IT3: HLH | IU3: LLH | IV3: HLH | IW3: LLH | IX3: HLH | IY3: LLH | IZ3: HLH | JA3: LLH | JB3: HLH | JC3: LLH | JD3: HLH | JE3: LLH | JF3: HLH | JG3: LLH | JH3: HLH | JI3: LLH | JJ3: HLH | JK3: LLH | JL3: HLH | JM3: LLH | JN3: HLH | JO3: LLH | JP3: HLH | JQ3: LLH | JR3: HLH | JS3: LLH | JT3: HLH | JU3: LLH | JV3: HLH | JW3: LLH | JX3: HLH | JY3: LLH | JZ3: HLH | KA3: LLH | KB3: HLH | KC3: LLH | KD3: HLH | KE3: LLH | KF3: HLH | KG3: LLH | KH3: HLH | KI3: LLH | KJ3: HLH | KK3: LLH | KL3: HLH | KM3: LLH | KN3: HLH | KO3: LLH | KP3: HLH | KQ3: LLH | KR3: HLH | KS3: LLH | KT3: HLH | KU3: LLH | KV3: HLH | KW3: LLH | KX3: HLH | KY3: LLH | KZ3: HLH | LA3: LLH | LB3: HLH | LC3: LLH | LD3: HLH | LE3: LLH | LF3: HLH | LG3: LLH | LH3: HLH | LI3: LLH | LJ3: HLH | LK3: LLH | LL3: HLH | LM3: LLH | LN3: HLH | LO3: LLH | LP3: HLH | LQ3: LLH | LR3: HLH | LS3: LLH | LT3: HLH | LU3: LLH | LV3: HLH | LW3: LLH | LX3: HLH | LY3: LLH | LZ3: HLH | MA3: LLH | MB3: HLH | MC3: LLH | MD3: HLH | ME3: LLH | MF3: HLH | MG3: LLH | MH3: HLH | MI3: LLH | MJ3: HLH | MK3: LLH | ML3: HLH | MM3: LLH | MN3: HLH | MO3: LLH | MP3: HLH | MQ3: LLH | MR3: HLH | MS3: LLH | MT3: HLH | MU3: LLH | MV3: HLH | MW3: LLH | MX3: HLH | MY3: LLH | MZ3: HLH | NA3: LLH | NB3: HLH | NC3: LLH | ND3: HLH | NE3: LLH | NF3: HLH | NG3: LLH | NH3: HLH | NI3: LLH | NJ3: HLH | NK3: LLH | NL3: HLH | NM3: LLH | NN3: HLH | NO3: LLH | NP3: HLH | NQ3: LLH | NR3: HLH | NS3: LLH | NT3: HLH | NU3: LLH | NV3: HLH | NW3: LLH | NX3: HLH | NY3: LLH | NZ3: HLH | OA3: LLH | OB3: HLH | OC3: LLH | OD3: HLH | OE3: LLH | OF3: HLH | OG3: LLH | OH3: HLH | OI3: LLH | OJ3: HLH | OK3: LLH | OL3: HLH | OM3: LLH | ON3: HLH | OO3: LLH | OP3: HLH | OQ3: LLH | OR3: HLH | OS3: LLH | OT3: HLH | OU3: LLH | OV3: HLH | OW3: LLH | OX3: HLH | OY3: LLH | OZ3: HLH | PA3: LLH | PB3: HLH | PC3: LLH | PD3: HLH | PE3: LLH | PF3: HLH | PG3: LLH | PH3: HLH | PI3: LLH | PJ3: HLH | PK3: LLH | PL3: HLH | PM3: LLH | PN3: HLH | PO3: LLH | PP3: HLH | PQ3: LLH | PR3: HLH | PS3: LLH | PT3: HLH | PU3: LLH | PV3: HLH | PW3: LLH | PX3: HLH | PY3: LLH | PZ3: HLH | QA3: LLH | QB3: HLH | QC3: LLH | QD3: HLH | QE3: LLH | QF3: HLH | QG3: LLH | QH3: HLH | QI3: LLH | QJ3: HLH | QK3: LLH | QL3: HLH | QM3: LLH | QN3: HLH | QO3: LLH | QP3: HLH | QQ3: LLH | QR3: HLH | QS3: LLH | QT3: HLH | QU3: LLH | QV3: HLH | QW3: LLH | QX3: HLH | QY3: LLH | QZ3: HLH | RA3: LLH | RB3: HLH | RC3: LLH | RD3: HLH | RE3: LLH | RF3: HLH | RG3: LLH | RH3: HLH | RI3: LLH | RJ3: HLH | RK3: LLH | RL3: HLH | RM3: LLH | RN3: HLH | RO3: LLH
B4: 10015 | C4: Asotin County PUD #1 | D4: 0 | E4: 0 | F4: 0 | G4: 0 | H4: 0 | I4: 0 | J4: 0 | K4: 0 | L4: 0 | M4: 0 | N4: 0 | O4: 0 | P4: 0 | Q4: 0 | R4: 0 | S4: 0 | T4: 0 | U4: 0 | V4: 0 | W4: 0 | X4: 0 | Y4: 0 | Z4: 0 | AA4: 0 | AB4: 0 | AC4: 0 | AD4: 0 | AE4: 0 | AF4: 0 | AG4: 0 | AH4: 0 | AI4: 0 | AJ4: 0 | AK4: 0 | AL4: 0 | AM4: 0 | AN4: 0 | AO4: 0 | AP4: 0 | AQ4: 0 | AR4: 0 | AS4: 0 | AT4: 0 | AU4: 0 | AV4: 0 | AW4: 0 | AX4: 0 | AY4: 0 | AZ4: 0 | BA4: 0 | BB4: 0 | BC4: 0 | BD4: 0 | BE4: 0 | BF4: 0 | BG4: 0 | BH4: 0 | BI4: 0 | BJ4: 0 | BK4: 0 | BL4: 0 | BM4: 0 | BN4: 0 | BO4: 0 | BP4: 0 | BQ4: 0 | BR4: 0 | BS4: 0 | BT4: 0 | BU4: 0 | BV4: 0 | BW4: 0 | BX4: 0 | BY4: 0 | BZ4: 0 | CA4: 0 | CB4: 0 | CC4: 0 | CD4: 0 | CE4: 0 | CF4: 0 | CG4: 0 | CH4: 0 | CI4: 0 | CJ4: 0 | CK4: 0 | CL4: 0 | CM4: 0 | CN4: 0 | CO4: 0 | CP4: 0 | CQ4: 0 | CR4: 0 | CS4: 0 | CT4: 0 | CU4: 0 | CV4: 0 | CW4: 0 | CX4: 0 | CY4: 0 | CZ4: 0 | DA4: 0 | DB4: 0 | DC4: 0 | DD4: 0 | DE4: 0 | DF4: 0 | DG4: 0 | DH4: 0 | DI4: 0 | DJ4: 0 | DK4: 0 | DL4: 0 | DM4: 0 | DN4: 0 | DO4: 0 | DP4: 0 | DQ4: 0 | DR4: 0 | DS4: 0 | DT4: 0 | DU4: 0 | DV4: 0 | DW4: 0 | DX4: 0 | DY4: 0 | DZ4: 0 | EA4: 0 | EB4: 0 | EC4: 0 | ED4: 0 | EE4: 0 | EF4: 0 | EG4: 0 | EH4: 0 | EI4: 0 | EJ4: 0 | EK4: 0 | EL4: 0 | EM4: 0 | EN4: 0 | EO4: 0 | EP4: 0 | EQ4: 0 | ER4: 0 | ES4: 0 | ET4: 0 | EU4: 0 | EV4: 0 | EW4: 0 | EX4: 0 | EY4: 0 | EZ4: 0 | FA4: 0 | FB4: 0 | FC4: 0 | FD4: 0 | FE4: 0 | FF4: 0 | FG4: 0 | FH4: 0 | FI4: 0 | FJ4: 0 | FK4: 0 | FL4: 0 | FM4: 0 | FN4: 0 | FO4: 0 | FP4: 0 | FQ4: 0 | FR4: 0 | FS4: 0 | FT4: 0 | FU4: 0 | FV4: 0 | FW4: 0 | FX4: 0 | FY4: 0 | FZ4: 0 | GA4: 0 | GB4: 0 | GC4: 0 | GD4: 0 | GE4: 0 | GF4: 0 | GG4: 0 | GH4: 0 | GI4: 0 | GJ4: 0 | GK4: 0 | GL4: 0 | GM4: 0 | GN4: 0 | GO4: 0 | GP4: 0 | GQ4: 0 | GR4: 0 | GS4: 0 | GT4: 0 | GU4: 0 | GV4: 0 | GW4: 0 | GX4: 0 | GY4: 0 | GZ4: 0 | HA4: 0 | HB4: 0 | HC4: 0 | HD4: 0 | HE4: 0 | HF4: 0 | HG4: 0 | HH4: 0 | HI4: 0 | HJ4: 0 | HK4: 0 | HL4: 0 | HM4: 0 | HN4: 0 | HO4: 0 | HP4: 0 | HQ4: 0 | HR4: 0 | HS4: 0 | HT4: 0 | HU4: 0 | HV4: 0 | HW4: 0 | HX4: 0 | HY4: 0 | HZ4: 0 | IA4: 0 | IB4: 0 | IC4: 0 | ID4: 0 | IE4: 0 | IF4: 0 | IG4: 0 | IH4: 0 | II4: 0 | IJ4: 0 | IK4: 0 | IL4: 0 | IM4: 0 | IN4: 0 | IO4: 0 | IP4: 0 | IQ4: 0 | IR4: 0 | IS4: 0 | IT4: 0 | IU4: 0 | IV4: 0 | IW4: 0 | IX4: 0 | IY4: 0 | IZ4: 0 | JA4: 0 | JB4: 0 | JC4: 0 | JD4: 0 | JE4: 0 | JF4: 0 | JG4: 0 | JH4: 0 | JI4: 0 | JJ4: 0 | JK4: 0 | JL4: 0 | JM4: 0 | JN4: 0 | JO4: 0 | JP4: 0 | JQ4: 0 | JR4: 0 | JS4: 0 | JT4: 0 | JU4: 0 | JV4: 0 | JW4: 0 | JX4: 0 | JY4: 0 | JZ4: 0 | KA4: 0 | KB4: 0 | KC4: 0 | KD4: 0 | KE4: 0 | KF4: 0 | KG4: 0 | KH4: 0 | KI4: 0 | KJ4: 0 | KK4: 0 | KL4: 0 | KM4: 0 | KN4: 0 | KO4: 0 | KP4: 0 | KQ4: 0 | KR4: 0 | KS4: 0 | KT4: 0 | KU4: 0 | KV4: 0 | KW4: 0 | KX4: 0 | KY4: 0 | KZ4: 0 | LA4: 0 | LB4: 0 | LC4: 0 | LD4: =+KF4 -> 0 | LE4: =+KG4 -> 0 | LF4: =+KH4 -> 0 | LG4: =+KI4 -> 0 | LH4: =+KJ4 -> 0 | LI4: =+KK4 -> 0 | LJ4: =+KL4 -> 0 | LK4: =+KM4 -> 0 | LL4: =+KN4 -> 0 | LM4: =+KO4 -> 0 | LN4: =+KP4 -> 0 | LO4: =+KQ4 -> 0 | LP4: =+KR4 -> 0 | LQ4: =+KS4 -> 0 | LR4: =+KT4 -> 0 | LS4: =+KU4 -> 0 | LT4: =+KV4 -> 0 | LU4: =+KW4 -> 0 | LV4: =+KX4 -> 0 | LW4: =+KY4 -> 0 | LX4: =+KZ4 -> 0 | LY4: =+LA4 -> 0 | LZ4: =+LB4 -> 0 | MA4: =+LC4 -> 0 | MB4: =+LD4 -> 0 | MC4: =+LE4 -> 0 | MD4: =+LF4 -> 0 | ME4: =+LG4 -> 0 | MF4: =+LH4 -> 0 | MG4: =+LI4 -> 0 | MH4: =+LJ4 -> 0 | MI4: =+LK4 -> 0 | MJ4: =+LL4 -> 0 | MK4: =+LM4 -> 0 | ML4: =+LN4 -> 0 | MM4: =+LO4 -> 0 | MN4: =+LP4 -> 0 | MO4: =+LQ4 -> 0 | MP4: =+LR4 -> 0 | MQ4: =+LS4 -> 0 | MR4: =+LT4 -> 0 | MS4: =+LU4 -> 0 | MT4: =+LV4 -> 0 | MU4: =+LW4 -> 0 | MV4: =+LX4 -> 0 | MW4: =+LY4 -> 0 | MX4: =+LZ4 -> 0 | MY4: =+MA4 -> 0 | MZ4: =+MB4 -> 0 | NA4: =+MC4 -> 0 | NB4: =+MD4 -> 0 | NC4: =+ME4 -> 0 | ND4: =+MF4 -> 0 | NE4: =+MG4 -> 0 | NF4: =+MH4 -> 0 | NG4: =+MI4 -> 0 | NH4: =+MJ4 -> 0 | NI4: =+MK4 -> 0 | NJ4: =+ML4 -> 0 | NK4: =+MM4 -> 0 | NL4: =+MN4 -> 0 | NM4: =+MO4 -> 0 | NN4: =+MP4 -> 0 | NO4: =+MQ4 -> 0 | NP4: =+MR4 -> 0 | NQ4: =+MS4 -> 0 | NR4: =+MT4 -> 0 | NS4: =+MU4 -> 0 | NT4: =+MV4 -> 0 | NU4: =+MW4 -> 0 | NV4: =+MX4 -> 0 | NW4: =+MY4 -> 0 | NX4: =+MZ4 -> 0 | NY4: =+NA4 -> 0 | NZ4: =+NB4 -> 0 | OA4: =+NC4 -> 0 | OB4: =+ND4 -> 0 | OC4: =+NE4 -> 0 | OD4: =+NF4 -> 0 | OE4: =+NG4 -> 0 | OF4: =+NH4 -> 0 | OG4: =+NI4 -> 0 | OH4: =+NJ4 -> 0 | OI4: =+NK4 -> 0 | OJ4: =+NL4 -> 0 | OK4: =+NM4 -> 0 | OL4: =+NN4 -> 0 | OM4: =+NO4 -> 0 | ON4: =+NP4 -> 0 | OO4: =+NQ4 -> 0 | OP4: =+NR4 -> 0 | OQ4: =+NS4 -> 0 | OR4: =+NT4 -> 0 | OS4: =+NU4 -> 0 | OT4: =+NV4 -> 0 | OU4: =+NW4 -> 0 | OV4: =+NX4 -> 0 | OW4: =+NY4 -> 0 | OX4: =+NZ4 -> 0 | OY4: =+OA4 -> 0 | OZ4: =+OB4 -> 0 | PA4: =+OC4 -> 0 | PB4: =+OD4 -> 0 | PC4: =+OE4 -> 0 | PD4: =+OF4 -> 0 | PE4: =+OG4 -> 0 | PF4: =+OH4 -> 0 | PG4: =+OI4 -> 0 | PH4: =+OJ4 -> 0 | PI4: =+OK4 -> 0 | PJ4: =+OL4 -> 0 | PK4: =+OM4 -> 0 | PL4: =+ON4 -> 0 | PM4: =+OO4 -> 0 | PN4: =+OP4 -> 0 | PO4: =+OQ4 -> 0 | PP4: =+OR4 -> 0 | PQ4: =+OS4 -> 0 | PR4: =+OT4 -> 0 | PS4: =+OU4 -> 0 | PT4: =+OV4 -> 0 | PU4: =+OW4 -> 0 | PV4: =+OX4 -> 0 | PW4: =+OY4 -> 0 | PX4: =+OZ4 -> 0 | PY4: =+PA4 -> 0 | PZ4: =+PB4 -> 0 | QA4: =+PC4 -> 0 | QB4: =+PD4 -> 0 | QC4: =+PE4 -> 0 | QD4: =+PF4 -> 0 | QE4: =+PG4 -> 0 | QF4: =+PH4 -> 0 | QG4: =+PI4 -> 0 | QH4: =+PJ4 -> 0 | QI4: =+PK4 -> 0 | QJ4: =+PL4 -> 0 | QK4: =+PM4 -> 0 | QL4: =+PN4 -> 0 | QM4: =+PO4 -> 0 | QN4: =+PP4 -> 0 | QO4: =+PQ4 -> 0 | QP4: =+PR4 -> 0 | QQ4: =+PS4 -> 0 | QR4: =+PT4 -> 0 | QS4: =+PU4 -> 0 | QT4: =+PV4 -> 0 | QU4: =+PW4 -> 0 | QV4: =+PX4 -> 0 | QW4: =+PY4 -> 0 | QX4: =+PZ4 -> 0 | QY4: =+QA4 -> 0 | QZ4: =+QB4 -> 0 | RA4: =+QC4 -> 0 | RB4: =+QD4 -> 0 | RC4: =+QE4 -> 0 | RD4: =+QF4 -> 0 | RE4: =+QG4 -> 0 | RF4: =+QH4 -> 0 | RG4: =+QI4 -> 0 | RH4: =+QJ4 -> 0 | RI4: =+QK4 -> 0 | RJ4: =+QL4 -> 0 | RK4: =+QM4 -> 0 | RL4: =+QN4 -> 0 | RM4: =+QO4 -> 0 | RN4: =+QP4 -> 0 | RO4: =+QQ4 -> 0 | RQ4: =+SUM(D4:AA4) -> 0 | RR4: =+SUM(AB4:AY4) -> 0 | RS4: =+SUM(AZ4:BW4) -> 0 | RT4: =+SUM(BX4:CU4) -> 0 | RU4: =+SUM(CV4:DS4) -> 0 | RV4: =+SUM(DT4:EQ4) -> 0 | RW4: =+SUM(ER4:FO4) -> 0 | RX4: =+SUM(FP4:GM4) -> 0 | RY4: =+SUM(GN4:HK4) -> 0 | RZ4: =+SUM(HL4:II4) -> 0 | SA4: =+SUM(IJ4:JG4) -> 0 | SB4: =+SUM(JH4:KE4) -> 0 | SC4: =+SUM(KF4:LC4) -> 0 | SD4: =+SUM(LD4:MA4) -> 0 | SE4: =+SUM(MB4:MY4) -> 0 | SF4: =+SUM(MZ4:NW4) -> 0 | SG4: =+SUM(NX4:OU4) -> 0 | SH4: =+SUM(OV4:PS4) -> 0 | SI4: =+SUM(PT4:QQ4) -> 0 | SJ4: =+SUM(QR4:RO4) -> 0
B5: 10024 | C5: Benton County PUD #1 | D5: 0 | E5: 0 | F5: 0 | G5: 0 | H5: 0 | I5: 0 | J5: 0 | K5: 0 | L5: 0 | M5: 0 | N5: 0 | O5: 0 | P5: 0 | Q5: 0 | R5: 0 | S5: 0 | T5: 0 | U5: 0 | V5: 0 | W5: 0 | X5: 0 | Y5: 0 | Z5: 0 | AA5: 0 | AB5: 0 | AC5: 0 | AD5: 0 | AE5: 0 | AF5: 0 | AG5: 0 | AH5: 0 | AI5: 0 | AJ5: 0 | AK5: 0 | AL5: 0 | AM5: 0 | AN5: 0 | AO5: 0 | AP5: 0 | AQ5: 0 | AR5: 0 | AS5: 0 | AT5: 0 | AU5: 0 | AV5: 0 | AW5: 0 | AX5: 0 | AY5: 0 | AZ5: 0 | BA5: 0 | BB5: 0 | BC5: 0 | BD5: 0 | BE5: 0 | BF5: 0 | BG5: 0 | BH5: 0 | BI5: 0 | BJ5: 0 | BK5: 0 | BL5: 0 | BM5: 0 | BN5: 0 | BO5: 0 | BP5: 0 | BQ5: 0 | BR5: 0 | BS5: 0 | BT5: 0 | BU5: 0 | BV5: 0 | BW5: 0 | BX5: 0 | BY5: 0 | BZ5: 0 | CA5: 0 | CB5: 0 | CC5: 0 | CD5: 0 | CE5: 0 | CF5: 0 | CG5: 0 | CH5: 0 | CI5: 0 | CJ5: 0 | CK5: 0 | CL5: 0 | CM5: 0 | CN5: 0 | CO5: 0 | CP5: 0 | CQ5: 0 | CR5: 0 | CS5: 0 | CT5: 0 | CU5: 0 | CV5: 0 | CW5: 0 | CX5: 0 | CY5: 0 | CZ5: 0 | DA5: 0 | DB5: 0 | DC5: 0 | DD5: 0 | DE5: 0 | DF5: 0 | DG5: 0 | DH5: 0 | DI5: 0 | DJ5: 0 | DK5: 0 | DL5: 0 | DM5: 0 | DN5: 0 | DO5: 0 | DP5: 0 | DQ5: 0 | DR5: 0 | DS5: 0 | DT5: 0 | DU5: 0 | DV5: 0 | DW5: 0 | DX5: 0 | DY5: 0 | DZ5: 0 | EA5: 0 | EB5: 0 | EC5: 0 | ED5: 0 | EE5: 0 | EF5: 0 | EG5: 0 | EH5: 0 | EI5: 0 | EJ5: 0 | EK5: 0 | EL5: 0 | EM5: 0 | EN5: 0 | EO5: 0 | EP5: 0 | EQ5: 0 | ER5: 0 | ES5: 0 | ET5: 0 | EU5: 0 | EV5: 0 | EW5: 0 | EX5: 0 | EY5: 0 | EZ5: 0 | FA5: 0 | FB5: 0 | FC5: 0 | FD5: 0 | FE5: 0 | FF5: 0 | FG5: 0 | FH5: 0 | FI5: 0 | FJ5: 0 | FK5: 0 | FL5: 0 | FM5: 0 | FN5: 0 | FO5: 0 | FP5: 0 | FQ5: 0 | FR5: 0 | FS5: 0 | FT5: 0 | FU5: 0 | FV5: 0 | FW5: 0 | FX5: 0 | FY5: 0 | FZ5: 0 | GA5: 0 | GB5: 0 | GC5: 0 | GD5: 0 | GE5: 0 | GF5: 0 | GG5: 0 | GH5: 0 | GI5: 0 | GJ5: 0 | GK5: 0 | GL5: 0 | GM5: 0 | GN5: 0 | GO5: 0 | GP5: 0 | GQ5: 0 | GR5: 0 | GS5: 0 | GT5: 0 | GU5: 0 | GV5: 0 | GW5: 0 | GX5: 0 | GY5: 0 | GZ5: 0 | HA5: 0 | HB5: 0 | HC5: 0 | HD5: 0 | HE5: 0 | HF5: 0 | HG5: 0 | HH5: 0 | HI5: 0 | HJ5: 0 | HK5: 0 | HL5: 0 | HM5: 0 | HN5: 0 | HO5: 0 | HP5: 0 | HQ5: 0 | HR5: 0 | HS5: 0 | HT5: 0 | HU5: 0 | HV5: 0 | HW5: 0 | HX5: 0 | HY5: 0 | HZ5: 0 | IA5: 0 | IB5: 0 | IC5: 0 | ID5: 0 | IE5: 0 | IF5: 0 | IG5: 0 | IH5: 0 | II5: 0 | IJ5: 0 | IK5: 0 | IL5: 0 | IM5: 0 | IN5: 0 | IO5: 0 | IP5: 0 | IQ5: 0 | IR5: 0 | IS5: 0 | IT5: 0 | IU5: 0 | IV5: 0 | IW5: 0 | IX5: 0 | IY5: 0 | IZ5: 0 | JA5: 0 | JB5: 0 | JC5: 0 | JD5: 0 | JE5: 0 | JF5: 0 | JG5: 0 | JH5: 0 | JI5: 0 | JJ5: 0 | JK5: 0 | JL5: 0 | JM5: 0 | JN5: 0 | JO5: 0 | JP5: 0 | JQ5: 0 | JR5: 0 | JS5: 0 | JT5: 0 | JU5: 0 | JV5: 0 | JW5: 0 | JX5: 0 | JY5: 0 | JZ5: 0 | KA5: 0 | KB5: 0 | KC5: 0 | KD5: 0 | KE5: 0 | KF5: 0 | KG5: 0 | KH5: 0 | KI5: 0 | KJ5: 0 | KK5: 0 | KL5: 0 | KM5: 0 | KN5: 0 | KO5: 0 | KP5: 0 | KQ5: 0 | KR5: 0 | KS5: 0 | KT5: 0 | KU5: 0 | KV5: 0 | KW5: 0 | KX5: 0 | KY5: 0 | KZ5: 0 | LA5: 0 | LB5: 0 | LC5: 0 | LD5: =+KF5 -> 0 | LE5: 0 | LF5: 0 | LG5: 0 | LH5: 0 | LI5: 0 | LJ5: 0 | LK5: 0 | LL5: 0 | LM5: 0 | LN5: 0 | LO5: 0 | LP5: 0 | LQ5: 0 | LR5: 0 | LS5: 0 | LT5: 0 | LU5: 0 | LV5: 0 | LW5: 0 | LX5: 0 | LY5: 0 | LZ5: 0 | MA5: 0 | MB5: 0 | MC5: 0 | MD5: 0 | ME5: 0 | MF5: 0 | MG5: 0 | MH5: 0 | MI5: 0 | MJ5: 0 | MK5: 0 | ML5: 0 | MM5: 0 | MN5: 0 | MO5: 0 | MP5: 0 | MQ5: 0 | MR5: 0 | MS5: 0 | MT5: 0 | MU5: 0 | MV5: 0 | MW5: 0 | MX5: 0 | MY5: 0 | MZ5: 0 | NA5: 0 | NB5: 0 | NC5: 0 | ND5: 0 | NE5: 0 | NF5: 0 | NG5: 0 | NH5: 0 | NI5: 0 | NJ5: 0 | NK5: 0 | NL5: 0 | NM5: 0 | NN5: 0 | NO5: 0 | NP5: 0 | NQ5: 0 | NR5: 0 | NS5: 0 | NT5: 0 | NU5: 0 | NV5: 0 | NW5: 0 | NX5: 0 | NY5: 0 | NZ5: 0 | OA5: 0 | OB5: 0 | OC5: 0 | OD5: 0 | OE5: 0 | OF5: 0 | OG5: 0 | OH5: 0 | OI5: 0 | OJ5: 0 | OK5: 0 | OL5: 0 | OM5: 0 | ON5: 0 | OO5: 0 | OP5: 0 | OQ5: 0 | OR5: 0 | OS5: 0 | OT5: 0 | OU5: 0 | OV5: 0 | OW5: 0 | OX5: 0 | OY5: 0 | OZ5: 0 | PA5: 0 | PB5: 0 | PC5: 0 | PD5: 0 | PE5: 0 | PF5: 0 | PG5: 0 | PH5: 0 | PI5: 0 | PJ5: 0 | PK5: 0 | PL5: 0 | PM5: 0 | PN5: 0 | PO5: 0 | PP5: 0 | PQ5: 0 | PR5: 0 | PS5: 0 | PT5: 0 | PU5: 0 | PV5: 0 | PW5: 0 | PX5: 0 | PY5: 0 | PZ5: 0 | QA5: 0 | QB5: 0 | QC5: 0 | QD5: 0 | QE5: 0 | QF5: 0 | QG5: 0 | QH5: 0 | QI5: 0 | QJ5: 0 | QK5: 0 | QL5: 0 | QM5: 0 | QN5: 0 | QO5: 0 | QP5: 0 | QQ5: 0 | QR5: 0 | QS5: 0 | QT5: 0 | QU5: 0 | QV5: 0 | QW5: 0 | QX5: 0 | QY5: 0 | QZ5: 0 | RA5: 0 | RB5: 0 | RC5: 0 | RD5: 0 | RE5: 0 | RF5: 0 | RG5: 0 | RH5: 0 | RI5: 0 | RJ5: 0 | RK5: 0 | RL5: 0 | RM5: 0 | RN5: 0 | RO5: 0 | RQ5: 0 | RR5: 0 | RS5: 0 | RT5: 0 | RU5: 0 | RV5: 0 | RW5: 0 | RX5: 0 | RY5: 0 | RZ5: 0 | SA5: 0 | SB5: 0 | SC5: 0 | SD5: 0 | SE5: 0 | SF5: 0 | SG5: 0 | SH5: 0 | SI5: 0 | SJ5: 0
B6: 10025 | C6: Benton REA | D6: 0 | E6: 0 | F6: 0 | G6: 0 | H6: 0 | I6: 0 | J6: 0 | K6: 0 | L6: 0 | M6: 0 | N6: 0 | O6: 0 | P6: 0 | Q6: 0 | R6: 0 | S6: 0 | T6: 0 | U6: 0 | V6: 0 | W6: 0 | X6: 0 | Y6: 0 | Z6: 0 | AA6: 0 | AB6: 0 | AC6: 0 | AD6: 0 | AE6: 0 | AF6: 0 | AG6: 0 | AH6: 0 | AI6: 0 | AJ6: 0 | AK6: 0 | AL6: 0 | AM6: 0 | AN6: 0 | AO6: 0 | AP6: 0 | AQ6: 0 | AR6: 0 | AS6: 0 | AT6: 0 | AU6: 0 | AV6: 0 | AW6: 0 | AX6: 0 | AY6: 0 | AZ6: 0 | BA6: 0 | BB6: 0 | BC6: 0 | BD6: 0 | BE6: 0 | BF6: 0 | BG6: 0 | BH6: 0 | BI6: 0 | BJ6: 0 | BK6: 0 | BL6: 0 | BM6: 0 | BN6: 0 | BO6: 0 | BP6: 0 | BQ6: 0 | BR6: 0 | BS6: 0 | BT6: 0 | BU6: 0 | BV6: 0 | BW6: 0 | BX6: 0 | BY6: 0 | BZ6: 0 | CA6: 0 | CB6: 0 | CC6: 0 | CD6: 0 | CE6: 0 | CF6: 0 | CG6: 0 | CH6: 0 | CI6: 0 | CJ6: 0 | CK6: 0 | CL6: 0 | CM6: 0 | CN6: 0 | CO6: 0 | CP6: 0 | CQ6: 0 | CR6: 0 | CS6: 0 | CT6: 0 | CU6: 0 | CV6: 0 | CW6: 0 | CX6: 0 | CY6: 0 | CZ6: 0 | DA6: 0 | DB6: 0 | DC6: 0 | DD6: 0 | DE6: 0 | DF6: 0 | DG6: 0 | DH6: 0 | DI6: 0 | DJ6: 0 | DK6: 0 | DL6: 0 | DM6: 0 | DN6: 0 | DO6: 0 | DP6: 0 | DQ6: 0 | DR6: 0 | DS6: 0 | DT6: 0 | DU6: 0 | DV6: 0 | DW6: 0 | DX6: 0 | DY6: 0 | DZ6: 0 | EA6: 0 | EB6: 0 | EC6: 0 | ED6: 0 | EE6: 0 | EF6: 0 | EG6: 0 | EH6: 0 | EI6: 0 | EJ6: 0 | EK6: 0 | EL6: 0 | EM6: 0 | EN6: 0 | EO6: 0 | EP6: 0 | EQ6: 0 | ER6: 0 | ES6: 0 | ET6: 0 | EU6: 0 | EV6: 0 | EW6: 0 | EX6: 0 | EY6: 0 | EZ6: 0 | FA6: 0 | FB6: 0 | FC6: 0 | FD6: 0 | FE6: 0 | FF6: 0 | FG6: 0 | FH6: 0 | FI6: 0 | FJ6: 0 | FK6: 0 | FL6: 0 | FM6: 0 | FN6: 0 | FO6: 0 | FP6: 0 | FQ6: 0 | FR6: 0 | FS6: 0 | FT6: 0 | FU6: 0 | FV6: 0 | FW6: 0 | FX6: 0 | FY6: 0 | FZ6: 0 | GA6: 0 | GB6: 0 | GC6: 0 | GD6: 0 | GE6: 0 | GF6: 0 | GG6: 0 | GH6: 0 | GI6: 0 | GJ6: 0 | GK6: 0 | GL6: 0 | GM6: 0 | GN6: 0 | GO6: 0 | GP6: 0 | GQ6: 0 | GR6: 0 | GS6: 0 | GT6: 0 | GU6: 0 | GV6: 0 | GW6: 0 | GX6: 0 | GY6: 0 | GZ6: 0 | HA6: 0 | HB6: 0 | HC6: 0 | HD6: 0 | HE6: 0 | HF6: 0 | HG6: 0 | HH6: 0 | HI6: 0 | HJ6: 0 | HK6: 0 | HL6: 0 | HM6: 0 | HN6: 0 | HO6: 0 | HP6: 0 | HQ6: 0 | HR6: 0 | HS6: 0 | HT6: 0 | HU6: 0 | HV6: 0 | HW6: 0 | HX6: 0 | HY6: 0 | HZ6: 0 | IA6: 0 | IB6: 0 | IC6: 0 | ID6: 0 | IE6: 0 | IF6: 0 | IG6: 0 | IH6: 0 | II6: 0 | IJ6: 0 | IK6: 0 | IL6: 0 | IM6: 0 | IN6: 0 | IO6: 0 | IP6: 0 | IQ6: 0 | IR6: 0 | IS6: 0 | IT6: 0 | IU6: 0 | IV6: 0 | IW6: 0 | IX6: 0 | IY6: 0 | IZ6: 0 | JA6: 0 | JB6: 0 | JC6: 0 | JD6: 0 | JE6: 0 | JF6: 0 | JG6: 0 | JH6: 0 | JI6: 0 | JJ6: 0 | JK6: 0 | JL6: 0 | JM6: 0 | JN6: 0 | JO6: 0 | JP6: 0 | JQ6: 0 | JR6: 0 | JS6: 0 | JT6: 0 | JU6: 0 | JV6: 0 | JW6: 0 | JX6: 0 | JY6: 0 | JZ6: 0 | KA6: 0 | KB6: 0 | KC6: 0 | KD6: 0 | KE6: 0 | KF6: 0 | KG6: 0 | KH6: 0 | KI6: 0 | KJ6: 0 | KK6: 0 | KL6: 0 | KM6: 0 | KN6: 0 | KO6: 0 | KP6: 0 | KQ6: 0 | KR6: 0 | KS6: 0 | KT6: 0 | KU6: 0 | KV6: 0 | KW6: 0 | KX6: 0 | KY6: 0 | KZ6: 0 | LA6: 0 | LB6: 0 | LC6: 0 | LD6: 0 | LE6: 0 | LF6: 0 | LG6: 0 | LH6: 0 | LI6: 0 | LJ6: 0 | LK6: 0 | LL6: 0 | LM6: 0 | LN6: 0 | LO6: 0 | LP6: 0 | LQ6: 0 | LR6: 0 | LS6: 0 | LT6: 0 | LU6: 0 | LV6: 0 | LW6: 0 | LX6: 0 | LY6: 0 | LZ6: 0 | MA6: 0 | MB6: 0 | MC6: 0 | MD6: 0 | ME6: 0 | MF6: 0 | MG6: 0 | MH6: 0 | MI6: 0 | MJ6: 0 | MK6: 0 | ML6: 0 | MM6: 0 | MN6: 0 | MO6: 0 | MP6: 0 | MQ6: 0 | MR6: 0 | MS6: 0 | MT6: 0 | MU6: 0 | MV6: 0 | MW6: 0 | MX6: 0 | MY6: 0 | MZ6: 0 | NA6: 0 | NB6: 0 | NC6: 0 | ND6: 0 | NE6: 0 | NF6: 0 | NG6: 0 | NH6: 0 | NI6: 0 | NJ6: 0 | NK6: 0 | NL6: 0 | NM6: 0 | NN6: 0 | NO6: 0 | NP6: 0 | NQ6: 0 | NR6: 0 | NS6: 0 | NT6: 0 | NU6: 0 | NV6: 0 | NW6: 0 | NX6: 0 | NY6: 0 | NZ6: 0 | OA6: 0 | OB6: 0 | OC6: 0 | OD6: 0 | OE6: 0 | OF6: 0 | OG6: 0 | OH6: 0 | OI6: 0 | OJ6: 0 | OK6: 0 | OL6: 0 | OM6: 0 | ON6: 0 | OO6: 0 | OP6: 0 | OQ6: 0 | OR6: 0 | OS6: 0 | OT6: 0 | OU6: 0 | OV6: 0 | OW6: 0 | OX6: 0 | OY6: 0 | OZ6: 0 | PA6: 0 | PB6: 0 | PC6: 0 | PD6: 0 | PE6: 0 | PF6: 0 | PG6: 0 | PH6: 0 | PI6: 0 | PJ6: 0 | PK6: 0 | PL6: 0 | PM6: 0 | PN6: 0 | PO6: 0 | PP6: 0 | PQ6: 0 | PR6: 0 | PS6: 0 | PT6: 0 | PU6: 0 | PV6: 0 | PW6: 0 | PX6: 0 | PY6: 0 | PZ6: 0 | QA6: 0 | QB6: 0 | QC6: 0 | QD6: 0 | QE6: 0 | QF6: 0 | QG6: 0 | QH6: 0 | QI6: 0 | QJ6: 0 | QK6: 0 | QL6: 0 | QM6: 0 | QN6: 0 | QO6: 0 | QP6: 0 | QQ6: 0 | QR6: 0 | QS6: 0 | QT6: 0 | QU6: 0 | QV6: 0 | QW6: 0 | QX6: 0 | QY6: 0 | QZ6: 0 | RA6: 0 | RB6: 0 | RC6: 0 | RD6: 0 | RE6: 0 | RF6: 0 | RG6: 0 | RH6: 0 | RI6: 0 | RJ6: 0 | RK6: 0 | RL6: 0 | RM6: 0 | RN6: 0 | RO6: 0 | RQ6: 0 | RR6: 0 | RS6: 0 | RT6: 0 | RU6: 0 | RV6: 0 | RW6: 0 | RX6: 0 | RY6: 0 | RZ6: 0 | SA6: 0 | SB6: 0 | SC6: 0 | SD6: 0 | SE6: 0 | SF6: 0 | SG6: 0 | SH6: 0 | SI6: 0 | SJ6: 0
B7: 10027 | C7: Big Bend Elec Coop | D7: 0 | E7: 0 | F7: 0 | G7: 0 | H7: 0 | I7: 0 | J7: 0 | K7: 0 | L7: 0 | M7: 0 | N7: 0 | O7: 0 | P7: 0 | Q7: 0 | R7: 0 | S7: 0 | T7: 0 | U7: 0 | V7: 0 | W7: 0 | X7: 0 | Y7: 0 | Z7: 0 | AA7: 0 | AB7: 0 | AC7: 0 | AD7: 0 | AE7: 0 | AF7: 0 | AG7: 0 | AH7: 0 | AI7: 0 | AJ7: 0 | AK7: 0 | AL7: 0 | AM7: 0 | AN7: 0 | AO7: 0 | AP7: 0 | AQ7: 0 | AR7: 0 | AS7: 0 | AT7: 0 | AU7: 0 | AV7: 0 | AW7: 0 | AX7: 0 | AY7: 0 | AZ7: 0 | BA7: 0 | BB7: 0 | BC7: 0 | BD7: 0 | BE7: 0 | BF7: 0 | BG7: 0 | BH7: 0 | BI7: 0 | BJ7: 0 | BK7: 0 | BL7: 0 | BM7: 0 | BN7: 0 | BO7: 0 | BP7: 0 | BQ7: 0 | BR7: 0 | BS7: 0 | BT7: 0 | BU7: 0 | BV7: 0 | BW7: 0 | BX7: 0 | BY7: 0 | BZ7: 0 | CA7: 0 | CB7: 0 | CC7: 0 | CD7: 0 | CE7: 0 | CF7: 0 | CG7: 0 | CH7: 0 | CI7: 0 | CJ7: 0 | CK7: 0 | CL7: 0 | CM7: 0 | CN7: 0 | CO7: 0 | CP7: 0 | CQ7: 0 | CR7: 0 | CS7: 0 | CT7: 0 | CU7: 0 | CV7: 0 | CW7: 0 | CX7: 0 | CY7: 0 | CZ7: 0 | DA7: 0 | DB7: 0 | DC7: 0 | DD7: 0 | DE7: 0 | DF7: 0 | DG7: 0 | DH7: 0 | DI7: 0 | DJ7: 0 | DK7: 0 | DL7: 0 | DM7: 0 | DN7: 0 | DO7: 0 | DP7: 0 | DQ7: 0 | DR7: 0 | DS7: 0 | DT7: 0 | DU7: 0 | DV7: 0 | DW7: 0 | DX7: 0 | DY7: 0 | DZ7: 0 | EA7: 0 | EB7: 0 | EC7: 0 | ED7: 0 | EE7: 0 | EF7: 0 | EG7: 0 | EH7: 0 | EI7: 0 | EJ7: 0 | EK7: 0 | EL7: 0 | EM7: 0 | EN7: 0 | EO7: 0 | EP7: 0 | EQ7: 0 | ER7: 0 | ES7: 0 | ET7: 0 | EU7: 0 | EV7: 0 | EW7: 0 | EX7: 0 | EY7: 0 | EZ7: 0 | FA7: 0 | FB7: 0 | FC7: 0 | FD7: 0 | FE7: 0 | FF7: 0 | FG7: 0 | FH7: 0 | FI7: 0 | FJ7: 0 | FK7: 0 | FL7: 0 | FM7: 0 | FN7: 0 | FO7: 0 | FP7: 0 | FQ7: 0 | FR7: 0 | FS7: 0 | FT7: 0 | FU7: 0 | FV7: 0 | FW7: 0 | FX7: 0 | FY7: 0 | FZ7: 0 | GA7: 0 | GB7: 0 | GC7: 0 | GD7: 0 | GE7: 0 | GF7: 0 | GG7: 0 | GH7: 0 | GI7: 0 | GJ7: 0 | GK7: 0 | GL7: 0 | GM7: 0 | GN7: 0 | GO7: 0 | GP7: 0 | GQ7: 0 | GR7: 0 | GS7: 0 | GT7: 0 | GU7: 0 | GV7: 0 | GW7: 0 | GX7: 0 | GY7: 0 | GZ7: 0 | HA7: 0 | HB7: 0 | HC7: 0 | HD7: 0 | HE7: 0 | HF7: 0 | HG7: 0 | HH7: 0 | HI7: 0 | HJ7: 0 | HK7: 0 | HL7: 0 | HM7: 0 | HN7: 0 | HO7: 0 | HP7: 0 | HQ7: 0 | HR7: 0 | HS7: 0 | HT7: 0 | HU7: 0 | HV7: 0 | HW7: 0 | HX7: 0 | HY7: 0 | HZ7: 0 | IA7: 0 | IB7: 0 | IC7: 0 | ID7: 0 | IE7: 0 | IF7: 0 | IG7: 0 | IH7: 0 | II7: 0 | IJ7: 0 | IK7: 0 | IL7: 0 | IM7: 0 | IN7: 0 | IO7: 0 | IP7: 0 | IQ7: 0 | IR7: 0 | IS7: 0 | IT7: 0 | IU7: 0 | IV7: 0 | IW7: 0 | IX7: 0 | IY7: 0 | IZ7: 0 | JA7: 0 | JB7: 0 | JC7: 0 | JD7: 0 | JE7: 0 | JF7: 0 | JG7: 0 | JH7: 0 | JI7: 0 | JJ7: 0 | JK7: 0 | JL7: 0 | JM7: 0 | JN7: 0 | JO7: 0 | JP7: 0 | JQ7: 0 | JR7: 0 | JS7: 0 | JT7: 0 | JU7: 0 | JV7: 0 | JW7: 0 | JX7: 0 | JY7: 0 | JZ7: 0 | KA7: 0 | KB7: 0 | KC7: 0 | KD7: 0 | KE7: 0 | KF7: 0 | KG7: 0 | KH7: 0 | KI7: 0 | KJ7: 0 | KK7: 0 | KL7: 0 | KM7: 0 | KN7: 0 | KO7: 0 | KP7: 0 | KQ7: 0 | KR7: 0 | KS7: 0 | KT7: 0 | KU7: 0 | KV7: 0 | KW7: 0 | KX7: 0 | KY7: 0 | KZ7: 0 | LA7: 0 | LB7: 0 | LC7: 0 | LD7: 0 | LE7: 0 | LF7: 0 | LG7: 0 | LH7: 0 | LI7: 0 | LJ7: 0 | LK7: 0 | LL7: 0 | LM7: 0 | LN7: 0 | LO7: 0 | LP7: 0 | LQ7: 0 | LR7: 0 | LS7: 0 | LT7: 0 | LU7: 0 | LV7: 0 | LW7: 0 | LX7: 0 | LY7: 0 | LZ7: 0 | MA7: 0 | MB7: 0 | MC7: 0 | MD7: 0 | ME7: 0 | MF7: 0 | MG7: 0 | MH7: 0 | MI7: 0 | MJ7: 0 | MK7: 0 | ML7: 0 | MM7: 0 | MN7: 0 | MO7: 0 | MP7: 0 | MQ7: 0 | MR7: 0 | MS7: 0 | MT7: 0 | MU7: 0 | MV7: 0 | MW7: 0 | MX7: 0 | MY7: 0 | MZ7: 0 | NA7: 0 | NB7: 0 | NC7: 0 | ND7: 0 | NE7: 0 | NF7: 0 | NG7: 0 | NH7: 0 | NI7: 0 | NJ7: 0 | NK7: 0 | NL7: 0 | NM7: 0 | NN7: 0 | NO7: 0 | NP7: 0 | NQ7: 0 | NR7: 0 | NS7: 0 | NT7: 0 | NU7: 0 | NV7: 0 | NW7: 0 | NX7: 0 | NY7: 0 | NZ7: 0 | OA7: 0 | OB7: 0 | OC7: 0 | OD7: 0 | OE7: 0 | OF7: 0 | OG7: 0 | OH7: 0 | OI7: 0 | OJ7: 0 | OK7: 0 | OL7: 0 | OM7: 0 | ON7: 0 | OO7: 0 | OP7: 0 | OQ7: 0 | OR7: 0 | OS7: 0 | OT7: 0 | OU7: 0 | OV7: 0 | OW7: 0 | OX7: 0 | OY7: 0 | OZ7: 0 | PA7: 0 | PB7: 0 | PC7: 0 | PD7: 0 | PE7: 0 | PF7: 0 | PG7: 0 | PH7: 0 | PI7: 0 | PJ7: 0 | PK7: 0 | PL7: 0 | PM7: 0 | PN7: 0 | PO7: 0 | PP7: 0 | PQ7: 0 | PR7: 0 | PS7: 0 | PT7: 0 | PU7: 0 | PV7: 0 | PW7: 0 | PX7: 0 | PY7: 0 | PZ7: 0 | QA7: 0 | QB7: 0 | QC7: 0 | QD7: 0 | QE7: 0 | QF7: 0 | QG7: 0 | QH7: 0 | QI7: 0 | QJ7: 0 | QK7: 0 | QL7: 0 | QM7: 0 | QN7: 0 | QO7: 0 | QP7: 0 | QQ7: 0 | QR7: 0 | QS7: 0 | QT7: 0 | QU7: 0 | QV7: 0 | QW7: 0 | QX7: 0 | QY7: 0 | QZ7: 0 | RA7: 0 | RB7: 0 | RC7: 0 | RD7: 0 | RE7: 0 | RF7: 0 | RG7: 0 | RH7: 0 | RI7: 0 | RJ7: 0 | RK7: 0 | RL7: 0 | RM7: 0 | RN7: 0 | RO7: 0 | RQ7: 0 | RR7: 0 | RS7: 0 | RT7: 0 | RU7: 0 | RV7: 0 | RW7: 0 | RX7: 0 | RY7: 0 | RZ7: 0 | SA7: 0 | SB7: 0 | SC7: 0 | SD7: 0 | SE7: 0 | SF7: 0 | SG7: 0 | SH7: 0 | SI7: 0 | SJ7: 0
... 8 more rows

Sheet I_NR
B1: New Resources - Specified
A2: TOC | D2: 2015-10-01 | E2: 2015-10-01 | F2: 2015-11-01 | G2: 2015-11-01 | H2: 2015-12-01 | I2: 2015-12-01 | J2: 2016-01-01 | K2: 2016-01-01 | L2: 2016-02-01 | M2: 2016-02-01 | N2: 2016-03-01 | O2: 2016-03-01 | P2: 2016-04-01 | Q2: 2016-04-01 | R2: 2016-05-01 | S2: 2016-05-01 | T2: 2016-06-01 | U2: 2016-06-01 | V2: 2016-07-01 | W2: 2016-07-01 | X2: 2016-08-01 | Y2: 2016-08-01 | Z2: 2016-09-01 | AA2: 2016-09-01 | AB2: 2016-10-01 | AC2: 2016-10-01 | AD2: 2016-11-01 | AE2: 2016-11-01 | AF2: 2016-12-01 | AG2: 2016-12-01 | AH2: 2017-01-01 | AI2: 2017-01-01 | AJ2: 2017-02-01 | AK2: 2017-02-01 | AL2: 2017-03-01 | AM2: 2017-03-01 | AN2: 2017-04-01 | AO2: 2017-04-01 | AP2: 2017-05-01 | AQ2: 2017-05-01 | AR2: 2017-06-01 | AS2: 2017-06-01 | AT2: 2017-07-01 | AU2: 2017-07-01 | AV2: 2017-08-01 | AW2: 2017-08-01 | AX2: 2017-09-01 | AY2: 2017-09-01 | AZ2: 2017-10-01 | BA2: 2017-10-01 | BB2: 2017-11-01 | BC2: 2017-11-01 | BD2: 2017-12-01 | BE2: 2017-12-01 | BF2: 2018-01-01 | BG2: 2018-01-01 | BH2: 2018-02-01 | BI2: 2018-02-01 | BJ2: 2018-03-01 | BK2: 2018-03-01 | BL2: 2018-04-01 | BM2: 2018-04-01 | BN2: 2018-05-01 | BO2: 2018-05-01 | BP2: 2018-06-01 | BQ2: 2018-06-01 | BR2: 2018-07-01 | BS2: 2018-07-01 | BT2: 2018-08-01 | BU2: 2018-08-01 | BV2: 2018-09-01 | BW2: 2018-09-01 | BX2: 2018-10-01 | BY2: 2018-10-01 | BZ2: 2018-11-01 | CA2: 2018-11-01 | CB2: 2018-12-01 | CC2: 2018-12-01 | CD2: 2019-01-01 | CE2: 2019-01-01 | CF2: 2019-02-01 | CG2: 2019-02-01 | CH2: 2019-03-01 | CI2: 2019-03-01 | CJ2: 2019-04-01 | CK2: 2019-04-01 | CL2: 2019-05-01 | CM2: 2019-05-01 | CN2: 2019-06-01 | CO2: 2019-06-01 | CP2: 2019-07-01 | CQ2: 2019-07-01 | CR2: 2019-08-01 | CS2: 2019-08-01 | CT2: 2019-09-01 | CU2: 2019-09-01 | CV2: 2019-10-01 | CW2: 2019-10-01 | CX2: 2019-11-01 | CY2: 2019-11-01 | CZ2: 2019-12-01 | DA2: 2019-12-01 | DB2: 2020-01-01 | DC2: 2020-01-01 | DD2: 2020-02-01 | DE2: 2020-02-01 | DF2: 2020-03-01 | DG2: 2020-03-01 | DH2: 2020-04-01 | DI2: 2020-04-01 | DJ2: 2020-05-01 | DK2: 2020-05-01 | DL2: 2020-06-01 | DM2: 2020-06-01 | DN2: 2020-07-01 | DO2: 2020-07-01 | DP2: 2020-08-01 | DQ2: 2020-08-01 | DR2: 2020-09-01 | DS2: 2020-09-01 | DT2: 2020-10-01 | DU2: 2020-10-01 | DV2: 2020-11-01 | DW2: 2020-11-01 | DX2: 2020-12-01 | DY2: 2020-12-01 | DZ2: 2021-01-01 | EA2: 2021-01-01 | EB2: 2021-02-01 | EC2: 2021-02-01 | ED2: 2021-03-01 | EE2: 2021-03-01 | EF2: 2021-04-01 | EG2: 2021-04-01 | EH2: 2021-05-01 | EI2: 2021-05-01 | EJ2: 2021-06-01 | EK2: 2021-06-01 | EL2: 2021-07-01 | EM2: 2021-07-01 | EN2: 2021-08-01 | EO2: 2021-08-01 | EP2: 2021-09-01 | EQ2: 2021-09-01 | ER2: 2021-10-01 | ES2: 2021-10-01 | ET2: 2021-11-01 | EU2: 2021-11-01 | EV2: 2021-12-01 | EW2: 2021-12-01 | EX2: 2022-01-01 | EY2: 2022-01-01 | EZ2: 2022-02-01 | FA2: 2022-02-01 | FB2: 2022-03-01 | FC2: 2022-03-01 | FD2: 2022-04-01 | FE2: 2022-04-01 | FF2: 2022-05-01 | FG2: 2022-05-01 | FH2: 2022-06-01 | FI2: 2022-06-01 | FJ2: 2022-07-01 | FK2: 2022-07-01 | FL2: 2022-08-01 | FM2: 2022-08-01 | FN2: 2022-09-01 | FO2: 2022-09-01 | FP2: 2022-10-01 | FQ2: 2022-10-01 | FR2: 2022-11-01 | FS2: 2022-11-01 | FT2: 2022-12-01 | FU2: 2022-12-01 | FV2: 2023-01-01 | FW2: 2023-01-01 | FX2: 2023-02-01 | FY2: 2023-02-01 | FZ2: 2023-03-01 | GA2: 2023-03-01 | GB2: 2023-04-01 | GC2: 2023-04-01 | GD2: 2023-05-01 | GE2: 2023-05-01 | GF2: 2023-06-01 | GG2: 2023-06-01 | GH2: 2023-07-01 | GI2: 2023-07-01 | GJ2: 2023-08-01 | GK2: 2023-08-01 | GL2: 2023-09-01 | GM2: 2023-09-01 | GN2: 2023-10-01 | GO2: 2023-10-01 | GP2: 2023-11-01 | GQ2: 2023-11-01 | GR2: 2023-12-01 | GS2: 2023-12-01 | GT2: 2024-01-01 | GU2: 2024-01-01 | GV2: 2024-02-01 | GW2: 2024-02-01 | GX2: 2024-03-01 | GY2: 2024-03-01 | GZ2: 2024-04-01 | HA2: 2024-04-01 | HB2: 2024-05-01 | HC2: 2024-05-01 | HD2: 2024-06-01 | HE2: 2024-06-01 | HF2: 2024-07-01 | HG2: 2024-07-01 | HH2: 2024-08-01 | HI2: 2024-08-01 | HJ2: 2024-09-01 | HK2: 2024-09-01 | HL2: 2024-10-01 | HM2: 2024-10-01 | HN2: 2024-11-01 | HO2: 2024-11-01 | HP2: 2024-12-01 | HQ2: 2024-12-01 | HR2: 2025-01-01 | HS2: 2025-01-01 | HT2: 2025-02-01 | HU2: 2025-02-01 | HV2: 2025-03-01 | HW2: 2025-03-01 | HX2: 2025-04-01 | HY2: 2025-04-01 | HZ2: 2025-05-01 | IA2: 2025-05-01 | IB2: 2025-06-01 | IC2: 2025-06-01 | ID2: 2025-07-01 | IE2: 2025-07-01 | IF2: 2025-08-01 | IG2: 2025-08-01 | IH2: 2025-09-01 | II2: 2025-09-01 | IJ2: 2025-10-01 | IK2: 2025-10-01 | IL2: 2025-11-01 | IM2: 2025-11-01 | IN2: 2025-12-01 | IO2: 2025-12-01 | IP2: 2026-01-01 | IQ2: 2026-01-01 | IR2: 2026-02-01 | IS2: 2026-02-01 | IT2: 2026-03-01 | IU2: 2026-03-01 | IV2: 2026-04-01 | IW2: 2026-04-01 | IX2: 2026-05-01 | IY2: 2026-05-01 | IZ2: 2026-06-01 | JA2: 2026-06-01 | JB2: 2026-07-01 | JC2: 2026-07-01 | JD2: 2026-08-01 | JE2: 2026-08-01 | JF2: 2026-09-01 | JG2: 2026-09-01 | JH2: 2026-10-01 | JI2: 2026-10-01 | JJ2: 2026-11-01 | JK2: 2026-11-01 | JL2: 2026-12-01 | JM2: 2026-12-01 | JN2: 2027-01-01 | JO2: 2027-01-01 | JP2: 2027-02-01 | JQ2: 2027-02-01 | JR2: 2027-03-01 | JS2: 2027-03-01 | JT2: 2027-04-01 | JU2: 2027-04-01 | JV2: 2027-05-01 | JW2: 2027-05-01 | JX2: 2027-06-01 | JY2: 2027-06-01 | JZ2: 2027-07-01 | KA2: 2027-07-01 | KB2: 2027-08-01 | KC2: 2027-08-01 | KD2: 2027-09-01 | KE2: 2027-09-01 | KF2: 2027-10-01 | KG2: 2027-10-01 | KH2: 2027-11-01 | KI2: 2027-11-01 | KJ2: 2027-12-01 | KK2: 2027-12-01 | KL2: 2028-01-01 | KM2: 2028-01-01 | KN2: 2028-02-01 | KO2: 2028-02-01 | KP2: 2028-03-01 | KQ2: 2028-03-01 | KR2: 2028-04-01 | KS2: 2028-04-01 | KT2: 2028-05-01 | KU2: 2028-05-01 | KV2: 2028-06-01 | KW2: 2028-06-01 | KX2: 2028-07-01 | KY2: 2028-07-01 | KZ2: 2028-08-01 | LA2: 2028-08-01 | LB2: 2028-09-01 | LC2: 2028-09-01 | LD2: 2028-10-01 | LE2: 2028-10-01 | LF2: 2028-11-01 | LG2: 2028-11-01 | LH2: 2028-12-01 | LI2: 2028-12-01 | LJ2: 2029-01-01 | LK2: 2029-01-01 | LL2: 2029-02-01 | LM2: 2029-02-01 | LN2: 2029-03-01 | LO2: 2029-03-01 | LP2: 2029-04-01 | LQ2: 2029-04-01 | LR2: 2029-05-01 | LS2: 2029-05-01 | LT2: 2029-06-01 | LU2: 2029-06-01 | LV2: 2029-07-01 | LW2: 2029-07-01 | LX2: 2029-08-01 | LY2: 2029-08-01 | LZ2: 2029-09-01 | MA2: 2029-09-01 | MB2: 2029-10-01 | MC2: 2029-10-01 | MD2: 2029-11-01 | ME2: 2029-11-01 | MF2: 2029-12-01 | MG2: 2029-12-01 | MH2: 2030-01-01 | MI2: 2030-01-01 | MJ2: 2030-02-01 | MK2: 2030-02-01 | ML2: 2030-03-01 | MM2: 2030-03-01 | MN2: 2030-04-01 | MO2: 2030-04-01 | MP2: 2030-05-01 | MQ2: 2030-05-01 | MR2: 2030-06-01 | MS2: 2030-06-01 | MT2: 2030-07-01 | MU2: 2030-07-01 | MV2: 2030-08-01 | MW2: 2030-08-01 | MX2: 2030-09-01 | MY2: 2030-09-01 | MZ2: 2030-10-01 | NA2: 2030-10-01 | NB2: 2030-11-01 | NC2: 2030-11-01 | ND2: 2030-12-01 | NE2: 2030-12-01 | NF2: 2031-01-01 | NG2: 2031-01-01 | NH2: 2031-02-01 | NI2: 2031-02-01 | NJ2: 2031-03-01 | NK2: 2031-03-01 | NL2: 2031-04-01 | NM2: 2031-04-01 | NN2: 2031-05-01 | NO2: 2031-05-01 | NP2: 2031-06-01 | NQ2: 2031-06-01 | NR2: 2031-07-01 | NS2: 2031-07-01 | NT2: 2031-08-01 | NU2: 2031-08-01 | NV2: 2031-09-01 | NW2: 2031-09-01 | NX2: =DATE(YEAR(NV2),MONTH(NV2)+1,1) -> 2031-10-01 | NY2: 2031-10-01 | NZ2: 2031-11-01 | OA2: 2031-11-01 | OB2: 2031-12-01 | OC2: 2031-12-01 | OD2: 2032-01-01 | OE2: 2032-01-01 | OF2: 2032-02-01 | OG2: 2032-02-01 | OH2: 2032-03-01 | OI2: 2032-03-01 | OJ2: 2032-04-01 | OK2: 2032-04-01 | OL2: 2032-05-01 | OM2: 2032-05-01 | ON2: 2032-06-01 | OO2: 2032-06-01 | OP2: 2032-07-01 | OQ2: 2032-07-01 | OR2: 2032-08-01 | OS2: 2032-08-01 | OT2: 2032-09-01 | OU2: 2032-09-01 | OV2: 2032-10-01 | OW2: 2032-10-01 | OX2: 2032-11-01 | OY2: 2032-11-01 | OZ2: 2032-12-01 | PA2: 2032-12-01 | PB2: 2033-01-01 | PC2: 2033-01-01 | PD2: 2033-02-01 | PE2: 2033-02-01 | PF2: 2033-03-01 | PG2: 2033-03-01 | PH2: 2033-04-01 | PI2: 2033-04-01 | PJ2: 2033-05-01 | PK2: 2033-05-01 | PL2: 2033-06-01 | PM2: 2033-06-01 | PN2: 2033-07-01 | PO2: 2033-07-01 | PP2: 2033-08-01 | PQ2: 2033-08-01 | PR2: 2033-09-01 | PS2: 2033-09-01 | PT2: 2033-10-01 | PU2: 2033-10-01 | PV2: 2033-11-01 | PW2: 2033-11-01 | PX2: 2033-12-01 | PY2: 2033-12-01 | PZ2: 2034-01-01 | QA2: 2034-01-01 | QB2: 2034-02-01 | QC2: 2034-02-01 | QD2: 2034-03-01 | QE2: 2034-03-01 | QF2: 2034-04-01 | QG2: 2034-04-01 | QH2: 2034-05-01 | QI2: 2034-05-01 | QJ2: 2034-06-01 | QK2: 2034-06-01 | QL2: 2034-07-01 | QM2: 2034-07-01 | QN2: 2034-08-01 | QO2: 2034-08-01 | QP2: 2034-09-01 | QQ2: 2034-09-01 | QR2: 2034-10-01 | QS2: 2034-10-01 | QT2: 2034-11-01 | QU2: 2034-11-01 | QV2: 2034-12-01 | QW2: 2034-12-01 | QX2: 2035-01-01 | QY2: 2035-01-01 | QZ2: 2035-02-01 | RA2: 2035-02-01 | RB2: 2035-03-01 | RC2: 2035-03-01 | RD2: 2035-04-01 | RE2: 2035-04-01 | RF2: 2035-05-01 | RG2: 2035-05-01 | RH2: 2035-06-01 | RI2: 2035-06-01 | RJ2: 2035-07-01 | RK2: 2035-07-01 | RL2: 2035-08-01 | RM2: 2035-08-01 | RN2: 2035-09-01 | RO2: 2035-09-01 | RQ2: 2016 | RR2: 2017 | RS2: 2018 | RT2: 2019 | RU2: 2020 | RV2: 2021 | RW2: 2022 | RX2: 2023 | RY2: 2024 | RZ2: 2025 | SA2: 2026 | SB2: 2027 | SC2: 2028 | SD2: 2029 | SE2: 2030 | SF2: 2031 | SG2: 2032 | SH2: 2033 | SI2: 2034 | SJ2: 2035
B3: BESID | C3: AccountName | D3: HLH | E3: LLH | F3: HLH | G3: LLH | H3: HLH | I3: LLH | J3: HLH | K3: LLH | L3: HLH | M3: LLH | N3: HLH | O3: LLH | P3: HLH | Q3: LLH | R3: HLH | S3: LLH | T3: HLH | U3: LLH | V3: HLH | W3: LLH | X3: HLH | Y3: LLH | Z3: HLH | AA3: LLH | AB3: HLH | AC3: LLH | AD3: HLH | AE3: LLH | AF3: HLH | AG3: LLH | AH3: HLH | AI3: LLH | AJ3: HLH | AK3: LLH | AL3: HLH | AM3: LLH | AN3: HLH | AO3: LLH | AP3: HLH | AQ3: LLH | AR3: HLH | AS3: LLH | AT3: HLH | AU3: LLH | AV3: HLH | AW3: LLH | AX3: HLH | AY3: LLH | AZ3: HLH | BA3: LLH | BB3: HLH | BC3: LLH | BD3: HLH | BE3: LLH | BF3: HLH | BG3: LLH | BH3: HLH | BI3: LLH | BJ3: HLH | BK3: LLH | BL3: HLH | BM3: LLH | BN3: HLH | BO3: LLH | BP3: HLH | BQ3: LLH | BR3: HLH | BS3: LLH | BT3: HLH | BU3: LLH | BV3: HLH | BW3: LLH | BX3: HLH | BY3: LLH | BZ3: HLH | CA3: LLH | CB3: HLH | CC3: LLH | CD3: HLH | CE3: LLH | CF3: HLH | CG3: LLH | CH3: HLH | CI3: LLH | CJ3: HLH | CK3: LLH | CL3: HLH | CM3: LLH | CN3: HLH | CO3: LLH | CP3: HLH | CQ3: LLH | CR3: HLH | CS3: LLH | CT3: HLH | CU3: LLH | CV3: HLH | CW3: LLH | CX3: HLH | CY3: LLH | CZ3: HLH | DA3: LLH | DB3: HLH | DC3: LLH | DD3: HLH | DE3: LLH | DF3: HLH | DG3: LLH | DH3: HLH | DI3: LLH | DJ3: HLH | DK3: LLH | DL3: HLH | DM3: LLH | DN3: HLH | DO3: LLH | DP3: HLH | DQ3: LLH | DR3: HLH | DS3: LLH | DT3: HLH | DU3: LLH | DV3: HLH | DW3: LLH | DX3: HLH | DY3: LLH | DZ3: HLH | EA3: LLH | EB3: HLH | EC3: LLH | ED3: HLH | EE3: LLH | EF3: HLH | EG3: LLH | EH3: HLH | EI3: LLH | EJ3: HLH | EK3: LLH | EL3: HLH | EM3: LLH | EN3: HLH | EO3: LLH | EP3: HLH | EQ3: LLH | ER3: HLH | ES3: LLH | ET3: HLH | EU3: LLH | EV3: HLH | EW3: LLH | EX3: HLH | EY3: LLH | EZ3: HLH | FA3: LLH | FB3: HLH | FC3: LLH | FD3: HLH | FE3: LLH | FF3: HLH | FG3: LLH | FH3: HLH | FI3: LLH | FJ3: HLH | FK3: LLH | FL3: HLH | FM3: LLH | FN3: HLH | FO3: LLH | FP3: HLH | FQ3: LLH | FR3: HLH | FS3: LLH | FT3: HLH | FU3: LLH | FV3: HLH | FW3: LLH | FX3: HLH | FY3: LLH | FZ3: HLH | GA3: LLH | GB3: HLH | GC3: LLH | GD3: HLH | GE3: LLH | GF3: HLH | GG3: LLH | GH3: HLH | GI3: LLH | GJ3: HLH | GK3: LLH | GL3: HLH | GM3: LLH | GN3: HLH | GO3: LLH | GP3: HLH | GQ3: LLH | GR3: HLH | GS3: LLH | GT3: HLH | GU3: LLH | GV3: HLH | GW3: LLH | GX3: HLH | GY3: LLH | GZ3: HLH | HA3: LLH | HB3: HLH | HC3: LLH | HD3: HLH | HE3: LLH | HF3: HLH | HG3: LLH | HH3: HLH | HI3: LLH | HJ3: HLH | HK3: LLH | HL3: HLH | HM3: LLH | HN3: HLH | HO3: LLH | HP3: HLH | HQ3: LLH | HR3: HLH | HS3: LLH | HT3: HLH | HU3: LLH | HV3: HLH | HW3: LLH | HX3: HLH | HY3: LLH | HZ3: HLH | IA3: LLH | IB3: HLH | IC3: LLH | ID3: HLH | IE3: LLH | IF3: HLH | IG3: LLH | IH3: HLH | II3: LLH | IJ3: HLH | IK3: LLH | IL3: HLH | IM3: LLH | IN3: HLH | IO3: LLH | IP3: HLH | IQ3: LLH | IR3: HLH | IS3: LLH | IT3: HLH | IU3: LLH | IV3: HLH | IW3: LLH | IX3: HLH | IY3: LLH | IZ3: HLH | JA3: LLH | JB3: HLH | JC3: LLH | JD3: HLH | JE3: LLH | JF3: HLH | JG3: LLH | JH3: HLH | JI3: LLH | JJ3: HLH | JK3: LLH | JL3: HLH | JM3: LLH | JN3: HLH | JO3: LLH | JP3: HLH | JQ3: LLH | JR3: HLH | JS3: LLH | JT3: HLH | JU3: LLH | JV3: HLH | JW3: LLH | JX3: HLH | JY3: LLH | JZ3: HLH | KA3: LLH | KB3: HLH | KC3: LLH | KD3: HLH | KE3: LLH | KF3: HLH | KG3: LLH | KH3: HLH | KI3: LLH | KJ3: HLH | KK3: LLH | KL3: HLH | KM3: LLH | KN3: HLH | KO3: LLH | KP3: HLH | KQ3: LLH | KR3: HLH | KS3: LLH | KT3: HLH | KU3: LLH | KV3: HLH | KW3: LLH | KX3: HLH | KY3: LLH | KZ3: HLH | LA3: LLH | LB3: HLH | LC3: LLH | LD3: HLH | LE3: LLH | LF3: HLH | LG3: LLH | LH3: HLH | LI3: LLH | LJ3: HLH | LK3: LLH | LL3: HLH | LM3: LLH | LN3: HLH | LO3: LLH | LP3: HLH | LQ3: LLH | LR3: HLH | LS3: LLH | LT3: HLH | LU3: LLH | LV3: HLH | LW3: LLH | LX3: HLH | LY3: LLH | LZ3: HLH | MA3: LLH | MB3: HLH | MC3: LLH | MD3: HLH | ME3: LLH | MF3: HLH | MG3: LLH | MH3: HLH | MI3: LLH | MJ3: HLH | MK3: LLH | ML3: HLH | MM3: LLH | MN3: HLH | MO3: LLH | MP3: HLH | MQ3: LLH | MR3: HLH | MS3: LLH | MT3: HLH | MU3: LLH | MV3: HLH | MW3: LLH | MX3: HLH | MY3: LLH | MZ3: HLH | NA3: LLH | NB3: HLH | NC3: LLH | ND3: HLH | NE3: LLH | NF3: HLH | NG3: LLH | NH3: HLH | NI3: LLH | NJ3: HLH | NK3: LLH | NL3: HLH | NM3: LLH | NN3: HLH | NO3: LLH | NP3: HLH | NQ3: LLH | NR3: HLH | NS3: LLH | NT3: HLH | NU3: LLH | NV3: HLH | NW3: LLH | NX3: HLH | NY3: LLH | NZ3: HLH | OA3: LLH | OB3: HLH | OC3: LLH | OD3: HLH | OE3: LLH | OF3: HLH | OG3: LLH | OH3: HLH | OI3: LLH | OJ3: HLH | OK3: LLH | OL3: HLH | OM3: LLH | ON3: HLH | OO3: LLH | OP3: HLH | OQ3: LLH | OR3: HLH | OS3: LLH | OT3: HLH | OU3: LLH | OV3: HLH | OW3: LLH | OX3: HLH | OY3: LLH | OZ3: HLH | PA3: LLH | PB3: HLH | PC3: LLH | PD3: HLH | PE3: LLH | PF3: HLH | PG3: LLH | PH3: HLH | PI3: LLH | PJ3: HLH | PK3: LLH | PL3: HLH | PM3: LLH | PN3: HLH | PO3: LLH | PP3: HLH | PQ3: LLH | PR3: HLH | PS3: LLH | PT3: HLH | PU3: LLH | PV3: HLH | PW3: LLH | PX3: HLH | PY3: LLH | PZ3: HLH | QA3: LLH | QB3: HLH | QC3: LLH | QD3: HLH | QE3: LLH | QF3: HLH | QG3: LLH | QH3: HLH | QI3: LLH | QJ3: HLH | QK3: LLH | QL3: HLH | QM3: LLH | QN3: HLH | QO3: LLH | QP3: HLH | QQ3: LLH | QR3: HLH | QS3: LLH | QT3: HLH | QU3: LLH | QV3: HLH | QW3: LLH | QX3: HLH | QY3: LLH | QZ3: HLH | RA3: LLH | RB3: HLH | RC3: LLH | RD3: HLH | RE3: LLH | RF3: HLH | RG3: LLH | RH3: HLH | RI3: LLH | RJ3: HLH | RK3: LLH | RL3: HLH | RM3: LLH | RN3: HLH | RO3: LLH
B4: 10015 | C4: Asotin County PUD #1 | D4: 0 | E4: 0 | F4: 0 | G4: 0 | H4: 0 | I4: 0 | J4: 0 | K4: 0 | L4: 0 | M4: 0 | N4: 0 | O4: 0 | P4: 0 | Q4: 0 | R4: 0 | S4: 0 | T4: 0 | U4: 0 | V4: 0 | W4: 0 | X4: 0 | Y4: 0 | Z4: 0 | AA4: 0 | AB4: 0 | AC4: 0 | AD4: 0 | AE4: 0 | AF4: 0 | AG4: 0 | AH4: 0 | AI4: 0 | AJ4: 0 | AK4: 0 | AL4: 0 | AM4: 0 | AN4: 0 | AO4: 0 | AP4: 0 | AQ4: 0 | AR4: 0 | AS4: 0 | AT4: 0 | AU4: 0 | AV4: 0 | AW4: 0 | AX4: 0 | AY4: 0 | AZ4: 0 | BA4: 0 | BB4: 0 | BC4: 0 | BD4: 0 | BE4: 0 | BF4: 0 | BG4: 0 | BH4: 0 | BI4: 0 | BJ4: 0 | BK4: 0 | BL4: 0 | BM4: 0 | BN4: 0 | BO4: 0 | BP4: 0 | BQ4: 0 | BR4: 0 | BS4: 0 | BT4: 0 | BU4: 0 | BV4: 0 | BW4: 0 | BX4: 0 | BY4: 0 | BZ4: 0 | CA4: 0 | CB4: 0 | CC4: 0 | CD4: 0 | CE4: 0 | CF4: 0 | CG4: 0 | CH4: 0 | CI4: 0 | CJ4: 0 | CK4: 0 | CL4: 0 | CM4: 0 | CN4: 0 | CO4: 0 | CP4: 0 | CQ4: 0 | CR4: 0 | CS4: 0 | CT4: 0 | CU4: 0 | CV4: 0 | CW4: 0 | CX4: 0 | CY4: 0 | CZ4: 0 | DA4: 0 | DB4: 0 | DC4: 0 | DD4: 0 | DE4: 0 | DF4: 0 | DG4: 0 | DH4: 0 | DI4: 0 | DJ4: 0 | DK4: 0 | DL4: 0 | DM4: 0 | DN4: 0 | DO4: 0 | DP4: 0 | DQ4: 0 | DR4: 0 | DS4: 0 | DT4: 0 | DU4: 0 | DV4: 0 | DW4: 0 | DX4: 0 | DY4: 0 | DZ4: 0 | EA4: 0 | EB4: 0 | EC4: 0 | ED4: 0 | EE4: 0 | EF4: 0 | EG4: 0 | EH4: 0 | EI4: 0 | EJ4: 0 | EK4: 0 | EL4: 0 | EM4: 0 | EN4: 0 | EO4: 0 | EP4: 0 | EQ4: 0 | ER4: 0 | ES4: 0 | ET4: 0 | EU4: 0 | EV4: 0 | EW4: 0 | EX4: 0 | EY4: 0 | EZ4: 0 | FA4: 0 | FB4: 0 | FC4: 0 | FD4: 0 | FE4: 0 | FF4: 0 | FG4: 0 | FH4: 0 | FI4: 0 | FJ4: 0 | FK4: 0 | FL4: 0 | FM4: 0 | FN4: 0 | FO4: 0 | FP4: 0 | FQ4: 0 | FR4: 0 | FS4: 0 | FT4: 0 | FU4: 0 | FV4: 0 | FW4: 0 | FX4: 0 | FY4: 0 | FZ4: 0 | GA4: 0 | GB4: 0 | GC4: 0 | GD4: 0 | GE4: 0 | GF4: 0 | GG4: 0 | GH4: 0 | GI4: 0 | GJ4: 0 | GK4: 0 | GL4: 0 | GM4: 0 | GN4: 0 | GO4: 0 | GP4: 0 | GQ4: 0 | GR4: 0 | GS4: 0 | GT4: 0 | GU4: 0 | GV4: 0 | GW4: 0 | GX4: 0 | GY4: 0 | GZ4: 0 | HA4: 0 | HB4: 0 | HC4: 0 | HD4: 0 | HE4: 0 | HF4: 0 | HG4: 0 | HH4: 0 | HI4: 0 | HJ4: 0 | HK4: 0 | HL4: 0 | HM4: 0 | HN4: 0 | HO4: 0 | HP4: 0 | HQ4: 0 | HR4: 0 | HS4: 0 | HT4: 0 | HU4: 0 | HV4: 0 | HW4: 0 | HX4: 0 | HY4: 0 | HZ4: 0 | IA4: 0 | IB4: 0 | IC4: 0 | ID4: 0 | IE4: 0 | IF4: 0 | IG4: 0 | IH4: 0 | II4: 0 | IJ4: 0 | IK4: 0 | IL4: 0 | IM4: 0 | IN4: 0 | IO4: 0 | IP4: 0 | IQ4: 0 | IR4: 0 | IS4: 0 | IT4: 0 | IU4: 0 | IV4: 0 | IW4: 0 | IX4: 0 | IY4: 0 | IZ4: 0 | JA4: 0 | JB4: 0 | JC4: 0 | JD4: 0 | JE4: 0 | JF4: 0 | JG4: 0 | JH4: 0 | JI4: 0 | JJ4: 0 | JK4: 0 | JL4: 0 | JM4: 0 | JN4: 0 | JO4: 0 | JP4: 0 | JQ4: 0 | JR4: 0 | JS4: 0 | JT4: 0 | JU4: 0 | JV4: 0 | JW4: 0 | JX4: 0 | JY4: 0 | JZ4: 0 | KA4: 0 | KB4: 0 | KC4: 0 | KD4: 0 | KE4: 0 | KF4: 0 | KG4: 0 | KH4: 0 | KI4: 0 | KJ4: 0 | KK4: 0 | KL4: 0 | KM4: 0 | KN4: 0 | KO4: 0 | KP4: 0 | KQ4: 0 | KR4: 0 | KS4: 0 | KT4: 0 | KU4: 0 | KV4: 0 | KW4: 0 | KX4: 0 | KY4: 0 | KZ4: 0 | LA4: 0 | LB4: 0 | LC4: 0 | LD4: 0 | LE4: 0 | LF4: 0 | LG4: 0 | LH4: 0 | LI4: 0 | LJ4: 0 | LK4: 0 | LL4: 0 | LM4: 0 | LN4: 0 | LO4: 0 | LP4: 0 | LQ4: 0 | LR4: 0 | LS4: 0 | LT4: 0 | LU4: 0 | LV4: 0 | LW4: 0 | LX4: 0 | LY4: 0 | LZ4: 0 | MA4: 0 | MB4: 0 | MC4: 0 | MD4: 0 | ME4: 0 | MF4: 0 | MG4: 0 | MH4: 0 | MI4: 0 | MJ4: 0 | MK4: 0 | ML4: 0 | MM4: 0 | MN4: 0 | MO4: 0 | MP4: 0 | MQ4: 0 | MR4: 0 | MS4: 0 | MT4: 0 | MU4: 0 | MV4: 0 | MW4: 0 | MX4: 0 | MY4: 0 | MZ4: 0 | NA4: 0 | NB4: 0 | NC4: 0 | ND4: 0 | NE4: 0 | NF4: 0 | NG4: 0 | NH4: 0 | NI4: 0 | NJ4: 0 | NK4: 0 | NL4: 0 | NM4: 0 | NN4: 0 | NO4: 0 | NP4: 0 | NQ4: 0 | NR4: 0 | NS4: 0 | NT4: 0 | NU4: 0 | NV4: 0 | NW4: 0 | NX4: 0 | NY4: 0 | NZ4: 0 | OA4: 0 | OB4: 0 | OC4: 0 | OD4: 0 | OE4: 0 | OF4: 0 | OG4: 0 | OH4: 0 | OI4: 0 | OJ4: 0 | OK4: 0 | OL4: 0 | OM4: 0 | ON4: 0 | OO4: 0 | OP4: 0 | OQ4: 0 | OR4: 0 | OS4: 0 | OT4: 0 | OU4: 0 | OV4: 0 | OW4: 0 | OX4: 0 | OY4: 0 | OZ4: 0 | PA4: 0 | PB4: 0 | PC4: 0 | PD4: 0 | PE4: 0 | PF4: 0 | PG4: 0 | PH4: 0 | PI4: 0 | PJ4: 0 | PK4: 0 | PL4: 0 | PM4: 0 | PN4: 0 | PO4: 0 | PP4: 0 | PQ4: 0 | PR4: 0 | PS4: 0 | PT4: 0 | PU4: 0 | PV4: 0 | PW4: 0 | PX4: 0 | PY4: 0 | PZ4: 0 | QA4: 0 | QB4: 0 | QC4: 0 | QD4: 0 | QE4: 0 | QF4: 0 | QG4: 0 | QH4: 0 | QI4: 0 | QJ4: 0 | QK4: 0 | QL4: 0 | QM4: 0 | QN4: 0 | QO4: 0 | QP4: 0 | QQ4: 0 | QR4: 0 | QS4: 0 | QT4: 0 | QU4: 0 | QV4: 0 | QW4: 0 | QX4: 0 | QY4: 0 | QZ4: 0 | RA4: 0 | RB4: 0 | RC4: 0 | RD4: 0 | RE4: 0 | RF4: 0 | RG4: 0 | RH4: 0 | RI4: 0 | RJ4: 0 | RK4: 0 | RL4: 0 | RM4: 0 | RN4: 0 | RO4: 0 | RQ4: =+SUM(D4:AA4) -> 0 | RR4: =+SUM(AB4:AY4) -> 0 | RS4: =+SUM(AZ4:BW4) -> 0 | RT4: =+SUM(BX4:CU4) -> 0 | RU4: =+SUM(CV4:DS4) -> 0 | RV4: =+SUM(DT4:EQ4) -> 0 | RW4: =+SUM(ER4:FO4) -> 0 | RX4: =+SUM(FP4:GM4) -> 0 | RY4: =+SUM(GN4:HK4) -> 0 | RZ4: =+SUM(HL4:II4) -> 0 | SA4: =+SUM(IJ4:JG4) -> 0 | SB4: =+SUM(JH4:KE4) -> 0 | SC4: =+SUM(KF4:LC4) -> 0 | SD4: =+SUM(LD4:MA4) -> 0 | SE4: =+SUM(MB4:MY4) -> 0 | SF4: =+SUM(MZ4:NW4) -> 0 | SG4: =+SUM(OV4:PS4) -> 0 | SH4: =+SUM(NB4:NY4) -> 0 | SI4: =+SUM(PT4:QQ4) -> 0 | SJ4: =+SUM(QR4:RO4) -> 0
B5: 10024 | C5: Benton County PUD #1 | D5: 0 | E5: 0 | F5: 0 | G5: 0 | H5: 0 | I5: 0 | J5: 0 | K5: 0 | L5: 0 | M5: 0 | N5: 0 | O5: 0 | P5: 0 | Q5: 0 | R5: 0 | S5: 0 | T5: 0 | U5: 0 | V5: 0 | W5: 0 | X5: 0 | Y5: 0 | Z5: 0 | AA5: 0 | AB5: 0 | AC5: 0 | AD5: 0 | AE5: 0 | AF5: 0 | AG5: 0 | AH5: 0 | AI5: 0 | AJ5: 0 | AK5: 0 | AL5: 0 | AM5: 0 | AN5: 0 | AO5: 0 | AP5: 0 | AQ5: 0 | AR5: 0 | AS5: 0 | AT5: 0 | AU5: 0 | AV5: 0 | AW5: 0 | AX5: 0 | AY5: 0 | AZ5: 0 | BA5: 0 | BB5: 0 | BC5: 0 | BD5: 0 | BE5: 0 | BF5: 0 | BG5: 0 | BH5: 0 | BI5: 0 | BJ5: 0 | BK5: 0 | BL5: 0 | BM5: 0 | BN5: 0 | BO5: 0 | BP5: 0 | BQ5: 0 | BR5: 0 | BS5: 0 | BT5: 0 | BU5: 0 | BV5: 0 | BW5: 0 | BX5: 0 | BY5: 0 | BZ5: 0 | CA5: 0 | CB5: 0 | CC5: 0 | CD5: 0 | CE5: 0 | CF5: 0 | CG5: 0 | CH5: 0 | CI5: 0 | CJ5: 0 | CK5: 0 | CL5: 0 | CM5: 0 | CN5: 0 | CO5: 0 | CP5: 0 | CQ5: 0 | CR5: 0 | CS5: 0 | CT5: 0 | CU5: 0 | CV5: 0 | CW5: 0 | CX5: 0 | CY5: 0 | CZ5: 0 | DA5: 0 | DB5: 0 | DC5: 0 | DD5: 0 | DE5: 0 | DF5: 0 | DG5: 0 | DH5: 0 | DI5: 0 | DJ5: 0 | DK5: 0 | DL5: 0 | DM5: 0 | DN5: 0 | DO5: 0 | DP5: 0 | DQ5: 0 | DR5: 0 | DS5: 0 | DT5: 0 | DU5: 0 | DV5: 0 | DW5: 0 | DX5: 0 | DY5: 0 | DZ5: 0 | EA5: 0 | EB5: 0 | EC5: 0 | ED5: 0 | EE5: 0 | EF5: 0 | EG5: 0 | EH5: 0 | EI5: 0 | EJ5: 0 | EK5: 0 | EL5: 0 | EM5: 0 | EN5: 0 | EO5: 0 | EP5: 0 | EQ5: 0 | ER5: 0 | ES5: 0 | ET5: 0 | EU5: 0 | EV5: 0 | EW5: 0 | EX5: 0 | EY5: 0 | EZ5: 0 | FA5: 0 | FB5: 0 | FC5: 0 | FD5: 0 | FE5: 0 | FF5: 0 | FG5: 0 | FH5: 0 | FI5: 0 | FJ5: 0 | FK5: 0 | FL5: 0 | FM5: 0 | FN5: 0 | FO5: 0 | FP5: 0 | FQ5: 0 | FR5: 0 | FS5: 0 | FT5: 0 | FU5: 0 | FV5: 0 | FW5: 0 | FX5: 0 | FY5: 0 | FZ5: 0 | GA5: 0 | GB5: 0 | GC5: 0 | GD5: 0 | GE5: 0 | GF5: 0 | GG5: 0 | GH5: 0 | GI5: 0 | GJ5: 0 | GK5: 0 | GL5: 0 | GM5: 0 | GN5: 0 | GO5: 0 | GP5: 0 | GQ5: 0 | GR5: 0 | GS5: 0 | GT5: 0 | GU5: 0 | GV5: 0 | GW5: 0 | GX5: 0 | GY5: 0 | GZ5: 0 | HA5: 0 | HB5: 0 | HC5: 0 | HD5: 0 | HE5: 0 | HF5: 0 | HG5: 0 | HH5: 0 | HI5: 0 | HJ5: 0 | HK5: 0 | HL5: 0 | HM5: 0 | HN5: 0 | HO5: 0 | HP5: 0 | HQ5: 0 | HR5: 0 | HS5: 0 | HT5: 0 | HU5: 0 | HV5: 0 | HW5: 0 | HX5: 0 | HY5: 0 | HZ5: 0 | IA5: 0 | IB5: 0 | IC5: 0 | ID5: 0 | IE5: 0 | IF5: 0 | IG5: 0 | IH5: 0 | II5: 0 | IJ5: 0 | IK5: 0 | IL5: 0 | IM5: 0 | IN5: 0 | IO5: 0 | IP5: 0 | IQ5: 0 | IR5: 0 | IS5: 0 | IT5: 0 | IU5: 0 | IV5: 0 | IW5: 0 | IX5: 0 | IY5: 0 | IZ5: 0 | JA5: 0 | JB5: 0 | JC5: 0 | JD5: 0 | JE5: 0 | JF5: 0 | JG5: 0 | JH5: 0 | JI5: 0 | JJ5: 0 | JK5: 0 | JL5: 0 | JM5: 0 | JN5: 0 | JO5: 0 | JP5: 0 | JQ5: 0 | JR5: 0 | JS5: 0 | JT5: 0 | JU5: 0 | JV5: 0 | JW5: 0 | JX5: 0 | JY5: 0 | JZ5: 0 | KA5: 0 | KB5: 0 | KC5: 0 | KD5: 0 | KE5: 0 | KF5: 0 | KG5: 0 | KH5: 0 | KI5: 0 | KJ5: 0 | KK5: 0 | KL5: 0 | KM5: 0 | KN5: 0 | KO5: 0 | KP5: 0 | KQ5: 0 | KR5: 0 | KS5: 0 | KT5: 0 | KU5: 0 | KV5: 0 | KW5: 0 | KX5: 0 | KY5: 0 | KZ5: 0 | LA5: 0 | LB5: 0 | LC5: 0 | LD5: 0 | LE5: 0 | LF5: 0 | LG5: 0 | LH5: 0 | LI5: 0 | LJ5: 0 | LK5: 0 | LL5: 0 | LM5: 0 | LN5: 0 | LO5: 0 | LP5: 0 | LQ5: 0 | LR5: 0 | LS5: 0 | LT5: 0 | LU5: 0 | LV5: 0 | LW5: 0 | LX5: 0 | LY5: 0 | LZ5: 0 | MA5: 0 | MB5: 0 | MC5: 0 | MD5: 0 | ME5: 0 | MF5: 0 | MG5: 0 | MH5: 0 | MI5: 0 | MJ5: 0 | MK5: 0 | ML5: 0 | MM5: 0 | MN5: 0 | MO5: 0 | MP5: 0 | MQ5: 0 | MR5: 0 | MS5: 0 | MT5: 0 | MU5: 0 | MV5: 0 | MW5: 0 | MX5: 0 | MY5: 0 | MZ5: 0 | NA5: 0 | NB5: 0 | NC5: 0 | ND5: 0 | NE5: 0 | NF5: 0 | NG5: 0 | NH5: 0 | NI5: 0 | NJ5: 0 | NK5: 0 | NL5: 0 | NM5: 0 | NN5: 0 | NO5: 0 | NP5: 0 | NQ5: 0 | NR5: 0 | NS5: 0 | NT5: 0 | NU5: 0 | NV5: 0 | NW5: 0 | NX5: 0 | NY5: 0 | NZ5: 0 | OA5: 0 | OB5: 0 | OC5: 0 | OD5: 0 | OE5: 0 | OF5: 0 | OG5: 0 | OH5: 0 | OI5: 0 | OJ5: 0 | OK5: 0 | OL5: 0 | OM5: 0 | ON5: 0 | OO5: 0 | OP5: 0 | OQ5: 0 | OR5: 0 | OS5: 0 | OT5: 0 | OU5: 0 | OV5: 0 | OW5: 0 | OX5: 0 | OY5: 0 | OZ5: 0 | PA5: 0 | PB5: 0 | PC5: 0 | PD5: 0 | PE5: 0 | PF5: 0 | PG5: 0 | PH5: 0 | PI5: 0 | PJ5: 0 | PK5: 0 | PL5: 0 | PM5: 0 | PN5: 0 | PO5: 0 | PP5: 0 | PQ5: 0 | PR5: 0 | PS5: 0 | PT5: 0 | PU5: 0 | PV5: 0 | PW5: 0 | PX5: 0 | PY5: 0 | PZ5: 0 | QA5: 0 | QB5: 0 | QC5: 0 | QD5: 0 | QE5: 0 | QF5: 0 | QG5: 0 | QH5: 0 | QI5: 0 | QJ5: 0 | QK5: 0 | QL5: 0 | QM5: 0 | QN5: 0 | QO5: 0 | QP5: 0 | QQ5: 0 | QR5: 0 | QS5: 0 | QT5: 0 | QU5: 0 | QV5: 0 | QW5: 0 | QX5: 0 | QY5: 0 | QZ5: 0 | RA5: 0 | RB5: 0 | RC5: 0 | RD5: 0 | RE5: 0 | RF5: 0 | RG5: 0 | RH5: 0 | RI5: 0 | RJ5: 0 | RK5: 0 | RL5: 0 | RM5: 0 | RN5: 0 | RO5: 0 | RQ5: 0 | RR5: 0 | RS5: 0 | RT5: 0 | RU5: 0 | RV5: 0 | RW5: 0 | RX5: 0 | RY5: 0 | RZ5: 0 | SA5: 0 | SB5: 0 | SC5: 0 | SD5: 0 | SE5: 0 | SF5: 0 | SG5: 0 | SH5: 0 | SI5: 0 | SJ5: 0
B6: 10025 | C6: Benton REA | D6: 0 | E6: 0 | F6: 0 | G6: 0 | H6: 0 | I6: 0 | J6: 0 | K6: 0 | L6: 0 | M6: 0 | N6: 0 | O6: 0 | P6: 0 | Q6: 0 | R6: 0 | S6: 0 | T6: 0 | U6: 0 | V6: 0 | W6: 0 | X6: 0 | Y6: 0 | Z6: 0 | AA6: 0 | AB6: 0 | AC6: 0 | AD6: 0 | AE6: 0 | AF6: 0 | AG6: 0 | AH6: 0 | AI6: 0 | AJ6: 0 | AK6: 0 | AL6: 0 | AM6: 0 | AN6: 0 | AO6: 0 | AP6: 0 | AQ6: 0 | AR6: 0 | AS6: 0 | AT6: 0 | AU6: 0 | AV6: 0 | AW6: 0 | AX6: 0 | AY6: 0 | AZ6: 0 | BA6: 0 | BB6: 0 | BC6: 0 | BD6: 0 | BE6: 0 | BF6: 0 | BG6: 0 | BH6: 0 | BI6: 0 | BJ6: 0 | BK6: 0 | BL6: 0 | BM6: 0 | BN6: 0 | BO6: 0 | BP6: 0 | BQ6: 0 | BR6: 0 | BS6: 0 | BT6: 0 | BU6: 0 | BV6: 0 | BW6: 0 | BX6: 0 | BY6: 0 | BZ6: 0 | CA6: 0 | CB6: 0 | CC6: 0 | CD6: 0 | CE6: 0 | CF6: 0 | CG6: 0 | CH6: 0 | CI6: 0 | CJ6: 0 | CK6: 0 | CL6: 0 | CM6: 0 | CN6: 0 | CO6: 0 | CP6: 0 | CQ6: 0 | CR6: 0 | CS6: 0 | CT6: 0 | CU6: 0 | CV6: 0 | CW6: 0 | CX6: 0 | CY6: 0 | CZ6: 0 | DA6: 0 | DB6: 0 | DC6: 0 | DD6: 0 | DE6: 0 | DF6: 0 | DG6: 0 | DH6: 0 | DI6: 0 | DJ6: 0 | DK6: 0 | DL6: 0 | DM6: 0 | DN6: 0 | DO6: 0 | DP6: 0 | DQ6: 0 | DR6: 0 | DS6: 0 | DT6: 0 | DU6: 0 | DV6: 0 | DW6: 0 | DX6: 0 | DY6: 0 | DZ6: 0 | EA6: 0 | EB6: 0 | EC6: 0 | ED6: 0 | EE6: 0 | EF6: 0 | EG6: 0 | EH6: 0 | EI6: 0 | EJ6: 0 | EK6: 0 | EL6: 0 | EM6: 0 | EN6: 0 | EO6: 0 | EP6: 0 | EQ6: 0 | ER6: 0 | ES6: 0 | ET6: 0 | EU6: 0 | EV6: 0 | EW6: 0 | EX6: 0 | EY6: 0 | EZ6: 0 | FA6: 0 | FB6: 0 | FC6: 0 | FD6: 0 | FE6: 0 | FF6: 0 | FG6: 0 | FH6: 0 | FI6: 0 | FJ6: 0 | FK6: 0 | FL6: 0 | FM6: 0 | FN6: 0 | FO6: 0 | FP6: 0 | FQ6: 0 | FR6: 0 | FS6: 0 | FT6: 0 | FU6: 0 | FV6: 0 | FW6: 0 | FX6: 0 | FY6: 0 | FZ6: 0 | GA6: 0 | GB6: 0 | GC6: 0 | GD6: 0 | GE6: 0 | GF6: 0 | GG6: 0 | GH6: 0 | GI6: 0 | GJ6: 0 | GK6: 0 | GL6: 0 | GM6: 0 | GN6: 0 | GO6: 0 | GP6: 0 | GQ6: 0 | GR6: 0 | GS6: 0 | GT6: 0 | GU6: 0 | GV6: 0 | GW6: 0 | GX6: 0 | GY6: 0 | GZ6: 0 | HA6: 0 | HB6: 0 | HC6: 0 | HD6: 0 | HE6: 0 | HF6: 0 | HG6: 0 | HH6: 0 | HI6: 0 | HJ6: 0 | HK6: 0 | HL6: 0 | HM6: 0 | HN6: 0 | HO6: 0 | HP6: 0 | HQ6: 0 | HR6: 0 | HS6: 0 | HT6: 0 | HU6: 0 | HV6: 0 | HW6: 0 | HX6: 0 | HY6: 0 | HZ6: 0 | IA6: 0 | IB6: 0 | IC6: 0 | ID6: 0 | IE6: 0 | IF6: 0 | IG6: 0 | IH6: 0 | II6: 0 | IJ6: 0 | IK6: 0 | IL6: 0 | IM6: 0 | IN6: 0 | IO6: 0 | IP6: 0 | IQ6: 0 | IR6: 0 | IS6: 0 | IT6: 0 | IU6: 0 | IV6: 0 | IW6: 0 | IX6: 0 | IY6: 0 | IZ6: 0 | JA6: 0 | JB6: 0 | JC6: 0 | JD6: 0 | JE6: 0 | JF6: 0 | JG6: 0 | JH6: 0 | JI6: 0 | JJ6: 0 | JK6: 0 | JL6: 0 | JM6: 0 | JN6: 0 | JO6: 0 | JP6: 0 | JQ6: 0 | JR6: 0 | JS6: 0 | JT6: 0 | JU6: 0 | JV6: 0 | JW6: 0 | JX6: 0 | JY6: 0 | JZ6: 0 | KA6: 0 | KB6: 0 | KC6: 0 | KD6: 0 | KE6: 0 | KF6: 0 | KG6: 0 | KH6: 0 | KI6: 0 | KJ6: 0 | KK6: 0 | KL6: 0 | KM6: 0 | KN6: 0 | KO6: 0 | KP6: 0 | KQ6: 0 | KR6: 0 | KS6: 0 | KT6: 0 | KU6: 0 | KV6: 0 | KW6: 0 | KX6: 0 | KY6: 0 | KZ6: 0 | LA6: 0 | LB6: 0 | LC6: 0 | LD6: 0 | LE6: 0 | LF6: 0 | LG6: 0 | LH6: 0 | LI6: 0 | LJ6: 0 | LK6: 0 | LL6: 0 | LM6: 0 | LN6: 0 | LO6: 0 | LP6: 0 | LQ6: 0 | LR6: 0 | LS6: 0 | LT6: 0 | LU6: 0 | LV6: 0 | LW6: 0 | LX6: 0 | LY6: 0 | LZ6: 0 | MA6: 0 | MB6: 0 | MC6: 0 | MD6: 0 | ME6: 0 | MF6: 0 | MG6: 0 | MH6: 0 | MI6: 0 | MJ6: 0 | MK6: 0 | ML6: 0 | MM6: 0 | MN6: 0 | MO6: 0 | MP6: 0 | MQ6: 0 | MR6: 0 | MS6: 0 | MT6: 0 | MU6: 0 | MV6: 0 | MW6: 0 | MX6: 0 | MY6: 0 | MZ6: 0 | NA6: 0 | NB6: 0 | NC6: 0 | ND6: 0 | NE6: 0 | NF6: 0 | NG6: 0 | NH6: 0 | NI6: 0 | NJ6: 0 | NK6: 0 | NL6: 0 | NM6: 0 | NN6: 0 | NO6: 0 | NP6: 0 | NQ6: 0 | NR6: 0 | NS6: 0 | NT6: 0 | NU6: 0 | NV6: 0 | NW6: 0 | NX6: 0 | NY6: 0 | NZ6: 0 | OA6: 0 | OB6: 0 | OC6: 0 | OD6: 0 | OE6: 0 | OF6: 0 | OG6: 0 | OH6: 0 | OI6: 0 | OJ6: 0 | OK6: 0 | OL6: 0 | OM6: 0 | ON6: 0 | OO6: 0 | OP6: 0 | OQ6: 0 | OR6: 0 | OS6: 0 | OT6: 0 | OU6: 0 | OV6: 0 | OW6: 0 | OX6: 0 | OY6: 0 | OZ6: 0 | PA6: 0 | PB6: 0 | PC6: 0 | PD6: 0 | PE6: 0 | PF6: 0 | PG6: 0 | PH6: 0 | PI6: 0 | PJ6: 0 | PK6: 0 | PL6: 0 | PM6: 0 | PN6: 0 | PO6: 0 | PP6: 0 | PQ6: 0 | PR6: 0 | PS6: 0 | PT6: 0 | PU6: 0 | PV6: 0 | PW6: 0 | PX6: 0 | PY6: 0 | PZ6: 0 | QA6: 0 | QB6: 0 | QC6: 0 | QD6: 0 | QE6: 0 | QF6: 0 | QG6: 0 | QH6: 0 | QI6: 0 | QJ6: 0 | QK6: 0 | QL6: 0 | QM6: 0 | QN6: 0 | QO6: 0 | QP6: 0 | QQ6: 0 | QR6: 0 | QS6: 0 | QT6: 0 | QU6: 0 | QV6: 0 | QW6: 0 | QX6: 0 | QY6: 0 | QZ6: 0 | RA6: 0 | RB6: 0 | RC6: 0 | RD6: 0 | RE6: 0 | RF6: 0 | RG6: 0 | RH6: 0 | RI6: 0 | RJ6: 0 | RK6: 0 | RL6: 0 | RM6: 0 | RN6: 0 | RO6: 0 | RQ6: 0 | RR6: 0 | RS6: 0 | RT6: 0 | RU6: 0 | RV6: 0 | RW6: 0 | RX6: 0 | RY6: 0 | RZ6: 0 | SA6: 0 | SB6: 0 | SC6: 0 | SD6: 0 | SE6: 0 | SF6: 0 | SG6: 0 | SH6: 0 | SI6: 0 | SJ6: 0
B7: 10027 | C7: Big Bend Elec Coop | D7: 0 | E7: 0 | F7: 0 | G7: 0 | H7: 0 | I7: 0 | J7: 0 | K7: 0 | L7: 0 | M7: 0 | N7: 0 | O7: 0 | P7: 0 | Q7: 0 | R7: 0 | S7: 0 | T7: 0 | U7: 0 | V7: 0 | W7: 0 | X7: 0 | Y7: 0 | Z7: 0 | AA7: 0 | AB7: 0 | AC7: 0 | AD7: 0 | AE7: 0 | AF7: 0 | AG7: 0 | AH7: 0 | AI7: 0 | AJ7: 0 | AK7: 0 | AL7: 0 | AM7: 0 | AN7: 0 | AO7: 0 | AP7: 0 | AQ7: 0 | AR7: 0 | AS7: 0 | AT7: 0 | AU7: 0 | AV7: 0 | AW7: 0 | AX7: 0 | AY7: 0 | AZ7: 0 | BA7: 0 | BB7: 0 | BC7: 0 | BD7: 0 | BE7: 0 | BF7: 0 | BG7: 0 | BH7: 0 | BI7: 0 | BJ7: 0 | BK7: 0 | BL7: 0 | BM7: 0 | BN7: 0 | BO7: 0 | BP7: 0 | BQ7: 0 | BR7: 0 | BS7: 0 | BT7: 0 | BU7: 0 | BV7: 0 | BW7: 0 | BX7: 0 | BY7: 0 | BZ7: 0 | CA7: 0 | CB7: 0 | CC7: 0 | CD7: 0 | CE7: 0 | CF7: 0 | CG7: 0 | CH7: 0 | CI7: 0 | CJ7: 0 | CK7: 0 | CL7: 0 | CM7: 0 | CN7: 0 | CO7: 0 | CP7: 0 | CQ7: 0 | CR7: 0 | CS7: 0 | CT7: 0 | CU7: 0 | CV7: 0 | CW7: 0 | CX7: 0 | CY7: 0 | CZ7: 0 | DA7: 0 | DB7: 0 | DC7: 0 | DD7: 0 | DE7: 0 | DF7: 0 | DG7: 0 | DH7: 0 | DI7: 0 | DJ7: 0 | DK7: 0 | DL7: 0 | DM7: 0 | DN7: 0 | DO7: 0 | DP7: 0 | DQ7: 0 | DR7: 0 | DS7: 0 | DT7: 0 | DU7: 0 | DV7: 0 | DW7: 0 | DX7: 0 | DY7: 0 | DZ7: 0 | EA7: 0 | EB7: 0 | EC7: 0 | ED7: 0 | EE7: 0 | EF7: 0 | EG7: 0 | EH7: 0 | EI7: 0 | EJ7: 0 | EK7: 0 | EL7: 0 | EM7: 0 | EN7: 0 | EO7: 0 | EP7: 0 | EQ7: 0 | ER7: 0 | ES7: 0 | ET7: 0 | EU7: 0 | EV7: 0 | EW7: 0 | EX7: 0 | EY7: 0 | EZ7: 0 | FA7: 0 | FB7: 0 | FC7: 0 | FD7: 0 | FE7: 0 | FF7: 0 | FG7: 0 | FH7: 0 | FI7: 0 | FJ7: 0 | FK7: 0 | FL7: 0 | FM7: 0 | FN7: 0 | FO7: 0 | FP7: 0 | FQ7: 0 | FR7: 0 | FS7: 0 | FT7: 0 | FU7: 0 | FV7: 0 | FW7: 0 | FX7: 0 | FY7: 0 | FZ7: 0 | GA7: 0 | GB7: 0 | GC7: 0 | GD7: 0 | GE7: 0 | GF7: 0 | GG7: 0 | GH7: 0 | GI7: 0 | GJ7: 0 | GK7: 0 | GL7: 0 | GM7: 0 | GN7: 0 | GO7: 0 | GP7: 0 | GQ7: 0 | GR7: 0 | GS7: 0 | GT7: 0 | GU7: 0 | GV7: 0 | GW7: 0 | GX7: 0 | GY7: 0 | GZ7: 0 | HA7: 0 | HB7: 0 | HC7: 0 | HD7: 0 | HE7: 0 | HF7: 0 | HG7: 0 | HH7: 0 | HI7: 0 | HJ7: 0 | HK7: 0 | HL7: 0 | HM7: 0 | HN7: 0 | HO7: 0 | HP7: 0 | HQ7: 0 | HR7: 0 | HS7: 0 | HT7: 0 | HU7: 0 | HV7: 0 | HW7: 0 | HX7: 0 | HY7: 0 | HZ7: 0 | IA7: 0 | IB7: 0 | IC7: 0 | ID7: 0 | IE7: 0 | IF7: 0 | IG7: 0 | IH7: 0 | II7: 0 | IJ7: 0 | IK7: 0 | IL7: 0 | IM7: 0 | IN7: 0 | IO7: 0 | IP7: 0 | IQ7: 0 | IR7: 0 | IS7: 0 | IT7: 0 | IU7: 0 | IV7: 0 | IW7: 0 | IX7: 0 | IY7: 0 | IZ7: 0 | JA7: 0 | JB7: 0 | JC7: 0 | JD7: 0 | JE7: 0 | JF7: 0 | JG7: 0 | JH7: 0 | JI7: 0 | JJ7: 0 | JK7: 0 | JL7: 0 | JM7: 0 | JN7: 0 | JO7: 0 | JP7: 0 | JQ7: 0 | JR7: 0 | JS7: 0 | JT7: 0 | JU7: 0 | JV7: 0 | JW7: 0 | JX7: 0 | JY7: 0 | JZ7: 0 | KA7: 0 | KB7: 0 | KC7: 0 | KD7: 0 | KE7: 0 | KF7: 0 | KG7: 0 | KH7: 0 | KI7: 0 | KJ7: 0 | KK7: 0 | KL7: 0 | KM7: 0 | KN7: 0 | KO7: 0 | KP7: 0 | KQ7: 0 | KR7: 0 | KS7: 0 | KT7: 0 | KU7: 0 | KV7: 0 | KW7: 0 | KX7: 0 | KY7: 0 | KZ7: 0 | LA7: 0 | LB7: 0 | LC7: 0 | LD7: 0 | LE7: 0 | LF7: 0 | LG7: 0 | LH7: 0 | LI7: 0 | LJ7: 0 | LK7: 0 | LL7: 0 | LM7: 0 | LN7: 0 | LO7: 0 | LP7: 0 | LQ7: 0 | LR7: 0 | LS7: 0 | LT7: 0 | LU7: 0 | LV7: 0 | LW7: 0 | LX7: 0 | LY7: 0 | LZ7: 0 | MA7: 0 | MB7: 0 | MC7: 0 | MD7: 0 | ME7: 0 | MF7: 0 | MG7: 0 | MH7: 0 | MI7: 0 | MJ7: 0 | MK7: 0 | ML7: 0 | MM7: 0 | MN7: 0 | MO7: 0 | MP7: 0 | MQ7: 0 | MR7: 0 | MS7: 0 | MT7: 0 | MU7: 0 | MV7: 0 | MW7: 0 | MX7: 0 | MY7: 0 | MZ7: 0 | NA7: 0 | NB7: 0 | NC7: 0 | ND7: 0 | NE7: 0 | NF7: 0 | NG7: 0 | NH7: 0 | NI7: 0 | NJ7: 0 | NK7: 0 | NL7: 0 | NM7: 0 | NN7: 0 | NO7: 0 | NP7: 0 | NQ7: 0 | NR7: 0 | NS7: 0 | NT7: 0 | NU7: 0 | NV7: 0 | NW7: 0 | NX7: 0 | NY7: 0 | NZ7: 0 | OA7: 0 | OB7: 0 | OC7: 0 | OD7: 0 | OE7: 0 | OF7: 0 | OG7: 0 | OH7: 0 | OI7: 0 | OJ7: 0 | OK7: 0 | OL7: 0 | OM7: 0 | ON7: 0 | OO7: 0 | OP7: 0 | OQ7: 0 | OR7: 0 | OS7: 0 | OT7: 0 | OU7: 0 | OV7: 0 | OW7: 0 | OX7: 0 | OY7: 0 | OZ7: 0 | PA7: 0 | PB7: 0 | PC7: 0 | PD7: 0 | PE7: 0 | PF7: 0 | PG7: 0 | PH7: 0 | PI7: 0 | PJ7: 0 | PK7: 0 | PL7: 0 | PM7: 0 | PN7: 0 | PO7: 0 | PP7: 0 | PQ7: 0 | PR7: 0 | PS7: 0 | PT7: 0 | PU7: 0 | PV7: 0 | PW7: 0 | PX7: 0 | PY7: 0 | PZ7: 0 | QA7: 0 | QB7: 0 | QC7: 0 | QD7: 0 | QE7: 0 | QF7: 0 | QG7: 0 | QH7: 0 | QI7: 0 | QJ7: 0 | QK7: 0 | QL7: 0 | QM7: 0 | QN7: 0 | QO7: 0 | QP7: 0 | QQ7: 0 | QR7: 0 | QS7: 0 | QT7: 0 | QU7: 0 | QV7: 0 | QW7: 0 | QX7: 0 | QY7: 0 | QZ7: 0 | RA7: 0 | RB7: 0 | RC7: 0 | RD7: 0 | RE7: 0 | RF7: 0 | RG7: 0 | RH7: 0 | RI7: 0 | RJ7: 0 | RK7: 0 | RL7: 0 | RM7: 0 | RN7: 0 | RO7: 0 | RQ7: 0 | RR7: 0 | RS7: 0 | RT7: 0 | RU7: 0 | RV7: 0 | RW7: 0 | RX7: 0 | RY7: 0 | RZ7: 0 | SA7: 0 | SB7: 0 | SC7: 0 | SD7: 0 | SE7: 0 | SF7: 0 | SG7: 0 | SH7: 0 | SI7: 0 | SJ7: 0
... 8 more rows

Sheet I_SuperPeak
B1: Superpeak Quantities (MW)
A2: TOC
B3: BESID | C3: AccountName | D3: 2015-10-01 | E3: =+EOMONTH(D3,0)+1 -> 2015-11-01 | F3: =+EOMONTH(E3,0)+1 -> 2015-12-01 | G3: 2016-01-01 | H3: 2016-02-01 | I3: 2016-03-01 | J3: 2016-04-01 | K3: 2016-05-01 | L3: 2016-06-01 | M3: 2016-07-01 | N3: 2016-08-01 | O3: 2016-09-01 | P3: 2016-10-01 | Q3: 2016-11-01 | R3: 2016-12-01 | S3: 2017-01-01 | T3: 2017-02-01 | U3: 2017-03-01 | V3: 2017-04-01 | W3: 2017-05-01 | X3: 2017-06-01 | Y3: 2017-07-01 | Z3: 2017-08-01 | AA3: 2017-09-01 | AB3: 2017-10-01 | AC3: 2017-11-01 | AD3: 2017-12-01 | AE3: 2018-01-01 | AF3: 2018-02-01 | AG3: 2018-03-01 | AH3: 2018-04-01 | AI3: 2018-05-01 | AJ3: 2018-06-01 | AK3: 2018-07-01 | AL3: 2018-08-01 | AM3: 2018-09-01 | AN3: 2018-10-01 | AO3: 2018-11-01 | AP3: 2018-12-01 | AQ3: 2019-01-01 | AR3: 2019-02-01 | AS3: 2019-03-01 | AT3: 2019-04-01 | AU3: 2019-05-01 | AV3: 2019-06-01 | AW3: 2019-07-01 | AX3: 2019-08-01 | AY3: 2019-09-01 | AZ3: 2019-10-01 | BA3: 2019-11-01 | BB3: 2019-12-01 | BC3: 2020-01-01 | BD3: 2020-02-01 | BE3: 2020-03-01 | BF3: 2020-04-01 | BG3: 2020-05-01 | BH3: 2020-06-01 | BI3: 2020-07-01 | BJ3: 2020-08-01 | BK3: 2020-09-01 | BL3: 2020-10-01 | BM3: 2020-11-01 | BN3: 2020-12-01 | BO3: 2021-01-01 | BP3: 2021-02-01 | BQ3: 2021-03-01 | BR3: =+EOMONTH(BQ3,0)+1 -> 2021-04-01 | BS3: 2021-05-01 | BT3: =+EOMONTH(BS3,0)+1 -> 2021-06-01 | BU3: 2021-07-01 | BV3: 2021-08-01 | BW3: 2021-09-01 | BX3: 2021-10-01 | BY3: 2021-11-01 | BZ3: 2021-12-01 | CA3: 2022-01-01 | CB3: 2022-02-01 | CC3: 2022-03-01 | CD3: 2022-04-01 | CE3: 2022-05-01 | CF3: 2022-06-01 | CG3: 2022-07-01 | CH3: 2022-08-01 | CI3: 2022-09-01 | CJ3: 2022-10-01 | CK3: 2022-11-01 | CL3: 2022-12-01 | CM3: 2023-01-01 | CN3: 2023-02-01 | CO3: 2023-03-01 | CP3: 2023-04-01 | CQ3: 2023-05-01 | CR3: 2023-06-01 | CS3: 2023-07-01 | CT3: 2023-08-01 | CU3: 2023-09-01 | CV3: 2023-10-01 | CW3: 2023-11-01 | CX3: 2023-12-01 | CY3: 2024-01-01 | CZ3: 2024-02-01 | DA3: 2024-03-01 | DB3: 2024-04-01 | DC3: 2024-05-01 | DD3: 2024-06-01 | DE3: 2024-07-01 | DF3: 2024-08-01 | DG3: 2024-09-01 | DH3: 2024-10-01 | DI3: 2024-11-01 | DJ3: 2024-12-01 | DK3: 2025-01-01 | DL3: 2025-02-01 | DM3: 2025-03-01 | DN3: 2025-04-01 | DO3: 2025-05-01 | DP3: 2025-06-01 | DQ3: 2025-07-01 | DR3: 2025-08-01 | DS3: 2025-09-01 | DT3: 2025-10-01 | DU3: 2025-11-01 | DV3: 2025-12-01 | DW3: 2026-01-01 | DX3: 2026-02-01 | DY3: 2026-03-01 | DZ3: 2026-04-01 | EA3: 2026-05-01 | EB3: 2026-06-01 | EC3: 2026-07-01 | ED3: 2026-08-01 | EE3: 2026-09-01 | EF3: =+EOMONTH(EE3,0)+1 -> 2026-10-01 | EG3: =+EOMONTH(EF3,0)+1 -> 2026-11-01 | EH3: 2026-12-01 | EI3: 2027-01-01 | EJ3: 2027-02-01 | EK3: 2027-03-01 | EL3: 2027-04-01 | EM3: 2027-05-01 | EN3: 2027-06-01 | EO3: 2027-07-01 | EP3: 2027-08-01 | EQ3: 2027-09-01 | ER3: 2027-10-01 | ES3: 2027-11-01 | ET3: 2027-12-01 | EU3: 2028-01-01 | EV3: =+EOMONTH(EU3,0)+1 -> 2028-02-01 | EW3: =+EOMONTH(EV3,0)+1 -> 2028-03-01 | EX3: 2028-04-01 | EY3: 2028-05-01 | EZ3: 2028-06-01 | FA3: 2028-07-01 | FB3: 2028-08-01 | FC3: 2028-09-01 | FD3: 2028-10-01 | FE3: 2028-11-01 | FF3: 2028-12-01 | FG3: 2029-01-01 | FH3: 2029-02-01 | FI3: 2029-03-01 | FJ3: 2029-04-01 | FK3: 2029-05-01 | FL3: 2029-06-01 | FM3: 2029-07-01 | FN3: 2029-08-01 | FO3: 2029-09-01 | FP3: =DATE(YEAR(FO3),MONTH(FO3)+1,1) -> 2029-10-01 | FQ3: =DATE(YEAR(FP3),MONTH(FP3)+1,1) -> 2029-11-01 | FR3: 2029-12-01 | FS3: 2030-01-01 | FT3: 2030-02-01 | FU3: 2030-03-01 | FV3: 2030-04-01 | FW3: 2030-05-01 | FX3: 2030-06-01 | FY3: 2030-07-01 | FZ3: 2030-08-01 | GA3: 2030-09-01 | GB3: 2030-10-01 | GC3: 2030-11-01 | GD3: 2030-12-01 | GE3: 2031-01-01 | GF3: 2031-02-01 | GG3: 2031-03-01 | GH3: 2031-04-01 | GI3: 2031-05-01 | GJ3: 2031-06-01 | GK3: 2031-07-01 | GL3: 2031-08-01 | GM3: 2031-09-01 | GN3: =DATE(YEAR(GM3),MONTH(GM3)+1,1) -> 2031-10-01 | GO3: 2031-11-01 | GP3: 2031-12-01 | GQ3: 2032-01-01 | GR3: 2032-02-01 | GS3: 2032-03-01 | GT3: 2032-04-01 | GU3: 2032-05-01 | GV3: 2032-06-01 | GW3: 2032-07-01 | GX3: 2032-08-01 | GY3: 2032-09-01 | GZ3: 2032-10-01 | HA3: 2032-11-01 | HB3: 2032-12-01 | HC3: 2033-01-01 | HD3: 2033-02-01 | HE3: 2033-03-01 | HF3: 2033-04-01 | HG3: 2033-05-01 | HH3: 2033-06-01 | HI3: 2033-07-01 | HJ3: 2033-08-01 | HK3: 2033-09-01 | HL3: =DATE(YEAR(HK3),MONTH(HK3)+1,1) -> 2033-10-01 | HM3: =DATE(YEAR(HL3),MONTH(HL3)+1,1) -> 2033-11-01 | HN3: =DATE(YEAR(HM3),MONTH(HM3)+1,1) -> 2033-12-01 | HO3: =DATE(YEAR(HN3),MONTH(HN3)+1,1) -> 2034-01-01 | HP3: =DATE(YEAR(HO3),MONTH(HO3)+1,1) -> 2034-02-01 | HQ3: =DATE(YEAR(HP3),MONTH(HP3)+1,1) -> 2034-03-01 | HR3: =DATE(YEAR(HQ3),MONTH(HQ3)+1,1) -> 2034-04-01 | HS3: =DATE(YEAR(HR3),MONTH(HR3)+1,1) -> 2034-05-01 | HT3: =DATE(YEAR(HS3),MONTH(HS3)+1,1) -> 2034-06-01 | HU3: =DATE(YEAR(HT3),MONTH(HT3)+1,1) -> 2034-07-01 | HV3: =DATE(YEAR(HU3),MONTH(HU3)+1,1) -> 2034-08-01 | HW3: =DATE(YEAR(HV3),MONTH(HV3)+1,1) -> 2034-09-01 | HX3: =DATE(YEAR(HW3),MONTH(HW3)+1,1) -> 2034-10-01 | HY3: =DATE(YEAR(HX3),MONTH(HX3)+1,1) -> 2034-11-01 | HZ3: =DATE(YEAR(HY3),MONTH(HY3)+1,1) -> 2034-12-01 | IA3: =DATE(YEAR(HZ3),MONTH(HZ3)+1,1) -> 2035-01-01 | IB3: =DATE(YEAR(IA3),MONTH(IA3)+1,1) -> 2035-02-01 | IC3: =DATE(YEAR(IB3),MONTH(IB3)+1,1) -> 2035-03-01 | ID3: =DATE(YEAR(IC3),MONTH(IC3)+1,1) -> 2035-04-01 | IE3: =DATE(YEAR(ID3),MONTH(ID3)+1,1) -> 2035-05-01 | IF3: =DATE(YEAR(IE3),MONTH(IE3)+1,1) -> 2035-06-01 | IG3: =DATE(YEAR(IF3),MONTH(IF3)+1,1) -> 2035-07-01 | IH3: =DATE(YEAR(IG3),MONTH(IG3)+1,1) -> 2035-08-01 | II3: =DATE(YEAR(IH3),MONTH(IH3)+1,1) -> 2035-09-01
B4: 10015 | C4: Asotin County PUD #1 | D4: 0 | E4: 0 | F4: 0 | G4: 0 | H4: 0 | I4: 0 | J4: 0 | K4: 0 | L4: 0 | M4: 0 | N4: 0 | O4: 0 | P4: 0 | Q4: 0 | R4: 0 | S4: 0 | T4: 0 | U4: 0 | V4: 0 | W4: 0 | X4: 0 | Y4: 0 | Z4: 0 | AA4: 0 | AB4: 0 | AC4: 0 | AD4: 0 | AE4: 0 | AF4: 0 | AG4: 0 | AH4: 0 | AI4: 0 | AJ4: 0 | AK4: 0 | AL4: 0 | AM4: 0 | AN4: 0 | AO4: 0 | AP4: 0 | AQ4: 0 | AR4: 0 | AS4: 0 | AT4: 0 | AU4: 0 | AV4: 0 | AW4: 0 | AX4: 0 | AY4: 0 | AZ4: 0 | BA4: 0 | BB4: 0 | BC4: 0 | BD4: 0 | BE4: 0 | BF4: 0 | BG4: 0 | BH4: 0 | BI4: 0 | BJ4: 0 | BK4: 0 | BL4: 0 | BM4: 0 | BN4: 0 | BO4: 0 | BP4: 0 | BQ4: 0 | BR4: 0 | BS4: 0 | BT4: 0 | BU4: 0 | BV4: 0 | BW4: 0 | BX4: 0 | BY4: 0 | BZ4: 0 | CA4: 0 | CB4: 0 | CC4: 0 | CD4: 0 | CE4: 0 | CF4: 0 | CG4: 0 | CH4: 0 | CI4: 0 | CJ4: 0 | CK4: 0 | CL4: 0 | CM4: 0 | CN4: 0 | CO4: 0 | CP4: 0 | CQ4: 0 | CR4: 0 | CS4: 0 | CT4: 0 | CU4: 0 | CV4: 0 | CW4: 0 | CX4: 0 | CY4: 0 | CZ4: 0 | DA4: 0 | DB4: 0 | DC4: 0 | DD4: 0 | DE4: 0 | DF4: 0 | DG4: 0 | DH4: 0 | DI4: 0 | DJ4: 0 | DK4: 0 | DL4: 0 | DM4: 0 | DN4: 0 | DO4: 0 | DP4: 0 | DQ4: 0 | DR4: 0 | DS4: 0 | DT4: 0 | DU4: 0 | DV4: 0 | DW4: 0 | DX4: 0 | DY4: 0 | DZ4: 0 | EA4: 0 | EB4: 0 | EC4: 0 | ED4: 0 | EE4: 0 | EF4: 0 | EG4: 0 | EH4: 0 | EI4: 0 | EJ4: 0 | EK4: 0 | EL4: 0 | EM4: 0 | EN4: 0 | EO4: 0 | EP4: 0 | EQ4: 0 | ER4: 0 | ES4: 0 | ET4: 0 | EU4: 0 | EV4: 0 | EW4: 0 | EX4: 0 | EY4: 0 | EZ4: 0 | FA4: 0 | FB4: 0 | FC4: 0 | FD4: 0 | FE4: 0 | FF4: 0 | FG4: 0 | FH4: 0 | FI4: 0 | FJ4: 0 | FK4: 0 | FL4: 0 | FM4: 0 | FN4: 0 | FO4: 0 | FP4: 0 | FQ4: 0 | FR4: 0 | FS4: 0 | FT4: 0 | FU4: 0 | FV4: 0 | FW4: 0 | FX4: 0 | FY4: 0 | FZ4: 0 | GA4: 0 | GB4: 0 | GC4: 0 | GD4: 0 | GE4: 0 | GF4: 0 | GG4: 0 | GH4: 0 | GI4: 0 | GJ4: 0 | GK4: 0 | GL4: 0 | GM4: 0 | GN4: 0 | GO4: 0 | GP4: 0 | GQ4: 0 | GR4: 0 | GS4: 0 | GT4: 0 | GU4: 0 | GV4: 0 | GW4: 0 | GX4: 0 | GY4: 0 | GZ4: 0 | HA4: 0 | HB4: 0 | HC4: 0 | HD4: 0 | HE4: 0 | HF4: 0 | HG4: 0 | HH4: 0 | HI4: 0 | HJ4: 0 | HK4: 0 | HL4: 0 | HM4: 0 | HN4: 0 | HO4: 0 | HP4: 0 | HQ4: 0 | HR4: 0 | HS4: 0 | HT4: 0 | HU4: 0 | HV4: 0 | HW4: 0 | HX4: 0 | HY4: 0 | HZ4: 0 | IA4: 0 | IB4: 0 | IC4: 0 | ID4: 0 | IE4: 0 | IF4: 0 | IG4: 0 | IH4: 0 | II4: 0
B5: 10024 | C5: Benton County PUD #1 | D5: 0 | E5: 0 | F5: 0 | G5: 0 | H5: 0 | I5: 0 | J5: 0 | K5: 0 | L5: 0 | M5: 0 | N5: 0 | O5: 0 | P5: 0 | Q5: 0 | R5: 0 | S5: 0 | T5: 0 | U5: 0 | V5: 0 | W5: 0 | X5: 0 | Y5: 0 | Z5: 0 | AA5: 0 | AB5: 0 | AC5: 0 | AD5: 0 | AE5: 0 | AF5: 0 | AG5: 0 | AH5: 0 | AI5: 0 | AJ5: 0 | AK5: 0 | AL5: 0 | AM5: 0 | AN5: 0 | AO5: 0 | AP5: 0 | AQ5: 0 | AR5: 0 | AS5: 0 | AT5: 0 | AU5: 0 | AV5: 0 | AW5: 0 | AX5: 0 | AY5: 0 | AZ5: 0 | BA5: 0 | BB5: 0 | BC5: 0 | BD5: 0 | BE5: 0 | BF5: 0 | BG5: 0 | BH5: 0 | BI5: 0 | BJ5: 0 | BK5: 0 | BL5: 0 | BM5: 0 | BN5: 0 | BO5: 0 | BP5: 0 | BQ5: 0 | BR5: 0 | BS5: 0 | BT5: 0 | BU5: 0 | BV5: 0 | BW5: 0 | BX5: 0 | BY5: 0 | BZ5: 0 | CA5: 0 | CB5: 0 | CC5: 0 | CD5: 0 | CE5: 0 | CF5: 0 | CG5: 0 | CH5: 0 | CI5: 0 | CJ5: 0 | CK5: 0 | CL5: 0 | CM5: 0 | CN5: 0 | CO5: 0 | CP5: 0 | CQ5: 0 | CR5: 0 | CS5: 0 | CT5: 0 | CU5: 0 | CV5: 0 | CW5: 0 | CX5: 0 | CY5: 0 | CZ5: 0 | DA5: 0 | DB5: 0 | DC5: 0 | DD5: 0 | DE5: 0 | DF5: 0 | DG5: 0 | DH5: 0 | DI5: 0 | DJ5: 0 | DK5: 0 | DL5: 0 | DM5: 0 | DN5: 0 | DO5: 0 | DP5: 0 | DQ5: 0 | DR5: 0 | DS5: 0 | DT5: 0 | DU5: 0 | DV5: 0 | DW5: 0 | DX5: 0 | DY5: 0 | DZ5: 0 | EA5: 0 | EB5: 0 | EC5: 0 | ED5: 0 | EE5: 0 | EF5: 0 | EG5: 0 | EH5: 0 | EI5: 0 | EJ5: 0 | EK5: 0 | EL5: 0 | EM5: 0 | EN5: 0 | EO5: 0 | EP5: 0 | EQ5: 0 | ER5: 0 | ES5: 0 | ET5: 0 | EU5: 0 | EV5: 0 | EW5: 0 | EX5: 0 | EY5: 0 | EZ5: 0 | FA5: 0 | FB5: 0 | FC5: 0 | FD5: 0 | FE5: 0 | FF5: 0 | FG5: 0 | FH5: 0 | FI5: 0 | FJ5: 0 | FK5: 0 | FL5: 0 | FM5: 0 | FN5: 0 | FO5: 0 | FP5: 0 | FQ5: 0 | FR5: 0 | FS5: 0 | FT5: 0 | FU5: 0 | FV5: 0 | FW5: 0 | FX5: 0 | FY5: 0 | FZ5: 0 | GA5: 0 | GB5: 0 | GC5: 0 | GD5: 0 | GE5: 0 | GF5: 0 | GG5: 0 | GH5: 0 | GI5: 0 | GJ5: 0 | GK5: 0 | GL5: 0 | GM5: 0 | GN5: 0 | GO5: 0 | GP5: 0 | GQ5: 0 | GR5: 0 | GS5: 0 | GT5: 0 | GU5: 0 | GV5: 0 | GW5: 0 | GX5: 0 | GY5: 0 | GZ5: 0 | HA5: 0 | HB5: 0 | HC5: 0 | HD5: 0 | HE5: 0 | HF5: 0 | HG5: 0 | HH5: 0 | HI5: 0 | HJ5: 0 | HK5: 0 | HL5: 0 | HM5: 0 | HN5: 0 | HO5: 0 | HP5: 0 | HQ5: 0 | HR5: 0 | HS5: 0 | HT5: 0 | HU5: 0 | HV5: 0 | HW5: 0 | HX5: 0 | HY5: 0 | HZ5: 0 | IA5: 0 | IB5: 0 | IC5: 0 | ID5: 0 | IE5: 0 | IF5: 0 | IG5: 0 | IH5: 0 | II5: 0
B6: 10025 | C6: Benton REA | D6: 0 | E6: 0 | F6: 0 | G6: 0 | H6: 0 | I6: 0 | J6: 0 | K6: 0 | L6: 0 | M6: 0 | N6: 0 | O6: 0 | P6: 0 | Q6: 0 | R6: 0 | S6: 0 | T6: 0 | U6: 0 | V6: 0 | W6: 0 | X6: 0 | Y6: 0 | Z6: 0 | AA6: 0 | AB6: 0 | AC6: 0 | AD6: 0 | AE6: 0 | AF6: 0 | AG6: 0 | AH6: 0 | AI6: 0 | AJ6: 0 | AK6: 0 | AL6: 0 | AM6: 0 | AN6: 1.357 | AO6: 1.357 | AP6: 1.357 | AQ6: 1.357 | AR6: 1.357 | AS6: 1.357 | AT6: 1.357 | AU6: 1.357 | AV6: 1.357 | AW6: 1.357 | AX6: 1.357 | AY6: 1.357 | AZ6: 0 | BA6: 0 | BB6: 0 | BC6: 0 | BD6: 0 | BE6: 0 | BF6: 0 | BG6: 0 | BH6: 0 | BI6: 0 | BJ6: 0 | BK6: 0 | BL6: 0 | BM6: 0 | BN6: 0 | BO6: 0 | BP6: 0 | BQ6: 0 | BR6: 0 | BS6: 0 | BT6: 0 | BU6: 0 | BV6: 0 | BW6: 0 | BX6: 0 | BY6: 0 | BZ6: 0 | CA6: 0 | CB6: 0 | CC6: 0 | CD6: 0 | CE6: 0 | CF6: 0 | CG6: 0 | CH6: 0 | CI6: 0 | CJ6: 0 | CK6: 0 | CL6: 0 | CM6: 0 | CN6: 0 | CO6: 0 | CP6: 0 | CQ6: 0 | CR6: 0 | CS6: 0 | CT6: 0 | CU6: 0 | CV6: 0 | CW6: 0 | CX6: 0 | CY6: 0 | CZ6: 0 | DA6: 0 | DB6: 0 | DC6: 0 | DD6: 0 | DE6: 0 | DF6: 0 | DG6: 0 | DH6: 0 | DI6: 0 | DJ6: 0 | DK6: 0 | DL6: 0 | DM6: 0 | DN6: 0 | DO6: 0 | DP6: 0 | DQ6: 0 | DR6: 0 | DS6: 0 | DT6: 0 | DU6: 0 | DV6: 0 | DW6: 0 | DX6: 0 | DY6: 0 | DZ6: 0 | EA6: 0 | EB6: 0 | EC6: 0 | ED6: 0 | EE6: 0 | EF6: 0 | EG6: 0 | EH6: 0 | EI6: 0 | EJ6: 0 | EK6: 0 | EL6: 0 | EM6: 0 | EN6: 0 | EO6: 0 | EP6: 0 | EQ6: 0 | ER6: 0 | ES6: 0 | ET6: 0 | EU6: 0 | EV6: 0 | EW6: 0 | EX6: 0 | EY6: 0 | EZ6: 0 | FA6: 0 | FB6: 0 | FC6: 0 | FD6: 0 | FE6: 0 | FF6: 0 | FG6: 0 | FH6: 0 | FI6: 0 | FJ6: 0 | FK6: 0 | FL6: 0 | FM6: 0 | FN6: 0 | FO6: 0 | FP6: 0 | FQ6: 0 | FR6: 0 | FS6: 0 | FT6: 0 | FU6: 0 | FV6: 0 | FW6: 0 | FX6: 0 | FY6: 0 | FZ6: 0 | GA6: 0 | GB6: 0 | GC6: 0 | GD6: 0 | GE6: 0 | GF6: 0 | GG6: 0 | GH6: 0 | GI6: 0 | GJ6: 0 | GK6: 0 | GL6: 0 | GM6: 0 | GN6: 0 | GO6: 0 | GP6: 0 | GQ6: 0 | GR6: 0 | GS6: 0 | GT6: 0 | GU6: 0 | GV6: 0 | GW6: 0 | GX6: 0 | GY6: 0 | GZ6: 0 | HA6: 0 | HB6: 0 | HC6: 0 | HD6: 0 | HE6: 0 | HF6: 0 | HG6: 0 | HH6: 0 | HI6: 0 | HJ6: 0 | HK6: 0 | HL6: 0 | HM6: 0 | HN6: 0 | HO6: 0 | HP6: 0 | HQ6: 0 | HR6: 0 | HS6: 0 | HT6: 0 | HU6: 0 | HV6: 0 | HW6: 0 | HX6: 0 | HY6: 0 | HZ6: 0 | IA6: 0 | IB6: 0 | IC6: 0 | ID6: 0 | IE6: 0 | IF6: 0 | IG6: 0 | IH6: 0 | II6: 0
B7: 10027 | C7: Big Bend Elec Coop | D7: 0 | E7: 0 | F7: 0 | G7: 0 | H7: 0 | I7: 0 | J7: 0 | K7: 0 | L7: 0 | M7: 0 | N7: 0 | O7: 0 | P7: 0 | Q7: 0 | R7: 0 | S7: 0 | T7: 0 | U7: 0 | V7: 0 | W7: 0 | X7: 0 | Y7: 0 | Z7: 0 | AA7: 0 | AB7: 0 | AC7: 0 | AD7: 0 | AE7: 0 | AF7: 0 | AG7: 0 | AH7: 0 | AI7: 0 | AJ7: 0 | AK7: 0 | AL7: 0 | AM7: 0 | AN7: 0 | AO7: 0 | AP7: 0 | AQ7: 0 | AR7: 0 | AS7: 0 | AT7: 0 | AU7: 0 | AV7: 0 | AW7: 0 | AX7: 0 | AY7: 0 | AZ7: 0 | BA7: 0 | BB7: 0 | BC7: 0 | BD7: 0 | BE7: 0 | BF7: 0 | BG7: 0 | BH7: 0 | BI7: 0 | BJ7: 0 | BK7: 0 | BL7: 0 | BM7: 0 | BN7: 0 | BO7: 0 | BP7: 0 | BQ7: 0 | BR7: 0 | BS7: 0 | BT7: 0 | BU7: 0 | BV7: 0 | BW7: 0 | BX7: 0 | BY7: 0 | BZ7: 0 | CA7: 0 | CB7: 0 | CC7: 0 | CD7: 0 | CE7: 0 | CF7: 0 | CG7: 0 | CH7: 0 | CI7: 0 | CJ7: 0 | CK7: 0 | CL7: 0 | CM7: 0 | CN7: 0 | CO7: 0 | CP7: 0 | CQ7: 0 | CR7: 0 | CS7: 0 | CT7: 0 | CU7: 0 | CV7: 0 | CW7: 0 | CX7: 0 | CY7: 0 | CZ7: 0 | DA7: 0 | DB7: 0 | DC7: 0 | DD7: 0 | DE7: 0 | DF7: 0 | DG7: 0 | DH7: 0 | DI7: 0 | DJ7: 0 | DK7: 0 | DL7: 0 | DM7: 0 | DN7: 0 | DO7: 0 | DP7: 0 | DQ7: 0 | DR7: 0 | DS7: 0 | DT7: 0 | DU7: 0 | DV7: 0 | DW7: 0 | DX7: 0 | DY7: 0 | DZ7: 0 | EA7: 0 | EB7: 0 | EC7: 0 | ED7: 0 | EE7: 0 | EF7: 0 | EG7: 0 | EH7: 0 | EI7: 0 | EJ7: 0 | EK7: 0 | EL7: 0 | EM7: 0 | EN7: 0 | EO7: 0 | EP7: 0 | EQ7: 0 | ER7: 0 | ES7: 0 | ET7: 0 | EU7: 0 | EV7: 0 | EW7: 0 | EX7: 0 | EY7: 0 | EZ7: 0 | FA7: 0 | FB7: 0 | FC7: 0 | FD7: 0 | FE7: 0 | FF7: 0 | FG7: 0 | FH7: 0 | FI7: 0 | FJ7: 0 | FK7: 0 | FL7: 0 | FM7: 0 | FN7: 0 | FO7: 0 | FP7: 0 | FQ7: 0 | FR7: 0 | FS7: 0 | FT7: 0 | FU7: 0 | FV7: 0 | FW7: 0 | FX7: 0 | FY7: 0 | FZ7: 0 | GA7: 0 | GB7: 0 | GC7: 0 | GD7: 0 | GE7: 0 | GF7: 0 | GG7: 0 | GH7: 0 | GI7: 0 | GJ7: 0 | GK7: 0 | GL7: 0 | GM7: 0 | GN7: 0 | GO7: 0 | GP7: 0 | GQ7: 0 | GR7: 0 | GS7: 0 | GT7: 0 | GU7: 0 | GV7: 0 | GW7: 0 | GX7: 0 | GY7: 0 | GZ7: 0 | HA7: 0 | HB7: 0 | HC7: 0 | HD7: 0 | HE7: 0 | HF7: 0 | HG7: 0 | HH7: 0 | HI7: 0 | HJ7: 0 | HK7: 0 | HL7: 0 | HM7: 0 | HN7: 0 | HO7: 0 | HP7: 0 | HQ7: 0 | HR7: 0 | HS7: 0 | HT7: 0 | HU7: 0 | HV7: 0 | HW7: 0 | HX7: 0 | HY7: 0 | HZ7: 0 | IA7: 0 | IB7: 0 | IC7: 0 | ID7: 0 | IE7: 0 | IF7: 0 | IG7: 0 | IH7: 0 | II7: 0
... 8 more rows

Sheet T1SFCO
B1: Locked RHWM Tier 1 System Firm Critical Output | G1: Unlocked RHWM Tier 1 System Firm Critical Output
A2: TOC | D2: T1SFCO | I2: T1SFCO
D3: HLH | E3: LLH | I3: HLH | J3: LLH
B4: 2015-10-01 | C4: =+IF(MONTH(B4)>9,YEAR(B4)+1,YEAR(B4)) -> 2016 | D4: 3005206.117 | E4: 1707066.152 | G4: 2015-10-01 | H4: =+IF(MONTH(G4)>9,YEAR(G4)+1,YEAR(G4)) -> 2016 | I4: 3005206.117 | J4: 1707066.152
B5: 2015-11-01 | C5: =+IF(MONTH(B5)>9,YEAR(B5)+1,YEAR(B5)) -> 2016 | D5: 3564633.705 | E5: 2149235.011 | G5: 2015-11-01 | H5: =+IF(MONTH(G5)>9,YEAR(G5)+1,YEAR(G5)) -> 2016 | I5: 3564633.705 | J5: 2149235.011
B6: 2015-12-01 | C6: 2016 | D6: 3432613.011 | E6: 2118518.986 | G6: 2015-12-01 | H6: 2016 | I6: 3432613.011 | J6: 2118518.986
B7: 2016-01-01 | C7: 2016 | D7: 3031081.113 | E7: 1810907.148 | G7: 2016-01-01 | H7: 2016 | I7: 3031081.113 | J7: 1810907.148
... 8 more rows

Sheet RT1SC
B1: Tier 1 System Capability
A2: TOC | D2: RHWM Aug | F2: T1SFCO | M2: Seasonal Average
D3: HLH | E3: LLH | F3: HLH | G3: LLH | I3: RHWM Tier 1 System Capability | M3: HLH | N3: LLH
B4: 2015-10-01 | C4: =+IF(MONTH(B4)>9,YEAR(B4)+1,YEAR(B4)) -> 2016 | D4: =IF(ISNA(SUM(OFFSET(Init!$Q$5:$Q$152,0,MATCH("RHWM Aug "&$C4,Init!$Q$4:$GE$4,0)-1))*VLOOKUP($B4,Init!$F:$K,MATCH(D$3,Init!$F$4:$K$4,0),FALSE)),SUM(OFFSET(Init!$Q$5:$Q$152,0,MATCH("RHWM Aug "&$C4-1,Init!$Q$4:$GE$4,0)-1))*VLOOKUP($B4,Init!$F:$K,MATCH(D$3,Init!$F$4:$K$4,0),FALSE),SUM(OFFSET(Init!$Q$5:$Q$152,0,MATCH("RHWM Aug "&$C4,Init!$Q$4:$GE$4,0)-1))*VLOOKUP($B4,Init!$F:$K,MATCH(D$3,Init!$F$4:$K$4,0),FALSE)) -> 26069.904 | E4: =IF(ISNA(SUM(OFFSET(Init!$Q$5:$Q$152,0,MATCH("RHWM Aug "&$C4,Init!$Q$4:$GE$4,0)-1))*VLOOKUP($B4,Init!$F:$K,MATCH(E$3,Init!$F$4:$K$4,0),FALSE)),SUM(OFFSET(Init!$Q$5:$Q$152,0,MATCH("RHWM Aug "&$C4-1,Init!$Q$4:$GE$4,0)-1))*VLOOKUP($B4,Init!$F:$K,MATCH(E$3,Init!$F$4:$K$4,0),FALSE),SUM(OFFSET(Init!$Q$5:$Q$152,0,MATCH("RHWM Aug "&$C4,Init!$Q$4:$GE$4,0)-1))*VLOOKUP($B4,Init!$F:$K,MATCH(E$3,Init!$F$4:$K$4,0),FALSE)) -> 18828.264 | F4: =+IF(Init!$C$14="Yes",VLOOKUP($B4,T1SFCO!$B:$E,MATCH(F$3,T1SFCO!$B$3:$E$3,0),FALSE),VLOOKUP($B4,T1SFCO!$G:$J,MATCH(F$3,T1SFCO!$G$3:$J$3,0),FALSE)) -> 3005206.117 | G4: =+IF(Init!$C$14="Yes",VLOOKUP($B4,T1SFCO!$B:$E,MATCH(G$3,T1SFCO!$B$3:$E$3,0),FALSE),VLOOKUP($B4,T1SFCO!$G:$J,MATCH(G$3,T1SFCO!$G$3:$J$3,0),FALSE)) -> 1707066.152 | L4: =+DATE(I5-1,10,1) -> 2025-10-01 | M4: =+VLOOKUP($L4,$B:$G,3,FALSE)+VLOOKUP($L4,$B:$G,5,FALSE) -> 2622216.796 | N4: =+VLOOKUP($L4,$B:$G,4,FALSE)+VLOOKUP($L4,$B:$G,6,FALSE) -> 1529847.063
B5: 2015-11-01 | C5: =+IF(MONTH(B5)>9,YEAR(B5)+1,YEAR(B5)) -> 2016 | D5: =IF(ISNA(SUM(OFFSET(Init!$Q$5:$Q$152,0,MATCH("RHWM Aug "&$C5,Init!$Q$4:$GE$4,0)-1))*VLOOKUP($B5,Init!$F:$K,MATCH(D$3,Init!$F$4:$K$4,0),FALSE)),SUM(OFFSET(Init!$Q$5:$Q$152,0,MATCH("RHWM Aug "&$C5-1,Init!$Q$4:$GE$4,0)-1))*VLOOKUP($B5,Init!$F:$K,MATCH(D$3,Init!$F$4:$K$4,0),FALSE),SUM(OFFSET(Init!$Q$5:$Q$152,0,MATCH("RHWM Aug "&$C5,Init!$Q$4:$GE$4,0)-1))*VLOOKUP($B5,Init!$F:$K,MATCH(D$3,Init!$F$4:$K$4,0),FALSE)) -> 23173.248 | E5: =IF(ISNA(SUM(OFFSET(Init!$Q$5:$Q$152,0,MATCH("RHWM Aug "&$C5,Init!$Q$4:$GE$4,0)-1))*VLOOKUP($B5,Init!$F:$K,MATCH(E$3,Init!$F$4:$K$4,0),FALSE)),SUM(OFFSET(Init!$Q$5:$Q$152,0,MATCH("RHWM Aug "&$C5-1,Init!$Q$4:$GE$4,0)-1))*VLOOKUP($B5,Init!$F:$K,MATCH(E$3,Init!$F$4:$K$4,0),FALSE),SUM(OFFSET(Init!$Q$5:$Q$152,0,MATCH("RHWM Aug "&$C5,Init!$Q$4:$GE$4,0)-1))*VLOOKUP($B5,Init!$F:$K,MATCH(E$3,Init!$F$4:$K$4,0),FALSE)) -> 20336.939 | F5: =+IF(Init!$C$14="Yes",VLOOKUP($B5,T1SFCO!$B:$E,MATCH(F$3,T1SFCO!$B$3:$E$3,0),FALSE),VLOOKUP($B5,T1SFCO!$G:$J,MATCH(F$3,T1SFCO!$G$3:$J$3,0),FALSE)) -> 3564633.705 | G5: =+IF(Init!$C$14="Yes",VLOOKUP($B5,T1SFCO!$B:$E,MATCH(G$3,T1SFCO!$B$3:$E$3,0),FALSE),VLOOKUP($B5,T1SFCO!$G:$J,MATCH(G$3,T1SFCO!$G$3:$J$3,0),FALSE)) -> 2149235.011 | I5: =+Init!C9 -> 2026 | J5: =ROUND(SUM(OFFSET($F$4:$G$15,MATCH($I5,$C$4:$C$243,0)-1,0))/VLOOKUP($I5,Init!$M:$O,3,FALSE),3) -> 7075.454 | L5: =+EOMONTH(L4,0)+1 -> 2025-11-01 | M5: 3155068.893 | N5: 2150114.917
B6: 2015-12-01 | C6: 2016 | D6: =IF(ISNA(SUM(OFFSET(Init!$Q$5:$Q$152,0,MATCH("RHWM Aug "&$C6,Init!$Q$4:$GE$4,0)-1))*VLOOKUP($B6,Init!$F:$K,MATCH(D$3,Init!$F$4:$K$4,0),FALSE)),SUM(OFFSET(Init!$Q$5:$Q$152,0,MATCH("RHWM Aug "&$C6-1,Init!$Q$4:$GE$4,0)-1))*VLOOKUP($B6,Init!$F:$K,MATCH(D$3,Init!$F$4:$K$4,0),FALSE),SUM(OFFSET(Init!$Q$5:$Q$152,0,MATCH("RHWM Aug "&$C6,Init!$Q$4:$GE$4,0)-1))*VLOOKUP($B6,Init!$F:$K,MATCH(D$3,Init!$F$4:$K$4,0),FALSE)) -> 25104.352 | E6: =IF(ISNA(SUM(OFFSET(Init!$Q$5:$Q$152,0,MATCH("RHWM Aug "&$C6,Init!$Q$4:$GE$4,0)-1))*VLOOKUP($B6,Init!$F:$K,MATCH(E$3,Init!$F$4:$K$4,0),FALSE)),SUM(OFFSET(Init!$Q$5:$Q$152,0,MATCH("RHWM Aug "&$C6-1,Init!$Q$4:$GE$4,0)-1))*VLOOKUP($B6,Init!$F:$K,MATCH(E$3,Init!$F$4:$K$4,0),FALSE),SUM(OFFSET(Init!$Q$5:$Q$152,0,MATCH("RHWM Aug "&$C6,Init!$Q$4:$GE$4,0)-1))*VLOOKUP($B6,Init!$F:$K,MATCH(E$3,Init!$F$4:$K$4,0),FALSE)) -> 19793.816 | F6: =+IF(Init!$C$14="Yes",VLOOKUP($B6,T1SFCO!$B:$E,MATCH(F$3,T1SFCO!$B$3:$E$3,0),FALSE),VLOOKUP($B6,T1SFCO!$G:$J,MATCH(F$3,T1SFCO!$G$3:$J$3,0),FALSE)) -> 3432613.011 | G6: =+IF(Init!$C$14="Yes",VLOOKUP($B6,T1SFCO!$B:$E,MATCH(G$3,T1SFCO!$B$3:$E$3,0),FALSE),VLOOKUP($B6,T1SFCO!$G:$J,MATCH(G$3,T1SFCO!$G$3:$J$3,0),FALSE)) -> 2118518.986 | I6: =+I5+1 -> 2027 | J6: =ROUND(SUM(OFFSET($F$4:$G$15,MATCH($I6,$C$4:$C$243,0)-1,0))/VLOOKUP($I6,Init!$M:$O,3,FALSE),3) -> 6955.149 | L6: =+EOMONTH(L5,0)+1 -> 2025-12-01 | M6: 3853245.9 | N6: 2117649.45
B7: 2016-01-01 | C7: 2016 | D7: =IF(ISNA(SUM(OFFSET(Init!$Q$5:$Q$152,0,MATCH("RHWM Aug "&$C7,Init!$Q$4:$GE$4,0)-1))*VLOOKUP($B7,Init!$F:$K,MATCH(D$3,Init!$F$4:$K$4,0),FALSE)),SUM(OFFSET(Init!$Q$5:$Q$152,0,MATCH("RHWM Aug "&$C7-1,Init!$Q$4:$GE$4,0)-1))*VLOOKUP($B7,Init!$F:$K,MATCH(D$3,Init!$F$4:$K$4,0),FALSE),SUM(OFFSET(Init!$Q$5:$Q$152,0,MATCH("RHWM Aug "&$C7,Init!$Q$4:$GE$4,0)-1))*VLOOKUP($B7,Init!$F:$K,MATCH(D$3,Init!$F$4:$K$4,0),FALSE)) -> 24138.8 | E7: =IF(ISNA(SUM(OFFSET(Init!$Q$5:$Q$152,0,MATCH("RHWM Aug "&$C7,Init!$Q$4:$GE$4,0)-1))*VLOOKUP($B7,Init!$F:$K,MATCH(E$3,Init!$F$4:$K$4,0),FALSE)),SUM(OFFSET(Init!$Q$5:$Q$152,0,MATCH("RHWM Aug "&$C7-1,Init!$Q$4:$GE$4,0)-1))*VLOOKUP($B7,Init!$F:$K,MATCH(E$3,Init!$F$4:$K$4,0),FALSE),SUM(OFFSET(Init!$Q$5:$Q$152,0,MATCH("RHWM Aug "&$C7,Init!$Q$4:$GE$4,0)-1))*VLOOKUP($B7,Init!$F:$K,MATCH(E$3,Init!$F$4:$K$4,0),FALSE)) -> 20759.368 | F7: =+IF(Init!$C$14="Yes",VLOOKUP($B7,T1SFCO!$B:$E,MATCH(F$3,T1SFCO!$B$3:$E$3,0),FALSE),VLOOKUP($B7,T1SFCO!$G:$J,MATCH(F$3,T1SFCO!$G$3:$J$3,0),FALSE)) -> 3031081.113 | G7: =+IF(Init!$C$14="Yes",VLOOKUP($B7,T1SFCO!$B:$E,MATCH(G$3,T1SFCO!$B$3:$E$3,0),FALSE),VLOOKUP($B7,T1SFCO!$G:$J,MATCH(G$3,T1SFCO!$G$3:$J$3,0),FALSE)) -> 1810907.148 | I7: =+I6+1 -> 2028 | J7: =ROUND(SUM(OFFSET($F$4:$G$15,MATCH($I7,$C$4:$C$243,0)-1,0))/VLOOKUP($I7,Init!$M:$O,3,FALSE),3) -> 7069.132 | L7: 2026-01-01 | M7: 4120159.116 | N7: 2247169.88
... 8 more rows

Sheet AART1SC
B1: Annual Average Tier 1 System Capability
A2: TOC | D2: RHWM Aug | F2: T1SFCO | J2: Seasonal Average
D3: HLH | E3: LLH | F3: HLH | G3: LLH | J3: HLH | K3: LLH
B4: 2015-10-01 | C4: =+IF(MONTH(B4)>9,YEAR(B4)+1,YEAR(B4)) -> 2016 | D4: =IF(ISNA(SUM(OFFSET(Init!$Q$5:$Q$152,0,MATCH("RHWM Aug "&$C4,Init!$Q$4:$GE$4,0)-1))*VLOOKUP($B4,Init!$F:$K,MATCH(D$3,Init!$F$4:$K$4,0),FALSE)),SUM(OFFSET(Init!$Q$5:$Q$152,0,MATCH("RHWM Aug "&$C4-1,Init!$Q$4:$GE$4,0)-1))*VLOOKUP($B4,Init!$F:$K,MATCH(D$3,Init!$F$4:$K$4,0),FALSE),SUM(OFFSET(Init!$Q$5:$Q$152,0,MATCH("RHWM Aug "&$C4,Init!$Q$4:$GE$4,0)-1))*VLOOKUP($B4,Init!$F:$K,MATCH(D$3,Init!$F$4:$K$4,0),FALSE)) -> 26069.904 | E4: =IF(ISNA(SUM(OFFSET(Init!$Q$5:$Q$152,0,MATCH("RHWM Aug "&$C4,Init!$Q$4:$GE$4,0)-1))*VLOOKUP($B4,Init!$F:$K,MATCH(E$3,Init!$F$4:$K$4,0),FALSE)),SUM(OFFSET(Init!$Q$5:$Q$152,0,MATCH("RHWM Aug "&$C4-1,Init!$Q$4:$GE$4,0)-1))*VLOOKUP($B4,Init!$F:$K,MATCH(E$3,Init!$F$4:$K$4,0),FALSE),SUM(OFFSET(Init!$Q$5:$Q$152,0,MATCH("RHWM Aug "&$C4,Init!$Q$4:$GE$4,0)-1))*VLOOKUP($B4,Init!$F:$K,MATCH(E$3,Init!$F$4:$K$4,0),FALSE)) -> 18828.264 | F4: =VLOOKUP($B4,RT1SC!$B:$G,IF(F$3="HLH",MATCH($F$2,RT1SC!$B$2:$G$2,0),MATCH($F$2,RT1SC!$B$2:$G$2,0)+1),FALSE) -> 3005206.117 | G4: =VLOOKUP($B4,RT1SC!$B:$G,IF(G$3="HLH",MATCH($F$2,RT1SC!$B$2:$G$2,0),MATCH($F$2,RT1SC!$B$2:$G$2,0)+1),FALSE) -> 1707066.152 | I4: =+Init!C12 -> 2025-10-01 | J4: =+VLOOKUP($I4,$B:$G,3,FALSE)+VLOOKUP($I4,$B:$G,5,FALSE) -> 2622216.796 | K4: =+VLOOKUP($I4,$B:$G,4,FALSE)+VLOOKUP($I4,$B:$G,6,FALSE) -> 1529847.063
B5: 2015-11-01 | C5: =+IF(MONTH(B5)>9,YEAR(B5)+1,YEAR(B5)) -> 2016 | D5: =IF(ISNA(SUM(OFFSET(Init!$Q$5:$Q$152,0,MATCH("RHWM Aug "&$C5,Init!$Q$4:$GE$4,0)-1))*VLOOKUP($B5,Init!$F:$K,MATCH(D$3,Init!$F$4:$K$4,0),FALSE)),SUM(OFFSET(Init!$Q$5:$Q$152,0,MATCH("RHWM Aug "&$C5-1,Init!$Q$4:$GE$4,0)-1))*VLOOKUP($B5,Init!$F:$K,MATCH(D$3,Init!$F$4:$K$4,0),FALSE),SUM(OFFSET(Init!$Q$5:$Q$152,0,MATCH("RHWM Aug "&$C5,Init!$Q$4:$GE$4,0)-1))*VLOOKUP($B5,Init!$F:$K,MATCH(D$3,Init!$F$4:$K$4,0),FALSE)) -> 23173.248 | E5: =IF(ISNA(SUM(OFFSET(Init!$Q$5:$Q$152,0,MATCH("RHWM Aug "&$C5,Init!$Q$4:$GE$4,0)-1))*VLOOKUP($B5,Init!$F:$K,MATCH(E$3,Init!$F$4:$K$4,0),FALSE)),SUM(OFFSET(Init!$Q$5:$Q$152,0,MATCH("RHWM Aug "&$C5-1,Init!$Q$4:$GE$4,0)-1))*VLOOKUP($B5,Init!$F:$K,MATCH(E$3,Init!$F$4:$K$4,0),FALSE),SUM(OFFSET(Init!$Q$5:$Q$152,0,MATCH("RHWM Aug "&$C5,Init!$Q$4:$GE$4,0)-1))*VLOOKUP($B5,Init!$F:$K,MATCH(E$3,Init!$F$4:$K$4,0),FALSE)) -> 20336.939 | F5: =VLOOKUP($B5,RT1SC!$B:$G,IF(F$3="HLH",MATCH($F$2,RT1SC!$B$2:$G$2,0),MATCH($F$2,RT1SC!$B$2:$G$2,0)+1),FALSE) -> 3564633.705 | G5: =VLOOKUP($B5,RT1SC!$B:$G,IF(G$3="HLH",MATCH($F$2,RT1SC!$B$2:$G$2,0),MATCH($F$2,RT1SC!$B$2:$G$2,0)+1),FALSE) -> 2149235.011 | I5: =+EOMONTH(I4,0)+1 -> 2025-11-01 | J5: =+VLOOKUP($I5,$B:$G,3,FALSE)+VLOOKUP($I5,$B:$G,5,FALSE) -> 3155068.893 | K5: 2150114.917
B6: 2015-12-01 | C6: 2016 | D6: =IF(ISNA(SUM(OFFSET(Init!$Q$5:$Q$152,0,MATCH("RHWM Aug "&$C6,Init!$Q$4:$GE$4,0)-1))*VLOOKUP($B6,Init!$F:$K,MATCH(D$3,Init!$F$4:$K$4,0),FALSE)),SUM(OFFSET(Init!$Q$5:$Q$152,0,MATCH("RHWM Aug "&$C6-1,Init!$Q$4:$GE$4,0)-1))*VLOOKUP($B6,Init!$F:$K,MATCH(D$3,Init!$F$4:$K$4,0),FALSE),SUM(OFFSET(Init!$Q$5:$Q$152,0,MATCH("RHWM Aug "&$C6,Init!$Q$4:$GE$4,0)-1))*VLOOKUP($B6,Init!$F:$K,MATCH(D$3,Init!$F$4:$K$4,0),FALSE)) -> 25104.352 | E6: =IF(ISNA(SUM(OFFSET(Init!$Q$5:$Q$152,0,MATCH("RHWM Aug "&$C6,Init!$Q$4:$GE$4,0)-1))*VLOOKUP($B6,Init!$F:$K,MATCH(E$3,Init!$F$4:$K$4,0),FALSE)),SUM(OFFSET(Init!$Q$5:$Q$152,0,MATCH("RHWM Aug "&$C6-1,Init!$Q$4:$GE$4,0)-1))*VLOOKUP($B6,Init!$F:$K,MATCH(E$3,Init!$F$4:$K$4,0),FALSE),SUM(OFFSET(Init!$Q$5:$Q$152,0,MATCH("RHWM Aug "&$C6,Init!$Q$4:$GE$4,0)-1))*VLOOKUP($B6,Init!$F:$K,MATCH(E$3,Init!$F$4:$K$4,0),FALSE)) -> 19793.816 | F6: =VLOOKUP($B6,RT1SC!$B:$G,IF(F$3="HLH",MATCH($F$2,RT1SC!$B$2:$G$2,0),MATCH($F$2,RT1SC!$B$2:$G$2,0)+1),FALSE) -> 3432613.011 | G6: =VLOOKUP($B6,RT1SC!$B:$G,IF(G$3="HLH",MATCH($F$2,RT1SC!$B$2:$G$2,0),MATCH($F$2,RT1SC!$B$2:$G$2,0)+1),FALSE) -> 2118518.986 | I6: =+EOMONTH(I5,0)+1 -> 2025-12-01 | J6: 3853245.9 | K6: 2117649.45
B7: 2016-01-01 | C7: 2016 | D7: =IF(ISNA(SUM(OFFSET(Init!$Q$5:$Q$152,0,MATCH("RHWM Aug "&$C7,Init!$Q$4:$GE$4,0)-1))*VLOOKUP($B7,Init!$F:$K,MATCH(D$3,Init!$F$4:$K$4,0),FALSE)),SUM(OFFSET(Init!$Q$5:$Q$152,0,MATCH("RHWM Aug "&$C7-1,Init!$Q$4:$GE$4,0)-1))*VLOOKUP($B7,Init!$F:$K,MATCH(D$3,Init!$F$4:$K$4,0),FALSE),SUM(OFFSET(Init!$Q$5:$Q$152,0,MATCH("RHWM Aug "&$C7,Init!$Q$4:$GE$4,0)-1))*VLOOKUP($B7,Init!$F:$K,MATCH(D$3,Init!$F$4:$K$4,0),FALSE)) -> 24138.8 | E7: =IF(ISNA(SUM(OFFSET(Init!$Q$5:$Q$152,0,MATCH("RHWM Aug "&$C7,Init!$Q$4:$GE$4,0)-1))*VLOOKUP($B7,Init!$F:$K,MATCH(E$3,Init!$F$4:$K$4,0),FALSE)),SUM(OFFSET(Init!$Q$5:$Q$152,0,MATCH("RHWM Aug "&$C7-1,Init!$Q$4:$GE$4,0)-1))*VLOOKUP($B7,Init!$F:$K,MATCH(E$3,Init!$F$4:$K$4,0),FALSE),SUM(OFFSET(Init!$Q$5:$Q$152,0,MATCH("RHWM Aug "&$C7,Init!$Q$4:$GE$4,0)-1))*VLOOKUP($B7,Init!$F:$K,MATCH(E$3,Init!$F$4:$K$4,0),FALSE)) -> 20759.368 | F7: =VLOOKUP($B7,RT1SC!$B:$G,IF(F$3="HLH",MATCH($F$2,RT1SC!$B$2:$G$2,0),MATCH($F$2,RT1SC!$B$2:$G$2,0)+1),FALSE) -> 3031081.113 | G7: =VLOOKUP($B7,RT1SC!$B:$G,IF(G$3="HLH",MATCH($F$2,RT1SC!$B$2:$G$2,0),MATCH($F$2,RT1SC!$B$2:$G$2,0)+1),FALSE) -> 1810907.148 | I7: 2026-01-01 | J7: 4120159.116 | K7: 2247169.88
... 8 more rows

Sheet TOCA
B1: TOCA Computations, RHWMs and Net Requirements
A2: TOC
B3: BESID | C3: Preference Customer | D3: NOTJOE | E3: JOE | F3: Initial CHWM | G3: ="CHWM "&Init!$C$9 -> CHWM 2026 | H3: ="TRL "&Init!$C$9 -> TRL 2026 | I3: ="TRL "&Init!$C$9+1 -> TRL 2027 | J3: ="TRL "&Init!$C$9+2 -> TRL 2028 | K3: ="NLSL "&Init!$C$9 -> NLSL 2026 | L3: ="NLSL "&Init!$C$9+1 -> NLSL 2027 | M3: ="NLSL "&Init!$C$9+2 -> NLSL 2028 | N3: ="Existing/Other Resource aMW "&Init!$C$9 -> Existing/Other Resource aMW 2026 | O3: ="Existing/Other Resource aMW "&Init!$C$9+1 -> Existing/Other Resource aMW 2027 | P3: ="Existing/Other Resource aMW "&Init!$C$9+2 -> Existing/Other Resource aMW 2028 | Q3: ="Existing/Other Resource MWh "&Init!$C$9 -> Existing/Other Resource MWh 2026 | R3: ="Existing/Other Resource MWh "&Init!$C$9+1 -> Existing/Other Resource MWh 2027 | S3: ="Existing/Other Resource MWh "&Init!$C$9+2 -> Existing/Other Resource MWh 2028 | T3: ="TRL - NLSL - Existing Resource "&Init!$C$9 -> TRL - NLSL - Existing Resource 2026 | U3: ="TRL - NLSL - Existing Resource "&Init!$C$9+1 -> TRL - NLSL - Existing Resource 2027 | V3: ="TRL - NLSL - Existing Resource "&Init!$C$9+2 -> TRL - NLSL - Existing Resource 2028 | W3: ="TRL - NLSL - Existing Resource MWh "&Init!$C$9 -> TRL - NLSL - Existing Resource MWh 2026 | X3: ="TRL - NLSL - Existing Resource MWh "&Init!$C$9+1 -> TRL - NLSL - Existing Resource MWh 2027 | Y3: ="TRL - NLSL - Existing Resource MWh "&Init!$C$9+2 -> TRL - NLSL - Existing Resource MWh 2028 | Z3: ="RHWM "&Init!$C$9 -> RHWM 2026 | AA3: ="RHWM MWh "&Init!$C$9 -> RHWM MWh 2026 | AB3: ="RHWM MWh "&Init!$C$9+1 -> RHWM MWh 2027 | AC3: ="RHWM MWh "&Init!$C$9+2 -> RHWM MWh 2028 | AD3: ="Above RHWM "&Init!$C$9 -> Above RHWM 2026 | AE3: ="Above RHWM "&Init!$C$9+1 -> Above RHWM 2027 | AF3: ="Above RHWM "&Init!$C$9+2 -> Above RHWM 2028 | AG3: ="Above RHWM Not Served with LS "&Init!$C$9 -> Above RHWM Not Served with LS 2026 | AH3: ="Above RHWM Not Served with LS "&Init!$C$9+1 -> Above RHWM Not Served with LS 2027 | AI3: ="Above RHWM Not Served with LS "&Init!$C$9+2 -> Above RHWM Not Served with LS 2028 | AJ3: ="Above RHWM Load Served at the LS rate "&Init!$C$9 -> Above RHWM Load Served at the LS rate 2026 | AK3: ="Above RHWM Load Served at the LS rate "&Init!$C$9+1 -> Above RHWM Load Served at the LS rate 2027 | AL3: ="Above RHWM Load Served at the LS rate "&Init!$C$9+2 -> Above RHWM Load Served at the LS rate 2028 | AM3: ="Total Vintage "&Init!$C$9 -> Total Vintage 2026 | AN3: ="Total Vintage "&Init!$C$9+1 -> Total Vintage 2027 | AO3: ="Total Vintage "&Init!$C$9+2 -> Total Vintage 2028 | AP3: ="Remaining Above RHWM "&Init!$C$9 -> Remaining Above RHWM 2026 | AQ3: ="Remaining Above RHWM "&Init!$C$9+1 -> Remaining Above RHWM 2027 | AR3: ="Remaining Above RHWM "&Init!$C$9+2 -> Remaining Above RHWM 2028 | AS3: ="TOCA "&Init!$C$9 -> TOCA 2026 | AT3: ="TOCA "&Init!$C$9+1 -> TOCA 2027 | AU3: ="TOCA "&Init!$C$9+2 -> TOCA 2028 | AV3: ="Slice% "&Init!$C$9 -> Slice% 2026 | AW3: ="Non-slice TOCA "&Init!$C$9 -> Non-slice TOCA 2026 | AX3: ="Non-slice TOCA "&Init!$C$9+1 -> Non-slice TOCA 2027 | AY3: ="Non-slice TOCA "&Init!$C$9+2 -> Non-slice TOCA 2028 | AZ3: Avg Non-Slice TOCA | BA3: ="T1 Percentage "&Init!$C$9 -> T1 Percentage 2026 | BB3: ="T1 Percentage "&Init!$C$9+1 -> T1 Percentage 2027 | BC3: ="T1 Percentage "&Init!$C$9+2 -> T1 Percentage 2028 | BD3: ="LDD adjTRL/RHWM "&Init!$C$9 -> LDD adjTRL/RHWM 2026 | BE3: ="LDD adjTRL/RHWM "&Init!$C$9+1 -> LDD adjTRL/RHWM 2027 | BF3: ="LDD adjTRL/RHWM "&Init!$C$9+2 -> LDD adjTRL/RHWM 2028 | BG3: ="Applicable LDD "&Init!$C$9 -> Applicable LDD 2026 | BH3: ="Applicable LDD "&Init!$C$9+1 -> Applicable LDD 2027 | BI3: ="Applicable LDD "&Init!$C$9+2 -> Applicable LDD 2028 | BJ3: ="Election "&Init!$C$9 -> Election 2026 | BK3: ="Election "&Init!$C$9+1 -> Election 2027 | BL3: ="Election "&Init!$C$9+2 -> Election 2028 | BM3: ="Amount "&Init!$C$9 -> Amount 2026 | BN3: ="Amount "&Init!$C$9+1 -> Amount 2027 | BO3: ="Amount "&Init!$C$9+2 -> Amount 2028 | BP3: ="Tier 2 Amounts "&Init!$C$9 -> Tier 2 Amounts 2026 | BQ3: ="Tier 2 Amounts "&Init!$C$9+1 -> Tier 2 Amounts 2027 | BR3: ="Tier 2 Amounts "&Init!$C$9+2 -> Tier 2 Amounts 2028 | BS3: ="New Resource aMW "&Init!$C$9 -> New Resource aMW 2026 | BT3: ="New Resource aMW "&Init!$C$9+1 -> New Resource aMW 2027 | BU3: ="New Resource aMW "&Init!$C$9+2 -> New Resource aMW 2028 | BV3: ="Remarketing "&Init!$C$9 -> Remarketing 2026 | BW3: ="Remarketing "&Init!$C$9+1 -> Remarketing 2027 | BX3: ="Remarketing "&Init!$C$9+2 -> Remarketing 2028 | BY3: ="T2 Remarketing "&Init!$C$9 -> T2 Remarketing 2026 | BZ3: ="T2 Remarketing "&Init!$C$9+1 -> T2 Remarketing 2027 | CA3: ="T2 Remarketing "&Init!$C$9+2 -> T2 Remarketing 2028 | CB3: ="NR Remarketing "&Init!$C$9 -> NR Remarketing 2026 | CC3: ="NR Remarketing "&Init!$C$9+1 -> NR Remarketing 2027 | CD3: ="NR Remarketing "&Init!$C$9+2 -> NR Remarketing 2028 | CE3: ="Forecast Net Requirement "&Init!C9 -> Forecast Net Requirement 2026 | CF3: ="Forecast Net Requirement "&Init!$C$9+1 -> Forecast Net Requirement 2027 | CG3: ="Forecast Net Requirement "&Init!$C$9+2 -> Forecast Net Requirement 2028 | CH3: Rounddown
B4: 10015 | C4: Asotin County PUD #1 | D4: =+IF(E4=0,1,0) -> 1 | E4: =+VLOOKUP($B4,Init!$Q:$T,4,FALSE) -> 0 | F4: =+VLOOKUP($B4,Init!$Q:$GE,MATCH(F$3,Init!$Q$4:$GE$4,0),FALSE) -> 0.582 | G4: =+$F4+VLOOKUP($B4,Init!$Q:$GF,MATCH("RHWM Aug "&VALUE(RIGHT(G$3,4)),Init!$Q$4:$GF$4,0),FALSE) -> 0.582 | H4: =ROUND(VLOOKUP($B4,I_TRL!$B$2:$VK$137,MATCH(VALUE(RIGHT(H$3,4)),I_TRL!$B$2:$VK$2,0),FALSE)/VLOOKUP(VALUE(RIGHT(H$3,4)),Init!$M:$O,3,FALSE),3) -> 0.761 | I4: =ROUND(VLOOKUP($B4,I_TRL!$B:$VK,MATCH(VALUE(RIGHT(I$3,4)),I_TRL!$B$2:$VK$2,0),FALSE)/VLOOKUP(VALUE(RIGHT(I$3,4)),Init!$M:$O,3,FALSE),3) -> 0.761 | J4: =ROUND(VLOOKUP($B4,I_TRL!$B:$VK,MATCH(VALUE(RIGHT(J$3,4)),I_TRL!$B$2:$VK$2,0),FALSE)/VLOOKUP(VALUE(RIGHT(J$3,4)),Init!$M:$O,3,FALSE),3) -> 0.76 | K4: =ROUND(VLOOKUP($B4,I_NLSL!$B:$VK,MATCH(VALUE(RIGHT(K$3,4)),I_NLSL!$B$2:$VK$2,0),FALSE)/VLOOKUP(VALUE(RIGHT(K$3,4)),Init!$M:$O,3,FALSE),3) -> 0 | L4: =ROUND(VLOOKUP($B4,I_NLSL!$B:$VK,MATCH(VALUE(RIGHT(L$3,4)),I_NLSL!$B$2:$VK$2,0),FALSE)/VLOOKUP(VALUE(RIGHT(L$3,4)),Init!$M:$O,3,FALSE),3) -> 0 | M4: =ROUND(VLOOKUP($B4,I_NLSL!$B:$VK,MATCH(VALUE(RIGHT(M$3,4)),I_NLSL!$B$2:$VK$2,0),FALSE)/VLOOKUP(VALUE(RIGHT(M$3,4)),Init!$M:$O,3,FALSE),3) -> 0 | N4: =ROUND((VLOOKUP($B4,I_ER_other!$B:$VK,MATCH(VALUE(RIGHT(N$3,4)),I_ER_other!$B$2:$VK$2,0),FALSE)+VLOOKUP($B4,I_ER!$B:$VK,MATCH(VALUE(RIGHT(N$3,4)),I_ER!$B$2:$VK$2,0),FALSE))/VLOOKUP(VALUE(RIGHT(N$3,4)),Init!$M:$O,3,FALSE),3) -> 0 | O4: =ROUND((VLOOKUP($B4,I_ER_other!$B:$VK,MATCH(VALUE(RIGHT(O$3,4)),I_ER_other!$B$2:$VK$2,0),FALSE)+VLOOKUP($B4,I_ER!$B:$VK,MATCH(VALUE(RIGHT(O$3,4)),I_ER!$B$2:$VK$2,0),FALSE))/VLOOKUP(VALUE(RIGHT(O$3,4)),Init!$M:$O,3,FALSE),3) -> 0 | P4: =ROUND((VLOOKUP($B4,I_ER_other!$B:$VK,MATCH(VALUE(RIGHT(P$3,4)),I_ER_other!$B$2:$VK$2,0),FALSE)+VLOOKUP($B4,I_ER!$B:$VK,MATCH(VALUE(RIGHT(P$3,4)),I_ER!$B$2:$VK$2,0),FALSE))/VLOOKUP(VALUE(RIGHT(P$3,4)),Init!$M:$O,3,FALSE),3) -> 0 | Q4: =+N4*VLOOKUP(VALUE(RIGHT(Q$3,4)),Init!$M:$O,3,FALSE) -> 0 | R4: =+O4*VLOOKUP(VALUE(RIGHT(R$3,4)),Init!$M:$O,3,FALSE) -> 0 | S4: =+P4*VLOOKUP(VALUE(RIGHT(S$3,4)),Init!$M:$O,3,FALSE) -> 0 | T4: =MAX(IF(AND(Init!$C$14="Yes",Init!$S5=0),ROUND(VLOOKUP($B4,Init!$Q:$GE,MATCH(T$3,Init!$Q$4:$GE$4,0),FALSE),3),IF($B4=10298,SUMPRODUCT(#REF!,#REF!),ROUND(H4-N4-K4,3))),0) -> 0.761 | U4: =MAX(IF(AND(Init!$C$14="Yes",Init!$S5=0),ROUND(VLOOKUP($B4,Init!$Q:$GE,MATCH(U$3,Init!$Q$4:$GE$4,0),FALSE),3),IF($B4=10298,SUMPRODUCT(#REF!,#REF!),ROUND(I4-O4-L4,3))),0) -> 0.761 | V4: =MAX(IF(AND(Init!$C$14="Yes",Init!$S5=0),ROUND(VLOOKUP($B4,Init!$Q:$GE,MATCH(V$3,Init!$Q$4:$GE$4,0),FALSE),3),IF($B4=10298,SUMPRODUCT(#REF!,#REF!),ROUND(J4-P4-M4,3))),0) -> 0.76 | W4: =+T4*VLOOKUP(VALUE(RIGHT(W$3,4)),Init!$M:$O,3,FALSE) -> 6666.36 | X4: =+U4*VLOOKUP(VALUE(RIGHT(X$3,4)),Init!$M:$O,3,FALSE) -> 6666.36 | Y4: =+V4*VLOOKUP(VALUE(RIGHT(Y$3,4)),Init!$M:$O,3,FALSE) -> 6675.84 | Z4: =IF(Init!$C$14="Yes",VLOOKUP($B4,Init!$Q:$GE,MATCH(Z$3,Init!$Q$4:$GE$4,0),FALSE),IF($B4=10298,SUMPRODUCT(#REF!,#REF!),ROUND(RT1SC!$J$11*(G4/SUMPRODUCT($D$4:$D$170,$G$4:$G$170)),3))) -> 0.577 | AA4: =$Z4*VLOOKUP(VALUE(RIGHT(AA$3,4)),Init!$M:$O,3,FALSE) -> 5054.52 | AB4: =$Z4*VLOOKUP(VALUE(RIGHT(AB$3,4)),Init!$M:$O,3,FALSE) -> 5054.52 | AC4: =$Z4*VLOOKUP(VALUE(RIGHT(AC$3,4)),Init!$M:$O,3,FALSE) -> 5068.368 | AD4: =IF(Init!$C$14="Yes",VLOOKUP($B4,Init!$Q:$GE,MATCH(AD$3,Init!$Q$4:$GE$4,0),FALSE),IF($B4=10298,SUMPRODUCT(#REF!,#REF!),ROUND(MAX(T4-$Z4,0),3))) -> 0.184 | AE4: =IF(Init!$C$14="Yes",VLOOKUP($B4,Init!$Q:$GE,MATCH(AE$3,Init!$Q$4:$GE$4,0),FALSE),IF($B4=10298,SUMPRODUCT(#REF!,#REF!),ROUND(MAX(U4-$Z4,0),3))) -> 0.184 | AF4: =IF(Init!$C$14="Yes",VLOOKUP($B4,Init!$Q:$GE,MATCH(AF$3,Init!$Q$4:$GE$4,0),FALSE),IF($B4=10298,SUMPRODUCT(#REF!,#REF!),ROUND(MAX(V4-$Z4,0),3))) -> 0.183 | AG4: =IF($E4=1,AD4,IF(AND((AM4+BS4)=0,AD4<1),0,IF(AND((AM4+BS4)>0,AD4<1),MIN(AM4+BS4,AD4),IF(AD4<1,0,AD4)))) -> 0 | AH4: =IF($E4=1,AE4,IF(AND((AN4+BT4)=0,AE4<1),0,IF(AND((AN4+BT4)>0,AE4<1),MIN(AN4+BT4,AE4),IF(AE4<1,0,AE4)))) -> 0 | AI4: =IF($E4=1,AF4,IF(AND((AO4+BU4)=0,AF4<1),0,IF(AND((AO4+BU4)>0,AF4<1),MIN(AO4+BU4,AF4),IF(AF4<1,0,AF4)))) -> 0 | AJ4: =+IF(AND(AD4<1,AG4=0),AD4,0) -> 0.184 | AK4: =+IF(AND(AE4<1,AH4=0),AE4,0) -> 0.184 | AL4: =+IF(AND(AF4<1,AI4=0),AF4,0) -> 0.183 | AM4: =+VLOOKUP($B4,Init!$Q:$GE,MATCH(AM$3,Init!$Q$4:$GE$4,0),FALSE) -> 0 | AN4: =+VLOOKUP($B4,Init!$Q:$GE,MATCH(AN$3,Init!$Q$4:$GE$4,0),FALSE) -> 0 | AO4: =+VLOOKUP($B4,Init!$Q:$GE,MATCH(AO$3,Init!$Q$4:$GE$4,0),FALSE) -> 0 | AP4: =MAX(AG4-AM4,0) -> 0 | AQ4: =MAX(AH4-AN4,0) -> 0 | AR4: =MAX(AI4-AO4,0) -> 0 | AS4: =IF($B4=10298,ROUND(SUMPRODUCT(#REF!,#REF!),7),ROUND(MIN(T4,$Z4)/SUMPRODUCT($D$4:$D$170,$Z$4:$Z$170),7)) -> 8.12e-05 | AT4: =IF($B4=10298,ROUND(SUMPRODUCT(#REF!,#REF!),7),ROUND(MIN(U4,$Z4)/SUMPRODUCT($D$4:$D$170,$Z$4:$Z$170),7)) -> 8.12e-05 | AU4: =IF($B4=10298,ROUND(SUMPRODUCT(#REF!,#REF!),7),ROUND(MIN(V4,$Z4)/SUMPRODUCT($D$4:$D$170,$Z$4:$Z$170),7)) -> 8.12e-05 | AV4: =ROUND(VLOOKUP($B4,Init!$Q:$GF,MATCH(Init!$AF$4,Init!$Q$4:$GF$4,0),FALSE)*(ROUND((SUMPRODUCT($D$4:$D$137,$F$4:$F$137)/SUMPRODUCT($D$4:$D$137,$G$4:$G$137)),5)),7) -> 0 | AW4: =+AS4-$AV4 -> 8.12e-05 | AX4: =+AT4-$AV4 -> 8.12e-05 | AY4: 8.12e-05 | AZ4: =+AVERAGE(AW4:AY4) -> 8.12e-05 | BA4: =+IF($B4="","",IF(Init!$C$14="Yes",VLOOKUP($B4,Init!$Q:$GE,MATCH(BA$3,Init!$Q$4:$GE$4,0),FALSE),MIN(1,(AS4*RT1SC!$J$11+N4)/(H4-K4)))) -> 0.7586013435 | BB4: =+IF($B4="","",IF(Init!$C$14="Yes",VLOOKUP($B4,Init!$Q:$GE,MATCH(BB$3,Init!$Q$4:$GE$4,0),FALSE),MIN(1,(AT4*RT1SC!$J$11+O4)/(I4-L4)))) -> 0.7586013435 | BC4: =+IF($B4="","",IF(Init!$C$14="Yes",VLOOKUP($B4,Init!$Q:$GE,MATCH(BC$3,Init!$Q$4:$GE$4,0),FALSE),MIN(1,(AU4*RT1SC!$J$11+P4)/(J4-M4)))) -> 0.7595995032 | BD4: =MAX(T4/$Z4,1) -> 1.318890815 | BE4: =MAX(U4/$Z4,1) -> 1.318890815 | BF4: 1.317157712 | BG4: =+VLOOKUP($B4,Init!$Q:$GE,MATCH(Init!$FQ$4,Init!$Q$4:$GE$4,0),FALSE)*BD4 -> 0 | BH4: =+VLOOKUP($B4,Init!$Q:$GE,MATCH(Init!$FQ$4,Init!$Q$4:$GE$4,0),FALSE)*BE4 -> 0 | BI4: =+VLOOKUP($B4,Init!$Q:$GE,MATCH(Init!$FQ$4,Init!$Q$4:$GE$4,0),FALSE)*BF4 -> 0 | BJ4: =+VLOOKUP($B4,Init!$Q:$GE,MATCH(BJ$3,Init!$Q$4:$GE$4,0),FALSE) -> 1 | BK4: =+VLOOKUP($B4,Init!$Q:$GE,MATCH(BK$3,Init!$Q$4:$GE$4,0),FALSE) -> 1 | BL4: =+VLOOKUP($B4,Init!$Q:$GE,MATCH(BL$3,Init!$Q$4:$GE$4,0),FALSE) -> 1 | BM4: =+VLOOKUP($B4,Init!$Q:$GE,MATCH(BM$3,Init!$Q$4:$GE$4,0),FALSE) -> 0 | BN4: =+VLOOKUP($B4,Init!$Q:$GE,MATCH(BN$3,Init!$Q$4:$GE$4,0),FALSE) -> 0 | BO4: =+VLOOKUP($B4,Init!$Q:$GE,MATCH(BO$3,Init!$Q$4:$GE$4,0),FALSE) -> 0 | BP4: =IF($E4=1,0,ROUND(AM4+IF(BJ4=1,MAX(0,AG4-AM4),IF(BJ4=4,0,IF(BJ4=2,MIN(BM4,MAX(AG4-AM4,0)),IF(AND(BJ4=3,$CH4=0),MAX((AG4-AM4-BM4),0),IF(AND(BJ4=3,$CH4=1),MAX(MAX(TRUNC(AG4-AM4-BS4),0)-TRUNC((BM4-BS4)),0)+MAX(MAX(AG4-AM4-BS4,0)-MAX(TRUNC(AG4-AM4-BS4),0),0)))))),3)) -> 0 | BQ4: =IF($E4=1,0,ROUND(AN4+IF(BK4=1,MAX(0,AH4-AN4),IF(BK4=4,0,IF(BK4=2,MIN(BN4,MAX(AH4-AN4,0)),IF(AND(BK4=3,$CH4=0),MAX((AH4-AN4-BN4),0),IF(AND(BK4=3,$CH4=1),MAX(MAX(TRUNC(AH4-AN4-BT4),0)-TRUNC((BN4-BT4)),0)+MAX(MAX(AH4-AN4-BT4,0)-MAX(TRUNC(AH4-AN4-BT4),0),0)))))),3)) -> 0 | BR4: =IF($E4=1,0,ROUND(AO4+IF(BL4=1,MAX(0,AI4-AO4),IF(BL4=4,0,IF(BL4=2,MIN(BO4,MAX(AI4-AO4,0)),IF(AND(BL4=3,$CH4=0),MAX((AI4-AO4-BO4),0),IF(AND(BL4=3,$CH4=1),MAX(MAX(TRUNC(AI4-AO4-BU4),0)-TRUNC((BO4-BU4)),0)+MAX(MAX(AI4-AO4-BU4,0)-MAX(TRUNC(AI4-AO4-BU4),0),0)))))),3)) -> 0 | BS4: =ROUND((VLOOKUP($B4,I_NR!$B:$VK,MATCH(VALUE(RIGHT(BS$3,4)),I_NR!$B$2:$VK$2,0),FALSE)/VLOOKUP(VALUE(RIGHT(BS$3,4)),Init!$M:$O,3,FALSE)),3) -> 0 | BT4: =ROUND((VLOOKUP($B4,I_NR!$B:$VK,MATCH(VALUE(RIGHT(BT$3,4)),I_NR!$B$2:$VK$2,0),FALSE)/VLOOKUP(VALUE(RIGHT(BT$3,4)),Init!$M:$O,3,FALSE)),3) -> 0 | BU4: =ROUND((VLOOKUP($B4,I_NR!$B:$VK,MATCH(VALUE(RIGHT(BU$3,4)),I_NR!$B$2:$VK$2,0),FALSE)/VLOOKUP(VALUE(RIGHT(BU$3,4)),Init!$M:$O,3,FALSE)),3) -> 0 | BV4: =MIN(AD4-BP4-BS4,0) -> 0 | BW4: =MIN(AE4-BQ4-BT4,0) -> 0 | BX4: =MIN(AF4-BR4-BU4,0) -> 0 | BY4: =BV4-CB4 -> 0 | BZ4: =BW4-CC4 -> 0 | CA4: 0 | CB4: =IF(VLOOKUP($B4,Init!$Q:$S,3,FALSE)=0,MIN(BV4+BP4,0),0) -> 0 | CC4: =IF(VLOOKUP($B4,Init!$Q:$S,3,FALSE)=0,MIN(BW4+BQ4,0),0) -> 0 | CD4: =IF(VLOOKUP($B4,Init!$Q:$S,3,FALSE)=0,MIN(BX4+BR4,0),0) -> 0 | CE4: =ROUND(AS4*RT1SC!$J$11+BP4+AJ4+BY4,3) -> 0.761 | CF4: =ROUND(AT4*RT1SC!$J$11+BQ4+AK4+BZ4,3) -> 0.761 | CG4: =ROUND(AU4*RT1SC!$J$11+BR4+AL4+CA4,3) -> 0.76 | CH4: =+VLOOKUP($B4,Init!$Q:$GF,MATCH(CH$3,Init!$Q$4:$GF$4,0),FALSE) -> 0
B5: 10024 | C5: Benton County PUD #1 | D5: 1 | E5: =+VLOOKUP($B5,Init!$Q:$T,4,FALSE) -> 0 | F5: =+VLOOKUP($B5,Init!$Q:$GE,MATCH(F$3,Init!$Q$4:$GE$4,0),FALSE) -> 203.92 | G5: =+$F5+VLOOKUP($B5,Init!$Q:$GF,MATCH("RHWM Aug "&VALUE(RIGHT(G$3,4)),Init!$Q$4:$GF$4,0),FALSE) -> 203.92 | H5: =ROUND(VLOOKUP($B5,I_TRL!$B$2:$VK$137,MATCH(VALUE(RIGHT(H$3,4)),I_TRL!$B$2:$VK$2,0),FALSE)/VLOOKUP(VALUE(RIGHT(H$3,4)),Init!$M:$O,3,FALSE),3) -> 213.666 | I5: =ROUND(VLOOKUP($B5,I_TRL!$B:$VK,MATCH(VALUE(RIGHT(I$3,4)),I_TRL!$B$2:$VK$2,0),FALSE)/VLOOKUP(VALUE(RIGHT(I$3,4)),Init!$M:$O,3,FALSE),3) -> 214.564 | J5: =ROUND(VLOOKUP($B5,I_TRL!$B:$VK,MATCH(VALUE(RIGHT(J$3,4)),I_TRL!$B$2:$VK$2,0),FALSE)/VLOOKUP(VALUE(RIGHT(J$3,4)),Init!$M:$O,3,FALSE),3) -> 214.739 | K5: =ROUND(VLOOKUP($B5,I_NLSL!$B:$VK,MATCH(VALUE(RIGHT(K$3,4)),I_NLSL!$B$2:$VK$2,0),FALSE)/VLOOKUP(VALUE(RIGHT(K$3,4)),Init!$M:$O,3,FALSE),3) -> 0 | L5: =ROUND(VLOOKUP($B5,I_NLSL!$B:$VK,MATCH(VALUE(RIGHT(L$3,4)),I_NLSL!$B$2:$VK$2,0),FALSE)/VLOOKUP(VALUE(RIGHT(L$3,4)),Init!$M:$O,3,FALSE),3) -> 0 | M5: =ROUND(VLOOKUP($B5,I_NLSL!$B:$VK,MATCH(VALUE(RIGHT(M$3,4)),I_NLSL!$B$2:$VK$2,0),FALSE)/VLOOKUP(VALUE(RIGHT(M$3,4)),Init!$M:$O,3,FALSE),3) -> 0 | N5: =ROUND((VLOOKUP($B5,I_ER_other!$B:$VK,MATCH(VALUE(RIGHT(N$3,4)),I_ER_other!$B$2:$VK$2,0),FALSE)+VLOOKUP($B5,I_ER!$B:$VK,MATCH(VALUE(RIGHT(N$3,4)),I_ER!$B$2:$VK$2,0),FALSE))/VLOOKUP(VALUE(RIGHT(N$3,4)),Init!$M:$O,3,FALSE),3) -> 0.919 | O5: =ROUND((VLOOKUP($B5,I_ER_other!$B:$VK,MATCH(VALUE(RIGHT(O$3,4)),I_ER_other!$B$2:$VK$2,0),FALSE)+VLOOKUP($B5,I_ER!$B:$VK,MATCH(VALUE(RIGHT(O$3,4)),I_ER!$B$2:$VK$2,0),FALSE))/VLOOKUP(VALUE(RIGHT(O$3,4)),Init!$M:$O,3,FALSE),3) -> 0.919 | P5: =ROUND((VLOOKUP($B5,I_ER_other!$B:$VK,MATCH(VALUE(RIGHT(P$3,4)),I_ER_other!$B$2:$VK$2,0),FALSE)+VLOOKUP($B5,I_ER!$B:$VK,MATCH(VALUE(RIGHT(P$3,4)),I_ER!$B$2:$VK$2,0),FALSE))/VLOOKUP(VALUE(RIGHT(P$3,4)),Init!$M:$O,3,FALSE),3) -> 0.918 | Q5: =+N5*VLOOKUP(VALUE(RIGHT(Q$3,4)),Init!$M:$O,3,FALSE) -> 8050.44 | R5: =+O5*VLOOKUP(VALUE(RIGHT(R$3,4)),Init!$M:$O,3,FALSE) -> 8050.44 | S5: =+P5*VLOOKUP(VALUE(RIGHT(S$3,4)),Init!$M:$O,3,FALSE) -> 8063.712 | T5: =MAX(IF(AND(Init!$C$14="Yes",Init!$S6=0),ROUND(VLOOKUP($B5,Init!$Q:$GE,MATCH(T$3,Init!$Q$4:$GE$4,0),FALSE),3),IF($B5=10298,SUMPRODUCT(T$4:T4,$E$4:$E4),ROUND(H5-N5-K5,3))),0) -> 212.747 | U5: =MAX(IF(AND(Init!$C$14="Yes",Init!$S6=0),ROUND(VLOOKUP($B5,Init!$Q:$GE,MATCH(U$3,Init!$Q$4:$GE$4,0),FALSE),3),IF($B5=10298,SUMPRODUCT(U$4:U4,$E$4:$E4),ROUND(I5-O5-L5,3))),0) -> 213.645 | V5: =MAX(IF(AND(Init!$C$14="Yes",Init!$S6=0),ROUND(VLOOKUP($B5,Init!$Q:$GE,MATCH(V$3,Init!$Q$4:$GE$4,0),FALSE),3),IF($B5=10298,SUMPRODUCT(V$4:V4,$E$4:$E4),ROUND(J5-P5-M5,3))),0) -> 213.821 | W5: =+T5*VLOOKUP(VALUE(RIGHT(W$3,4)),Init!$M:$O,3,FALSE) -> 1863663.72 | X5: =+U5*VLOOKUP(VALUE(RIGHT(X$3,4)),Init!$M:$O,3,FALSE) -> 1871530.2 | Y5: =+V5*VLOOKUP(VALUE(RIGHT(Y$3,4)),Init!$M:$O,3,FALSE) -> 1878203.664 | Z5: =IF(Init!$C$14="Yes",VLOOKUP($B5,Init!$Q:$GE,MATCH(Z$3,Init!$Q$4:$GE$4,0),FALSE),IF($B5=10298,SUMPRODUCT($E$4:$E4,Z$4:Z4),ROUND(RT1SC!$J$11*(G5/SUMPRODUCT($D$4:$D$170,$G$4:$G$170)),3))) -> 202.081 | AA5: =$Z5*VLOOKUP(VALUE(RIGHT(AA$3,4)),Init!$M:$O,3,FALSE) -> 1770229.56 | AB5: =$Z5*VLOOKUP(VALUE(RIGHT(AB$3,4)),Init!$M:$O,3,FALSE) -> 1770229.56 | AC5: =$Z5*VLOOKUP(VALUE(RIGHT(AC$3,4)),Init!$M:$O,3,FALSE) -> 1775079.504 | AD5: =IF(Init!$C$14="Yes",VLOOKUP($B5,Init!$Q:$GE,MATCH(AD$3,Init!$Q$4:$GE$4,0),FALSE),IF($B5=10298,SUMPRODUCT(AD$4:AD4,$E$4:$E4),ROUND(MAX(T5-$Z5,0),3))) -> 10.666 | AE5: =IF(Init!$C$14="Yes",VLOOKUP($B5,Init!$Q:$GE,MATCH(AE$3,Init!$Q$4:$GE$4,0),FALSE),IF($B5=10298,SUMPRODUCT(AE$4:AE4,$E$4:$E4),ROUND(MAX(U5-$Z5,0),3))) -> 11.564 | AF5: =IF(Init!$C$14="Yes",VLOOKUP($B5,Init!$Q:$GE,MATCH(AF$3,Init!$Q$4:$GE$4,0),FALSE),IF($B5=10298,SUMPRODUCT(AF$4:AF4,$E$4:$E4),ROUND(MAX(V5-$Z5,0),3))) -> 11.74 | AG5: 10.666 | AH5: 11.564 | AI5: 11.74 | AJ5: 0 | AK5: 0 | AL5: 0 | AM5: =+VLOOKUP($B5,Init!$Q:$GE,MATCH(AM$3,Init!$Q$4:$GE$4,0),FALSE) -> 0 | AN5: =+VLOOKUP($B5,Init!$Q:$GE,MATCH(AN$3,Init!$Q$4:$GE$4,0),FALSE) -> 0 | AO5: =+VLOOKUP($B5,Init!$Q:$GE,MATCH(AO$3,Init!$Q$4:$GE$4,0),FALSE) -> 0 | AP5: =MAX(AG5-AM5,0) -> 10.666 | AQ5: 11.564 | AR5: 11.74 | AS5: =IF($B5=10298,ROUND(SUMPRODUCT($E$4:$E4,AS$4:AS4),7),ROUND(MIN(T5,$Z5)/SUMPRODUCT($D$4:$D$170,$Z$4:$Z$170),7)) -> 0.0284239 | AT5: =IF($B5=10298,ROUND(SUMPRODUCT($E$4:$E4,AT$4:AT4),7),ROUND(MIN(U5,$Z5)/SUMPRODUCT($D$4:$D$170,$Z$4:$Z$170),7)) -> 0.0284239 | AU5: =IF($B5=10298,ROUND(SUMPRODUCT($E$4:$E4,AU$4:AU4),7),ROUND(MIN(V5,$Z5)/SUMPRODUCT($D$4:$D$170,$Z$4:$Z$170),7)) -> 0.0284239 | AV5: =ROUND(VLOOKUP($B5,Init!$Q:$GF,MATCH(Init!$AF$4,Init!$Q$4:$GF$4,0),FALSE)*(ROUND((SUMPRODUCT($D$4:$D$137,$F$4:$F$137)/SUMPRODUCT($D$4:$D$137,$G$4:$G$137)),5)),7) -> 0 | AW5: =+AS5-$AV5 -> 0.0284239 | AX5: 0.0284239 | AY5: 0.0284239 | AZ5: 0.0284239 | BA5: =+IF($B5="","",IF(Init!$C$14="Yes",VLOOKUP($B5,Init!$Q:$GE,MATCH(BA$3,Init!$Q$4:$GE$4,0),FALSE),MIN(1,(AS5*RT1SC!$J$11+N5)/(H5-K5)))) -> 0.9500818806 | BB5: =+IF($B5="","",IF(Init!$C$14="Yes",VLOOKUP($B5,Init!$Q:$GE,MATCH(BB$3,Init!$Q$4:$GE$4,0),FALSE),MIN(1,(AT5*RT1SC!$J$11+O5)/(I5-L5)))) -> 0.946105568 | BC5: =+IF($B5="","",IF(Init!$C$14="Yes",VLOOKUP($B5,Init!$Q:$GE,MATCH(BC$3,Init!$Q$4:$GE$4,0),FALSE),MIN(1,(AU5*RT1SC!$J$11+P5)/(J5-M5)))) -> 0.9453298893 | BD5: 1.052780816 | BE5: 1.057224578 | BF5: 1.058095516 | BG5: =+VLOOKUP($B5,Init!$Q:$GE,MATCH(Init!$FQ$4,Init!$Q$4:$GE$4,0),FALSE)*BD5 -> 0 | BH5: =+VLOOKUP($B5,Init!$Q:$GE,MATCH(Init!$FQ$4,Init!$Q$4:$GE$4,0),FALSE)*BE5 -> 0 | BI5: =+VLOOKUP($B5,Init!$Q:$GE,MATCH(Init!$FQ$4,Init!$Q$4:$GE$4,0),FALSE)*BF5 -> 0 | BJ5: =+VLOOKUP($B5,Init!$Q:$GE,MATCH(BJ$3,Init!$Q$4:$GE$4,0),FALSE) -> 3 | BK5: =+VLOOKUP($B5,Init!$Q:$GE,MATCH(BK$3,Init!$Q$4:$GE$4,0),FALSE) -> 3 | BL5: =+VLOOKUP($B5,Init!$Q:$GE,MATCH(BL$3,Init!$Q$4:$GE$4,0),FALSE) -> 3 | BM5: =+VLOOKUP($B5,Init!$Q:$GE,MATCH(BM$3,Init!$Q$4:$GE$4,0),FALSE) -> 0 | BN5: =+VLOOKUP($B5,Init!$Q:$GE,MATCH(BN$3,Init!$Q$4:$GE$4,0),FALSE) -> 0 | BO5: =+VLOOKUP($B5,Init!$Q:$GE,MATCH(BO$3,Init!$Q$4:$GE$4,0),FALSE) -> 0 | BP5: 10.666 | BQ5: 11.564 | BR5: 11.74 | BS5: =ROUND((VLOOKUP($B5,I_NR!$B:$VK,MATCH(VALUE(RIGHT(BS$3,4)),I_NR!$B$2:$VK$2,0),FALSE)/VLOOKUP(VALUE(RIGHT(BS$3,4)),Init!$M:$O,3,FALSE)),3) -> 0 | BT5: =ROUND((VLOOKUP($B5,I_NR!$B:$VK,MATCH(VALUE(RIGHT(BT$3,4)),I_NR!$B$2:$VK$2,0),FALSE)/VLOOKUP(VALUE(RIGHT(BT$3,4)),Init!$M:$O,3,FALSE)),3) -> 0 | BU5: =ROUND((VLOOKUP($B5,I_NR!$B:$VK,MATCH(VALUE(RIGHT(BU$3,4)),I_NR!$B$2:$VK$2,0),FALSE)/VLOOKUP(VALUE(RIGHT(BU$3,4)),Init!$M:$O,3,FALSE)),3) -> 0 | BV5: 0 | BW5: 0 | BX5: 0 | BY5: =BV5-CB5 -> 0 | BZ5: =BW5-CC5 -> 0 | CA5: =BX5-CD5 -> 0 | CB5: =IF(VLOOKUP($B5,Init!$Q:$S,3,FALSE)=0,MIN(BV5+BP5,0),0) -> 0 | CC5: =IF(VLOOKUP($B5,Init!$Q:$S,3,FALSE)=0,MIN(BW5+BQ5,0),0) -> 0 | CD5: =IF(VLOOKUP($B5,Init!$Q:$S,3,FALSE)=0,MIN(BX5+BR5,0),0) -> 0 | CE5: =ROUND(AS5*RT1SC!$J$11+BP5+AJ5+BY5,3) -> 212.747 | CF5: =ROUND(AT5*RT1SC!$J$11+BQ5+AK5+BZ5,3) -> 213.645 | CG5: =ROUND(AU5*RT1SC!$J$11+BR5+AL5+CA5,3) -> 213.821 | CH5: =+VLOOKUP($B5,Init!$Q:$GF,MATCH(CH$3,Init!$Q$4:$GF$4,0),FALSE) -> 0
B6: 10025 | C6: Benton REA | D6: 1 | E6: =+VLOOKUP($B6,Init!$Q:$T,4,FALSE) -> 0 | F6: =+VLOOKUP($B6,Init!$Q:$GE,MATCH(F$3,Init!$Q$4:$GE$4,0),FALSE) -> 60.549 | G6: =+$F6+VLOOKUP($B6,Init!$Q:$GF,MATCH("RHWM Aug "&VALUE(RIGHT(G$3,4)),Init!$Q$4:$GF$4,0),FALSE) -> 60.549 | H6: =ROUND(VLOOKUP($B6,I_TRL!$B$2:$VK$137,MATCH(VALUE(RIGHT(H$3,4)),I_TRL!$B$2:$VK$2,0),FALSE)/VLOOKUP(VALUE(RIGHT(H$3,4)),Init!$M:$O,3,FALSE),3) -> 74.805 | I6: =ROUND(VLOOKUP($B6,I_TRL!$B:$VK,MATCH(VALUE(RIGHT(I$3,4)),I_TRL!$B$2:$VK$2,0),FALSE)/VLOOKUP(VALUE(RIGHT(I$3,4)),Init!$M:$O,3,FALSE),3) -> 75.47 | J6: =ROUND(VLOOKUP($B6,I_TRL!$B:$VK,MATCH(VALUE(RIGHT(J$3,4)),I_TRL!$B$2:$VK$2,0),FALSE)/VLOOKUP(VALUE(RIGHT(J$3,4)),Init!$M:$O,3,FALSE),3) -> 75.931 | K6: =ROUND(VLOOKUP($B6,I_NLSL!$B:$VK,MATCH(VALUE(RIGHT(K$3,4)),I_NLSL!$B$2:$VK$2,0),FALSE)/VLOOKUP(VALUE(RIGHT(K$3,4)),Init!$M:$O,3,FALSE),3) -> 0 | L6: =ROUND(VLOOKUP($B6,I_NLSL!$B:$VK,MATCH(VALUE(RIGHT(L$3,4)),I_NLSL!$B$2:$VK$2,0),FALSE)/VLOOKUP(VALUE(RIGHT(L$3,4)),Init!$M:$O,3,FALSE),3) -> 0 | M6: =ROUND(VLOOKUP($B6,I_NLSL!$B:$VK,MATCH(VALUE(RIGHT(M$3,4)),I_NLSL!$B$2:$VK$2,0),FALSE)/VLOOKUP(VALUE(RIGHT(M$3,4)),Init!$M:$O,3,FALSE),3) -> 0 | N6: =ROUND((VLOOKUP($B6,I_ER_other!$B:$VK,MATCH(VALUE(RIGHT(N$3,4)),I_ER_other!$B$2:$VK$2,0),FALSE)+VLOOKUP($B6,I_ER!$B:$VK,MATCH(VALUE(RIGHT(N$3,4)),I_ER!$B$2:$VK$2,0),FALSE))/VLOOKUP(VALUE(RIGHT(N$3,4)),Init!$M:$O,3,FALSE),3) -> 0 | O6: =ROUND((VLOOKUP($B6,I_ER_other!$B:$VK,MATCH(VALUE(RIGHT(O$3,4)),I_ER_other!$B$2:$VK$2,0),FALSE)+VLOOKUP($B6,I_ER!$B:$VK,MATCH(VALUE(RIGHT(O$3,4)),I_ER!$B$2:$VK$2,0),FALSE))/VLOOKUP(VALUE(RIGHT(O$3,4)),Init!$M:$O,3,FALSE),3) -> 0 | P6: =ROUND((VLOOKUP($B6,I_ER_other!$B:$VK,MATCH(VALUE(RIGHT(P$3,4)),I_ER_other!$B$2:$VK$2,0),FALSE)+VLOOKUP($B6,I_ER!$B:$VK,MATCH(VALUE(RIGHT(P$3,4)),I_ER!$B$2:$VK$2,0),FALSE))/VLOOKUP(VALUE(RIGHT(P$3,4)),Init!$M:$O,3,FALSE),3) -> 0 | Q6: =+N6*VLOOKUP(VALUE(RIGHT(Q$3,4)),Init!$M:$O,3,FALSE) -> 0 | R6: =+O6*VLOOKUP(VALUE(RIGHT(R$3,4)),Init!$M:$O,3,FALSE) -> 0 | S6: =+P6*VLOOKUP(VALUE(RIGHT(S$3,4)),Init!$M:$O,3,FALSE) -> 0 | T6: =MAX(IF(AND(Init!$C$14="Yes",Init!$S7=0),ROUND(VLOOKUP($B6,Init!$Q:$GE,MATCH(T$3,Init!$Q$4:$GE$4,0),FALSE),3),IF($B6=10298,SUMPRODUCT(T$4:T5,$E$4:$E5),ROUND(H6-N6-K6,3))),0) -> 74.805 | U6: =MAX(IF(AND(Init!$C$14="Yes",Init!$S7=0),ROUND(VLOOKUP($B6,Init!$Q:$GE,MATCH(U$3,Init!$Q$4:$GE$4,0),FALSE),3),IF($B6=10298,SUMPRODUCT(U$4:U5,$E$4:$E5),ROUND(I6-O6-L6,3))),0) -> 75.47 | V6: =MAX(IF(AND(Init!$C$14="Yes",Init!$S7=0),ROUND(VLOOKUP($B6,Init!$Q:$GE,MATCH(V$3,Init!$Q$4:$GE$4,0),FALSE),3),IF($B6=10298,SUMPRODUCT(V$4:V5,$E$4:$E5),ROUND(J6-P6-M6,3))),0) -> 75.931 | W6: =+T6*VLOOKUP(VALUE(RIGHT(W$3,4)),Init!$M:$O,3,FALSE) -> 655291.8 | X6: =+U6*VLOOKUP(VALUE(RIGHT(X$3,4)),Init!$M:$O,3,FALSE) -> 661117.2 | Y6: =+V6*VLOOKUP(VALUE(RIGHT(Y$3,4)),Init!$M:$O,3,FALSE) -> 666977.904 | Z6: =IF(Init!$C$14="Yes",VLOOKUP($B6,Init!$Q:$GE,MATCH(Z$3,Init!$Q$4:$GE$4,0),FALSE),IF($B6=10298,SUMPRODUCT($E$4:$E5,Z$4:Z5),ROUND(RT1SC!$J$11*(G6/SUMPRODUCT($D$4:$D$170,$G$4:$G$170)),3))) -> 60.003 | AA6: =$Z6*VLOOKUP(VALUE(RIGHT(AA$3,4)),Init!$M:$O,3,FALSE) -> 525626.28 | AB6: =$Z6*VLOOKUP(VALUE(RIGHT(AB$3,4)),Init!$M:$O,3,FALSE) -> 525626.28 | AC6: =$Z6*VLOOKUP(VALUE(RIGHT(AC$3,4)),Init!$M:$O,3,FALSE) -> 527066.352 | AD6: =IF(Init!$C$14="Yes",VLOOKUP($B6,Init!$Q:$GE,MATCH(AD$3,Init!$Q$4:$GE$4,0),FALSE),IF($B6=10298,SUMPRODUCT(AD$4:AD5,$E$4:$E5),ROUND(MAX(T6-$Z6,0),3))) -> 14.802 | AE6: =IF(Init!$C$14="Yes",VLOOKUP($B6,Init!$Q:$GE,MATCH(AE$3,Init!$Q$4:$GE$4,0),FALSE),IF($B6=10298,SUMPRODUCT(AE$4:AE5,$E$4:$E5),ROUND(MAX(U6-$Z6,0),3))) -> 15.467 | AF6: =IF(Init!$C$14="Yes",VLOOKUP($B6,Init!$Q:$GE,MATCH(AF$3,Init!$Q$4:$GE$4,0),FALSE),IF($B6=10298,SUMPRODUCT(AF$4:AF5,$E$4:$E5),ROUND(MAX(V6-$Z6,0),3))) -> 15.928 | AG6: 14.802 | AH6: 15.467 | AI6: 15.928 | AJ6: 0 | AK6: 0 | AL6: 0 | AM6: =+VLOOKUP($B6,Init!$Q:$GE,MATCH(AM$3,Init!$Q$4:$GE$4,0),FALSE) -> 0 | AN6: =+VLOOKUP($B6,Init!$Q:$GE,MATCH(AN$3,Init!$Q$4:$GE$4,0),FALSE) -> 0 | AO6: =+VLOOKUP($B6,Init!$Q:$GE,MATCH(AO$3,Init!$Q$4:$GE$4,0),FALSE) -> 0 | AP6: 14.802 | AQ6: 15.467 | AR6: 15.928 | AS6: =IF($B6=10298,ROUND(SUMPRODUCT($E$4:$E5,AS$4:AS5),7),ROUND(MIN(T6,$Z6)/SUMPRODUCT($D$4:$D$170,$Z$4:$Z$170),7)) -> 0.0084398 | AT6: =IF($B6=10298,ROUND(SUMPRODUCT($E$4:$E5,AT$4:AT5),7),ROUND(MIN(U6,$Z6)/SUMPRODUCT($D$4:$D$170,$Z$4:$Z$170),7)) -> 0.0084398 | AU6: =IF($B6=10298,ROUND(SUMPRODUCT($E$4:$E5,AU$4:AU5),7),ROUND(MIN(V6,$Z6)/SUMPRODUCT($D$4:$D$170,$Z$4:$Z$170),7)) -> 0.0084398 | AV6: =ROUND(VLOOKUP($B6,Init!$Q:$GF,MATCH(Init!$AF$4,Init!$Q$4:$GF$4,0),FALSE)*(ROUND((SUMPRODUCT($D$4:$D$137,$F$4:$F$137)/SUMPRODUCT($D$4:$D$137,$G$4:$G$137)),5)),7) -> 0 | AW6: 0.0084398 | AX6: 0.0084398 | AY6: 0.0084398 | AZ6: 0.0084398 | BA6: =+IF($B6="","",IF(Init!$C$14="Yes",VLOOKUP($B6,Init!$Q:$GE,MATCH(BA$3,Init!$Q$4:$GE$4,0),FALSE),MIN(1,(AS6*RT1SC!$J$11+N6)/(H6-K6)))) -> 0.8021281595 | BB6: =+IF($B6="","",IF(Init!$C$14="Yes",VLOOKUP($B6,Init!$Q:$GE,MATCH(BB$3,Init!$Q$4:$GE$4,0),FALSE),MIN(1,(AT6*RT1SC!$J$11+O6)/(I6-L6)))) -> 0.7950602487 | BC6: =+IF($B6="","",IF(Init!$C$14="Yes",VLOOKUP($B6,Init!$Q:$GE,MATCH(BC$3,Init!$Q$4:$GE$4,0),FALSE),MIN(1,(AU6*RT1SC!$J$11+P6)/(J6-M6)))) -> 0.7902331982 | BD6: 1.246687666 | BE6: 1.257770445 | BF6: 1.265453394 | BG6: =+VLOOKUP($B6,Init!$Q:$GE,MATCH(Init!$FQ$4,Init!$Q$4:$GE$4,0),FALSE)*BD6 -> 0.06856782161 | BH6: =+VLOOKUP($B6,Init!$Q:$GE,MATCH(Init!$FQ$4,Init!$Q$4:$GE$4,0),FALSE)*BE6 -> 0.06917737446 | BI6: =+VLOOKUP($B6,Init!$Q:$GE,MATCH(Init!$FQ$4,Init!$Q$4:$GE$4,0),FALSE)*BF6 -> 0.06959993667 | BJ6: =+VLOOKUP($B6,Init!$Q:$GE,MATCH(BJ$3,Init!$Q$4:$GE$4,0),FALSE) -> 1 | BK6: =+VLOOKUP($B6,Init!$Q:$GE,MATCH(BK$3,Init!$Q$4:$GE$4,0),FALSE) -> 3 | BL6: =+VLOOKUP($B6,Init!$Q:$GE,MATCH(BL$3,Init!$Q$4:$GE$4,0),FALSE) -> 3 | BM6: =+VLOOKUP($B6,Init!$Q:$GE,MATCH(BM$3,Init!$Q$4:$GE$4,0),FALSE) -> 0 | BN6: =+VLOOKUP($B6,Init!$Q:$GE,MATCH(BN$3,Init!$Q$4:$GE$4,0),FALSE) -> 13.809 | BO6: =+VLOOKUP($B6,Init!$Q:$GE,MATCH(BO$3,Init!$Q$4:$GE$4,0),FALSE) -> 13.809 | BP6: 14.802 | BQ6: 1.658 | BR6: 2.119 | BS6: =ROUND((VLOOKUP($B6,I_NR!$B:$VK,MATCH(VALUE(RIGHT(BS$3,4)),I_NR!$B$2:$VK$2,0),FALSE)/VLOOKUP(VALUE(RIGHT(BS$3,4)),Init!$M:$O,3,FALSE)),3) -> 0 | BT6: =ROUND((VLOOKUP($B6,I_NR!$B:$VK,MATCH(VALUE(RIGHT(BT$3,4)),I_NR!$B$2:$VK$2,0),FALSE)/VLOOKUP(VALUE(RIGHT(BT$3,4)),Init!$M:$O,3,FALSE)),3) -> 0 | BU6: =ROUND((VLOOKUP($B6,I_NR!$B:$VK,MATCH(VALUE(RIGHT(BU$3,4)),I_NR!$B$2:$VK$2,0),FALSE)/VLOOKUP(VALUE(RIGHT(BU$3,4)),Init!$M:$O,3,FALSE)),3) -> 0 | BV6: 0 | BW6: 0 | BX6: 0 | BY6: 0 | BZ6: 0 | CA6: 0 | CB6: =IF(VLOOKUP($B6,Init!$Q:$S,3,FALSE)=0,MIN(BV6+BP6,0),0) -> 0 | CC6: =IF(VLOOKUP($B6,Init!$Q:$S,3,FALSE)=0,MIN(BW6+BQ6,0),0) -> 0 | CD6: =IF(VLOOKUP($B6,Init!$Q:$S,3,FALSE)=0,MIN(BX6+BR6,0),0) -> 0 | CE6: =ROUND(AS6*RT1SC!$J$11+BP6+AJ6+BY6,3) -> 74.805 | CF6: =ROUND(AT6*RT1SC!$J$11+BQ6+AK6+BZ6,3) -> 61.661 | CG6: =ROUND(AU6*RT1SC!$J$11+BR6+AL6+CA6,3) -> 62.122 | CH6: =+VLOOKUP($B6,Init!$Q:$GF,MATCH(CH$3,Init!$Q$4:$GF$4,0),FALSE) -> 0
B7: 10027 | C7: Big Bend Elec Coop | D7: 1 | E7: =+VLOOKUP($B7,Init!$Q:$T,4,FALSE) -> 0 | F7: =+VLOOKUP($B7,Init!$Q:$GE,MATCH(F$3,Init!$Q$4:$GE$4,0),FALSE) -> 62.107 | G7: =+$F7+VLOOKUP($B7,Init!$Q:$GF,MATCH("RHWM Aug "&VALUE(RIGHT(G$3,4)),Init!$Q$4:$GF$4,0),FALSE) -> 62.107 | H7: =ROUND(VLOOKUP($B7,I_TRL!$B$2:$VK$137,MATCH(VALUE(RIGHT(H$3,4)),I_TRL!$B$2:$VK$2,0),FALSE)/VLOOKUP(VALUE(RIGHT(H$3,4)),Init!$M:$O,3,FALSE),3) -> 72.558 | I7: =ROUND(VLOOKUP($B7,I_TRL!$B:$VK,MATCH(VALUE(RIGHT(I$3,4)),I_TRL!$B$2:$VK$2,0),FALSE)/VLOOKUP(VALUE(RIGHT(I$3,4)),Init!$M:$O,3,FALSE),3) -> 73.884 | J7: =ROUND(VLOOKUP($B7,I_TRL!$B:$VK,MATCH(VALUE(RIGHT(J$3,4)),I_TRL!$B$2:$VK$2,0),FALSE)/VLOOKUP(VALUE(RIGHT(J$3,4)),Init!$M:$O,3,FALSE),3) -> 75.005 | K7: =ROUND(VLOOKUP($B7,I_NLSL!$B:$VK,MATCH(VALUE(RIGHT(K$3,4)),I_NLSL!$B$2:$VK$2,0),FALSE)/VLOOKUP(VALUE(RIGHT(K$3,4)),Init!$M:$O,3,FALSE),3) -> 0 | L7: =ROUND(VLOOKUP($B7,I_NLSL!$B:$VK,MATCH(VALUE(RIGHT(L$3,4)),I_NLSL!$B$2:$VK$2,0),FALSE)/VLOOKUP(VALUE(RIGHT(L$3,4)),Init!$M:$O,3,FALSE),3) -> 0 | M7: =ROUND(VLOOKUP($B7,I_NLSL!$B:$VK,MATCH(VALUE(RIGHT(M$3,4)),I_NLSL!$B$2:$VK$2,0),FALSE)/VLOOKUP(VALUE(RIGHT(M$3,4)),Init!$M:$O,3,FALSE),3) -> 0 | N7: =ROUND((VLOOKUP($B7,I_ER_other!$B:$VK,MATCH(VALUE(RIGHT(N$3,4)),I_ER_other!$B$2:$VK$2,0),FALSE)+VLOOKUP($B7,I_ER!$B:$VK,MATCH(VALUE(RIGHT(N$3,4)),I_ER!$B$2:$VK$2,0),FALSE))/VLOOKUP(VALUE(RIGHT(N$3,4)),Init!$M:$O,3,FALSE),3) -> 0 | O7: =ROUND((VLOOKUP($B7,I_ER_other!$B:$VK,MATCH(VALUE(RIGHT(O$3,4)),I_ER_other!$B$2:$VK$2,0),FALSE)+VLOOKUP($B7,I_ER!$B:$VK,MATCH(VALUE(RIGHT(O$3,4)),I_ER!$B$2:$VK$2,0),FALSE))/VLOOKUP(VALUE(RIGHT(O$3,4)),Init!$M:$O,3,FALSE),3) -> 0 | P7: =ROUND((VLOOKUP($B7,I_ER_other!$B:$VK,MATCH(VALUE(RIGHT(P$3,4)),I_ER_other!$B$2:$VK$2,0),FALSE)+VLOOKUP($B7,I_ER!$B:$VK,MATCH(VALUE(RIGHT(P$3,4)),I_ER!$B$2:$VK$2,0),FALSE))/VLOOKUP(VALUE(RIGHT(P$3,4)),Init!$M:$O,3,FALSE),3) -> 0 | Q7: =+N7*VLOOKUP(VALUE(RIGHT(Q$3,4)),Init!$M:$O,3,FALSE) -> 0 | R7: =+O7*VLOOKUP(VALUE(RIGHT(R$3,4)),Init!$M:$O,3,FALSE) -> 0 | S7: =+P7*VLOOKUP(VALUE(RIGHT(S$3,4)),Init!$M:$O,3,FALSE) -> 0 | T7: =MAX(IF(AND(Init!$C$14="Yes",Init!$S8=0),ROUND(VLOOKUP($B7,Init!$Q:$GE,MATCH(T$3,Init!$Q$4:$GE$4,0),FALSE),3),IF($B7=10298,SUMPRODUCT(T$4:T6,$E$4:$E6),ROUND(H7-N7-K7,3))),0) -> 72.558 | U7: =MAX(IF(AND(Init!$C$14="Yes",Init!$S8=0),ROUND(VLOOKUP($B7,Init!$Q:$GE,MATCH(U$3,Init!$Q$4:$GE$4,0),FALSE),3),IF($B7=10298,SUMPRODUCT(U$4:U6,$E$4:$E6),ROUND(I7-O7-L7,3))),0) -> 73.884 | V7: =MAX(IF(AND(Init!$C$14="Yes",Init!$S8=0),ROUND(VLOOKUP($B7,Init!$Q:$GE,MATCH(V$3,Init!$Q$4:$GE$4,0),FALSE),3),IF($B7=10298,SUMPRODUCT(V$4:V6,$E$4:$E6),ROUND(J7-P7-M7,3))),0) -> 75.005 | W7: =+T7*VLOOKUP(VALUE(RIGHT(W$3,4)),Init!$M:$O,3,FALSE) -> 635608.08 | X7: =+U7*VLOOKUP(VALUE(RIGHT(X$3,4)),Init!$M:$O,3,FALSE) -> 647223.84 | Y7: =+V7*VLOOKUP(VALUE(RIGHT(Y$3,4)),Init!$M:$O,3,FALSE) -> 658843.92 | Z7: =IF(Init!$C$14="Yes",VLOOKUP($B7,Init!$Q:$GE,MATCH(Z$3,Init!$Q$4:$GE$4,0),FALSE),IF($B7=10298,SUMPRODUCT($E$4:$E6,Z$4:Z6),ROUND(RT1SC!$J$11*(G7/SUMPRODUCT($D$4:$D$170,$G$4:$G$170)),3))) -> 61.547 | AA7: =$Z7*VLOOKUP(VALUE(RIGHT(AA$3,4)),Init!$M:$O,3,FALSE) -> 539151.72 | AB7: =$Z7*VLOOKUP(VALUE(RIGHT(AB$3,4)),Init!$M:$O,3,FALSE) -> 539151.72 | AC7: =$Z7*VLOOKUP(VALUE(RIGHT(AC$3,4)),Init!$M:$O,3,FALSE) -> 540628.848 | AD7: =IF(Init!$C$14="Yes",VLOOKUP($B7,Init!$Q:$GE,MATCH(AD$3,Init!$Q$4:$GE$4,0),FALSE),IF($B7=10298,SUMPRODUCT(AD$4:AD6,$E$4:$E6),ROUND(MAX(T7-$Z7,0),3))) -> 11.011 | AE7: =IF(Init!$C$14="Yes",VLOOKUP($B7,Init!$Q:$GE,MATCH(AE$3,Init!$Q$4:$GE$4,0),FALSE),IF($B7=10298,SUMPRODUCT(AE$4:AE6,$E$4:$E6),ROUND(MAX(U7-$Z7,0),3))) -> 12.337 | AF7: =IF(Init!$C$14="Yes",VLOOKUP($B7,Init!$Q:$GE,MATCH(AF$3,Init!$Q$4:$GE$4,0),FALSE),IF($B7=10298,SUMPRODUCT(AF$4:AF6,$E$4:$E6),ROUND(MAX(V7-$Z7,0),3))) -> 13.458 | AG7: 11.011 | AH7: 12.337 | AI7: 13.458 | AJ7: 0 | AK7: 0 | AL7: 0 | AM7: =+VLOOKUP($B7,Init!$Q:$GE,MATCH(AM$3,Init!$Q$4:$GE$4,0),FALSE) -> 0 | AN7: =+VLOOKUP($B7,Init!$Q:$GE,MATCH(AN$3,Init!$Q$4:$GE$4,0),FALSE) -> 0 | AO7: =+VLOOKUP($B7,Init!$Q:$GE,MATCH(AO$3,Init!$Q$4:$GE$4,0),FALSE) -> 0 | AP7: 11.011 | AQ7: 12.337 | AR7: 13.458 | AS7: =IF($B7=10298,ROUND(SUMPRODUCT($E$4:$E6,AS$4:AS6),7),ROUND(MIN(T7,$Z7)/SUMPRODUCT($D$4:$D$170,$Z$4:$Z$170),7)) -> 0.0086569 | AT7: =IF($B7=10298,ROUND(SUMPRODUCT($E$4:$E6,AT$4:AT6),7),ROUND(MIN(U7,$Z7)/SUMPRODUCT($D$4:$D$170,$Z$4:$Z$170),7)) -> 0.0086569 | AU7: =IF($B7=10298,ROUND(SUMPRODUCT($E$4:$E6,AU$4:AU6),7),ROUND(MIN(V7,$Z7)/SUMPRODUCT($D$4:$D$170,$Z$4:$Z$170),7)) -> 0.0086569 | AV7: =ROUND(VLOOKUP($B7,Init!$Q:$GF,MATCH(Init!$AF$4,Init!$Q$4:$GF$4,0),FALSE)*(ROUND((SUMPRODUCT($D$4:$D$137,$F$4:$F$137)/SUMPRODUCT($D$4:$D$137,$G$4:$G$137)),5)),7) -> 0 | AW7: 0.0086569 | AX7: 0.0086569 | AY7: 0.0086569 | AZ7: 0.0086569 | BA7: =+IF($B7="","",IF(Init!$C$14="Yes",VLOOKUP($B7,Init!$Q:$GE,MATCH(BA$3,Init!$Q$4:$GE$4,0),FALSE),MIN(1,(AS7*RT1SC!$J$11+N7)/(H7-K7)))) -> 0.848241141 | BB7: =+IF($B7="","",IF(Init!$C$14="Yes",VLOOKUP($B7,Init!$Q:$GE,MATCH(BB$3,Init!$Q$4:$GE$4,0),FALSE),MIN(1,(AT7*RT1SC!$J$11+O7)/(I7-L7)))) -> 0.833017713 | BC7: =+IF($B7="","",IF(Init!$C$14="Yes",VLOOKUP($B7,Init!$Q:$GE,MATCH(BC$3,Init!$Q$4:$GE$4,0),FALSE),MIN(1,(AU7*RT1SC!$J$11+P7)/(J7-M7)))) -> 0.8205677049 | BD7: 1.178903927 | BE7: 1.200448438 | BF7: 1.218662161 | BG7: =+VLOOKUP($B7,Init!$Q:$GE,MATCH(Init!$FQ$4,Init!$Q$4:$GE$4,0),FALSE)*BD7 -> 0.0825232749 | BH7: =+VLOOKUP($B7,Init!$Q:$GE,MATCH(Init!$FQ$4,Init!$Q$4:$GE$4,0),FALSE)*BE7 -> 0.08403139064 | BI7: =+VLOOKUP($B7,Init!$Q:$GE,MATCH(Init!$FQ$4,Init!$Q$4:$GE$4,0),FALSE)*BF7 -> 0.08530635124 | BJ7: =+VLOOKUP($B7,Init!$Q:$GE,MATCH(BJ$3,Init!$Q$4:$GE$4,0),FALSE) -> 3 | BK7: =+VLOOKUP($B7,Init!$Q:$GE,MATCH(BK$3,Init!$Q$4:$GE$4,0),FALSE) -> 3 | BL7: =+VLOOKUP($B7,Init!$Q:$GE,MATCH(BL$3,Init!$Q$4:$GE$4,0),FALSE) -> 3 | BM7: =+VLOOKUP($B7,Init!$Q:$GE,MATCH(BM$3,Init!$Q$4:$GE$4,0),FALSE) -> 6 | BN7: =+VLOOKUP($B7,Init!$Q:$GE,MATCH(BN$3,Init!$Q$4:$GE$4,0),FALSE) -> 8.871 | BO7: =+VLOOKUP($B7,Init!$Q:$GE,MATCH(BO$3,Init!$Q$4:$GE$4,0),FALSE) -> 8.871 | BP7: 5.011 | BQ7: 3.466 | BR7: 4.587 | BS7: =ROUND((VLOOKUP($B7,I_NR!$B:$VK,MATCH(VALUE(RIGHT(BS$3,4)),I_NR!$B$2:$VK$2,0),FALSE)/VLOOKUP(VALUE(RIGHT(BS$3,4)),Init!$M:$O,3,FALSE)),3) -> 0 | BT7: =ROUND((VLOOKUP($B7,I_NR!$B:$VK,MATCH(VALUE(RIGHT(BT$3,4)),I_NR!$B$2:$VK$2,0),FALSE)/VLOOKUP(VALUE(RIGHT(BT$3,4)),Init!$M:$O,3,FALSE)),3) -> 0 | BU7: =ROUND((VLOOKUP($B7,I_NR!$B:$VK,MATCH(VALUE(RIGHT(BU$3,4)),I_NR!$B$2:$VK$2,0),FALSE)/VLOOKUP(VALUE(RIGHT(BU$3,4)),Init!$M:$O,3,FALSE)),3) -> 0 | BV7: 0 | BW7: 0 | BX7: 0 | BY7: 0 | BZ7: 0 | CA7: 0 | CB7: =IF(VLOOKUP($B7,Init!$Q:$S,3,FALSE)=0,MIN(BV7+BP7,0),0) -> 0 | CC7: =IF(VLOOKUP($B7,Init!$Q:$S,3,FALSE)=0,MIN(BW7+BQ7,0),0) -> 0 | CD7: =IF(VLOOKUP($B7,Init!$Q:$S,3,FALSE)=0,MIN(BX7+BR7,0),0) -> 0 | CE7: =ROUND(AS7*RT1SC!$J$11+BP7+AJ7+BY7,3) -> 66.558 | CF7: =ROUND(AT7*RT1SC!$J$11+BQ7+AK7+BZ7,3) -> 65.013 | CG7: =ROUND(AU7*RT1SC!$J$11+BR7+AL7+CA7,3) -> 66.134 | CH7: =+VLOOKUP($B7,Init!$Q:$GF,MATCH(CH$3,Init!$Q$4:$GF$4,0),FALSE) -> 0
... 8 more rows

Sheet AboveHWM
B1: Above RHWM Load Calculation (MWh)
A2: TOC | D2: =+DATE(Init!$C$9-1,10,1) -> 2025-10-01 | E2: =+IF(E3="HLH",EOMONTH(D2,0)+1,D2) -> 2025-10-01 | F2: =+IF(F3="HLH",EOMONTH(E2,0)+1,E2) -> 2025-11-01 | G2: 2025-11-01 | H2: 2025-12-01 | I2: 2025-12-01 | J2: 2026-01-01 | K2: 2026-01-01 | L2: 2026-02-01 | M2: 2026-02-01 | N2: 2026-03-01 | O2: 2026-03-01 | P2: 2026-04-01 | Q2: 2026-04-01 | R2: 2026-05-01 | S2: 2026-05-01 | T2: 2026-06-01 | U2: 2026-06-01 | V2: 2026-07-01 | W2: 2026-07-01 | X2: 2026-08-01 | Y2: 2026-08-01 | Z2: 2026-09-01 | AA2: 2026-09-01 | AB2: 2026-10-01 | AC2: 2026-10-01 | AD2: 2026-11-01 | AE2: 2026-11-01 | AF2: 2026-12-01 | AG2: 2026-12-01 | AH2: 2027-01-01 | AI2: 2027-01-01 | AJ2: 2027-02-01 | AK2: 2027-02-01 | AL2: 2027-03-01 | AM2: 2027-03-01 | AN2: 2027-04-01 | AO2: 2027-04-01 | AP2: 2027-05-01 | AQ2: 2027-05-01 | AR2: 2027-06-01 | AS2: 2027-06-01 | AT2: 2027-07-01 | AU2: 2027-07-01 | AV2: 2027-08-01 | AW2: 2027-08-01 | AX2: =+IF(AX3="HLH",EOMONTH(AW2,0)+1,AW2) -> 2027-09-01 | AY2: =+IF(AY3="HLH",EOMONTH(AX2,0)+1,AX2) -> 2027-09-01 | AZ2: =+IF(AZ3="HLH",EOMONTH(AY2,0)+1,AY2) -> 2027-10-01 | BA2: =+IF(BA3="HLH",EOMONTH(AZ2,0)+1,AZ2) -> 2027-10-01 | BB2: =+IF(BB3="HLH",EOMONTH(BA2,0)+1,BA2) -> 2027-11-01 | BC2: =+IF(BC3="HLH",EOMONTH(BB2,0)+1,BB2) -> 2027-11-01 | BD2: =+IF(BD3="HLH",EOMONTH(BC2,0)+1,BC2) -> 2027-12-01 | BE2: =+IF(BE3="HLH",EOMONTH(BD2,0)+1,BD2) -> 2027-12-01 | BF2: =+IF(BF3="HLH",EOMONTH(BE2,0)+1,BE2) -> 2028-01-01 | BG2: =+IF(BG3="HLH",EOMONTH(BF2,0)+1,BF2) -> 2028-01-01 | BH2: =+IF(BH3="HLH",EOMONTH(BG2,0)+1,BG2) -> 2028-02-01 | BI2: =+IF(BI3="HLH",EOMONTH(BH2,0)+1,BH2) -> 2028-02-01 | BJ2: =+IF(BJ3="HLH",EOMONTH(BI2,0)+1,BI2) -> 2028-03-01 | BK2: =+IF(BK3="HLH",EOMONTH(BJ2,0)+1,BJ2) -> 2028-03-01 | BL2: =+IF(BL3="HLH",EOMONTH(BK2,0)+1,BK2) -> 2028-04-01 | BM2: =+IF(BM3="HLH",EOMONTH(BL2,0)+1,BL2) -> 2028-04-01 | BN2: =+IF(BN3="HLH",EOMONTH(BM2,0)+1,BM2) -> 2028-05-01 | BO2: =+IF(BO3="HLH",EOMONTH(BN2,0)+1,BN2) -> 2028-05-01 | BP2: =+IF(BP3="HLH",EOMONTH(BO2,0)+1,BO2) -> 2028-06-01 | BQ2: =+IF(BQ3="HLH",EOMONTH(BP2,0)+1,BP2) -> 2028-06-01 | BR2: =+IF(BR3="HLH",EOMONTH(BQ2,0)+1,BQ2) -> 2028-07-01 | BS2: =+IF(BS3="HLH",EOMONTH(BR2,0)+1,BR2) -> 2028-07-01 | BT2: =+IF(BT3="HLH",EOMONTH(BS2,0)+1,BS2) -> 2028-08-01 | BU2: =+IF(BU3="HLH",EOMONTH(BT2,0)+1,BT2) -> 2028-08-01 | BV2: =+IF(BV3="HLH",EOMONTH(BU2,0)+1,BU2) -> 2028-09-01 | BW2: =+IF(BW3="HLH",EOMONTH(BV2,0)+1,BV2) -> 2028-09-01
B3: BESID | C3: AccountName | D3: HLH | E3: LLH | F3: HLH | G3: LLH | H3: HLH | I3: LLH | J3: HLH | K3: LLH | L3: HLH | M3: LLH | N3: HLH | O3: LLH | P3: HLH | Q3: LLH | R3: HLH | S3: LLH | T3: HLH | U3: LLH | V3: HLH | W3: LLH | X3: HLH | Y3: LLH | Z3: HLH | AA3: LLH | AB3: HLH | AC3: LLH | AD3: HLH | AE3: LLH | AF3: HLH | AG3: LLH | AH3: HLH | AI3: LLH | AJ3: HLH | AK3: LLH | AL3: HLH | AM3: LLH | AN3: HLH | AO3: LLH | AP3: HLH | AQ3: LLH | AR3: HLH | AS3: LLH | AT3: HLH | AU3: LLH | AV3: HLH | AW3: LLH | AX3: HLH | AY3: LLH | AZ3: HLH | BA3: LLH | BB3: HLH | BC3: LLH | BD3: HLH | BE3: LLH | BF3: HLH | BG3: LLH | BH3: HLH | BI3: LLH | BJ3: HLH | BK3: LLH | BL3: HLH | BM3: LLH | BN3: HLH | BO3: LLH | BP3: HLH | BQ3: LLH | BR3: HLH | BS3: LLH | BT3: HLH | BU3: LLH | BV3: HLH | BW3: LLH
B4: 10015 | C4: Asotin County PUD #1 | D4: =+IF(D$2<$AB$2,TOCA!$AD4-TOCA!$AJ4,IF(AND(D$2>=$AB$2,D$2<$AZ$2),TOCA!$AE4-TOCA!$AK4,TOCA!$AF4-TOCA!$AL4))*VLOOKUP(D$2,Init!$F:$K,MATCH(D$3,Init!$F$4:$K$4,0),FALSE) -> 0 | E4: =+IF(E$2<$AB$2,TOCA!$AD4-TOCA!$AJ4,IF(AND(E$2>=$AB$2,E$2<$AZ$2),TOCA!$AE4-TOCA!$AK4,TOCA!$AF4-TOCA!$AL4))*VLOOKUP(E$2,Init!$F:$K,MATCH(E$3,Init!$F$4:$K$4,0),FALSE) -> 0 | F4: =+IF(F$2<$AB$2,TOCA!$AD4-TOCA!$AJ4,IF(AND(F$2>=$AB$2,F$2<$AZ$2),TOCA!$AE4-TOCA!$AK4,TOCA!$AF4-TOCA!$AL4))*VLOOKUP(F$2,Init!$F:$K,MATCH(F$3,Init!$F$4:$K$4,0),FALSE) -> 0 | G4: =+IF(G$2<$AB$2,TOCA!$AD4-TOCA!$AJ4,IF(AND(G$2>=$AB$2,G$2<$AZ$2),TOCA!$AE4-TOCA!$AK4,TOCA!$AF4-TOCA!$AL4))*VLOOKUP(G$2,Init!$F:$K,MATCH(G$3,Init!$F$4:$K$4,0),FALSE) -> 0 | H4: =+IF(H$2<$AB$2,TOCA!$AD4-TOCA!$AJ4,IF(AND(H$2>=$AB$2,H$2<$AZ$2),TOCA!$AE4-TOCA!$AK4,TOCA!$AF4-TOCA!$AL4))*VLOOKUP(H$2,Init!$F:$K,MATCH(H$3,Init!$F$4:$K$4,0),FALSE) -> 0 | I4: =+IF(I$2<$AB$2,TOCA!$AD4-TOCA!$AJ4,IF(AND(I$2>=$AB$2,I$2<$AZ$2),TOCA!$AE4-TOCA!$AK4,TOCA!$AF4-TOCA!$AL4))*VLOOKUP(I$2,Init!$F:$K,MATCH(I$3,Init!$F$4:$K$4,0),FALSE) -> 0 | J4: =+IF(J$2<$AB$2,TOCA!$AD4-TOCA!$AJ4,IF(AND(J$2>=$AB$2,J$2<$AZ$2),TOCA!$AE4-TOCA!$AK4,TOCA!$AF4-TOCA!$AL4))*VLOOKUP(J$2,Init!$F:$K,MATCH(J$3,Init!$F$4:$K$4,0),FALSE) -> 0 | K4: =+IF(K$2<$AB$2,TOCA!$AD4-TOCA!$AJ4,IF(AND(K$2>=$AB$2,K$2<$AZ$2),TOCA!$AE4-TOCA!$AK4,TOCA!$AF4-TOCA!$AL4))*VLOOKUP(K$2,Init!$F:$K,MATCH(K$3,Init!$F$4:$K$4,0),FALSE) -> 0 | L4: =+IF(L$2<$AB$2,TOCA!$AD4-TOCA!$AJ4,IF(AND(L$2>=$AB$2,L$2<$AZ$2),TOCA!$AE4-TOCA!$AK4,TOCA!$AF4-TOCA!$AL4))*VLOOKUP(L$2,Init!$F:$K,MATCH(L$3,Init!$F$4:$K$4,0),FALSE) -> 0 | M4: =+IF(M$2<$AB$2,TOCA!$AD4-TOCA!$AJ4,IF(AND(M$2>=$AB$2,M$2<$AZ$2),TOCA!$AE4-TOCA!$AK4,TOCA!$AF4-TOCA!$AL4))*VLOOKUP(M$2,Init!$F:$K,MATCH(M$3,Init!$F$4:$K$4,0),FALSE) -> 0 | N4: =+IF(N$2<$AB$2,TOCA!$AD4-TOCA!$AJ4,IF(AND(N$2>=$AB$2,N$2<$AZ$2),TOCA!$AE4-TOCA!$AK4,TOCA!$AF4-TOCA!$AL4))*VLOOKUP(N$2,Init!$F:$K,MATCH(N$3,Init!$F$4:$K$4,0),FALSE) -> 0 | O4: =+IF(O$2<$AB$2,TOCA!$AD4-TOCA!$AJ4,IF(AND(O$2>=$AB$2,O$2<$AZ$2),TOCA!$AE4-TOCA!$AK4,TOCA!$AF4-TOCA!$AL4))*VLOOKUP(O$2,Init!$F:$K,MATCH(O$3,Init!$F$4:$K$4,0),FALSE) -> 0 | P4: =+IF(P$2<$AB$2,TOCA!$AD4-TOCA!$AJ4,IF(AND(P$2>=$AB$2,P$2<$AZ$2),TOCA!$AE4-TOCA!$AK4,TOCA!$AF4-TOCA!$AL4))*VLOOKUP(P$2,Init!$F:$K,MATCH(P$3,Init!$F$4:$K$4,0),FALSE) -> 0 | Q4: =+IF(Q$2<$AB$2,TOCA!$AD4-TOCA!$AJ4,IF(AND(Q$2>=$AB$2,Q$2<$AZ$2),TOCA!$AE4-TOCA!$AK4,TOCA!$AF4-TOCA!$AL4))*VLOOKUP(Q$2,Init!$F:$K,MATCH(Q$3,Init!$F$4:$K$4,0),FALSE) -> 0 | R4: =+IF(R$2<$AB$2,TOCA!$AD4-TOCA!$AJ4,IF(AND(R$2>=$AB$2,R$2<$AZ$2),TOCA!$AE4-TOCA!$AK4,TOCA!$AF4-TOCA!$AL4))*VLOOKUP(R$2,Init!$F:$K,MATCH(R$3,Init!$F$4:$K$4,0),FALSE) -> 0 | S4: =+IF(S$2<$AB$2,TOCA!$AD4-TOCA!$AJ4,IF(AND(S$2>=$AB$2,S$2<$AZ$2),TOCA!$AE4-TOCA!$AK4,TOCA!$AF4-TOCA!$AL4))*VLOOKUP(S$2,Init!$F:$K,MATCH(S$3,Init!$F$4:$K$4,0),FALSE) -> 0 | T4: =+IF(T$2<$AB$2,TOCA!$AD4-TOCA!$AJ4,IF(AND(T$2>=$AB$2,T$2<$AZ$2),TOCA!$AE4-TOCA!$AK4,TOCA!$AF4-TOCA!$AL4))*VLOOKUP(T$2,Init!$F:$K,MATCH(T$3,Init!$F$4:$K$4,0),FALSE) -> 0 | U4: =+IF(U$2<$AB$2,TOCA!$AD4-TOCA!$AJ4,IF(AND(U$2>=$AB$2,U$2<$AZ$2),TOCA!$AE4-TOCA!$AK4,TOCA!$AF4-TOCA!$AL4))*VLOOKUP(U$2,Init!$F:$K,MATCH(U$3,Init!$F$4:$K$4,0),FALSE) -> 0 | V4: =+IF(V$2<$AB$2,TOCA!$AD4-TOCA!$AJ4,IF(AND(V$2>=$AB$2,V$2<$AZ$2),TOCA!$AE4-TOCA!$AK4,TOCA!$AF4-TOCA!$AL4))*VLOOKUP(V$2,Init!$F:$K,MATCH(V$3,Init!$F$4:$K$4,0),FALSE) -> 0 | W4: =+IF(W$2<$AB$2,TOCA!$AD4-TOCA!$AJ4,IF(AND(W$2>=$AB$2,W$2<$AZ$2),TOCA!$AE4-TOCA!$AK4,TOCA!$AF4-TOCA!$AL4))*VLOOKUP(W$2,Init!$F:$K,MATCH(W$3,Init!$F$4:$K$4,0),FALSE) -> 0 | X4: =+IF(X$2<$AB$2,TOCA!$AD4-TOCA!$AJ4,IF(AND(X$2>=$AB$2,X$2<$AZ$2),TOCA!$AE4-TOCA!$AK4,TOCA!$AF4-TOCA!$AL4))*VLOOKUP(X$2,Init!$F:$K,MATCH(X$3,Init!$F$4:$K$4,0),FALSE) -> 0 | Y4: =+IF(Y$2<$AB$2,TOCA!$AD4-TOCA!$AJ4,IF(AND(Y$2>=$AB$2,Y$2<$AZ$2),TOCA!$AE4-TOCA!$AK4,TOCA!$AF4-TOCA!$AL4))*VLOOKUP(Y$2,Init!$F:$K,MATCH(Y$3,Init!$F$4:$K$4,0),FALSE) -> 0 | Z4: =+IF(Z$2<$AB$2,TOCA!$AD4-TOCA!$AJ4,IF(AND(Z$2>=$AB$2,Z$2<$AZ$2),TOCA!$AE4-TOCA!$AK4,TOCA!$AF4-TOCA!$AL4))*VLOOKUP(Z$2,Init!$F:$K,MATCH(Z$3,Init!$F$4:$K$4,0),FALSE) -> 0 | AA4: =+IF(AA$2<$AB$2,TOCA!$AD4-TOCA!$AJ4,IF(AND(AA$2>=$AB$2,AA$2<$AZ$2),TOCA!$AE4-TOCA!$AK4,TOCA!$AF4-TOCA!$AL4))*VLOOKUP(AA$2,Init!$F:$K,MATCH(AA$3,Init!$F$4:$K$4,0),FALSE) -> 0 | AB4: =+IF(AB$2<$AB$2,TOCA!$AD4-TOCA!$AJ4,IF(AND(AB$2>=$AB$2,AB$2<$AZ$2),TOCA!$AE4-TOCA!$AK4,TOCA!$AF4-TOCA!$AL4))*VLOOKUP(AB$2,Init!$F:$K,MATCH(AB$3,Init!$F$4:$K$4,0),FALSE) -> 0 | AC4: =+IF(AC$2<$AB$2,TOCA!$AD4-TOCA!$AJ4,IF(AND(AC$2>=$AB$2,AC$2<$AZ$2),TOCA!$AE4-TOCA!$AK4,TOCA!$AF4-TOCA!$AL4))*VLOOKUP(AC$2,Init!$F:$K,MATCH(AC$3,Init!$F$4:$K$4,0),FALSE) -> 0 | AD4: =+IF(AD$2<$AB$2,TOCA!$AD4-TOCA!$AJ4,IF(AND(AD$2>=$AB$2,AD$2<$AZ$2),TOCA!$AE4-TOCA!$AK4,TOCA!$AF4-TOCA!$AL4))*VLOOKUP(AD$2,Init!$F:$K,MATCH(AD$3,Init!$F$4:$K$4,0),FALSE) -> 0 | AE4: =+IF(AE$2<$AB$2,TOCA!$AD4-TOCA!$AJ4,IF(AND(AE$2>=$AB$2,AE$2<$AZ$2),TOCA!$AE4-TOCA!$AK4,TOCA!$AF4-TOCA!$AL4))*VLOOKUP(AE$2,Init!$F:$K,MATCH(AE$3,Init!$F$4:$K$4,0),FALSE) -> 0 | AF4: =+IF(AF$2<$AB$2,TOCA!$AD4-TOCA!$AJ4,IF(AND(AF$2>=$AB$2,AF$2<$AZ$2),TOCA!$AE4-TOCA!$AK4,TOCA!$AF4-TOCA!$AL4))*VLOOKUP(AF$2,Init!$F:$K,MATCH(AF$3,Init!$F$4:$K$4,0),FALSE) -> 0 | AG4: =+IF(AG$2<$AB$2,TOCA!$AD4-TOCA!$AJ4,IF(AND(AG$2>=$AB$2,AG$2<$AZ$2),TOCA!$AE4-TOCA!$AK4,TOCA!$AF4-TOCA!$AL4))*VLOOKUP(AG$2,Init!$F:$K,MATCH(AG$3,Init!$F$4:$K$4,0),FALSE) -> 0 | AH4: =+IF(AH$2<$AB$2,TOCA!$AD4-TOCA!$AJ4,IF(AND(AH$2>=$AB$2,AH$2<$AZ$2),TOCA!$AE4-TOCA!$AK4,TOCA!$AF4-TOCA!$AL4))*VLOOKUP(AH$2,Init!$F:$K,MATCH(AH$3,Init!$F$4:$K$4,0),FALSE) -> 0 | AI4: =+IF(AI$2<$AB$2,TOCA!$AD4-TOCA!$AJ4,IF(AND(AI$2>=$AB$2,AI$2<$AZ$2),TOCA!$AE4-TOCA!$AK4,TOCA!$AF4-TOCA!$AL4))*VLOOKUP(AI$2,Init!$F:$K,MATCH(AI$3,Init!$F$4:$K$4,0),FALSE) -> 0 | AJ4: =+IF(AJ$2<$AB$2,TOCA!$AD4-TOCA!$AJ4,IF(AND(AJ$2>=$AB$2,AJ$2<$AZ$2),TOCA!$AE4-TOCA!$AK4,TOCA!$AF4-TOCA!$AL4))*VLOOKUP(AJ$2,Init!$F:$K,MATCH(AJ$3,Init!$F$4:$K$4,0),FALSE) -> 0 | AK4: =+IF(AK$2<$AB$2,TOCA!$AD4-TOCA!$AJ4,IF(AND(AK$2>=$AB$2,AK$2<$AZ$2),TOCA!$AE4-TOCA!$AK4,TOCA!$AF4-TOCA!$AL4))*VLOOKUP(AK$2,Init!$F:$K,MATCH(AK$3,Init!$F$4:$K$4,0),FALSE) -> 0 | AL4: =+IF(AL$2<$AB$2,TOCA!$AD4-TOCA!$AJ4,IF(AND(AL$2>=$AB$2,AL$2<$AZ$2),TOCA!$AE4-TOCA!$AK4,TOCA!$AF4-TOCA!$AL4))*VLOOKUP(AL$2,Init!$F:$K,MATCH(AL$3,Init!$F$4:$K$4,0),FALSE) -> 0 | AM4: =+IF(AM$2<$AB$2,TOCA!$AD4-TOCA!$AJ4,IF(AND(AM$2>=$AB$2,AM$2<$AZ$2),TOCA!$AE4-TOCA!$AK4,TOCA!$AF4-TOCA!$AL4))*VLOOKUP(AM$2,Init!$F:$K,MATCH(AM$3,Init!$F$4:$K$4,0),FALSE) -> 0 | AN4: =+IF(AN$2<$AB$2,TOCA!$AD4-TOCA!$AJ4,IF(AND(AN$2>=$AB$2,AN$2<$AZ$2),TOCA!$AE4-TOCA!$AK4,TOCA!$AF4-TOCA!$AL4))*VLOOKUP(AN$2,Init!$F:$K,MATCH(AN$3,Init!$F$4:$K$4,0),FALSE) -> 0 | AO4: =+IF(AO$2<$AB$2,TOCA!$AD4-TOCA!$AJ4,IF(AND(AO$2>=$AB$2,AO$2<$AZ$2),TOCA!$AE4-TOCA!$AK4,TOCA!$AF4-TOCA!$AL4))*VLOOKUP(AO$2,Init!$F:$K,MATCH(AO$3,Init!$F$4:$K$4,0),FALSE) -> 0 | AP4: =+IF(AP$2<$AB$2,TOCA!$AD4-TOCA!$AJ4,IF(AND(AP$2>=$AB$2,AP$2<$AZ$2),TOCA!$AE4-TOCA!$AK4,TOCA!$AF4-TOCA!$AL4))*VLOOKUP(AP$2,Init!$F:$K,MATCH(AP$3,Init!$F$4:$K$4,0),FALSE) -> 0 | AQ4: =+IF(AQ$2<$AB$2,TOCA!$AD4-TOCA!$AJ4,IF(AND(AQ$2>=$AB$2,AQ$2<$AZ$2),TOCA!$AE4-TOCA!$AK4,TOCA!$AF4-TOCA!$AL4))*VLOOKUP(AQ$2,Init!$F:$K,MATCH(AQ$3,Init!$F$4:$K$4,0),FALSE) -> 0 | AR4: =+IF(AR$2<$AB$2,TOCA!$AD4-TOCA!$AJ4,IF(AND(AR$2>=$AB$2,AR$2<$AZ$2),TOCA!$AE4-TOCA!$AK4,TOCA!$AF4-TOCA!$AL4))*VLOOKUP(AR$2,Init!$F:$K,MATCH(AR$3,Init!$F$4:$K$4,0),FALSE) -> 0 | AS4: =+IF(AS$2<$AB$2,TOCA!$AD4-TOCA!$AJ4,IF(AND(AS$2>=$AB$2,AS$2<$AZ$2),TOCA!$AE4-TOCA!$AK4,TOCA!$AF4-TOCA!$AL4))*VLOOKUP(AS$2,Init!$F:$K,MATCH(AS$3,Init!$F$4:$K$4,0),FALSE) -> 0 | AT4: =+IF(AT$2<$AB$2,TOCA!$AD4-TOCA!$AJ4,IF(AND(AT$2>=$AB$2,AT$2<$AZ$2),TOCA!$AE4-TOCA!$AK4,TOCA!$AF4-TOCA!$AL4))*VLOOKUP(AT$2,Init!$F:$K,MATCH(AT$3,Init!$F$4:$K$4,0),FALSE) -> 0 | AU4: =+IF(AU$2<$AB$2,TOCA!$AD4-TOCA!$AJ4,IF(AND(AU$2>=$AB$2,AU$2<$AZ$2),TOCA!$AE4-TOCA!$AK4,TOCA!$AF4-TOCA!$AL4))*VLOOKUP(AU$2,Init!$F:$K,MATCH(AU$3,Init!$F$4:$K$4,0),FALSE) -> 0 | AV4: =+IF(AV$2<$AB$2,TOCA!$AD4-TOCA!$AJ4,IF(AND(AV$2>=$AB$2,AV$2<$AZ$2),TOCA!$AE4-TOCA!$AK4,TOCA!$AF4-TOCA!$AL4))*VLOOKUP(AV$2,Init!$F:$K,MATCH(AV$3,Init!$F$4:$K$4,0),FALSE) -> 0 | AW4: =+IF(AW$2<$AB$2,TOCA!$AD4-TOCA!$AJ4,IF(AND(AW$2>=$AB$2,AW$2<$AZ$2),TOCA!$AE4-TOCA!$AK4,TOCA!$AF4-TOCA!$AL4))*VLOOKUP(AW$2,Init!$F:$K,MATCH(AW$3,Init!$F$4:$K$4,0),FALSE) -> 0 | AX4: =+IF(AX$2<$AB$2,TOCA!$AD4-TOCA!$AJ4,IF(AND(AX$2>=$AB$2,AX$2<$AZ$2),TOCA!$AE4-TOCA!$AK4,TOCA!$AF4-TOCA!$AL4))*VLOOKUP(AX$2,Init!$F:$K,MATCH(AX$3,Init!$F$4:$K$4,0),FALSE) -> 0 | AY4: =+IF(AY$2<$AB$2,TOCA!$AD4-TOCA!$AJ4,IF(AND(AY$2>=$AB$2,AY$2<$AZ$2),TOCA!$AE4-TOCA!$AK4,TOCA!$AF4-TOCA!$AL4))*VLOOKUP(AY$2,Init!$F:$K,MATCH(AY$3,Init!$F$4:$K$4,0),FALSE) -> 0 | AZ4: =+IF(AZ$2<$AB$2,TOCA!$AD4-TOCA!$AJ4,IF(AND(AZ$2>=$AB$2,AZ$2<$AZ$2),TOCA!$AE4-TOCA!$AK4,TOCA!$AF4-TOCA!$AL4))*VLOOKUP(AZ$2,Init!$F:$K,MATCH(AZ$3,Init!$F$4:$K$4,0),FALSE) -> 0 | BA4: =+IF(BA$2<$AB$2,TOCA!$AD4-TOCA!$AJ4,IF(AND(BA$2>=$AB$2,BA$2<$AZ$2),TOCA!$AE4-TOCA!$AK4,TOCA!$AF4-TOCA!$AL4))*VLOOKUP(BA$2,Init!$F:$K,MATCH(BA$3,Init!$F$4:$K$4,0),FALSE) -> 0 | BB4: =+IF(BB$2<$AB$2,TOCA!$AD4-TOCA!$AJ4,IF(AND(BB$2>=$AB$2,BB$2<$AZ$2),TOCA!$AE4-TOCA!$AK4,TOCA!$AF4-TOCA!$AL4))*VLOOKUP(BB$2,Init!$F:$K,MATCH(BB$3,Init!$F$4:$K$4,0),FALSE) -> 0 | BC4: =+IF(BC$2<$AB$2,TOCA!$AD4-TOCA!$AJ4,IF(AND(BC$2>=$AB$2,BC$2<$AZ$2),TOCA!$AE4-TOCA!$AK4,TOCA!$AF4-TOCA!$AL4))*VLOOKUP(BC$2,Init!$F:$K,MATCH(BC$3,Init!$F$4:$K$4,0),FALSE) -> 0 | BD4: =+IF(BD$2<$AB$2,TOCA!$AD4-TOCA!$AJ4,IF(AND(BD$2>=$AB$2,BD$2<$AZ$2),TOCA!$AE4-TOCA!$AK4,TOCA!$AF4-TOCA!$AL4))*VLOOKUP(BD$2,Init!$F:$K,MATCH(BD$3,Init!$F$4:$K$4,0),FALSE) -> 0 | BE4: =+IF(BE$2<$AB$2,TOCA!$AD4-TOCA!$AJ4,IF(AND(BE$2>=$AB$2,BE$2<$AZ$2),TOCA!$AE4-TOCA!$AK4,TOCA!$AF4-TOCA!$AL4))*VLOOKUP(BE$2,Init!$F:$K,MATCH(BE$3,Init!$F$4:$K$4,0),FALSE) -> 0 | BF4: =+IF(BF$2<$AB$2,TOCA!$AD4-TOCA!$AJ4,IF(AND(BF$2>=$AB$2,BF$2<$AZ$2),TOCA!$AE4-TOCA!$AK4,TOCA!$AF4-TOCA!$AL4))*VLOOKUP(BF$2,Init!$F:$K,MATCH(BF$3,Init!$F$4:$K$4,0),FALSE) -> 0 | BG4: =+IF(BG$2<$AB$2,TOCA!$AD4-TOCA!$AJ4,IF(AND(BG$2>=$AB$2,BG$2<$AZ$2),TOCA!$AE4-TOCA!$AK4,TOCA!$AF4-TOCA!$AL4))*VLOOKUP(BG$2,Init!$F:$K,MATCH(BG$3,Init!$F$4:$K$4,0),FALSE) -> 0 | BH4: =+IF(BH$2<$AB$2,TOCA!$AD4-TOCA!$AJ4,IF(AND(BH$2>=$AB$2,BH$2<$AZ$2),TOCA!$AE4-TOCA!$AK4,TOCA!$AF4-TOCA!$AL4))*VLOOKUP(BH$2,Init!$F:$K,MATCH(BH$3,Init!$F$4:$K$4,0),FALSE) -> 0 | BI4: =+IF(BI$2<$AB$2,TOCA!$AD4-TOCA!$AJ4,IF(AND(BI$2>=$AB$2,BI$2<$AZ$2),TOCA!$AE4-TOCA!$AK4,TOCA!$AF4-TOCA!$AL4))*VLOOKUP(BI$2,Init!$F:$K,MATCH(BI$3,Init!$F$4:$K$4,0),FALSE) -> 0 | BJ4: =+IF(BJ$2<$AB$2,TOCA!$AD4-TOCA!$AJ4,IF(AND(BJ$2>=$AB$2,BJ$2<$AZ$2),TOCA!$AE4-TOCA!$AK4,TOCA!$AF4-TOCA!$AL4))*VLOOKUP(BJ$2,Init!$F:$K,MATCH(BJ$3,Init!$F$4:$K$4,0),FALSE) -> 0 | BK4: =+IF(BK$2<$AB$2,TOCA!$AD4-TOCA!$AJ4,IF(AND(BK$2>=$AB$2,BK$2<$AZ$2),TOCA!$AE4-TOCA!$AK4,TOCA!$AF4-TOCA!$AL4))*VLOOKUP(BK$2,Init!$F:$K,MATCH(BK$3,Init!$F$4:$K$4,0),FALSE) -> 0 | BL4: =+IF(BL$2<$AB$2,TOCA!$AD4-TOCA!$AJ4,IF(AND(BL$2>=$AB$2,BL$2<$AZ$2),TOCA!$AE4-TOCA!$AK4,TOCA!$AF4-TOCA!$AL4))*VLOOKUP(BL$2,Init!$F:$K,MATCH(BL$3,Init!$F$4:$K$4,0),FALSE) -> 0 | BM4: =+IF(BM$2<$AB$2,TOCA!$AD4-TOCA!$AJ4,IF(AND(BM$2>=$AB$2,BM$2<$AZ$2),TOCA!$AE4-TOCA!$AK4,TOCA!$AF4-TOCA!$AL4))*VLOOKUP(BM$2,Init!$F:$K,MATCH(BM$3,Init!$F$4:$K$4,0),FALSE) -> 0 | BN4: =+IF(BN$2<$AB$2,TOCA!$AD4-TOCA!$AJ4,IF(AND(BN$2>=$AB$2,BN$2<$AZ$2),TOCA!$AE4-TOCA!$AK4,TOCA!$AF4-TOCA!$AL4))*VLOOKUP(BN$2,Init!$F:$K,MATCH(BN$3,Init!$F$4:$K$4,0),FALSE) -> 0 | BO4: =+IF(BO$2<$AB$2,TOCA!$AD4-TOCA!$AJ4,IF(AND(BO$2>=$AB$2,BO$2<$AZ$2),TOCA!$AE4-TOCA!$AK4,TOCA!$AF4-TOCA!$AL4))*VLOOKUP(BO$2,Init!$F:$K,MATCH(BO$3,Init!$F$4:$K$4,0),FALSE) -> 0 | BP4: =+IF(BP$2<$AB$2,TOCA!$AD4-TOCA!$AJ4,IF(AND(BP$2>=$AB$2,BP$2<$AZ$2),TOCA!$AE4-TOCA!$AK4,TOCA!$AF4-TOCA!$AL4))*VLOOKUP(BP$2,Init!$F:$K,MATCH(BP$3,Init!$F$4:$K$4,0),FALSE) -> 0 | BQ4: =+IF(BQ$2<$AB$2,TOCA!$AD4-TOCA!$AJ4,IF(AND(BQ$2>=$AB$2,BQ$2<$AZ$2),TOCA!$AE4-TOCA!$AK4,TOCA!$AF4-TOCA!$AL4))*VLOOKUP(BQ$2,Init!$F:$K,MATCH(BQ$3,Init!$F$4:$K$4,0),FALSE) -> 0 | BR4: =+IF(BR$2<$AB$2,TOCA!$AD4-TOCA!$AJ4,IF(AND(BR$2>=$AB$2,BR$2<$AZ$2),TOCA!$AE4-TOCA!$AK4,TOCA!$AF4-TOCA!$AL4))*VLOOKUP(BR$2,Init!$F:$K,MATCH(BR$3,Init!$F$4:$K$4,0),FALSE) -> 0 | BS4: =+IF(BS$2<$AB$2,TOCA!$AD4-TOCA!$AJ4,IF(AND(BS$2>=$AB$2,BS$2<$AZ$2),TOCA!$AE4-TOCA!$AK4,TOCA!$AF4-TOCA!$AL4))*VLOOKUP(BS$2,Init!$F:$K,MATCH(BS$3,Init!$F$4:$K$4,0),FALSE) -> 0 | BT4: =+IF(BT$2<$AB$2,TOCA!$AD4-TOCA!$AJ4,IF(AND(BT$2>=$AB$2,BT$2<$AZ$2),TOCA!$AE4-TOCA!$AK4,TOCA!$AF4-TOCA!$AL4))*VLOOKUP(BT$2,Init!$F:$K,MATCH(BT$3,Init!$F$4:$K$4,0),FALSE) -> 0 | BU4: =+IF(BU$2<$AB$2,TOCA!$AD4-TOCA!$AJ4,IF(AND(BU$2>=$AB$2,BU$2<$AZ$2),TOCA!$AE4-TOCA!$AK4,TOCA!$AF4-TOCA!$AL4))*VLOOKUP(BU$2,Init!$F:$K,MATCH(BU$3,Init!$F$4:$K$4,0),FALSE) -> 0 | BV4: =+IF(BV$2<$AB$2,TOCA!$AD4-TOCA!$AJ4,IF(AND(BV$2>=$AB$2,BV$2<$AZ$2),TOCA!$AE4-TOCA!$AK4,TOCA!$AF4-TOCA!$AL4))*VLOOKUP(BV$2,Init!$F:$K,MATCH(BV$3,Init!$F$4:$K$4,0),FALSE) -> 0 | BW4: =+IF(BW$2<$AB$2,TOCA!$AD4-TOCA!$AJ4,IF(AND(BW$2>=$AB$2,BW$2<$AZ$2),TOCA!$AE4-TOCA!$AK4,TOCA!$AF4-TOCA!$AL4))*VLOOKUP(BW$2,Init!$F:$K,MATCH(BW$3,Init!$F$4:$K$4,0),FALSE) -> 0
